Workbook

Sheet Mode d'emploi
E3: FORMULAIRE D'ÉVALUATION DE PROJET (FEP) : MODE D'EMPLOI
B5: Mode d'emploi :
B6: 1 - *Télécharger le fichier excel sur votre ordinateur. Ne pas modifier l'excel directement dans le Sharepoint.
B7: 2 - Activer les macros de votre fichier en suivant les instructions : https://support.microsoft.com/fr-fr/topic/une-macro-potentiellement-dangereuse-a-%C3%A9t%C3%A9-bloqu%C3%A9e-0952faa0-37e7-4316-b61d-5b5ed6024216

Sheet Fonctionnement

Sheet Calcul du prêt
A1: Demande de financement au FISQ ET FAS -SOUS TOUTE RÉSERVE-
A2: Demandeur/Acquéreur :
A3: Propriétaire/Vendeur:
A4: Date | C4: 2023-03-28 | F4: **coût estimé (s'il y lieu)
A5: Valeur marchande (terrain et immeuble) | F5: 100000 | G5: **
A6: Dépenses d'achat | E6: Coûts révisés
A7: Coût d'acquisition | D7: TX | E7: 90000 | F7: **
A8: Droit de mutation | D8: NTX | E8: ='Droit de mutation MTL'!F14 -> 633.995 | F8: **
A9: Certificat de localisation | D9: TX | E9: 0 | F9: ** | G9: Déjà obtenu
A10: Notaire | D10: TX | E10: 0 | F10: ** | G10: Acte de vente
A11: Assurances | D11: NTX | E11: 0 | F11: ** | G11: 12 mois
A12: Taxes municipales & scolaires | D12: NTX | E12: 0 | F12: **
A13: Frais d'exploitation | D13: TX | E13: 0 | F13: ** | G13: 800$ hydro + 600$ Énergir*12mois
A14: Frais expertise développement | E14: 0 | G14: Honoraires des professionnels pour développ.
A15: Étude environnementale | D15: TX | E15: 0 | F15: **
A16: Frais FAS (Initiative) | D16: TX | E16: 0 | F16: **
A18: Sous total nécessaire pour l'Achat | E18: =SUM(E7:E16) -> 90633.995
A20: TPS | B20: 0.05 | C20: 0 | E20: =SUMIF($D$7:$D$16,"TX",$E$7:$E$16)*(B20*C20) -> 0 | F20: **
A21: TVQ | B21: 0.09975 | C21: 0 | E21: =SUMIF($D$7:$D$16,"TX",$E$7:$E$16)*(B21*C21) -> 0 | F21: **
A22: Total des frais d'achat (estimé) | E22: =SUM(E18:E21) -> 90633.995 | I22: Coût acquisition | J22: =E22-E23-E24 -> 90633.995
A23: Dépôt/Prêt démarrage/Autres | E23: ='4. Sources de financement'!F7 -> 0 | F23: ** | G23: 400k$ subvention VDM+35k$ don | I23: Déboursé du prêt | J23: =SUM(J24:J25) -> 90634
A24: Balance de vente | D24: NTX | E24: ='4. Sources de financement'!F8 -> 0 | I24: Prêt FAQ | J24: =E38*K24 -> 90634 | K24: 1
I25: Prêt FAS | J25: =E22*K25 -> 0 | K25: 0
A26: Total emprunt demandé | E26: =E22-E23-E24 -> 90633.995 | I26: Total | J26: =J22-J23 -> -0.005000000005
A27: Prêt FAQ (AGRTQ) | E27: =$E$26*K24 -> 90633.995
A28: Prêt FAS - IICGM (RISQ) | E28: =$E$26*K25 -> 0
A30: Prêt acquisition maximal | E30: =E37-(E37*$D40)/12*$C40-E37*C41 -> 93000 | I30: % de la JVM visée | J30: 0.9
I31: =J30&" de la JVM" -> 0,9 de la JVM | J31: =J30*F5 -> 90000
A32: Balance d'achat à financer | E32: =IF(E30-E26>=0,0,E26-E30) -> 0 | F32: (3)* | J32: =E30-J31 -> 3000
A34: Ratio prêt-valeur | E34: =IFERROR(E38/F5,0) -> 0.90634
A36: Calcul des Prêts | I36: Calcul du Prêt FAS
A37: Montant maximum admissible/valeur marchande | E37: =IF(F5>D46,D46,F5) -> 100000 | I37: Montant maximum admissible/valeur marchande | M37: =IF(N6>L47,L47,N6) -> 0
A38: Prêt acquisition | E38: =ROUND(IF(E26<E30,E26,E30),0.1) -> 90634 | G38: =E27 -> 90633.995 | I38: Prêt acquisition | M38: =ROUND(IF(M27<M31,M27,M31),0.1) -> 0
A39: Frais | C39: nb mois | D39: taux (2)* | F39: Total intérêts + frais | G39: =(G38*D40)/12*12 -> 5438.0397 | I39: Frais du prêt | K39: nb mois | L39: taux (2)*
A40: Intérêts financement ** | C40: 12 | D40: =I47+2% -> 0.06 | E40: =(E38*$D40)/12*$C40 -> 5438.04 | F40: =E40+E41+M42 -> 6797.54995 | G40: =G39+E41 -> 6344.37965 | I40: Intérêts financement ** | K40: =C40 -> 12 | L40: =D40 -> 0.06 | M40: =(M38*$D41)/12*$C41 -> 0
A41: Frais de gestion FISQ et Initiative | C41: 0.01 | E41: =E27*$C41 -> 906.33995 | I41: Frais de gestion FAS | K41: 0.015 | M41: =K41*E38 -> 1359.51
I42: Frais de suivi annuel | K42: 0.005 | M42: =E38*(K42*C40/12) -> 453.17
A43: Total à rembourser aux fonds | D43: =E43/F5 -> 0.9697837995 | E43: =E38+E40+E41 -> 96978.37995 | F43: (1)* | I43: Total à rembourser aux fonds | M43: =M38+M40+M41 -> 1359.51
A44: Note:
A45: (1)* | B45: le montant doit être inférieur à l'évaluation marchande ou foncière (le plus haut des deux montants)
B46: pour un maximun à rembourser de | D46: =20000000*25% -> 5000000 | E46: incluant les frais
A47: (2)* | B47: Taux en date du: | C47: Suite à discussion | D47: http://www.banqueducanada.ca/taux/taux-dinteret/obligations-canadiennes/ | I47: 0.04
A48: (3)* | B48: Balance autres financement (voir calcul du prêt maximum admissible)

Sheet Droit de mutation MTL
B2: Montréal
B4: Tranche de la base d’imposition (2022) | D4: Taux | E4: Montant de la tranche | F4: Frais de mutation
B5: De | C5: À
B6: 0 | C6: =B7-1 -> 53199 | D6: 0.005 | E6: =C6-B6 -> 53199 | F6: =IF((MIN(E6,($C$14-$B6))*D6)<=0,0,(MIN(E6,($C$14-$B6))*D6)) -> 265.995
B7: 53200 | C7: =B8-1 -> 266199 | D7: 0.01 | E7: 212999 | F7: 368
B8: 266200 | C8: =B9-1 -> 532299 | D8: 0.015 | E8: 266099 | F8: 0
B9: 532300 | C9: =B10-1 -> 1064599 | D9: 0.02 | E9: 532299 | F9: 0
B10: 1064600 | C10: =2059000-1 -> 2058999 | D10: 0.025 | E10: 994399 | F10: 0
B11: 2059000 | C11: =3000000-1 -> 2999999 | D11: 0.035 | E11: 940999 | F11: 0
B12: 3000000 | C12: =IF(C14>B12,C14,"+ 3 000 000,00 $") -> + 3 000 000,00 $ | D12: 0.04 | E12: =IFERROR(C12-B12,0) -> 0 | F12: =IFERROR(IF((MIN(E12,($C$14-$B12))*D12)<=0,0,(MIN(E12,($C$14-$B12))*D12)),0) -> 0
B14: Prix de vente | C14: ='Calcul du prêt'!E7 -> 90000 | D14: TOTAL FRAIS | F14: =SUM(F6:F12) -> 633.995

Sheet Valeur
A1: FONDS D'ACQUISITION QUÉBCOIS SEC
A2: NOM DU PROJET
A3: Ajustement de la juste valeur marchande
E5: Description | G5: Montant | I5: Source et commentaires
E7: Valeur marchande: | G7: 100000
E9: Ajustement - Démolition et enlèvement de l'asphalte: | G9: 15000
E11: Ajustement - Démolition - Matières dangeureuses: | G11: 0
E13: Ajustement - Réhabilitation des sols: | G13: 10000
E15: Ajustement - Contributions aux fins de parcs: | G15: 0
E17: Ajustement - Autres: | G17: 0
E19: Total: | G19: =G7-SUM(G9:G17) -> 75000
A24: Hypothèse de redéveloppement:
B26: Superficie du terrain: | C26: 0 | D26: pi.ca.
B27: Superificie par lot: | C27: =C26 -> 0 | D27: pi.ca.
B28: Max d'implantation: | C28: 0
B29: Superifice au sol: | D29: pi.ca.
B30: Superficie totale du bâtiment: | C30: =C29*10 -> 0 | D30: pi.ca.
B31: Superficie aires communes: | C31: =C30*0.2 -> 0
B32: Superficie logements:
B33: Nombre de logements:
B34: Superficie par logement: | D34: pi.ca.
B35: Densité (ISP):

Sheet 1. Liste de documents
B2: =IF('2. Informations de base'!C7=0,"NOM DU PROJET",'2. Informations de base'!C7) -> NOM DU PROJET
B3: =+"Liste des documents pour "&'2. Informations de base'!$B$3&"" -> Liste des documents pour Fonds Immosocial Québec
B5: Liste de documents à fournir | D5: Statut | E5: Priorité | F5: Notes | H5: Liens clés
B6: 1 | C6: Présentation: | E6: Élevé | H6: Fonds Immosocial
C7: - Description de l'organisme | H7: Fonds Immosocial - Guide du demandeur
C8: - Description du projet | H8: Fonds Immosocial - Modèles
C9: - Justification de la demande | H9: Fonds CSII
B10: 2 | C10: Échéanciers | E10: Élevé | H10: Fonds CSII - Guide du demandeur
B11: 3 | C11: Promesse d'achat / acte de vente | E11: Élevé | H11: Fonds CSII - Modèles
B12: 4 | C12: Évaluation de la valeur marchande | E12: Élevé
B13: 5 | C13: Évaluation environnementale, phase I | E13: Élevé
C14: Évaluation environnementale, phase II (au besoin)
C15: Rénovation: évaluation des matières dangereuses dans le(s) bâtiment(s)
C16: Estimation du coût de décontamination (au besoin)
B17: 6 | C17: Budget d'acquisition (outil calcul du prêt, voir le modèle en ligne) | E17: Élevé
B18: 7 | C18: Montage financier long terme (outil en ligne) | E18: Élevé
B19: 8 | C19: Lettres: | E19: Élevé | H19: ='2. Informations de base'!B3 -> Fonds Immosocial Québec
C20: - Lettre d'intérêt ou d'engagement pour le financement
C21: - Lettres d'appui pour le projet (s'il y a lieu)
B22: 9 | C22: Soumission de l'entrepreneur choisi (si possible); OU | E22: Moyenne | F22: Numéro d’enregistrement:
C23: Estimation du coût de construction (classe C minimum); ET
C24: Numéro RBQ de l'entrepreneur général et les sous-traitants
B25: 10 | C25: Baux signés (si possible) | E25: Moyenne
C26: Avis de renouvellement (s'il y a lieu et si possible)
B27: 11 | C27: Rôle d'évaluation foncière | E27: Moyenne
B28: 12 | C28: Comptes de taxes foncières (si possible) | E28: Moyenne
C29: Compte de taxes scolaires (si possible) | E29: Moyenne
B30: 13 | C30: Plans d'architecture | E30: Moyenne
B31: 14 | C31: Construction neuve/agrandissement: Étude géotechnique | E31: Moyenne
C32: Rénovation/agrandissement: Bilan de santé de l'immeuble
B33: 15 | C33: Lettres patentes de l'organisme et amendés | E33: Faible
B34: 16 | C34: États financiers certifiés (2 dernières années si possible) | E34: Faible
B35: 17 | C35: Résolution de l'organisme (modèle en ligne) | E35: Faible
B36: 18 | C36: Consentement pour l'enquête de crédit (modèle en ligne) | E36: Faible
B37: 19 | C37: Consentement pour la vérification des antécédents criminels (fomulaire en ligne) | E37: Faible
B38: 20 | C38: Déclaration pour conflits d'intérêts | E38: Faible
B39: 21 | C39: Confirmation de vérification de projet (formulaire en ligne) | E39: Faible
B40: 22 | C40: Bilan social | E40: Faible | F40: Organisme porteur: chaque membre du C.A. et leur date de naissance
F41: Entrepreneurs et sous-traitants: noms des entreprises (voir 9. Numéro RBQ de l'entrepreneur et les sous-traitants)
F42: Vendeur(s) de l'immeuble: nom du vendeur
B43: 23 | C43: Certificat de localisation | E43: Faible
B44: 24 | C44: Rapport sur les titres | E44: Faible
B45: 25 | C45: Désignation des gestionnaires immobiliers (indiquer dans la colonne « Notes » à droite) | E45: Faible | F45: Option 1:
F46: Option 2:
F47: Option 3:
B48: 26 | C48: CSII seulement: Rapport de modélisation de la consommation d’énergie | E48: Faible

Sheet 2. Informations de base
B2: Version 1, mai 2023
B3: Fonds Immosocial Québec
B4: Informations de base
B5: Cet outil réservé exclusivement aux membres de l'AGRTQ
B6: Détails du projet
B7: Nom du projet
B8: Adresse(s) civique
B9: Municipalité
B10: Quartier ou arrondissement (s'il y a lieu)
B11: Numéro(s) de lot(s)
B12: Clientèle visée
B13: Type de projet
B14: Nombre d'unités | C14: =IF(B3="Fonds Capital social d'investissement immobilier",'3. CSII - Immeubles et loyers'!G42,(IF(B3="Fonds Immosocial Québec",'3. FISQ - Immeubles et loyers'!H41,(IF(B3="Sélectionner le nom du fonds",""))))) -> 0
B15: Amélioration de la performance énergétique du bâtiment (consommation d'énergie et emissions de GES)
B16: Politique de sélection des locataires priorisant les familles
B18: Porteur du projet
B19: Nom de l'organisme bénéficiaire
B20: Représentant du groupe
B21: Courriel du représentant
B22: Statut légal de l'organisme
B23: Adresse du siège social
B24: Président(e) du groupe
B25: Nombre de membres (C.A. et A.G.)
B27: Groupe de ressources techniques
B28: Nom du GRT ou de l'organisme accompagnateur
B29: Nom de la personne ressource
B30: Courriel de la personne ressource
B32: Dates importantes
B33: Acquisition (AAAA-MM-JJ)
B34: Date de début du prêt (AAAA-MM-JJ)
B35: Début des travaux prévu (AAAA-MM-JJ)
B36: Fin des travaux prévue (AAAA-MM-JJ)
B37: Durée de travaux | C37: =IFERROR(IF(DATEDIF(C35,C36,"m")=0,"",DATEDIF(C35,C36,"m")),"") -> 
B38: Date d'emménagement des locataires (AAAA-MM-JJ)
B39: Présente analyse (AAAA-MM-JJ)

Sheet 3. CSII - Immeubles et loyers (hidden)
F2: =IF('2. Informations de base'!C7=0,"NOM DU PROJET",'2. Informations de base'!C7) -> NOM DU PROJET
F3: Capital social d'investissement immobilier, Immeubles et loyers
F5: INFORMATIONS - LOGEMENTS
F6: Référence d'abordabilité | G6: chambre | I6: Référence d'abordabilité | J6: 4.5
F7: Référence d'abordabilité | G7: studio | I7: Référence d'abordabilité | J7: 5.5
F8: Référence d'abordabilité | G8: 3.5 | I8: Référence d'abordabilité | J8: 6.5
A10: Typologie | B10: # unités | C10: Loyer prévu (services INCLUS) | D10: Services | F10: INFORMATIONS - DIVERS
A11: Chambre | B11: =SUMIF($F$47:$F$51,$A11,$G$47:$G$51)+SUMIF($L$47:$L$51,$A11,$M$47:$M$51)+SUMIF($F$59:$F$63,$A11,$G$59:$G$63)+SUMIF($L$59:$L$63,$A11,$M$59:$M$63)+SUMIF($F$69:$F$73,$A11,$G$69:$G$73)+SUMIF($L$69:$L$73,$A11,$M$69:$M$73)+SUMIF($F$79:$F$83,$A11,$G$79:$G$83)+SUMIF($L$79:$L$83,$A11,$M$79:$M$83)+SUMIF($F$89:$F$93,$A11,$G$89:$G$93)+SUMIF($L$89:$L$93,$A11,$M$89:$M$93) -> 0 | C11: =IFERROR((SUMPRODUCT(IF($F$47:$F$51=$A11,$H$47:$H$51*$G$47:$G$51))+SUMPRODUCT(IF($L$47:$L$51=$A11,$N$47:$N$51*$M$47:$M$51))+SUMPRODUCT(IF($F$59:$F$63=$A11,$H$59:$H$63*$G$59:$G$63))+SUMPRODUCT(IF($L$59:$L$63=$A11,$N$59:$N$63*M$59:$M$63))+SUMPRODUCT(IF($F$69:$F$73=$A11,$H$69:$H$73*$G$69:$G$73))+SUMPRODUCT(IF($L$69:$L$73=$A11,$N$69:$N$73*$M$69:$M$73))+SUMPRODUCT(IF($F$79:$F$83=$A11,$H$79:$H$83*$G$79:$G$83))+SUMPRODUCT(IF($L$79:$L$83=$A11,$N$79:$N$83*$M$79:$M$83)+SUMPRODUCT(IF($F$89:$F$93=$A11,$H$89:$H$93*$G$89:$G$93))+SUMPRODUCT(IF($L$89:$L$93=$A11,$N$89:$N$93*$M$89:$M$93))))/$B11,0) -> 0 | D11: =IFERROR((SUMPRODUCT(IF($F$47:$F$51=$A11,$I$47:$I$51*$G$47:$G$51))+SUMPRODUCT(IF($L$47:$L$51=$A11,$O$47:$O$51*$M$47:$M$51))+SUMPRODUCT(IF($F$59:$F$63=$A11,$I$59:$I$63*$G$59:$G$63))+SUMPRODUCT(IF($L$59:$L$63=$A11,$O$59:$O$63*$M$59:N$63))+SUMPRODUCT(IF($F$69:$F$73=$A11,$I$69:$I$73*$G$69:$G$73))+SUMPRODUCT(IF($L$69:$L$73=$A11,$O$69:$O$73*$M$69:$M$73))+SUMPRODUCT(IF($F$79:$F$83=$A11,$I$79:$I$83*$G$79:$G$83))+SUMPRODUCT(IF($L$79:$L$83=$A11,$O$79:$O$83*$M$79:$M$83)+SUMPRODUCT(IF($F$89:$F$93=$A11,$I$89:$I$93*$G$89:$G$93))+SUMPRODUCT(IF($L$89:$L$93=$A11,$O$89:$O$93*$M$89:$M$93))))/$B11,0) -> 0 | F11: % max. du loyer payé par PSL (à titre indicatif)
A12: Studio | B12: 0 | C12: =IFERROR((SUMPRODUCT(IF($F$47:$F$51=$A12,$H$47:$H$51*$G$47:$G$51))+SUMPRODUCT(IF($L$47:$L$51=$A12,$N$47:$N$51*$M$47:$M$51))+SUMPRODUCT(IF($F$59:$F$63=$A12,$H$59:$H$63*$G$59:$G$63))+SUMPRODUCT(IF($L$59:$L$63=$A12,$N$59:$N$63*M$59:$M$63))+SUMPRODUCT(IF($F$69:$F$73=$A12,$H$69:$H$73*$G$69:$G$73))+SUMPRODUCT(IF($L$69:$L$73=$A12,$N$69:$N$73*$M$69:$M$73))+SUMPRODUCT(IF($F$79:$F$83=$A12,$H$79:$H$83*$G$79:$G$83))+SUMPRODUCT(IF($L$79:$L$83=$A12,$N$79:$N$83*$M$79:$M$83)+SUMPRODUCT(IF($F$89:$F$93=$A12,$H$89:$H$93*$G$89:$G$93))+SUMPRODUCT(IF($L$89:$L$93=$A12,$N$89:$N$93*$M$89:$M$93))))/B12,0) -> 0 | D12: =IFERROR((SUMPRODUCT(IF($F$47:$F$51=$A12,$I$47:$I$51*$G$47:$G$51))+SUMPRODUCT(IF($L$47:$L$51=$A12,$O$47:$O$51*$M$47:$M$51))+SUMPRODUCT(IF($F$59:$F$63=$A12,$I$59:$I$63*$G$59:$G$63))+SUMPRODUCT(IF($L$59:$L$63=$A12,$O$59:$O$63*$M$59:N$63))+SUMPRODUCT(IF($F$69:$F$73=$A12,$I$69:$I$73*$G$69:$G$73))+SUMPRODUCT(IF($L$69:$L$73=$A12,$O$69:$O$73*$M$69:$M$73))+SUMPRODUCT(IF($F$79:$F$83=$A12,$I$79:$I$83*$G$79:$G$83))+SUMPRODUCT(IF($L$79:$L$83=$A12,$O$79:$O$83*$M$79:$M$83)+SUMPRODUCT(IF($F$89:$F$93=$A12,$I$89:$I$93*$G$89:$G$93))+SUMPRODUCT(IF($L$89:$L$93=$A12,$O$89:$O$93*$M$89:$M$93))))/$B12,0) -> 0 | F12: Locataires existants?
A13: 3.5 | B13: 0 | C13: =IFERROR((SUMPRODUCT(IF($F$47:$F$51=$A13,$H$47:$H$51*$G$47:$G$51))+SUMPRODUCT(IF($L$47:$L$51=$A13,$N$47:$N$51*$M$47:$M$51))+SUMPRODUCT(IF($F$59:$F$63=$A13,$H$59:$H$63*$G$59:$G$63))+SUMPRODUCT(IF($L$59:$L$63=$A13,$N$59:$N$63*M$59:$M$63))+SUMPRODUCT(IF($F$69:$F$73=$A13,$H$69:$H$73*$G$69:$G$73))+SUMPRODUCT(IF($L$69:$L$73=$A13,$N$69:$N$73*$M$69:$M$73))+SUMPRODUCT(IF($F$79:$F$83=$A13,$H$79:$H$83*$G$79:$G$83))+SUMPRODUCT(IF($L$79:$L$83=$A13,$N$79:$N$83*$M$79:$M$83)+SUMPRODUCT(IF($F$89:$F$93=$A13,$H$89:$H$93*$G$89:$G$93))+SUMPRODUCT(IF($L$89:$L$93=$A13,$N$89:$N$93*$M$89:$M$93))))/B13,0) -> 0 | D13: =IFERROR((SUMPRODUCT(IF($F$47:$F$51=$A13,$I$47:$I$51*$G$47:$G$51))+SUMPRODUCT(IF($L$47:$L$51=$A13,$O$47:$O$51*$M$47:$M$51))+SUMPRODUCT(IF($F$59:$F$63=$A13,$I$59:$I$63*$G$59:$G$63))+SUMPRODUCT(IF($L$59:$L$63=$A13,$O$59:$O$63*$M$59:N$63))+SUMPRODUCT(IF($F$69:$F$73=$A13,$I$69:$I$73*$G$69:$G$73))+SUMPRODUCT(IF($L$69:$L$73=$A13,$O$69:$O$73*$M$69:$M$73))+SUMPRODUCT(IF($F$79:$F$83=$A13,$I$79:$I$83*$G$79:$G$83))+SUMPRODUCT(IF($L$79:$L$83=$A13,$O$79:$O$83*$M$79:$M$83)+SUMPRODUCT(IF($F$89:$F$93=$A13,$I$89:$I$93*$G$89:$G$93))+SUMPRODUCT(IF($L$89:$L$93=$A13,$O$89:$O$93*$M$89:$M$93))))/$B13,0) -> 0 | F13: Taux d'innocupation à l'achat
A14: 4.5 | B14: 0 | C14: =IFERROR((SUMPRODUCT(IF($F$47:$F$51=$A14,$H$47:$H$51*$G$47:$G$51))+SUMPRODUCT(IF($L$47:$L$51=$A14,$N$47:$N$51*$M$47:$M$51))+SUMPRODUCT(IF($F$59:$F$63=$A14,$H$59:$H$63*$G$59:$G$63))+SUMPRODUCT(IF($L$59:$L$63=$A14,$N$59:$N$63*M$59:$M$63))+SUMPRODUCT(IF($F$69:$F$73=$A14,$H$69:$H$73*$G$69:$G$73))+SUMPRODUCT(IF($L$69:$L$73=$A14,$N$69:$N$73*$M$69:$M$73))+SUMPRODUCT(IF($F$79:$F$83=$A14,$H$79:$H$83*$G$79:$G$83))+SUMPRODUCT(IF($L$79:$L$83=$A14,$N$79:$N$83*$M$79:$M$83)+SUMPRODUCT(IF($F$89:$F$93=$A14,$H$89:$H$93*$G$89:$G$93))+SUMPRODUCT(IF($L$89:$L$93=$A14,$N$89:$N$93*$M$89:$M$93))))/B14,0) -> 0 | D14: =IFERROR((SUMPRODUCT(IF($F$47:$F$51=$A14,$I$47:$I$51*$G$47:$G$51))+SUMPRODUCT(IF($L$47:$L$51=$A14,$O$47:$O$51*$M$47:$M$51))+SUMPRODUCT(IF($F$59:$F$63=$A14,$I$59:$I$63*$G$59:$G$63))+SUMPRODUCT(IF($L$59:$L$63=$A14,$O$59:$O$63*$M$59:N$63))+SUMPRODUCT(IF($F$69:$F$73=$A14,$I$69:$I$73*$G$69:$G$73))+SUMPRODUCT(IF($L$69:$L$73=$A14,$O$69:$O$73*$M$69:$M$73))+SUMPRODUCT(IF($F$79:$F$83=$A14,$I$79:$I$83*$G$79:$G$83))+SUMPRODUCT(IF($L$79:$L$83=$A14,$O$79:$O$83*$M$79:$M$83)+SUMPRODUCT(IF($F$89:$F$93=$A14,$I$89:$I$93*$G$89:$G$93))+SUMPRODUCT(IF($L$89:$L$93=$A14,$O$89:$O$93*$M$89:$M$93))))/$B14,0) -> 0 | F14: Référence d'abordabilité
A15: 5.5 | B15: 0 | C15: =IFERROR((SUMPRODUCT(IF($F$47:$F$51=$A15,$H$47:$H$51*$G$47:$G$51))+SUMPRODUCT(IF($L$47:$L$51=$A15,$N$47:$N$51*$M$47:$M$51))+SUMPRODUCT(IF($F$59:$F$63=$A15,$H$59:$H$63*$G$59:$G$63))+SUMPRODUCT(IF($L$59:$L$63=$A15,$N$59:$N$63*M$59:$M$63))+SUMPRODUCT(IF($F$69:$F$73=$A15,$H$69:$H$73*$G$69:$G$73))+SUMPRODUCT(IF($L$69:$L$73=$A15,$N$69:$N$73*$M$69:$M$73))+SUMPRODUCT(IF($F$79:$F$83=$A15,$H$79:$H$83*$G$79:$G$83))+SUMPRODUCT(IF($L$79:$L$83=$A15,$N$79:$N$83*$M$79:$M$83)+SUMPRODUCT(IF($F$89:$F$93=$A15,$H$89:$H$93*$G$89:$G$93))+SUMPRODUCT(IF($L$89:$L$93=$A15,$N$89:$N$93*$M$89:$M$93))))/B15,0) -> 0 | D15: =IFERROR((SUMPRODUCT(IF($F$47:$F$51=$A15,$I$47:$I$51*$G$47:$G$51))+SUMPRODUCT(IF($L$47:$L$51=$A15,$O$47:$O$51*$M$47:$M$51))+SUMPRODUCT(IF($F$59:$F$63=$A15,$I$59:$I$63*$G$59:$G$63))+SUMPRODUCT(IF($L$59:$L$63=$A15,$O$59:$O$63*$M$59:N$63))+SUMPRODUCT(IF($F$69:$F$73=$A15,$I$69:$I$73*$G$69:$G$73))+SUMPRODUCT(IF($L$69:$L$73=$A15,$O$69:$O$73*$M$69:$M$73))+SUMPRODUCT(IF($F$79:$F$83=$A15,$I$79:$I$83*$G$79:$G$83))+SUMPRODUCT(IF($L$79:$L$83=$A15,$O$79:$O$83*$M$79:$M$83)+SUMPRODUCT(IF($F$89:$F$93=$A15,$I$89:$I$93*$G$89:$G$93))+SUMPRODUCT(IF($L$89:$L$93=$A15,$O$89:$O$93*$M$89:$M$93))))/$B15,0) -> 0
A16: 6.5 | B16: 0 | C16: =IFERROR((SUMPRODUCT(IF($F$47:$F$51=$A16,$H$47:$H$51*$G$47:$G$51))+SUMPRODUCT(IF($L$47:$L$51=$A16,$N$47:$N$51*$M$47:$M$51))+SUMPRODUCT(IF($F$59:$F$63=$A16,$H$59:$H$63*$G$59:$G$63))+SUMPRODUCT(IF($L$59:$L$63=$A16,$N$59:$N$63*M$59:$M$63))+SUMPRODUCT(IF($F$69:$F$73=$A16,$H$69:$H$73*$G$69:$G$73))+SUMPRODUCT(IF($L$69:$L$73=$A16,$N$69:$N$73*$M$69:$M$73))+SUMPRODUCT(IF($F$79:$F$83=$A16,$H$79:$H$83*$G$79:$G$83))+SUMPRODUCT(IF($L$79:$L$83=$A16,$N$79:$N$83*$M$79:$M$83)+SUMPRODUCT(IF($F$89:$F$93=$A16,$H$89:$H$93*$G$89:$G$93))+SUMPRODUCT(IF($L$89:$L$93=$A16,$N$89:$N$93*$M$89:$M$93))))/B16,0) -> 0 | D16: =IFERROR((SUMPRODUCT(IF($F$47:$F$51=$A16,$I$47:$I$51*$G$47:$G$51))+SUMPRODUCT(IF($L$47:$L$51=$A16,$O$47:$O$51*$M$47:$M$51))+SUMPRODUCT(IF($F$59:$F$63=$A16,$I$59:$I$63*$G$59:$G$63))+SUMPRODUCT(IF($L$59:$L$63=$A16,$O$59:$O$63*$M$59:N$63))+SUMPRODUCT(IF($F$69:$F$73=$A16,$I$69:$I$73*$G$69:$G$73))+SUMPRODUCT(IF($L$69:$L$73=$A16,$O$69:$O$73*$M$69:$M$73))+SUMPRODUCT(IF($F$79:$F$83=$A16,$I$79:$I$83*$G$79:$G$83))+SUMPRODUCT(IF($L$79:$L$83=$A16,$O$79:$O$83*$M$79:$M$83)+SUMPRODUCT(IF($F$89:$F$93=$A16,$I$89:$I$93*$G$89:$G$93))+SUMPRODUCT(IF($L$89:$L$93=$A16,$O$89:$O$93*$M$89:$M$93))))/$B16,0) -> 0 | F16: Adresses des immeubles | G16: IMMEUBLES
A17: Espace commercial | B17: 0 | C17: =IFERROR((SUMPRODUCT(IF($F$47:$F$51=$A17,$H$47:$H$51*$G$47:$G$51))+SUMPRODUCT(IF($L$47:$L$51=$A17,$N$47:$N$51*$M$47:$M$51))+SUMPRODUCT(IF($F$59:$F$63=$A17,$H$59:$H$63*$G$59:$G$63))+SUMPRODUCT(IF($L$59:$L$63=$A17,$N$59:$N$63*M$59:$M$63))+SUMPRODUCT(IF($F$69:$F$73=$A17,$H$69:$H$73*$G$69:$G$73))+SUMPRODUCT(IF($L$69:$L$73=$A17,$N$69:$N$73*$M$69:$M$73))+SUMPRODUCT(IF($F$79:$F$83=$A17,$H$79:$H$83*$G$79:$G$83))+SUMPRODUCT(IF($L$79:$L$83=$A17,$N$79:$N$83*$M$79:$M$83)+SUMPRODUCT(IF($F$89:$F$93=$A17,$H$89:$H$93*$G$89:$G$93))+SUMPRODUCT(IF($L$89:$L$93=$A17,$N$89:$N$93*$M$89:$M$93))))/B17,0) -> 0 | D17: =IFERROR((SUMPRODUCT(IF($F$47:$F$51=$A17,$I$47:$I$51*$G$47:$G$51))+SUMPRODUCT(IF($L$47:$L$51=$A17,$O$47:$O$51*$M$47:$M$51))+SUMPRODUCT(IF($F$59:$F$63=$A17,$I$59:$I$63*$G$59:$G$63))+SUMPRODUCT(IF($L$59:$L$63=$A17,$O$59:$O$63*$M$59:N$63))+SUMPRODUCT(IF($F$69:$F$73=$A17,$I$69:$I$73*$G$69:$G$73))+SUMPRODUCT(IF($L$69:$L$73=$A17,$O$69:$O$73*$M$69:$M$73))+SUMPRODUCT(IF($F$79:$F$83=$A17,$I$79:$I$83*$G$79:$G$83))+SUMPRODUCT(IF($L$79:$L$83=$A17,$O$79:$O$83*$M$79:$M$83)+SUMPRODUCT(IF($F$89:$F$93=$A17,$I$89:$I$93*$G$89:$G$93))+SUMPRODUCT(IF($L$89:$L$93=$A17,$O$89:$O$93*$M$89:$M$93))))/$B17,0) -> 0 | G17: Superficie du terrain (pi²) | H17: Superficie du bâtiment (pi²) | I17: Superficie résidentielle (pi²) | J17: Superficie commerciale (pi²) | L17: Évaluation foncière $ | M17: Valeur marchande $ | N17: Prix d'acquisition $ | O17: Transport en commun
F18: [Adresse immeuble 1]
F19: [Adresse immeuble 2]
F20: [Adresse immeuble 3]
F21: [Adresse immeuble 4]
B22: Critère proportion résidentielle | F22: [Adresse immeuble 5]
B23: Commercial | C23: Max. pi2 | D23: 0.2 | F23: [Adresse immeuble 6]
C24: Superf. prévu | D24: =IFERROR(J28/(J28+I28),0) -> 0 | F24: [Adresse immeuble 7]
D25: 0.2 | F25: [Adresse immeuble 8]
B26: Résidentiel | C26: Min. pi2 | D26: 0.8 | F26: [Adresse immeuble 9]
C27: Superf. prévu | D27: =IFERROR(I28/(I28+J28),0) -> 0 | F27: [Adresse immeuble 10]
F28: Total | G28: =SUM(G18:G27) -> 0 | H28: 0 | I28: 0 | J28: =SUM(J18:J27) -> 0 | L28: =SUM(L18:L27) -> 0 | M28: =SUM(M18:M27) -> 0 | N28: =SUM(N18:N27) -> 0
F30: Adresses des immeubles | G30: UNITÉS RÉSIDENTIELLES
A31: Revenus des loyers potentiels selon la référence d'abordabilité | G31: Nbre unités totales | H31: Nbre unités abordables | I31: % unités abordables | J31: Nbre unités accessibles | L31: % unités accessibles | M31: Nbre unités PSL | N31: % unités PSL | O31: Description des services inclus
F32: =$F$18 -> [Adresse immeuble 1] | G32: =G52 -> 0 | H32: =$B52 -> 0 | I32: =IFERROR(ROUNDDOWN((H32/G32),-1),"0,00%") -> 0,00% | L32: =IFERROR(J32/G32,0) -> 0 | N32: =IFERROR(M32/G32,0) -> 0
A33: =A45 -> [Adresse immeuble 1] | B33: =SUMPRODUCT(G47:G51,J47:J51) -> 0 | F33: =$F$19 -> [Adresse immeuble 2] | G33: =M52 -> 0 | H33: =$D52 -> 0 | I33: =IFERROR(H33/G33,"0,00%") -> 0,00% | L33: =IFERROR(J33/G33,0) -> 0 | N33: 0
A34: =C45 -> [Adresse immeuble 2] | B34: =SUMPRODUCT(M47:M51,P47:P51) -> 0 | F34: =$F$20 -> [Adresse immeuble 3] | G34: =G64 -> 0 | H34: =$B64 -> 0 | I34: 0,00% | L34: =IFERROR(J34/G34,0) -> 0 | N34: 0
A35: =A57 -> [Adresse immeuble 3] | B35: =SUMPRODUCT(G59:G63,J59:J63) -> 0 | F35: =$F$21 -> [Adresse immeuble 4] | G35: =N64 -> 0 | H35: =$D64 -> 0 | I35: 0,00% | L35: 0 | N35: 0
A36: =C57 -> [Adresse immeuble 4] | B36: =SUMPRODUCT(M59:M63,P59:P63) -> 0 | F36: =$F$22 -> [Adresse immeuble 5] | G36: =G74 -> 0 | H36: =$B74 -> 0 | I36: 0,00% | L36: 0 | N36: 0
A37: =A67 -> [Adresse immeuble 5] | B37: =SUMPRODUCT(G69:G73,J69:J73) -> 0 | F37: =$F$23 -> [Adresse immeuble 6] | G37: =N74 -> 0 | H37: =$D74 -> 0 | I37: 0,00% | L37: 0 | N37: 0
A38: =C67 -> [Adresse immeuble 6] | B38: =SUMPRODUCT(M69:M73,P69:P73) -> 0 | F38: =$F$24 -> [Adresse immeuble 7] | G38: =G84 -> 0 | H38: =$B84 -> 0 | I38: 0,00% | L38: 0 | N38: 0
A39: =A77 -> [Adresse immeuble 7] | B39: =SUMPRODUCT(G79:G83,J79:J83) -> 0 | F39: =$F$25 -> [Adresse immeuble 8] | G39: =N84 -> 0 | H39: =$D84 -> 0 | I39: 0,00% | L39: 0 | N39: 0
A40: =C77 -> [Adresse immeuble 8] | B40: =SUMPRODUCT(M79:M83,P79:P83) -> 0 | F40: =$F$26 -> [Adresse immeuble 9] | G40: =G94 -> 0 | H40: =$B94 -> 0 | I40: 0,00% | L40: 0 | N40: 0
A41: =A87 -> [Adresse immeuble 9] | B41: =SUMPRODUCT(G89:G93,J89:J93) -> 0 | F41: =$F$27 -> [Adresse immeuble 10] | G41: =N94 -> 0 | H41: =$D94 -> 0 | I41: 0,00% | L41: 0 | N41: =IFERROR(M41/G41,0) -> 0
A42: =C87 -> [Adresse immeuble 10] | B42: =SUMPRODUCT(M89:M93,P89:P93) -> 0 | F42: Total | G42: =SUM(G32:G41) -> 0 | H42: =SUM(H32:H41) -> 0 | I42: =IFERROR(H42/Nombre_logement,0) -> 0 | J42: =SUM(J32:J41) -> 0 | L42: 0 | M42: =SUM(M32:M41) -> 0 | N42: =IFERROR(#REF!/G42,0) -> 0
A43: TOTAL | B43: =SUM(B33:B42) -> 0
A45: =F45 -> [Adresse immeuble 1] | C45: =L45 -> [Adresse immeuble 2] | F45: ='3. CSII - Immeubles et loyers'!$F$18 -> [Adresse immeuble 1] | L45: ='3. CSII - Immeubles et loyers'!$F$19 -> [Adresse immeuble 2]
A46: Loyer mensuel prévu (services EXCLUS) | B46: # unités abordables | C46: Loyer mensuel prévu (services EXCLUS) | D46: # abordables | F46: Typologie résidentielle | G46: Nombre d'unités | H46: Loyer mensuel prévu (services inclus) | I46: Valeur mensuelle des services | J46: Référence loyer mensuel abordable | L46: Typologie résidentielle | M46: Nombre d'unités | N46: Loyer mensuel prévu (services inclus) | O46: Valeur mensuelle des services | P46: Référence loyer mensuel abordable
A47: =H47-I47 -> 0 | B47: =SUMIF(A47,"<="&J47,G47) -> 0 | C47: =N47-O47 -> 0 | D47: =SUMIF(C47,"<="&P47,M47) -> 0 | H47: 0 | I47: 0 | J47: =IFERROR(_xlfn.SWITCH(F47,$G$6,$H$6,$G$7,$H$7,$G$8,$H$8,$J$6,$K$6,$J$7,$K$7,$J$8,$K$8),0) -> 0 | N47: 0 | O47: 0 | P47: =IFERROR(_xlfn.SWITCH(L47,$G$6,$H$6,$G$7,$H$7,$G$8,$H$8,$J$6,$K$6,$J$7,$K$7,$J$8,$K$8),0) -> 0
A48: =H48-I48 -> 0 | B48: =SUMIF(A48,"<="&J48,G48) -> 0 | C48: =N48-O48 -> 0 | D48: =SUMIF(C48,"<="&P48,M48) -> 0 | H48: 0 | I48: 0 | J48: =IFERROR(_xlfn.SWITCH(F48,$G$6,$H$6,$G$7,$H$7,$G$8,$H$8,$J$6,$K$6,$J$7,$K$7,$J$8,$K$8),0) -> 0 | N48: 0 | O48: 0 | P48: =IFERROR(_xlfn.SWITCH(L48,$G$6,$H$6,$G$7,$H$7,$G$8,$H$8,$J$6,$K$6,$J$7,$K$7,$J$8,$K$8),0) -> 0
A49: =H49-I49 -> 0 | B49: =SUMIF(A49,"<="&J49,G49) -> 0 | C49: =N49-O49 -> 0 | D49: =SUMIF(C49,"<="&P49,M49) -> 0 | H49: 0 | I49: 0 | J49: =IFERROR(_xlfn.SWITCH(F49,$G$6,$H$6,$G$7,$H$7,$G$8,$H$8,$J$6,$K$6,$J$7,$K$7,$J$8,$K$8),0) -> 0 | N49: 0 | O49: 0 | P49: =IFERROR(_xlfn.SWITCH(L49,$G$6,$H$6,$G$7,$H$7,$G$8,$H$8,$J$6,$K$6,$J$7,$K$7,$J$8,$K$8),0) -> 0
A50: =H50-I50 -> 0 | B50: =SUMIF(A50,"<="&J50,G50) -> 0 | C50: =N50-O50 -> 0 | D50: =SUMIF(C50,"<="&P50,M50) -> 0 | H50: 0 | I50: 0 | J50: =IFERROR(_xlfn.SWITCH(F50,$G$6,$H$6,$G$7,$H$7,$G$8,$H$8,$J$6,$K$6,$J$7,$K$7,$J$8,$K$8),0) -> 0 | N50: 0 | O50: 0 | P50: =IFERROR(_xlfn.SWITCH(L50,$G$6,$H$6,$G$7,$H$7,$G$8,$H$8,$J$6,$K$6,$J$7,$K$7,$J$8,$K$8),0) -> 0
A51: =H51-I51 -> 0 | B51: =SUMIF(A51,"<="&J51,G51) -> 0 | C51: =N51-O51 -> 0 | D51: =SUMIF(C51,"<="&P51,M51) -> 0 | H51: 0 | I51: 0 | J51: =IFERROR(_xlfn.SWITCH(F51,$G$6,$H$6,$G$7,$H$7,$G$8,$H$8,$J$6,$K$6,$J$7,$K$7,$J$8,$K$8),0) -> 0 | N51: 0 | O51: 0 | P51: =IFERROR(_xlfn.SWITCH(L51,$G$6,$H$6,$G$7,$H$7,$G$8,$H$8,$J$6,$K$6,$J$7,$K$7,$J$8,$K$8),0) -> 0
A52: TOTAL | B52: =SUM(B47:B51) -> 0 | C52: TOTAL | D52: =SUM(D47:D51) -> 0 | F52: Total résidentiel | G52: =SUM(G47:G51) -> 0 | H52: =SUM(G47:G51*H47:H51) -> 0 | I52: =SUM($G$47:$G$51*I47:I51) -> 0 | L52: Total résidentiel | M52: =SUM(M47:M51) -> 0 | N52: =SUM($M$47:$M$51*N47:N51) -> 0 | O52: =SUM($M$47:$M$51*O47:O51) -> 0
F53: Total commercial | H53: 0 | L53: Total commercial | N53: 0
F55: *Si plus de 2 immeubles avec une superficie résidentielle, cliquer sur le + à la gauche
A57: =F57 -> [Adresse immeuble 3] | C57: =L57 -> [Adresse immeuble 4] | F57: ='3. CSII - Immeubles et loyers'!$F$20 -> [Adresse immeuble 3] | L57: ='3. CSII - Immeubles et loyers'!$F$21 -> [Adresse immeuble 4]
A58: Loyer mensuel prévu (services EXCLUS) | B58: # abordables | C58: Loyer mensuel prévu (services EXCLUS) | D58: # abordables | F58: Typologie résidentielle | G58: Nombre d'unités | H58: Loyer mensuel prévu (services inclus) | I58: Valeur mensuelle des services | J58: Référence loyer mensuel abordable | L58: Typologie résidentielle | M58: Nombre d'unités | N58: Loyer mensuel prévu (services inclus) | O58: Valeur mensuelle des services | P58: Référence loyer mensuel abordable
A59: =H59-I59 -> 0 | B59: =SUMIF(A59,"<="&J59,G59) -> 0 | C59: =N59-O59 -> 0 | D59: =SUMIF(C59,"<="&P59,M59) -> 0 | I59: 0 | J59: =IFERROR(_xlfn.SWITCH(F59,$G$6,$H$6,$G$7,$H$7,$G$8,$H$8,$J$6,$K$6,$J$7,$K$7,$J$8,$K$8),0) -> 0 | N59: 0 | O59: 0 | P59: =IFERROR(_xlfn.SWITCH(L59,$G$6,$H$6,$G$7,$H$7,$G$8,$H$8,$J$6,$K$6,$J$7,$K$7,$J$8,$K$8),0) -> 0
A60: =H60-I60 -> 0 | B60: =SUMIF(I60,"<="&L60,G60) -> 0 | C60: =N60-O60 -> 0 | D60: =SUMIF(N60,"<="&P60,M60) -> 0 | I60: 0 | J60: =IFERROR(_xlfn.SWITCH(F60,$G$6,$H$6,$G$7,$H$7,$G$8,$H$8,$J$6,$K$6,$J$7,$K$7,$J$8,$K$8),0) -> 0 | N60: 0 | O60: 0 | P60: =IFERROR(_xlfn.SWITCH(L60,$G$6,$H$6,$G$7,$H$7,$G$8,$H$8,$J$6,$K$6,$J$7,$K$7,$J$8,$K$8),0) -> 0
A61: =H61-I61 -> 0 | B61: =SUMIF(I61,"<="&L61,G61) -> 0 | C61: 0 | D61: =SUMIF(N61,"<="&P61,M61) -> 0 | I61: 0 | J61: =IFERROR(_xlfn.SWITCH(F61,$G$6,$H$6,$G$7,$H$7,$G$8,$H$8,$J$6,$K$6,$J$7,$K$7,$J$8,$K$8),0) -> 0 | N61: 0 | O61: 0 | P61: =IFERROR(_xlfn.SWITCH(L61,$G$6,$H$6,$G$7,$H$7,$G$8,$H$8,$J$6,$K$6,$J$7,$K$7,$J$8,$K$8),0) -> 0
A62: =H62-I62 -> 0 | B62: =SUMIF(I62,"<="&L62,G62) -> 0 | C62: 0 | D62: =SUMIF(N62,"<="&P62,M62) -> 0 | I62: 0 | J62: =IFERROR(_xlfn.SWITCH(F62,$G$6,$H$6,$G$7,$H$7,$G$8,$H$8,$J$6,$K$6,$J$7,$K$7,$J$8,$K$8),0) -> 0 | N62: 0 | O62: 0 | P62: =IFERROR(_xlfn.SWITCH(L62,$G$6,$H$6,$G$7,$H$7,$G$8,$H$8,$J$6,$K$6,$J$7,$K$7,$J$8,$K$8),0) -> 0
A63: =H63-I63 -> 0 | B63: =SUMIF(I63,"<="&L63,G63) -> 0 | C63: 0 | D63: =SUMIF(N63,"<="&P63,M63) -> 0 | I63: 0 | J63: =IFERROR(_xlfn.SWITCH(F63,$G$6,$H$6,$G$7,$H$7,$G$8,$H$8,$J$6,$K$6,$J$7,$K$7,$J$8,$K$8),0) -> 0 | N63: 0 | O63: 0 | P63: =IFERROR(_xlfn.SWITCH(L63,$G$6,$H$6,$G$7,$H$7,$G$8,$H$8,$J$6,$K$6,$J$7,$K$7,$J$8,$K$8),0) -> 0
A64: TOTAL | B64: =SUM(B59:B63) -> 0 | C64: TOTAL | D64: =SUM(D59:D63) -> 0 | F64: Total résidentiel | G64: =SUM(G59:G63) -> 0 | H64: =SUM($G$59:$G$63*H59:H63) -> 0 | I64: =SUM($G$59:$G$63*I59:I63) -> 0 | L64: Total résidentiel | M64: =SUM(M59:M63) -> 0 | N64: =SUM($M$59:$M$63*N59:N63) -> 0 | O64: =SUM($M$59:$M$63*O59:O63) -> 0
F65: Total commercial | H65: 0 | L65: Total commercial | N65: 0
A67: =F67 -> [Adresse immeuble 5] | C67: =L67 -> [Adresse immeuble 6] | F67: ='3. CSII - Immeubles et loyers'!$F$22 -> [Adresse immeuble 5] | L67: ='3. CSII - Immeubles et loyers'!$F$23 -> [Adresse immeuble 6]
A68: Loyer mensuel prévu (services EXCLUS) | B68: # abordables | C68: Loyer mensuel prévu (services EXCLUS) | D68: # abordables | F68: Typologie résidentielle | G68: Nombre d'unités | H68: Loyer mensuel prévu (services inclus) | I68: Valeur mensuelle des services | J68: Référence loyer mensuel abordable | L68: Typologie résidentielle | M68: Nombre d'unités | N68: Loyer mensuel prévu (services inclus) | O68: Valeur mensuelle des services | P68: Référence loyer mensuel abordable
A69: =H69-I69 -> 0 | B69: =SUMIF(A69,"<="&J69,G69) -> 0 | C69: =N69-O69 -> 0 | D69: =SUMIF(C69,"<="&P69,M69) -> 0 | I69: 0 | J69: =IFERROR(_xlfn.SWITCH(F69,$G$6,$H$6,$G$7,$H$7,$G$8,$H$8,$J$6,$K$6,$J$7,$K$7,$J$8,$K$8),0) -> 0 | N69: 0 | O69: 0 | P69: =IFERROR(_xlfn.SWITCH(L69,$G$6,$H$6,$G$7,$H$7,$G$8,$H$8,$J$6,$K$6,$J$7,$K$7,$J$8,$K$8),0) -> 0
A70: =H70-I70 -> 0 | B70: =SUMIF(I70,"<="&L70,G70) -> 0 | C70: =N70-O70 -> 0 | D70: =SUMIF(N70,"<="&P70,M70) -> 0 | I70: 0 | J70: =IFERROR(_xlfn.SWITCH(F70,$G$6,$H$6,$G$7,$H$7,$G$8,$H$8,$J$6,$K$6,$J$7,$K$7,$J$8,$K$8),0) -> 0 | N70: 0 | O70: 0 | P70: =IFERROR(_xlfn.SWITCH(L70,$G$6,$H$6,$G$7,$H$7,$G$8,$H$8,$J$6,$K$6,$J$7,$K$7,$J$8,$K$8),0) -> 0
A71: 0 | B71: =SUMIF(I71,"<="&L71,G71) -> 0 | C71: 0 | D71: =SUMIF(N71,"<="&P71,M71) -> 0 | I71: 0 | J71: =IFERROR(_xlfn.SWITCH(F71,$G$6,$H$6,$G$7,$H$7,$G$8,$H$8,$J$6,$K$6,$J$7,$K$7,$J$8,$K$8),0) -> 0 | N71: 0 | O71: 0 | P71: =IFERROR(_xlfn.SWITCH(L71,$G$6,$H$6,$G$7,$H$7,$G$8,$H$8,$J$6,$K$6,$J$7,$K$7,$J$8,$K$8),0) -> 0
A72: 0 | B72: =SUMIF(I72,"<="&L72,G72) -> 0 | C72: 0 | D72: =SUMIF(N72,"<="&P72,M72) -> 0 | I72: 0 | J72: =IFERROR(_xlfn.SWITCH(F72,$G$6,$H$6,$G$7,$H$7,$G$8,$H$8,$J$6,$K$6,$J$7,$K$7,$J$8,$K$8),0) -> 0 | N72: 0 | O72: 0 | P72: =IFERROR(_xlfn.SWITCH(L72,$G$6,$H$6,$G$7,$H$7,$G$8,$H$8,$J$6,$K$6,$J$7,$K$7,$J$8,$K$8),0) -> 0
A73: 0 | B73: =SUMIF(I73,"<="&L73,G73) -> 0 | C73: 0 | D73: =SUMIF(N73,"<="&P73,M73) -> 0 | I73: 0 | J73: =IFERROR(_xlfn.SWITCH(F73,$G$6,$H$6,$G$7,$H$7,$G$8,$H$8,$J$6,$K$6,$J$7,$K$7,$J$8,$K$8),0) -> 0 | N73: 0 | O73: 0 | P73: =IFERROR(_xlfn.SWITCH(L73,$G$6,$H$6,$G$7,$H$7,$G$8,$H$8,$J$6,$K$6,$J$7,$K$7,$J$8,$K$8),0) -> 0
A74: TOTAL | B74: =SUM(B69:B73) -> 0 | C74: TOTAL | D74: =SUM(D69:D73) -> 0 | F74: Total résidentiel | G74: =SUM(G69:G73) -> 0 | H74: =SUM($G$69:$G$73*H69:H73) -> 0 | I74: =SUM($G$69:$G$73*I69:I73) -> 0 | L74: Total résidentiel | M74: =SUM(M69:M73) -> 0 | N74: =SUM($M$69:$M$73*N69:N73) -> 0 | O74: =SUM($M$69:$M$73*O69:O73) -> 0
F75: Total commercial | H75: 0 | L75: Total commercial | N75: 0
A77: =F77 -> [Adresse immeuble 7] | C77: =L77 -> [Adresse immeuble 8] | F77: ='3. CSII - Immeubles et loyers'!$F$24 -> [Adresse immeuble 7] | L77: ='3. CSII - Immeubles et loyers'!$F$25 -> [Adresse immeuble 8]
A78: Loyer mensuel prévu (services EXCLUS) | B78: # abordables | C78: Loyer mensuel prévu (services EXCLUS) | D78: # abordables | F78: Typologie résidentielle | G78: Nombre d'unités | H78: Loyer mensuel prévu (services inclus) | I78: Valeur mensuelle des services | J78: Référence loyer mensuel abordable | L78: Typologie résidentielle | M78: Nombre d'unités | N78: Loyer mensuel prévu (services inclus) | O78: Valeur mensuelle des services | P78: Référence loyer mensuel abordable
A79: =H79-I79 -> 0 | B79: =SUMIF(A79,"<="&J79,G79) -> 0 | C79: =N79-O79 -> 0 | D79: =SUMIF(C79,"<="&P79,M79) -> 0 | I79: 0 | J79: =IFERROR(_xlfn.SWITCH(F79,$G$6,$H$6,$G$7,$H$7,$G$8,$H$8,$J$6,$K$6,$J$7,$K$7,$J$8,$K$8),0) -> 0 | N79: 0 | O79: 0 | P79: =IFERROR(_xlfn.SWITCH(L79,$G$6,$H$6,$G$7,$H$7,$G$8,$H$8,$J$6,$K$6,$J$7,$K$7,$J$8,$K$8),0) -> 0
A80: =H80-I80 -> 0 | B80: =SUMIF(I80,"<="&L80,G80) -> 0 | C80: =N80-O80 -> 0 | D80: =SUMIF(N80,"<="&P80,M80) -> 0 | I80: 0 | J80: =IFERROR(_xlfn.SWITCH(F80,$G$6,$H$6,$G$7,$H$7,$G$8,$H$8,$J$6,$K$6,$J$7,$K$7,$J$8,$K$8),0) -> 0 | N80: 0 | O80: 0 | P80: =IFERROR(_xlfn.SWITCH(L80,$G$6,$H$6,$G$7,$H$7,$G$8,$H$8,$J$6,$K$6,$J$7,$K$7,$J$8,$K$8),0) -> 0
A81: 0 | B81: =SUMIF(I81,"<="&L81,G81) -> 0 | C81: 0 | D81: =SUMIF(N81,"<="&P81,M81) -> 0 | I81: 0 | J81: =IFERROR(_xlfn.SWITCH(F81,$G$6,$H$6,$G$7,$H$7,$G$8,$H$8,$J$6,$K$6,$J$7,$K$7,$J$8,$K$8),0) -> 0 | N81: 0 | O81: 0 | P81: =IFERROR(_xlfn.SWITCH(L81,$G$6,$H$6,$G$7,$H$7,$G$8,$H$8,$J$6,$K$6,$J$7,$K$7,$J$8,$K$8),0) -> 0
A82: 0 | B82: =SUMIF(I82,"<="&L82,G82) -> 0 | C82: 0 | D82: =SUMIF(N82,"<="&P82,M82) -> 0 | I82: 0 | J82: =IFERROR(_xlfn.SWITCH(F82,$G$6,$H$6,$G$7,$H$7,$G$8,$H$8,$J$6,$K$6,$J$7,$K$7,$J$8,$K$8),0) -> 0 | N82: 0 | O82: 0 | P82: =IFERROR(_xlfn.SWITCH(L82,$G$6,$H$6,$G$7,$H$7,$G$8,$H$8,$J$6,$K$6,$J$7,$K$7,$J$8,$K$8),0) -> 0
A83: 0 | B83: =SUMIF(I83,"<="&L83,G83) -> 0 | C83: 0 | D83: =SUMIF(N83,"<="&P83,M83) -> 0 | I83: 0 | J83: =IFERROR(_xlfn.SWITCH(F83,$G$6,$H$6,$G$7,$H$7,$G$8,$H$8,$J$6,$K$6,$J$7,$K$7,$J$8,$K$8),0) -> 0 | N83: 0 | O83: 0 | P83: =IFERROR(_xlfn.SWITCH(L83,$G$6,$H$6,$G$7,$H$7,$G$8,$H$8,$J$6,$K$6,$J$7,$K$7,$J$8,$K$8),0) -> 0
A84: TOTAL | B84: =SUM(B79:B83) -> 0 | C84: TOTAL | D84: =SUM(D79:D83) -> 0 | F84: Total résidentiel | G84: =SUM(G79:G83) -> 0 | H84: =SUM($G$79:$G$83*H79:H83) -> 0 | I84: =SUM($G$79:$G$83*I79:I83) -> 0 | L84: Total résidentiel | M84: =SUM(M79:M83) -> 0 | N84: =SUM($M$79:$M$83*N79:N83) -> 0 | O84: =SUM($M$79:$M$83*O79:O83) -> 0
F85: Total commercial | H85: 0 | L85: Total commercial | N85: 0
A87: =F87 -> [Adresse immeuble 9] | C87: =L87 -> [Adresse immeuble 10] | F87: ='3. CSII - Immeubles et loyers'!$F$26 -> [Adresse immeuble 9] | L87: ='3. CSII - Immeubles et loyers'!$F$27 -> [Adresse immeuble 10]
A88: Loyer mensuel prévu (services EXCLUS) | B88: # abordables | C88: Loyer mensuel prévu (services EXCLUS) | D88: # abordables | F88: Typologie résidentielle | G88: Nombre d'unités | H88: Loyer mensuel prévu (services inclus) | I88: Valeur mensuelle des services | J88: Référence loyer mensuel abordable | L88: Typologie résidentielle | M88: Nombre d'unités | N88: Loyer mensuel prévu (services inclus) | O88: Valeur mensuelle des services | P88: Référence loyer mensuel abordable
A89: =H89-I89 -> 0 | B89: =SUMIF(A89,"<="&J89,G89) -> 0 | C89: =N89-O89 -> 0 | D89: =SUMIF(C89,"<="&P89,M89) -> 0 | I89: 0 | J89: =IFERROR(_xlfn.SWITCH(F89,$G$6,$H$6,$G$7,$H$7,$G$8,$H$8,$J$6,$K$6,$J$7,$K$7,$J$8,$K$8),0) -> 0 | N89: 0 | O89: 0 | P89: =IFERROR(_xlfn.SWITCH(L89,$G$6,$H$6,$G$7,$H$7,$G$8,$H$8,$J$6,$K$6,$J$7,$K$7,$J$8,$K$8),0) -> 0
A90: =H90-I90 -> 0 | B90: =SUMIF(I90,"<="&L90,G90) -> 0 | C90: =N90-O90 -> 0 | D90: =SUMIF(N90,"<="&P90,M90) -> 0 | I90: 0 | J90: =IFERROR(_xlfn.SWITCH(F90,$G$6,$H$6,$G$7,$H$7,$G$8,$H$8,$J$6,$K$6,$J$7,$K$7,$J$8,$K$8),0) -> 0 | N90: 0 | O90: 0 | P90: =IFERROR(_xlfn.SWITCH(L90,$G$6,$H$6,$G$7,$H$7,$G$8,$H$8,$J$6,$K$6,$J$7,$K$7,$J$8,$K$8),0) -> 0
A91: =H91-I91 -> 0 | B91: =SUMIF(I91,"<="&L91,G91) -> 0 | C91: 0 | D91: =SUMIF(N91,"<="&P91,M91) -> 0 | I91: 0 | J91: =IFERROR(_xlfn.SWITCH(F91,$G$6,$H$6,$G$7,$H$7,$G$8,$H$8,$J$6,$K$6,$J$7,$K$7,$J$8,$K$8),0) -> 0 | N91: 0 | O91: 0 | P91: =IFERROR(_xlfn.SWITCH(L91,$G$6,$H$6,$G$7,$H$7,$G$8,$H$8,$J$6,$K$6,$J$7,$K$7,$J$8,$K$8),0) -> 0
A92: =H92-I92 -> 0 | B92: =SUMIF(I92,"<="&L92,G92) -> 0 | C92: 0 | D92: =SUMIF(N92,"<="&P92,M92) -> 0 | I92: 0 | J92: =IFERROR(_xlfn.SWITCH(F92,$G$6,$H$6,$G$7,$H$7,$G$8,$H$8,$J$6,$K$6,$J$7,$K$7,$J$8,$K$8),0) -> 0 | N92: 0 | O92: 0 | P92: =IFERROR(_xlfn.SWITCH(L92,$G$6,$H$6,$G$7,$H$7,$G$8,$H$8,$J$6,$K$6,$J$7,$K$7,$J$8,$K$8),0) -> 0
A93: =H93-I93 -> 0 | B93: =SUMIF(I93,"<="&L93,G93) -> 0 | C93: 0 | D93: =SUMIF(N93,"<="&P93,M93) -> 0 | I93: 0 | J93: =IFERROR(_xlfn.SWITCH(F93,$G$6,$H$6,$G$7,$H$7,$G$8,$H$8,$J$6,$K$6,$J$7,$K$7,$J$8,$K$8),0) -> 0 | N93: 0 | O93: 0 | P93: =IFERROR(_xlfn.SWITCH(L93,$G$6,$H$6,$G$7,$H$7,$G$8,$H$8,$J$6,$K$6,$J$7,$K$7,$J$8,$K$8),0) -> 0
A94: TOTAL | B94: =SUM(B89:B93) -> 0 | C94: TOTAL | D94: =SUM(D89:D93) -> 0 | F94: Total résidentiel | G94: =SUM(G89:G93) -> 0 | H94: =SUM($G$89:$G$93*H89:H93) -> 0 | I94: =SUM($G$89:$G$93*I89:I93) -> 0 | L94: Total résidentiel | M94: =SUM(M89:M93) -> 0 | N94: =SUM($M$89:$M$93*N89:N93) -> 0 | O94: =SUM($M$89:$M$93*O89:O93) -> 0
F95: Total commercial | H95: 0 | L95: Total commercial | N95: 0

Sheet 3. FISQ - Immeubles et loyers
F2: =IF('2. Informations de base'!C7=0,"NOM DU PROJET",'2. Informations de base'!C7) -> NOM DU PROJET
F3: Fonds Immosocial, Immeubles et loyers
U4: Revenus des loyers potentiels selon la référence d'abordabilité
F5: INFORMATIONS - LOGEMENTS | K5: INFORMATIONS - ESPACES COMMERCIAUX | U5: Immeuble | V5: Résidentiel | W5: Commercial
F6: Référence d'abordabilité pour loyer mensuel | K6: Référence d'abordabilité pour loyer mensuel | U6: =F17 -> [Immeuble 1] | V6: =SUMPRODUCT(H46:H50,K46:K50) -> 0 | W6: =SUM(K17*$N$6) -> 0
F7: Référence d'abordabilité | G7: chambre | K7: Loyer commercial prévu | U7: =F18 -> [Immeuble 2] | V7: =SUMPRODUCT(O46:O50,R46:R50) -> 0 | W7: 0
F8: Référence d'abordabilité | G8: studio | U8: =F19 -> [Immeuble 3] | V8: =SUMPRODUCT(H58:H62,K58:K62) -> 0 | W8: 0
F9: Référence d'abordabilité | G9: 3.5 | K9: INFORMATIONS - DIVERS | U9: =F20 -> [Immeuble 4] | V9: =SUMPRODUCT(O58:O62,R58:R62) -> 0 | W9: 0
F10: Référence d'abordabilité | G10: 4.5 | K10: % maximal des loyers dédié au PSL (à titre indicatif) | V10: =SUMPRODUCT(H68:H72,K68:K72) -> 0 | W10: 0
F11: Référence d'abordabilité | G11: 5.5 | K11: Locataires existants? | N11: Non | V11: =SUMPRODUCT(O68:O72,R68:R72) -> 0 | W11: 0
F12: Référence d'abordabilité | G12: 6.5 | K12: Taux d'innocupation à l'achat | V12: =SUMPRODUCT(H78:H82,K78:K82) -> 0 | W12: 0
F13: Loyer résidentiel prévu | I13: À saisir ci-bas | K13: Volet Immosocial | N13: =IF(C35>=C38,A38,(IF(C36>=C37,A37,A39))) -> Mixte | V13: =SUMPRODUCT(O78:O82,R78:R82) -> 0 | W13: 0
V14: =SUMPRODUCT(H88:H92,K88:K92) -> 0 | W14: 0
F15: Adresses des immeubles | H15: IMMEUBLES | U15: =F26 -> [Immeuble 10] | V15: =SUMPRODUCT(O88:O92,R88:R92) -> 0 | W15: 0
H16: Superficie du terrain (pi²) | I16: Superficie du bâtiment (pi²) | J16: Superficie résidentielle (pi²) | K16: Superficie commerciale (pi²) | L16: Évaluation foncière $ | N16: Valeur marchande $ | O16: Prix d'acquisition $
A17: Typologie | B17: # unités/espaces | C17: Loyer prévu | D17: Services | F17: [Immeuble 1] | K17: =G113 -> 0
A18: Chambre | B18: =SUMIF($F$46:$G$50,$A18,$H$46:$H$50)+SUMIF($N$46:$N$50,$A18,$O$46:$O$50)+SUMIF($F$58:$G$62,$A18,$H$58:$H$62)+SUMIF($N$58:$N$62,$A18,$O$58:$O$62)+SUMIF($F$68:$G$72,$A18,$H$68:$H$72)+SUMIF($N$68:$N$72,$A18,$O$68:$O$72)+SUMIF($F$78:$G$82,$A18,$H$78:$H$82)+SUMIF($N$78:$N$82,$A18,$O$78:$O$82)+SUMIF($F$88:$G$92,$A18,$H$88:$H$92)+SUMIF($N$88:$N$92,$A18,$O$88:$O$92) -> 0 | C18: =IFERROR((SUMPRODUCT(IF($F$46:$G$50=$A18,$H$46:$H$50*$I$46:$I$50))+SUMPRODUCT(IF($N$46:$N$50=$A18,$O$46:$O$50*$P$46:$P$50))+SUMPRODUCT(IF($F$58:$G$62=$A18,$H$58:$H$62*$I$58:$I$62))+SUMPRODUCT(IF($N$58:$N$62=$A18,$O$58:$O$62*$P$58:$P$62))+SUMPRODUCT(IF($F$68:$G$72=$A18,$H$68:$H$72*$I$68:$I$72))+SUMPRODUCT(IF($N$68:$N$72=$A18,$O$68:$O$72))+SUMPRODUCT(IF($F$78:$G$82=$A18,$H$78:$H$82:$I$78:$I$82))+SUMPRODUCT(IF($N$78:$N$82=$A18,$O$78:$O$82*$P$78:$P$82))+SUMPRODUCT(IF($F$88:$G$92=$A18,$H$88:$H$92*$I$88:$I$92))+SUMPRODUCT(IF($N$88:$N$92=$A18,$O$88:$O$92*$P$88:$P$92)))/$B18,0) -> 0 | D18: =IFERROR((SUMPRODUCT(IF($F$46:$G$50=$A18,$H$46:$H$50*$J$46:$J$50))+SUMPRODUCT(IF($N$46:$N$50=$A18,$O$46:$O$50*$Q$46:$Q$50))+SUMPRODUCT(IF($F$58:$G$62=$A18,$H$58:$H$62*$J$58:$J$62))+SUMPRODUCT(IF($N$58:$N$62=$A18,$O$58:$O$62*$Q$58:$Q$62))+SUMPRODUCT(IF($F$68:$G$72=$A18,$H$68:$H$72*$J$68:$J$72))+SUMPRODUCT(IF($N$68:$N$72=$A18,$O$68:$O$72*$Q$68:$Q$72))+SUMPRODUCT(IF($F$78:$G$82=$A18,$H$78:$H$82*$J$78:$J$82))+SUMPRODUCT(IF($N$78:$N$82=$A18,$O$78:$O$82*$Q$78:$Q$82))+SUMPRODUCT(IF($F$88:$G$92=$A18,$H$88:$H$92*$J$88:$J$92))+SUMPRODUCT(IF($N$88:$N$92=$A18,$O$88:$O$92*$Q$88:$Q$92)))/$B18,0) -> 0 | F18: [Immeuble 2] | K18: =G135 -> 0
A19: Studio | B19: =SUMIF($F$46:$G$50,A19,$H$46:$H$50)+SUMIF($N$46:$N$50,A19,$O$46:$O$50)+SUMIF($F$58:$G$62,A19,$H$58:$H$62)+SUMIF($N$58:$N$62,A19,$O$58:$O$62)+SUMIF($F$68:$G$72,A19,$H$68:$H$72)+SUMIF($N$68:$N$72,A19,$O$68:$O$72)+SUMIF($F$78:$G$82,A19,$H$78:$H$82)+SUMIF($N$78:$N$82,A19,$O$78:$O$82)+SUMIF($F$88:$G$92,A19,$H$88:$H$92)+SUMIF($N$88:$N$92,A19,$O$88:$O$92) -> 0 | C19: =IFERROR((SUMPRODUCT(IF($F$46:$G$50=$A19,$H$46:$H$50*$I$46:$I$50))+SUMPRODUCT(IF($N$46:$N$50=$A19,$O$46:$O$50*$P$46:$P$50))+SUMPRODUCT(IF($F$58:$G$62=$A19,$H$58:$H$62*$I$58:$I$62))+SUMPRODUCT(IF($N$58:$N$62=$A19,$O$58:$O$62*$P$58:$P$62))+SUMPRODUCT(IF($F$68:$G$72=$A19,$H$68:$H$72*$I$68:$I$72))+SUMPRODUCT(IF($N$68:$N$72=$A19,$O$68:$O$72*$P$68:$P$72))+SUMPRODUCT(IF($F$78:$G$82=$A19,$H$78:$H$82*$I$78:$I$82))+SUMPRODUCT(IF($N$78:$N$82=$A19,$O$78:$O$82*$P$78:$P$82))+SUMPRODUCT(IF($F$88:$G$92=$A19,$H$88:$H$92*$I$88:$I$92))+SUMPRODUCT(IF($N$88:$N$92=$A19,$O$88:$O$92*$P$88:$P$92)))/B19,0) -> 0 | D19: =IFERROR((SUMPRODUCT(IF($F$46:$G$50=$A19,$H$46:$H$50*$I$46:$I$50))+SUMPRODUCT(IF($N$46:$N$50=$A19,$O$46:$O$50*$P$46:$P$50))+SUMPRODUCT(IF($F$58:$G$62=$A19,$H$58:$H$62*$I$58:$I$62))+SUMPRODUCT(IF($N$58:$N$62=$A19,$O$58:$O$62*$P$58:$P$62))+SUMPRODUCT(IF($F$68:$G$72=$A19,$H$68:$H$72*$I$68:$I$72))+SUMPRODUCT(IF($N$68:$N$72=$A19,$O$68:$O$72))+SUMPRODUCT(IF($F$78:$G$82=$A19,$H$78:$H$82:$I$78:$I$82))+SUMPRODUCT(IF($N$78:$N$82=$A19,$O$78:$O$82*$P$78:$P$82))+SUMPRODUCT(IF($F$88:$G$92=$A19,$H$88:$H$92*$I$88:$I$92))+SUMPRODUCT(IF($N$88:$N$92=$A19,$O$88:$O$92*$P$88:$P$92)))/C19,0) -> 0 | F19: [Immeuble 3] | K19: =G155 -> 0
A20: 3.5 | B20: =SUMIF($F$46:$G$50,A20,$H$46:$H$50)+SUMIF($N$46:$N$50,A20,$O$46:$O$50)+SUMIF($F$58:$G$62,A20,$H$58:$H$62)+SUMIF($N$58:$N$62,A20,$O$58:$O$62)+SUMIF($F$68:$G$72,A20,$H$68:$H$72)+SUMIF($N$68:$N$72,A20,$O$68:$O$72)+SUMIF($F$78:$G$82,A20,$H$78:$H$82)+SUMIF($N$78:$N$82,A20,$O$78:$O$82)+SUMIF($F$88:$G$92,A20,$H$88:$H$92)+SUMIF($N$88:$N$92,A20,$O$88:$O$92) -> 0 | C20: =IFERROR((SUMPRODUCT(IF($F$46:$G$50=$A20,$H$46:$H$50*$I$46:$I$50))+SUMPRODUCT(IF($N$46:$N$50=$A20,$O$46:$O$50*$P$46:$P$50))+SUMPRODUCT(IF($F$58:$G$62=$A20,$H$58:$H$62*$I$58:$I$62))+SUMPRODUCT(IF($N$58:$N$62=$A20,$O$58:$O$62*$P$58:$P$62))+SUMPRODUCT(IF($F$68:$G$72=$A20,$H$68:$H$72*$I$68:$I$72))+SUMPRODUCT(IF($N$68:$N$72=$A20,$O$68:$O$72))+SUMPRODUCT(IF($F$78:$G$82=$A20,$H$78:$H$82:$I$78:$I$82))+SUMPRODUCT(IF($N$78:$N$82=$A20,$O$78:$O$82*$P$78:$P$82))+SUMPRODUCT(IF($F$88:$G$92=$A20,$H$88:$H$92*$I$88:$I$92))+SUMPRODUCT(IF($N$88:$N$92=$A20,$O$88:$O$92*$P$88:$P$92)))/B20,0) -> 0 | D20: =IFERROR((SUMPRODUCT(IF($F$46:$G$50=$A20,$H$46:$H$50*$I$46:$I$50))+SUMPRODUCT(IF($N$46:$N$50=$A20,$O$46:$O$50*$P$46:$P$50))+SUMPRODUCT(IF($F$58:$G$62=$A20,$H$58:$H$62*$I$58:$I$62))+SUMPRODUCT(IF($N$58:$N$62=$A20,$O$58:$O$62*$P$58:$P$62))+SUMPRODUCT(IF($F$68:$G$72=$A20,$H$68:$H$72*$I$68:$I$72))+SUMPRODUCT(IF($N$68:$N$72=$A20,$O$68:$O$72))+SUMPRODUCT(IF($F$78:$G$82=$A20,$H$78:$H$82:$I$78:$I$82))+SUMPRODUCT(IF($N$78:$N$82=$A20,$O$78:$O$82*$P$78:$P$82))+SUMPRODUCT(IF($F$88:$G$92=$A20,$H$88:$H$92*$I$88:$I$92))+SUMPRODUCT(IF($N$88:$N$92=$A20,$O$88:$O$92*$P$88:$P$92)))/C20,0) -> 0 | F20: [Immeuble 4] | K20: =G175 -> 0
A21: 4.5 | B21: =SUMIF($F$46:$G$50,A21,$H$46:$H$50)+SUMIF($N$46:$N$50,A21,$O$46:$O$50)+SUMIF($F$58:$G$62,A21,$H$58:$H$62)+SUMIF($N$58:$N$62,A21,$O$58:$O$62)+SUMIF($F$68:$G$72,A21,$H$68:$H$72)+SUMIF($N$68:$N$72,A21,$O$68:$O$72)+SUMIF($F$78:$G$82,A21,$H$78:$H$82)+SUMIF($N$78:$N$82,A21,$O$78:$O$82)+SUMIF($F$88:$G$92,A21,$H$88:$H$92)+SUMIF($N$88:$N$92,A21,$O$88:$O$92) -> 0 | C21: =IFERROR((SUMPRODUCT(IF($F$46:$G$50=$A21,$H$46:$H$50*$I$46:$I$50))+SUMPRODUCT(IF($N$46:$N$50=$A21,$O$46:$O$50*$P$46:$P$50))+SUMPRODUCT(IF($F$58:$G$62=$A21,$H$58:$H$62*$I$58:$I$62))+SUMPRODUCT(IF($N$58:$N$62=$A21,$O$58:$O$62*$P$58:$P$62))+SUMPRODUCT(IF($F$68:$G$72=$A21,$H$68:$H$72*$I$68:$I$72))+SUMPRODUCT(IF($N$68:$N$72=$A21,$O$68:$O$72))+SUMPRODUCT(IF($F$78:$G$82=$A21,$H$78:$H$82:$I$78:$I$82))+SUMPRODUCT(IF($N$78:$N$82=$A21,$O$78:$O$82*$P$78:$P$82))+SUMPRODUCT(IF($F$88:$G$92=$A21,$H$88:$H$92*$I$88:$I$92))+SUMPRODUCT(IF($N$88:$N$92=$A21,$O$88:$O$92*$P$88:$P$92)))/B21,0) -> 0 | D21: =IFERROR((SUMPRODUCT(IF($F$46:$G$50=$A21,$H$46:$H$50*$I$46:$I$50))+SUMPRODUCT(IF($N$46:$N$50=$A21,$O$46:$O$50*$P$46:$P$50))+SUMPRODUCT(IF($F$58:$G$62=$A21,$H$58:$H$62*$I$58:$I$62))+SUMPRODUCT(IF($N$58:$N$62=$A21,$O$58:$O$62*$P$58:$P$62))+SUMPRODUCT(IF($F$68:$G$72=$A21,$H$68:$H$72*$I$68:$I$72))+SUMPRODUCT(IF($N$68:$N$72=$A21,$O$68:$O$72))+SUMPRODUCT(IF($F$78:$G$82=$A21,$H$78:$H$82:$I$78:$I$82))+SUMPRODUCT(IF($N$78:$N$82=$A21,$O$78:$O$82*$P$78:$P$82))+SUMPRODUCT(IF($F$88:$G$92=$A21,$H$88:$H$92*$I$88:$I$92))+SUMPRODUCT(IF($N$88:$N$92=$A21,$O$88:$O$92*$P$88:$P$92)))/C21,0) -> 0 | F21: [Immeuble 5] | K21: =G195 -> 0
A22: 5.5 | B22: =SUMIF($F$46:$G$50,A22,$H$46:$H$50)+SUMIF($N$46:$N$50,A22,$O$46:$O$50)+SUMIF($F$58:$G$62,A22,$H$58:$H$62)+SUMIF($N$58:$N$62,A22,$O$58:$O$62)+SUMIF($F$68:$G$72,A22,$H$68:$H$72)+SUMIF($N$68:$N$72,A22,$O$68:$O$72)+SUMIF($F$78:$G$82,A22,$H$78:$H$82)+SUMIF($N$78:$N$82,A22,$O$78:$O$82)+SUMIF($F$88:$G$92,A22,$H$88:$H$92)+SUMIF($N$88:$N$92,A22,$O$88:$O$92) -> 0 | C22: =IFERROR((SUMPRODUCT(IF($F$46:$G$50=$A22,$H$46:$H$50*$I$46:$I$50))+SUMPRODUCT(IF($N$46:$N$50=$A22,$O$46:$O$50*$P$46:$P$50))+SUMPRODUCT(IF($F$58:$G$62=$A22,$H$58:$H$62*$I$58:$I$62))+SUMPRODUCT(IF($N$58:$N$62=$A22,$O$58:$O$62*$P$58:$P$62))+SUMPRODUCT(IF($F$68:$G$72=$A22,$H$68:$H$72*$I$68:$I$72))+SUMPRODUCT(IF($N$68:$N$72=$A22,$O$68:$O$72))+SUMPRODUCT(IF($F$78:$G$82=$A22,$H$78:$H$82:$I$78:$I$82))+SUMPRODUCT(IF($N$78:$N$82=$A22,$O$78:$O$82*$P$78:$P$82))+SUMPRODUCT(IF($F$88:$G$92=$A22,$H$88:$H$92*$I$88:$I$92))+SUMPRODUCT(IF($N$88:$N$92=$A22,$O$88:$O$92*$P$88:$P$92)))/B22,0) -> 0 | D22: =IFERROR((SUMPRODUCT(IF($F$46:$G$50=$A22,$H$46:$H$50*$I$46:$I$50))+SUMPRODUCT(IF($N$46:$N$50=$A22,$O$46:$O$50*$P$46:$P$50))+SUMPRODUCT(IF($F$58:$G$62=$A22,$H$58:$H$62*$I$58:$I$62))+SUMPRODUCT(IF($N$58:$N$62=$A22,$O$58:$O$62*$P$58:$P$62))+SUMPRODUCT(IF($F$68:$G$72=$A22,$H$68:$H$72*$I$68:$I$72))+SUMPRODUCT(IF($N$68:$N$72=$A22,$O$68:$O$72))+SUMPRODUCT(IF($F$78:$G$82=$A22,$H$78:$H$82:$I$78:$I$82))+SUMPRODUCT(IF($N$78:$N$82=$A22,$O$78:$O$82*$P$78:$P$82))+SUMPRODUCT(IF($F$88:$G$92=$A22,$H$88:$H$92*$I$88:$I$92))+SUMPRODUCT(IF($N$88:$N$92=$A22,$O$88:$O$92*$P$88:$P$92)))/C22,0) -> 0 | F22: [Immeuble 6] | K22: =G215 -> 0
A23: 6.5 | B23: =SUMIF($F$46:$G$50,A23,$H$46:$H$50)+SUMIF($N$46:$N$50,A23,$O$46:$O$50)+SUMIF($F$58:$G$62,A23,$H$58:$H$62)+SUMIF($N$58:$N$62,A23,$O$58:$O$62)+SUMIF($F$68:$G$72,A23,$H$68:$H$72)+SUMIF($N$68:$N$72,A23,$O$68:$O$72)+SUMIF($F$78:$G$82,A23,$H$78:$H$82)+SUMIF($N$78:$N$82,A23,$O$78:$O$82)+SUMIF($F$88:$G$92,A23,$H$88:$H$92)+SUMIF($N$88:$N$92,A23,$O$88:$O$92) -> 0 | C23: =IFERROR((SUMPRODUCT(IF($F$46:$G$50=$A23,$H$46:$H$50*$I$46:$I$50))+SUMPRODUCT(IF($N$46:$N$50=$A23,$O$46:$O$50*$P$46:$P$50))+SUMPRODUCT(IF($F$58:$G$62=$A23,$H$58:$H$62*$I$58:$I$62))+SUMPRODUCT(IF($N$58:$N$62=$A23,$O$58:$O$62*$P$58:$P$62))+SUMPRODUCT(IF($F$68:$G$72=$A23,$H$68:$H$72*$I$68:$I$72))+SUMPRODUCT(IF($N$68:$N$72=$A23,$O$68:$O$72))+SUMPRODUCT(IF($F$78:$G$82=$A23,$H$78:$H$82:$I$78:$I$82))+SUMPRODUCT(IF($N$78:$N$82=$A23,$O$78:$O$82*$P$78:$P$82))+SUMPRODUCT(IF($F$88:$G$92=$A23,$H$88:$H$92*$I$88:$I$92))+SUMPRODUCT(IF($N$88:$N$92=$A23,$O$88:$O$92*$P$88:$P$92)))/B23,0) -> 0 | D23: =IFERROR((SUMPRODUCT(IF($F$46:$G$50=$A23,$H$46:$H$50*$I$46:$I$50))+SUMPRODUCT(IF($N$46:$N$50=$A23,$O$46:$O$50*$P$46:$P$50))+SUMPRODUCT(IF($F$58:$G$62=$A23,$H$58:$H$62*$I$58:$I$62))+SUMPRODUCT(IF($N$58:$N$62=$A23,$O$58:$O$62*$P$58:$P$62))+SUMPRODUCT(IF($F$68:$G$72=$A23,$H$68:$H$72*$I$68:$I$72))+SUMPRODUCT(IF($N$68:$N$72=$A23,$O$68:$O$72))+SUMPRODUCT(IF($F$78:$G$82=$A23,$H$78:$H$82:$I$78:$I$82))+SUMPRODUCT(IF($N$78:$N$82=$A23,$O$78:$O$82*$P$78:$P$82))+SUMPRODUCT(IF($F$88:$G$92=$A23,$H$88:$H$92*$I$88:$I$92))+SUMPRODUCT(IF($N$88:$N$92=$A23,$O$88:$O$92*$P$88:$P$92)))/C23,0) -> 0 | F23: [Immeuble 7] | K23: =G235 -> 0
A24: Espace commercial | B24: =SUM(C113,C135,C155,C175,C195,C215,C235,C255,C275,C295) -> 0 | C24: =N7 -> 0 | D24: =IFERROR(SUM(J98:J112,J120:J134,J140:J154,J160:J174,J180:J194,J200:J214,J220:J234,J240:J254,J260:J274,J280:J294)/K27,0) -> 0 | F24: [Immeuble 8] | K24: =G255 -> 0
F25: [Immeuble 9] | K25: =G275 -> 0
F26: [Immeuble 10] | K26: =G295 -> 0
F27: Total | H27: =SUM(H17:H26) -> 0 | I27: =SUM(I17:I26) -> 0 | J27: =SUM(J17:J26) -> 0 | K27: =SUM(K17:K26) -> 0 | L27: =SUM(L17:L26) -> 0 | N27: =SUM(N17:N26) -> 0 | O27: =SUM(O17:O26) -> 0
F29: Adresses des immeubles | H29: UNITÉS RÉSIDENTIELLES | N29: ESPACES COMMERCIAUX
H30: Nbre unités totales | I30: Nbre unités abordables | J30: % unités abordables | K30: Nbre unités PSL | L30: % unités PSL | N30: Nbre espaces totales | O30: Nbre espaces abordables | P30: % espaces abordables
F31: =$F$17 -> [Immeuble 1] | H31: =H51 -> 0 | I31: =B54 -> 0 | J31: =IFERROR(I31/H31,"0,00%") -> 0,00% | L31: =IFERROR(K31/H31,0) -> 0 | N31: =COUNTIF(F98:F112,"<>") -> 0 | O31: =IFERROR(B113/N31,0) -> 0 | P31: =IFERROR(O31/N31,"") -> 
F32: =$F$18 -> [Immeuble 2] | H32: =O51 -> 0 | I32: =V54 -> 0 | J32: =IFERROR(I32/H32,"0,00%") -> 0,00% | L32: =IFERROR(K32/H32,0) -> 0 | N32: =COUNTIF(F120:F134,"<>") -> 0 | O32: =IFERROR(B135/N32,0) -> 0 | P32: =IFERROR(O32/N32,"") -> 
A33: Proportion résidentielle / commerciale | F33: =$F$19 -> [Immeuble 3] | H33: =H63 -> 0 | I33: =B64 -> 0 | J33: 0,00% | L33: 0 | N33: =COUNTIF(F140:F154,"<>") -> 0 | O33: =IFERROR(B155/N33,0) -> 0
B34: Superf. louable totale (référence en pi2): | C34: =SUM(J27:K27) -> 0 | F34: =$F$20 -> [Immeuble 4] | H34: =O63 -> 0 | I34: =V64 -> 0 | J34: 0,00% | L34: 0 | N34: =COUNTIF(F160:F174,"<>") -> 0 | O34: =IFERROR(B175/N34,0) -> 0
B35: Superficie commerciale du projet: | C35: =IFERROR(K27/C34,0) -> 0 | F35: =$F$21 -> [Immeuble 5] | H35: =H73 -> 0 | I35: =B74 -> 0 | J35: 0,00% | L35: 0 | N35: =COUNTIF(F180:F194,"<>") -> 0 | O35: =IFERROR(B195/N35,0) -> 0
B36: Superficie résidentielle du projet: | C36: =IFERROR(J27/C34,0) -> 0 | F36: =$F$22 -> [Immeuble 6] | H36: =O73 -> 0 | I36: =V74 -> 0 | J36: 0,00% | L36: 0 | N36: =COUNTIF(F200:F214,"<>") -> 0 | O36: =IFERROR(B215/N36,0) -> 0
A37: Habitation | B37: Superficie résid. min: | C37: 0.8 | F37: =$F$23 -> [Immeuble 7] | H37: =H83 -> 0 | I37: =B84 -> 0 | J37: 0,00% | L37: 0 | N37: =COUNTIF(F220:F234,"<>") -> 0 | O37: =IFERROR(B235/N37,0) -> 0
A38: Collectif | B38: Superficiec comm. min: | C38: 0.7 | F38: =$F$24 -> [Immeuble 8] | H38: =O83 -> 0 | I38: =V84 -> 0 | J38: 0,00% | L38: 0 | N38: =COUNTIF(F240:F254,"<>") -> 0 | O38: =IFERROR(B255/N38,0) -> 0
A39: Mixte | B39: Min 20% résid. et min. 20% comm. | F39: =$F$25 -> [Immeuble 9] | H39: =H93 -> 0 | I39: =B94 -> 0 | J39: 0,00% | L39: 0 | N39: =COUNTIF(F260:F274,"<>") -> 0 | O39: =IFERROR(B275/N39,0) -> 0
F40: =$F$26 -> [Immeuble 10] | H40: =O93 -> 0 | I40: =V94 -> 0 | J40: 0,00% | L40: 0 | N40: =COUNTIF(F280:F294,"<>") -> 0 | O40: =IFERROR(B295/N40,0) -> 0
F41: Total | H41: =SUM(H31:H40) -> 0 | I41: =SUM(I31:I40) -> 0 | J41: =IFERROR(I41/H41,0) -> 0 | K41: =SUM(K31:K40) -> 0 | L41: =IFERROR(K41/H41,0) -> 0 | N41: =SUM(N31:N33) -> 0 | O41: =SUM(O31:O34) -> 0 | P41: =SUM(P31:P34) -> 0
A43: =F43 -> [Immeuble 1] | F43: =$F$17 -> [Immeuble 1] | N43: =$F$18 -> [Immeuble 2] | U43: =N43 -> [Immeuble 2]
A44: RÉSIDENTIEL | F44: RÉSIDENTIEL | N44: RÉSIDENTIEL | U44: RÉSIDENTIEL
A45: Loyer total mensuel prévu (services EXCLUS) | B45: Nbre unités abordables | F45: Typologie résidentielle | H45: Nombre d'unités | I45: Loyer total mensuel prévu (services inclus) | J45: Valeur mensuelle des services | K45: Référence loyer mensuel abordable | L45: Description des services | N45: Typologie résidentielle | O45: Nombre d'unités | P45: Loyer total mensuel prévu (services inclus) | Q45: Valeur mensuelle des services | R45: Référence loyer mensuel abordable | S45: Description des services | U45: Loyer total mensuel prévu (services exclus) | V45: Nbre unités abordables
A46: =I46-J46 -> 0 | B46: =SUMIF(A46,"<="&K46,H46) -> 0 | I46: 0 | J46: 0 | K46: =IFERROR(_xlfn.SWITCH(F46,$G$7,$I$7,$G$8,$I$8,$G$9,$I$9,$G$10,$I$10,$G$11,$I$11,$G$12,$I$12),0) -> 0 | P46: 0 | Q46: 0 | R46: =IFERROR(_xlfn.SWITCH(N46,$G$7,$I$7,$G$8,$I$8,$G$9,$I$9,$G$10,$I$10,$G$11,$I$11,$G$12,$I$12),0) -> 0 | U46: =P46-Q46 -> 0 | V46: =SUMIF(U46,"<="&R46,O46) -> 0
A47: 0 | B47: =SUMIF(A47,"<="&K47,H47) -> 0 | I47: 0 | J47: 0 | K47: =IFERROR(_xlfn.SWITCH(F47,$G$7,$I$7,$G$8,$I$8,$G$9,$I$9,$G$10,$I$10,$G$11,$I$11,$G$12,$I$12),0) -> 0 | P47: 0 | Q47: 0 | R47: =IFERROR(_xlfn.SWITCH(N47,$G$7,$I$7,$G$8,$I$8,$G$9,$I$9,$G$10,$I$10,$G$11,$I$11,$G$12,$I$12),0) -> 0 | U47: 0 | V47: 0
A48: 0 | B48: 0 | C48: Ratio loyer prévu - loyer référence | I48: 0 | J48: 0 | K48: =IFERROR(_xlfn.SWITCH(F48,$G$7,$I$7,$G$8,$I$8,$G$9,$I$9,$G$10,$I$10,$G$11,$I$11,$G$12,$I$12),0) -> 0 | P48: 0 | Q48: 0 | R48: =IFERROR(_xlfn.SWITCH(N48,$G$7,$I$7,$G$8,$I$8,$G$9,$I$9,$G$10,$I$10,$G$11,$I$11,$G$12,$I$12),0) -> 0 | U48: 0 | V48: 0 | W48: Ratio loyer prévu - loyer référence
A49: 0 | B49: 0 | C49: Moyenne loyer prévu | D49: =IFERROR(SUMPRODUCT($I46:$I50,$H46:$H50)/SUM($H46:$H50),0) -> 0 | I49: 0 | J49: 0 | K49: =IFERROR(_xlfn.SWITCH(F49,$G$7,$I$7,$G$8,$I$8,$G$9,$I$9,$G$10,$I$10,$G$11,$I$11,$G$12,$I$12),0) -> 0 | P49: 0 | Q49: 0 | R49: =IFERROR(_xlfn.SWITCH(N49,$G$7,$I$7,$G$8,$I$8,$G$9,$I$9,$G$10,$I$10,$G$11,$I$11,$G$12,$I$12),0) -> 0 | U49: 0 | V49: 0 | W49: Moyenne loyer prévu | X49: =IFERROR(SUMPRODUCT($O46:$O50,$P46:$P50)/SUM($O46:$O50),0) -> 0
A50: 0 | B50: 0 | C50: Moyenne loyer de référence | D50: =IFERROR(SUMPRODUCT($K46:$K50,$H46:$H50)/SUM($H46:$H50),0) -> 0 | I50: 0 | J50: 0 | K50: =IFERROR(_xlfn.SWITCH(F50,$G$7,$I$7,$G$8,$I$8,$G$9,$I$9,$G$10,$I$10,$G$11,$I$11,$G$12,$I$12),0) -> 0 | P50: 0 | Q50: 0 | R50: =IFERROR(_xlfn.SWITCH(N50,$G$7,$I$7,$G$8,$I$8,$G$9,$I$9,$G$10,$I$10,$G$11,$I$11,$G$12,$I$12),0) -> 0 | U50: 0 | V50: 0 | W50: Moyenne loyer de référence | X50: =IFERROR(SUMPRODUCT($R46:$R50,$O46:$O50)/SUM($O46:$O50),0) -> 0
A51: 0 | B51: 0 | C51: Ratio | D51: =IFERROR(D49/D50,0) -> 0 | F51: Total résidentiel | H51: =SUM(H46:H50) -> 0 | I51: =SUMPRODUCT($H$46:$H$50,I46:I50) -> 0 | J51: =SUM($H$46:$H$50*J46:J50) -> 0 | N51: Total résidentiel | O51: =SUM(O46:O50) -> 0 | P51: =SUMPRODUCT($O$46:$O$50,P46:P50) -> 0 | Q51: =SUMPRODUCT($O$46:$O$50,Q46:Q50) -> 0 | U51: 0 | V51: 0 | W51: Ratio | X51: =IFERROR(X49/X50,0) -> 0
F53: *Si plus de 2 immeubles avec une superficie résidentielle, cliquer sur le + à la gauche
A54: TOTAL | B54: =SUM(B46:B51) -> 0 | U54: TOTAL | V54: =SUM(V46:V51) -> 0
A55: =F55 -> [Immeuble 3] | F55: =$F$19 -> [Immeuble 3] | N55: =$F$20 -> [Immeuble 4] | U55: =N55 -> [Immeuble 4]
A56: RÉSIDENTIEL | F56: RÉSIDENTIEL | N56: RÉSIDENTIEL | U56: RÉSIDENTIEL
A57: Loyer total mensuel prévu (services EXCLUS) | B57: Nbre unités abordables | F57: Typologie résidentielle | H57: Nombre d'unités | I57: Loyer total mensuel prévu (services inclus) | J57: Valeur mensuelle des services | K57: Référence loyer mensuel abordable | L57: Description des services | N57: Typologie résidentielle | O57: Nombre d'unités | P57: Loyer total mensuel prévu (services inclus) | Q57: Valeur mensuelle des services | R57: Référence loyer mensuel abordable | S57: Description des services | U57: Loyer total mensuel prévu (services exclus) | V57: Nbre unités abordables
A58: =I58-J58 -> 0 | B58: =SUMIF(A58,"<="&K58,H58) -> 0 | I58: 0 | J58: 0 | K58: =IFERROR(_xlfn.SWITCH(F58,$G$7,$I$7,$G$8,$I$8,$G$9,$I$9,$G$10,$I$10,$G$11,$I$11,$G$12,$I$12),0) -> 0 | P58: 0 | Q58: 0 | R58: =IFERROR(_xlfn.SWITCH(N58,$G$7,$I$7,$G$8,$I$8,$G$9,$I$9,$G$10,$I$10,$G$11,$I$11,$G$12,$I$12),0) -> 0 | U58: =P58-Q58 -> 0 | V58: =SUMIF(U58,"<="&R58,O58) -> 0
A59: 0 | B59: =SUMIF(A59,"<="&K59,H59) -> 0 | I59: 0 | J59: 0 | K59: =IFERROR(_xlfn.SWITCH(F59,$G$7,$I$7,$G$8,$I$8,$G$9,$I$9,$G$10,$I$10,$G$11,$I$11,$G$12,$I$12),0) -> 0 | P59: 0 | Q59: 0 | R59: =IFERROR(_xlfn.SWITCH(N59,$G$7,$I$7,$G$8,$I$8,$G$9,$I$9,$G$10,$I$10,$G$11,$I$11,$G$12,$I$12),0) -> 0 | U59: =P59-Q59 -> 0 | V59: =SUMIF(U59,"<="&R59,O59) -> 0
A60: 0 | B60: 0 | C60: Ratio loyer prévu - loyer référence | I60: 0 | J60: 0 | K60: =IFERROR(_xlfn.SWITCH(F60,$G$7,$I$7,$G$8,$I$8,$G$9,$I$9,$G$10,$I$10,$G$11,$I$11,$G$12,$I$12),0) -> 0 | P60: 0 | Q60: 0 | R60: =IFERROR(_xlfn.SWITCH(N60,$G$7,$I$7,$G$8,$I$8,$G$9,$I$9,$G$10,$I$10,$G$11,$I$11,$G$12,$I$12),0) -> 0 | U60: 0 | V60: 0 | W60: Ratio loyer prévu - loyer référence
A61: 0 | B61: 0 | C61: Moyenne loyer prévu | D61: =IFERROR(SUMPRODUCT($I58:$I62,$H58:$H62)/SUM($H58:$H62),0) -> 0 | I61: 0 | J61: 0 | K61: =IFERROR(_xlfn.SWITCH(F61,$G$7,$I$7,$G$8,$I$8,$G$9,$I$9,$G$10,$I$10,$G$11,$I$11,$G$12,$I$12),0) -> 0 | P61: 0 | Q61: 0 | R61: =IFERROR(_xlfn.SWITCH(N61,$G$7,$I$7,$G$8,$I$8,$G$9,$I$9,$G$10,$I$10,$G$11,$I$11,$G$12,$I$12),0) -> 0 | U61: 0 | V61: 0 | W61: Moyenne loyer prévu | X61: =IFERROR(SUMPRODUCT($O58:$O62,$P58:$P62)/SUM($O58:$O62),0) -> 0
A62: 0 | B62: 0 | C62: Moyenne loyer de référence | D62: =IFERROR(SUMPRODUCT($K58:$K62,$H58:$H62)/SUM($H58:$H62),0) -> 0 | I62: 0 | J62: 0 | K62: =IFERROR(_xlfn.SWITCH(F62,$G$7,$I$7,$G$8,$I$8,$G$9,$I$9,$G$10,$I$10,$G$11,$I$11,$G$12,$I$12),0) -> 0 | P62: 0 | Q62: 0 | R62: =IFERROR(_xlfn.SWITCH(N62,$G$7,$I$7,$G$8,$I$8,$G$9,$I$9,$G$10,$I$10,$G$11,$I$11,$G$12,$I$12),0) -> 0 | U62: 0 | V62: 0 | W62: Moyenne loyer de référence | X62: =IFERROR(SUMPRODUCT($R58:$R62,$O58:$O62)/SUM($O58:$O62),0) -> 0
A63: =I63-J63 -> 0 | B63: 0 | C63: Ratio | D63: =IFERROR(D61/D62,0) -> 0 | F63: Total résidentiel | H63: =SUM(H58:H62) -> 0 | I63: =SUMPRODUCT($H$58:$H$62,I58:I62) -> 0 | J63: =SUMPRODUCT($H$58:$H$62,J58:J62) -> 0 | N63: Total résidentiel | O63: =SUM(O58:O62) -> 0 | P63: =SUMPRODUCT($O$58:$O$62,P58:P62) -> 0 | Q63: =SUMPRODUCT($O$58:$O$62,Q58:Q62) -> 0 | U63: 0 | V63: 0 | W63: Ratio | X63: =IFERROR(X61/X62,0) -> 0
A64: TOTAL | B64: =SUM(B58:B63) -> 0 | U64: TOTAL | V64: =SUM(V58:V63) -> 0
A65: =F65 -> [Immeuble 5] | F65: =$F$21 -> [Immeuble 5] | N65: =$F$22 -> [Immeuble 6] | U65: =N65 -> [Immeuble 6]
A66: RÉSIDENTIEL | F66: RÉSIDENTIEL | N66: RÉSIDENTIEL | U66: RÉSIDENTIEL
A67: Loyer total mensuel prévu (services EXCLUS) | B67: Nbre unités abordables | F67: Typologie résidentielle | H67: Nombre d'unités | I67: Loyer total mensuel prévu (services inclus) | J67: Valeur mensuelle des services | K67: Référence loyer mensuel abordable | L67: Description des services | N67: Typologie résidentielle | O67: Nombre d'unités | P67: Loyer total mensuel prévu (services inclus) | Q67: Valeur mensuelle des services | R67: Référence loyer mensuel abordable | S67: Description des services | U67: Loyer total mensuel prévu (services exclus) | V67: Nbre unités abordables
A68: =I68-J68 -> 0 | B68: =SUMIF(A68,"<="&K68,H68) -> 0 | I68: 0 | J68: 0 | K68: =IFERROR(_xlfn.SWITCH(F68,$G$7,$I$7,$G$8,$I$8,$G$9,$I$9,$G$10,$I$10,$G$11,$I$11,$G$12,$I$12),0) -> 0 | P68: 0 | Q68: 0 | R68: =IFERROR(_xlfn.SWITCH(N68,$G$7,$I$7,$G$8,$I$8,$G$9,$I$9,$G$10,$I$10,$G$11,$I$11,$G$12,$I$12),0) -> 0 | U68: =P68-Q68 -> 0 | V68: =SUMIF(U68,"<="&R68,O68) -> 0
A69: 0 | B69: =SUMIF(A69,"<="&K69,H69) -> 0 | I69: 0 | J69: 0 | K69: =IFERROR(_xlfn.SWITCH(F69,$G$7,$I$7,$G$8,$I$8,$G$9,$I$9,$G$10,$I$10,$G$11,$I$11,$G$12,$I$12),0) -> 0 | P69: 0 | Q69: 0 | R69: =IFERROR(_xlfn.SWITCH(N69,$G$7,$I$7,$G$8,$I$8,$G$9,$I$9,$G$10,$I$10,$G$11,$I$11,$G$12,$I$12),0) -> 0 | U69: =P69-Q69 -> 0 | V69: =SUMIF(U69,"<="&R69,O69) -> 0
A70: 0 | B70: 0 | C70: Ratio loyer prévu - loyer référence | I70: 0 | J70: 0 | K70: =IFERROR(_xlfn.SWITCH(F70,$G$7,$I$7,$G$8,$I$8,$G$9,$I$9,$G$10,$I$10,$G$11,$I$11,$G$12,$I$12),0) -> 0 | P70: 0 | Q70: 0 | R70: =IFERROR(_xlfn.SWITCH(N70,$G$7,$I$7,$G$8,$I$8,$G$9,$I$9,$G$10,$I$10,$G$11,$I$11,$G$12,$I$12),0) -> 0 | U70: 0 | V70: 0 | W70: Ratio loyer prévu - loyer référence
A71: 0 | B71: 0 | C71: Moyenne loyer prévu | D71: =IFERROR(SUMPRODUCT($I68:$I72,$H68:$H72)/SUM($H68:$H72),0) -> 0 | I71: 0 | J71: 0 | K71: =IFERROR(_xlfn.SWITCH(F71,$G$7,$I$7,$G$8,$I$8,$G$9,$I$9,$G$10,$I$10,$G$11,$I$11,$G$12,$I$12),0) -> 0 | P71: 0 | Q71: 0 | R71: =IFERROR(_xlfn.SWITCH(N71,$G$7,$I$7,$G$8,$I$8,$G$9,$I$9,$G$10,$I$10,$G$11,$I$11,$G$12,$I$12),0) -> 0 | U71: 0 | V71: 0 | W71: Moyenne loyer prévu | X71: =IFERROR(SUMPRODUCT($O68:$O72,$P68:$P72)/SUM($O68:$O72),0) -> 0
A72: 0 | B72: 0 | C72: Moyenne loyer de référence | D72: =IFERROR(SUMPRODUCT($K68:$K72,$H68:$H72)/SUM($H68:$H72),0) -> 0 | I72: 0 | J72: 0 | K72: =IFERROR(_xlfn.SWITCH(F72,$G$7,$I$7,$G$8,$I$8,$G$9,$I$9,$G$10,$I$10,$G$11,$I$11,$G$12,$I$12),0) -> 0 | P72: 0 | Q72: 0 | R72: =IFERROR(_xlfn.SWITCH(N72,$G$7,$I$7,$G$8,$I$8,$G$9,$I$9,$G$10,$I$10,$G$11,$I$11,$G$12,$I$12),0) -> 0 | U72: 0 | V72: 0 | W72: Moyenne loyer de référence | X72: =IFERROR(SUMPRODUCT($R68:$R72,$O68:$O72)/SUM($O68:$O72),0) -> 0
A73: 0 | B73: 0 | C73: Ratio | D73: =IFERROR(D71/D72,0) -> 0 | F73: Total résidentiel | H73: =SUM(H68:H72) -> 0 | I73: =SUMPRODUCT($H$68:$H$72,I68:I72) -> 0 | J73: =SUMPRODUCT($H$68:$H$72,J68:$J$72) -> 0 | N73: Total résidentiel | O73: =SUM(O68:O72) -> 0 | P73: =SUMPRODUCT($O$68:$O$72,P68:P72) -> 0 | Q73: =SUMPRODUCT($O$68:$O$72,Q68:Q72) -> 0 | U73: 0 | V73: 0 | W73: Ratio | X73: =IFERROR(X71/X72,0) -> 0
A74: TOTAL | B74: =SUM(B68:B73) -> 0 | U74: TOTAL | V74: =SUM(V68:V73) -> 0
A75: =F75 -> [Immeuble 7] | F75: =$F$23 -> [Immeuble 7] | N75: =$F$24 -> [Immeuble 8] | U75: =N75 -> [Immeuble 8]
A76: RÉSIDENTIEL | F76: RÉSIDENTIEL | N76: RÉSIDENTIEL | U76: RÉSIDENTIEL
A77: Loyer total mensuel prévu (services EXCLUS) | B77: Nbre unités abordables | F77: Typologie résidentielle | H77: Nombre d'unités | I77: Loyer total mensuel prévu (services inclus) | J77: Valeur mensuelle des services | K77: Référence loyer mensuel abordable | L77: Description des services | N77: Typologie résidentielle | O77: Nombre d'unités | P77: Loyer total mensuel prévu (services inclus) | Q77: Valeur mensuelle des services | R77: Référence loyer mensuel abordable | S77: Description des services | U77: Loyer total mensuel prévu (services exclus) | V77: Nbre unités abordables
A78: =I78-J78 -> 0 | B78: =SUMIF(A78,"<="&K78,H78) -> 0 | I78: 0 | J78: 0 | K78: =IFERROR(_xlfn.SWITCH(F78,$G$7,$I$7,$G$8,$I$8,$G$9,$I$9,$G$10,$I$10,$G$11,$I$11,$G$12,$I$12),0) -> 0 | P78: 0 | Q78: 0 | R78: =IFERROR(_xlfn.SWITCH(N78,$G$7,$I$7,$G$8,$I$8,$G$9,$I$9,$G$10,$I$10,$G$11,$I$11,$G$12,$I$12),0) -> 0 | U78: =P78-Q78 -> 0 | V78: =SUMIF(U78,"<="&R78,O78) -> 0
A79: 0 | B79: =SUMIF(A79,"<="&K79,H79) -> 0 | I79: 0 | J79: 0 | K79: =IFERROR(_xlfn.SWITCH(F79,$G$7,$I$7,$G$8,$I$8,$G$9,$I$9,$G$10,$I$10,$G$11,$I$11,$G$12,$I$12),0) -> 0 | P79: 0 | Q79: 0 | R79: =IFERROR(_xlfn.SWITCH(N79,$G$7,$I$7,$G$8,$I$8,$G$9,$I$9,$G$10,$I$10,$G$11,$I$11,$G$12,$I$12),0) -> 0 | U79: =P79-Q79 -> 0 | V79: =SUMIF(U79,"<="&R79,O79) -> 0
A80: 0 | B80: 0 | C80: Ratio loyer prévu - loyer référence | I80: 0 | J80: 0 | K80: =IFERROR(_xlfn.SWITCH(F80,$G$7,$I$7,$G$8,$I$8,$G$9,$I$9,$G$10,$I$10,$G$11,$I$11,$G$12,$I$12),0) -> 0 | P80: 0 | Q80: 0 | R80: =IFERROR(_xlfn.SWITCH(N80,$G$7,$I$7,$G$8,$I$8,$G$9,$I$9,$G$10,$I$10,$G$11,$I$11,$G$12,$I$12),0) -> 0 | U80: 0 | V80: 0 | W80: Ratio loyer prévu - loyer référence
A81: 0 | B81: 0 | C81: Moyenne loyer prévu | D81: =IFERROR(SUMPRODUCT($I78:$I82,$H78:$H82)/SUM($H78:$H82),0) -> 0 | I81: 0 | J81: 0 | K81: =IFERROR(_xlfn.SWITCH(F81,$G$7,$I$7,$G$8,$I$8,$G$9,$I$9,$G$10,$I$10,$G$11,$I$11,$G$12,$I$12),0) -> 0 | P81: 0 | Q81: 0 | R81: =IFERROR(_xlfn.SWITCH(N81,$G$7,$I$7,$G$8,$I$8,$G$9,$I$9,$G$10,$I$10,$G$11,$I$11,$G$12,$I$12),0) -> 0 | U81: 0 | V81: 0 | W81: Moyenne loyer prévu | X81: =IFERROR(SUMPRODUCT($O78:$O82,$P78:$P82)/SUM($O78:$O82),0) -> 0
A82: 0 | B82: 0 | C82: Moyenne loyer de référence | D82: =IFERROR(SUMPRODUCT($K78:$K82,$H78:$H82)/SUM($H78:$H82),0) -> 0 | I82: 0 | J82: 0 | K82: =IFERROR(_xlfn.SWITCH(F82,$G$7,$I$7,$G$8,$I$8,$G$9,$I$9,$G$10,$I$10,$G$11,$I$11,$G$12,$I$12),0) -> 0 | P82: 0 | Q82: 0 | R82: =IFERROR(_xlfn.SWITCH(N82,$G$7,$I$7,$G$8,$I$8,$G$9,$I$9,$G$10,$I$10,$G$11,$I$11,$G$12,$I$12),0) -> 0 | U82: 0 | V82: 0 | W82: Moyenne loyer de référence | X82: =IFERROR(SUMPRODUCT($R78:$R82,$O78:$O82)/SUM($O78:$O82),0) -> 0
A83: 0 | B83: 0 | C83: Ratio | D83: =IFERROR(D81/D82,0) -> 0 | F83: Total résidentiel | H83: =SUM(H78:H82) -> 0 | I83: =SUMPRODUCT(H78:H82,I78:I82) -> 0 | J83: =SUM($H$46:$H$50*J78:J82) -> 0 | N83: Total résidentiel | O83: =SUM(O78:O82) -> 0 | P83: =SUMPRODUCT($O$78:$O$82,P78:P82) -> 0 | Q83: =SUMPRODUCT($O$78:$O$82,Q78:Q82) -> 0 | U83: 0 | V83: 0 | W83: Ratio | X83: =IFERROR(X81/X82,0) -> 0
A84: TOTAL | B84: =SUM(B78:B83) -> 0 | U84: TOTAL | V84: =SUM(V78:V83) -> 0
A85: =F85 -> [Immeuble 9] | F85: =$F$25 -> [Immeuble 9] | N85: =$F$26 -> [Immeuble 10] | U85: =N85 -> [Immeuble 10]
A86: RÉSIDENTIEL | F86: RÉSIDENTIEL | N86: RÉSIDENTIEL | U86: RÉSIDENTIEL
A87: Loyer total mensuel prévu (services EXCLUS) | B87: Nbre unités abordables | F87: Typologie résidentielle | H87: Nombre d'unités | I87: Loyer total mensuel prévu (services inclus) | J87: Valeur mensuelle des services | K87: Référence loyer mensuel abordable | L87: Description des services | N87: Typologie résidentielle | O87: Nombre d'unités | P87: Loyer total mensuel prévu (services inclus) | Q87: Valeur mensuelle des services | R87: Référence loyer mensuel abordable | S87: Description des services | U87: Loyer total mensuel prévu (services exclus) | V87: Nbre unités abordables
A88: =I88-J88 -> 0 | B88: =SUMIF(A88,"<="&K88,H88) -> 0 | I88: 0 | J88: 0 | K88: =IFERROR(_xlfn.SWITCH(F88,$G$7,$I$7,$G$8,$I$8,$G$9,$I$9,$G$10,$I$10,$G$11,$I$11,$G$12,$I$12),0) -> 0 | P88: 0 | Q88: 0 | R88: =IFERROR(_xlfn.SWITCH(N88,$G$7,$I$7,$G$8,$I$8,$G$9,$I$9,$G$10,$I$10,$G$11,$I$11,$G$12,$I$12),0) -> 0 | U88: =P88-Q88 -> 0 | V88: =SUMIF(U88,"<="&R88,O88) -> 0
A89: 0 | B89: =SUMIF(A89,"<="&K89,H89) -> 0 | I89: 0 | J89: 0 | K89: =IFERROR(_xlfn.SWITCH(F89,$G$7,$I$7,$G$8,$I$8,$G$9,$I$9,$G$10,$I$10,$G$11,$I$11,$G$12,$I$12),0) -> 0 | P89: 0 | Q89: 0 | R89: =IFERROR(_xlfn.SWITCH(N89,$G$7,$I$7,$G$8,$I$8,$G$9,$I$9,$G$10,$I$10,$G$11,$I$11,$G$12,$I$12),0) -> 0 | U89: =P89-Q89 -> 0 | V89: =SUMIF(U89,"<="&R89,O89) -> 0
A90: 0 | B90: 0 | C90: Ratio loyer prévu - loyer référence | I90: 0 | J90: 0 | K90: =IFERROR(_xlfn.SWITCH(F90,$G$7,$I$7,$G$8,$I$8,$G$9,$I$9,$G$10,$I$10,$G$11,$I$11,$G$12,$I$12),0) -> 0 | P90: 0 | Q90: 0 | R90: =IFERROR(_xlfn.SWITCH(N90,$G$7,$I$7,$G$8,$I$8,$G$9,$I$9,$G$10,$I$10,$G$11,$I$11,$G$12,$I$12),0) -> 0 | U90: 0 | V90: 0 | W90: Ratio loyer prévu - loyer référence
A91: 0 | B91: 0 | C91: Moyenne loyer prévu | D91: =IFERROR(SUMPRODUCT($I88:$I92,$H88:$H92)/SUM($H88:$H92),0) -> 0 | I91: 0 | J91: 0 | K91: =IFERROR(_xlfn.SWITCH(F91,$G$7,$I$7,$G$8,$I$8,$G$9,$I$9,$G$10,$I$10,$G$11,$I$11,$G$12,$I$12),0) -> 0 | P91: 0 | Q91: 0 | R91: =IFERROR(_xlfn.SWITCH(N91,$G$7,$I$7,$G$8,$I$8,$G$9,$I$9,$G$10,$I$10,$G$11,$I$11,$G$12,$I$12),0) -> 0 | U91: 0 | V91: 0 | W91: Moyenne loyer prévu | X91: =IFERROR(SUMPRODUCT($O88:$O92,$P88:$P92)/SUM($O88:$O92),0) -> 0
A92: 0 | B92: 0 | C92: Moyenne loyer de référence | D92: =IFERROR(SUMPRODUCT($K88:$K92,$H88:$H92)/SUM($H88:$H92),0) -> 0 | I92: 0 | J92: 0 | K92: =IFERROR(_xlfn.SWITCH(F92,$G$7,$I$7,$G$8,$I$8,$G$9,$I$9,$G$10,$I$10,$G$11,$I$11,$G$12,$I$12),0) -> 0 | P92: 0 | Q92: 0 | R92: =IFERROR(_xlfn.SWITCH(N92,$G$7,$I$7,$G$8,$I$8,$G$9,$I$9,$G$10,$I$10,$G$11,$I$11,$G$12,$I$12),0) -> 0 | U92: 0 | V92: 0 | W92: Moyenne loyer de référence | X92: =IFERROR(SUMPRODUCT($R88:$R92,$O88:$O92)/SUM($O88:$O92),0) -> 0
A93: 0 | B93: 0 | C93: Ratio | D93: =IFERROR(D91/D92,0) -> 0 | F93: Total résidentiel | H93: =SUM(H88:H92) -> 0 | I93: =SUMPRODUCT($H$88:$H$92,I88:I92) -> 0 | J93: =SUMPRODUCT($H$88:$H$92,J88:J92) -> 0 | N93: Total résidentiel | O93: =SUM(O88:O92) -> 0 | P93: =SUMPRODUCT($O$88:$O$92,P88:P92) -> 0 | Q93: =SUMPRODUCT($O$88:$O$92,Q88:Q92) -> 0 | U93: 0 | V93: 0 | W93: Ratio | X93: =IFERROR(X91/X92,0) -> 0
A94: TOTAL | B94: =SUM(B88:B93) -> 0 | U94: TOTAL | V94: =SUM(V88:V93) -> 0
A95: =F95 -> [Immeuble 1] | F95: =$F$17 -> [Immeuble 1]
A96: COMMERCIAL | F96: COMMERCIAL
A97: Loyer total mensuel prévu (services exclus) | B97: # espaces abodables | C97: # locataires | F97: Locataire | G97: Superfice de l'espace (pi.ca.) | I97: Loyer total mensuel prévu | J97: Valeur mensuelle des services | K97: Valeur mensuelle des équipement | L97: Référence loyer mensuel abordable | M97: Description des services | O97: Description des équipements
A98: =I98-J98-K98 -> 0 | B98: =SUMIF(A98,"<="&L98,C98) -> 0 | C98: =COUNTA(F98) -> 0 | I98: =G98*$N$7/12 -> 0 | L98: =G98*$N$6/12 -> 0
A99: =I99-J99-K99 -> 0 | B99: 0 | C99: =COUNTA(F99) -> 0 | I99: =G99*$N$7/12 -> 0 | L99: =G99*$N$6/12 -> 0
A100: 0 | B100: 0 | C100: =COUNTA(F100) -> 0 | I100: 0 | L100: 0
A101: 0 | B101: 0 | C101: =COUNTA(F101) -> 0 | I101: 0 | L101: 0
A102: 0 | B102: 0 | C102: =COUNTA(F102) -> 0 | I102: 0 | L102: 0
A103: 0 | B103: 0 | C103: 0 | I103: 0 | L103: 0
A104: 0 | B104: 0 | C104: 0 | I104: 0 | L104: 0
A105: 0 | B105: 0 | C105: 0 | I105: 0 | L105: 0
A106: 0 | B106: 0 | C106: 0 | I106: 0 | L106: 0
A107: 0 | B107: 0 | C107: 0 | I107: 0 | L107: 0
A108: 0 | B108: 0 | C108: 0 | I108: 0 | L108: 0
A109: 0 | B109: 0 | C109: 0 | I109: 0 | L109: 0
A110: 0 | B110: 0 | C110: 0 | I110: 0 | L110: 0
A111: 0 | B111: 0 | C111: 0 | I111: 0 | L111: 0
A112: 0 | B112: 0 | C112: 0 | I112: 0 | L112: 0
A113: TOTAL | B113: =SUM(B98:B112) -> 0 | C113: =SUM(C98:C112) -> 0 | F113: Total commercial | G113: =SUM(G98:H112) -> 0 | I113: =SUM(I98:I112) -> 0 | J113: =SUM(J98:J112) -> 0 | K113: 0
F115: *Si plus de 1 immeubles avec une superficie commerciale, cliquer sur le + à la gauche
A117: =F117 -> [Immeuble 2] | F117: =$F$18 -> [Immeuble 2]
A118: COMMERCIAL | F118: COMMERCIAL
A119: Loyer total mensuel prévu (services exclus) | B119: # espaces abodables | C119: # locataires | F119: Locataire | G119: Superfice de l'espace (pi.ca.) | I119: Loyer total mensuel prévu | J119: Valeur mensuelle des services | K119: Valeur mensuelle des équipement | L119: Référence loyer mensuel abordable | M119: Description des services | O119: Description des équipements
A120: =I120-J120-K120 -> 0 | B120: =SUMIF(A120,"<="&L120,C120) -> 0 | C120: =COUNTA(F120) -> 0 | I120: =G120*$N$7 -> 0 | L120: =G120*$N$6 -> 0
A121: =I121-J121-K121 -> 0 | B121: 0 | C121: 0 | I121: 0 | L121: 0
A122: 0 | B122: 0 | C122: 0 | I122: 0 | L122: 0
A123: 0 | B123: 0 | C123: 0 | I123: 0 | L123: 0
A124: 0 | B124: 0 | C124: 0 | I124: 0 | L124: 0
A125: 0 | B125: 0 | C125: 0 | I125: 0 | L125: 0
A126: 0 | B126: 0 | C126: 0 | I126: 0 | L126: 0
A127: 0 | B127: 0 | C127: 0 | I127: 0 | L127: 0
A128: 0 | B128: 0 | C128: 0 | I128: 0 | L128: 0
A129: 0 | B129: 0 | C129: 0 | I129: 0 | L129: 0
A130: 0 | B130: 0 | C130: 0 | I130: 0 | L130: 0
A131: 0 | B131: 0 | C131: 0 | I131: 0 | L131: 0
A132: 0 | B132: 0 | C132: 0 | I132: 0 | L132: 0
A133: 0 | B133: 0 | C133: 0 | I133: 0 | L133: 0
A134: 0 | B134: 0 | C134: 0 | I134: 0 | L134: 0
A135: TOTAL | B135: =SUM(B120:B134) -> 0 | C135: =SUM(C120:C134) -> 0 | F135: Total commercial | G135: =SUM(G120:G124) -> 0 | I135: =SUM(I120:I134) -> 0 | J135: =SUM(J120:J134) -> 0 | K135: 0
A137: =F137 -> [Immeuble 3] | F137: =$F$19 -> [Immeuble 3]
A138: COMMERCIAL | F138: COMMERCIAL
A139: Loyer total mensuel prévu (services exclus) | B139: # espaces abodables | C139: # locataires | F139: Locataire | G139: Superfice de l'espace (pi.ca.) | I139: Loyer total mensuel prévu | J139: Valeur mensuelle des services | K139: Valeur mensuelle des équipement | L139: Référence loyer mensuel abordable | M139: Description des services | O139: Description des équipements
A140: =I140-J140-K140 -> 0 | B140: =SUMIF(A140,"<="&L140,C140) -> 0 | C140: =COUNTA(F140) -> 0 | I140: =G140*$N$7 -> 0 | L140: =G140*$N$6 -> 0
A141: =I141-J141-K141 -> 0 | B141: 0 | C141: 0 | I141: 0 | L141: 0
A142: 0 | B142: 0 | C142: 0 | I142: 0 | L142: 0
A143: 0 | B143: 0 | C143: 0 | I143: 0 | L143: 0
A144: 0 | B144: 0 | C144: 0 | I144: 0 | L144: 0
A145: 0 | B145: 0 | C145: 0 | I145: 0 | L145: 0
A146: 0 | B146: 0 | C146: 0 | I146: 0 | L146: 0
A147: 0 | B147: 0 | C147: 0 | I147: 0 | L147: 0
A148: 0 | B148: 0 | C148: 0 | I148: 0 | L148: 0
A149: 0 | B149: 0 | C149: 0 | I149: 0 | L149: 0
A150: 0 | B150: 0 | C150: 0 | I150: 0 | L150: 0
A151: 0 | B151: 0 | C151: 0 | I151: 0 | L151: 0
A152: 0 | B152: 0 | C152: 0 | I152: 0 | L152: 0
A153: 0 | B153: 0 | C153: 0 | I153: 0 | L153: 0
A154: 0 | B154: 0 | C154: 0 | I154: 0 | L154: 0
A155: TOTAL | B155: =SUM(B140:B154) -> 0 | C155: =SUM(C140:C154) -> 0 | F155: Total commercial | G155: =SUM(G140:G144) -> 0 | I155: =SUM(I140:I154) -> 0 | J155: =SUM(J140:J154) -> 0 | K155: 0
A157: =F157 -> [Immeuble 4] | F157: =$F$20 -> [Immeuble 4]
A158: COMMERCIAL | F158: COMMERCIAL
A159: Loyer total mensuel prévu (services exclus) | B159: # espaces abodables | C159: # locataires | F159: Locataire | G159: Superfice de l'espace (pi.ca.) | I159: Loyer total mensuel prévu | J159: Valeur mensuelle des services | K159: Valeur mensuelle des équipement | L159: Référence loyer mensuel abordable | M159: Description des services | O159: Description des équipements
A160: =I160-J160-K160 -> 0 | B160: =SUMIF(A160,"<="&L160,C160) -> 0 | C160: =COUNTA(F160) -> 0 | I160: =G160*$N$7 -> 0 | L160: =G160*$N$6 -> 0
A161: =I161-J161-K161 -> 0 | B161: 0 | C161: 0 | I161: 0 | L161: 0
A162: 0 | B162: 0 | C162: 0 | I162: 0 | L162: 0
A163: 0 | B163: 0 | C163: 0 | I163: 0 | L163: 0
A164: 0 | B164: 0 | C164: 0 | I164: 0 | L164: 0
A165: 0 | B165: 0 | C165: 0 | I165: 0 | L165: 0
A166: 0 | B166: 0 | C166: 0 | I166: 0 | L166: 0
A167: 0 | B167: 0 | C167: 0 | I167: 0 | L167: 0
A168: 0 | B168: 0 | C168: 0 | I168: 0 | L168: 0
A169: 0 | B169: 0 | C169: 0 | I169: 0 | L169: 0
A170: 0 | B170: 0 | C170: 0 | I170: 0 | L170: 0
A171: 0 | B171: 0 | C171: 0 | I171: 0 | L171: 0
A172: 0 | B172: 0 | C172: 0 | I172: 0 | L172: 0
A173: 0 | B173: 0 | C173: 0 | I173: 0 | L173: 0
A174: 0 | B174: 0 | C174: 0 | I174: 0 | L174: 0
A175: TOTAL | B175: =SUM(B160:B174) -> 0 | C175: =SUM(C160:C174) -> 0 | F175: Total commercial | G175: =SUM(G160:G164) -> 0 | I175: =SUM(I160:I174) -> 0 | J175: =SUM(J160:J174) -> 0 | K175: 0
A177: =F177 -> [Immeuble 5] | F177: =$F$21 -> [Immeuble 5]
A178: COMMERCIAL | F178: COMMERCIAL
A179: Loyer total mensuel prévu (services exclus) | B179: # espaces abodables | C179: # locataires | F179: Locataire | G179: Superfice de l'espace (pi.ca.) | I179: Loyer total mensuel prévu | J179: Valeur mensuelle des services | K179: Valeur mensuelle des équipement | L179: Référence loyer mensuel abordable | M179: Description des services | O179: Description des équipements
A180: =I180-J180-K180 -> 0 | B180: =SUMIF(A180,"<="&L180,C180) -> 0 | C180: =COUNTA(F180) -> 0 | I180: =G180*$N$7 -> 0 | L180: =G180*$N$6 -> 0
A181: =I181-J181-K181 -> 0 | B181: 0 | C181: 0 | I181: 0 | L181: 0
A182: 0 | B182: 0 | C182: 0 | I182: 0 | L182: 0
A183: 0 | B183: 0 | C183: 0 | I183: 0 | L183: 0
A184: 0 | B184: 0 | C184: 0 | I184: 0 | L184: 0
A185: 0 | B185: 0 | C185: 0 | I185: 0 | L185: 0
A186: 0 | B186: 0 | C186: 0 | I186: 0 | L186: 0
A187: 0 | B187: 0 | C187: 0 | I187: 0 | L187: 0
A188: 0 | B188: 0 | C188: 0 | I188: 0 | L188: 0
A189: 0 | B189: 0 | C189: 0 | I189: 0 | L189: 0
A190: 0 | B190: 0 | C190: 0 | I190: 0 | L190: 0
A191: 0 | B191: 0 | C191: 0 | I191: 0 | L191: 0
A192: 0 | B192: 0 | C192: 0 | I192: 0 | L192: 0
A193: 0 | B193: 0 | C193: 0 | I193: 0 | L193: 0
A194: 0 | B194: 0 | C194: 0 | I194: 0 | L194: 0
A195: TOTAL | B195: =SUM(B180:B194) -> 0 | C195: =SUM(C180:C194) -> 0 | F195: Total commercial | G195: =SUM(G180:G184) -> 0 | I195: =SUM(I180:I194) -> 0 | J195: =SUM(J180:J194) -> 0 | K195: 0
A197: =F197 -> [Immeuble 6] | F197: =$F$22 -> [Immeuble 6]
A198: COMMERCIAL | F198: COMMERCIAL
A199: Loyer total mensuel prévu (services exclus) | B199: # espaces abodables | C199: # locataires | F199: Locataire | G199: Superfice de l'espace (pi.ca.) | I199: Loyer total mensuel prévu | J199: Valeur mensuelle des services | K199: Valeur mensuelle des équipement | L199: Référence loyer mensuel abordable | M199: Description des services | O199: Description des équipements
A200: =I200-J200-K200 -> 0 | B200: =SUMIF(A200,"<="&L200,C200) -> 0 | C200: =COUNTA(F200) -> 0 | I200: =G200*$N$7 -> 0 | L200: =G200*$N$6 -> 0
A201: =I201-J201-K201 -> 0 | B201: 0 | C201: 0 | I201: 0 | L201: 0
A202: 0 | B202: 0 | C202: 0 | I202: 0 | L202: 0
A203: 0 | B203: 0 | C203: 0 | I203: 0 | L203: 0
A204: 0 | B204: 0 | C204: 0 | I204: 0 | L204: 0
A205: 0 | B205: 0 | C205: 0 | I205: 0 | L205: 0
A206: 0 | B206: 0 | C206: 0 | I206: 0 | L206: 0
A207: 0 | B207: 0 | C207: 0 | I207: 0 | L207: 0
A208: 0 | B208: 0 | C208: 0 | I208: 0 | L208: 0
A209: 0 | B209: 0 | C209: 0 | I209: 0 | L209: 0
A210: 0 | B210: 0 | C210: 0 | I210: 0 | L210: 0
... 81 more rows

Sheet 4. Sources de financement
B2: =IF('2. Informations de base'!C7=0,"NOM DU PROJET",'2. Informations de base'!C7) -> NOM DU PROJET
B3: =IF('2. Informations de base'!$B$3="Sélectionner le nom du fonds","NOM DU FONDS",'2. Informations de base'!$B$3)&", Sources de financement" -> Fonds Immosocial Québec, Sources de financement | M3: Détail des prêts
B5: ACQUISITION | M5: Prêt pont acquisition | N5: [Nom du prêteur] | Q5: Analystes
B6: Gestionnaire du fonds | C6: Programme de financement | D6: Type de financement | E6: Statut | F6: Montant | G6: Date confirmé | H6: Notes | K6: Conditions importantes | M6: Capital emprunté | N6: $
B7: Ville de Montréal | C7: Subvention | D7: Contribution | E7: Non confirmé | F7: 0 | M7: Taux d'intérêt | N7: % annuel | Q7: Date d'achat: | R7: Début des travaux:
B8: Vendeur | C8: Balance de vente | D8: Prêt | E8: Non confirmé | F8: 0 | M8: Durée estimé du prêt | N8: Nbr mois | Q8: =IF('2. Informations de base'!C33=0,"",'2. Informations de base'!C33) ->  | R8: =IF('2. Informations de base'!C35=0,"",'2. Informations de base'!C35) -> 
M9: Intérêts estimé | N9: $ | O9: =O6*O7*(O8/12) -> 0
M10: Frais initiaux (ponctuels) indiquer le % | N10: 0.01 | O10: =O6*N10 -> 0
M11: =$M$11 -> Frais de suivi (annuels) | N11: $
M12: [Autres frais] | N12: $
M13: Total capital, frais et intérêts | N13: $ | O13: =IFERROR(O9+O10+O6+O12,"") -> 0
B14: RÉALISATION
B15: Gestionnaire du fonds | C15: Programme de financement | D15: Type de financement | E15: Statut | F15: Montant | G15: Date confirmé | H15: Notes | K15: Conditions importantes | M15: Prêt intérimaire construction | N15: [Nom du prêteur]
B16: AGRTQ | C16: =IF('2. Informations de base'!B3="Fonds Immosocial Québec","Fonds Immosocial (FISQ) - capital patient",(IF('2. Informations de base'!B3="Fonds Capital social d'investissement immobilier","Fonds CSII - capital patient","À venir"))) -> Fonds Immosocial (FISQ) - capital patient | D16: Prêt | E16: Non confirmé | F16: =O26 -> 0 | G16: À venir | M16: =$M$6 -> Capital emprunté | N16: =$N$6 -> $
B17: =IF('2. Informations de base'!B3="Fonds Capital social d'investissement immobilier","AGRTQ",(IF(COUNTIF(N15,"*nom*"),"",N15))) ->  | C17: =IF('2. Informations de base'!B3="Fonds Capital social d'investissement immobilier","Fonds CSII - hypothèque classique","") ->  | D17: Prêt | E17: Non confirmé | F17: =O36 -> 0 | G17: À venir | M17: =$M$7 -> Taux d'intérêt | N17: =$N$7 -> % annuel | Q17: Durée des travaux: | R17: ='2. Informations de base'!C37 -> 
B18: =IF(COUNTIF(N15,"*nom*"),"",N15) ->  | C18: =M15 -> Prêt intérimaire construction | D18: Prêt | F18: =O16 -> 0 | M18: =$M$8 -> Durée estimé du prêt | N18: =$N$8 -> Nbr mois | O18: ='2. Informations de base'!C37 -> 
B19: =IF(COUNTIF(N45,"*nom*"),"",N45) ->  | D19: Prêt | F19: =O46 -> 0 | M19: =$M$9 -> Intérêts estimé | N19: =$N$9 -> $ | O19: =IFERROR(O16*O17*(O18/12),"") -> 
D20: Contribution | M20: =$M$10 -> Frais initiaux (ponctuels) indiquer le % | N20: 0.01 | O20: =O16*N20 -> 0
M21: =$M$11 -> Frais de suivi (annuels) | N21: =$N$11 -> $
M22: [Autres frais] | N22: =$N$12 -> $
M23: Total capital, frais et intérêts | N23: =$N$13 -> $ | O23: =IFERROR(O19+O20+O16+O21,"") -> 
M25: Prêt long terme Capital patient | N25: =IF('2. Informations de base'!B3="Fonds Immosocial Québec","Immosocial - capital patient",(IF('2. Informations de base'!B3="Fonds Capital social d'investissement immobilier","CSII - capital patient","Capital patient à venir"))) -> Immosocial - capital patient
M26: =$M$6 -> Capital emprunté | N26: $ | O26: ='5. CAPEX'!E111 -> 0
M27: =$M$7 -> Taux d'intérêt | N27: % annuel
M28: =$M$8 -> Durée estimé du prêt | N28: Nbr années
M29: =$M$10 -> Frais initiaux (ponctuels) indiquer le % | N29: 0 | O29: =SUM(O26*(IF('2. Informations de base'!B3="Fonds Capital social d'investissement immobilier",PARAMÈTRES!$E$41,(IF('2. Informations de base'!B3="Fonds Immosocial Québec",PARAMÈTRES!$E$63,0))))) -> 0
M30: =$M$11 -> Frais de suivi (annuels) | N30: $ | O30: =IF('2. Informations de base'!B3="Fonds Capital social d'investissement immobilier",PARAMÈTRES!E42,(IF('2. Informations de base'!B3="Fonds Immosocial Québec",PARAMÈTRES!E64,"À venir"))) -> 0.015
M31: [Autres frais] | N31: $
M32: CCD minimal | N32: # | O32: 1
M33: Total capital, frais et intérêts | N33: $ | O33: =IFERROR(#REF!+O29+O26+O31,"") -> 
M35: Prêt long terme | N35: =IF('2. Informations de base'!B3="Fonds Capital social d'investissement immobilier","CSII - hypothèque classique","[Nom du prêteur] - hypothèque") -> [Nom du prêteur] - hypothèque | T35: Ajustement au financement calculé
M36: =$M$6 -> Capital emprunté | N36: $ | O36: =IF(O46>0,0,MIN('5. CAPEX'!E125,'7. OPEX- projections 15 ans'!D15)) -> 0 | T36: FINANCEMENT DISPONIBLE SELON JVM ET RATIO | U36: ='7. OPEX- projections 15 ans'!D15 -> 0
B37: EXPLOITATION | M37: =$M$7 -> Taux d'intérêt | N37: % annuel | T37: COÛT NET DE RÉALISATION | U37: ='5. CAPEX'!E125 -> 0
B38: Gestionnaire du fonds | C38: Programme de financement | D38: Type de financement | E38: Statut | F38: Montant | G38: Date confirmé | H38: Notes | K38: Conditions importantes | M38: =$M$8 -> Durée estimé du prêt | N38: Nbr années | T38: FINANCEMENT MAXIMUM | U38: =MIN(U36,U37) -> 0
D39: Contribution | F39: =SUM('7. OPEX- projections 15 ans'!F52:T52) -> 0 | G39: À venir | M39: =$M$10 -> Frais initiaux (ponctuels) indiquer le % | N39: $ | O39: =SUM(O36*(IF('2. Informations de base'!B3="Fonds Capital social d'investissement immobilier",PARAMÈTRES!E41,0))) -> 0 | T39: FINANCEMENT PROPOSÉ
M40: =$M$11 -> Frais de suivi (annuels) | N40: 0 | O40: =O36*N40 -> 0
M41: [Autres frais] | N41: $
M42: CCD minimal | N42: # | O42: =PARAMÈTRES!E22 -> 1.2
M43: Total capital, frais et intérêts | N43: $ | O43: =IFERROR(#REF!+O39+O36+O41,"") -> 
M45: Prêt autre: | N45: [Nom du prêteur]
M46: =$M$6 -> Capital emprunté | N46: $
M47: =$M$7 -> Taux d'intérêt | N47: % annuel
B48: EXPLOITATION - CONTRIBUTIONS NON RÉCURRENTES | M48: =$M$8 -> Durée estimé du prêt | N48: Nbr années
B49: Gestionnaire du fonds | C49: Programme de financement | D49: Type de financement | E49: Statut | F49: Montant | G49: Date confirmé | H49: ANNÉE À ANNÉE | J49: % | K49: Durée | M49: =$M$10 -> Frais initiaux (ponctuels) indiquer le % | N49: 0 | O49: =O46*N49 -> 0
D50: Contribution non récurrente | G50: À venir | K50: =I50-H50+1&" années de contributions" -> 1 années de contributions | M50: =$M$11 -> Frais de suivi (annuels) | N50: %
D51: Contribution non récurrente | K51: =I51-H51+1&" années de contributions" -> 1 années de contributions | M51: [Autres frais] | N51: $
D52: Contribution non récurrente | K52: 1 années de contributions | M52: CCD minimal | N52: #
D53: Contribution non récurrente | K53: 1 années de contributions | M53: Total capital, frais et intérêts | N53: $ | O53: =IFERROR(#REF!+O49+O46+O51,"") -> 
D54: Contribution non récurrente | K54: 1 années de contributions
C56: Financement confirmé | D56: Financement non confirmé | F56: Financement total
B57: Acquisition | C57: =SUMIF(E7:E12,"Confirmé",F7:F12) -> 0 | D57: =SUMIF(E7:F12,"non confirmé",F7:F12) -> 0 | F57: =SUM(C57:D57) -> 0
B58: Budget de réalisation | C58: =SUMIF(E16:E35,"Confirmé",F16:F35) -> 0 | D58: =SUMIF(E16:E35,"non confirmé",F16:F35) -> 0 | F58: =SUM(C58:D58) -> 0
B59: Budget d'exploitation | C59: =SUMIF(E39:E53,"Confirmé",F39:F53) -> 0 | D59: =SUMIF(E39:E54,"non confirmé",F39:F54) -> 0 | F59: =SUM(C59:D59) -> 0

Sheet 6. OPEX
B2: =IF('2. Informations de base'!C7=0,"NOM DU PROJET",'2. Informations de base'!C7) -> NOM DU PROJET | K2: *Si plus de 1 immeuble, cliquer sur le + en haut | AP2: Données réelles AGRTQ
B3: =IF('2. Informations de base'!$B$3="Sélectionner le nom du fonds","NOM DU FONDS",'2. Informations de base'!$B$3)&", Budget d'exploitation (OPEX)" -> Fonds Immosocial Québec, Budget d'exploitation (OPEX) | Y3: Données réelles
G5: Adresses des immeubles | H5: SOMMAIRE DES REVENUS | Y5: Adresses des immeubles
H6: Revenu résidentiel annuel | J6: Revenu commercial annuel | K6: Revenus totaux annuels
G7: ='3. CSII - Immeubles et loyers'!$F$18 -> [Adresse immeuble 1] | H7: =12*(IF('2. Informations de base'!B3="Fonds Capital social d'investissement immobilier",'3. CSII - Immeubles et loyers'!H52,'3. FISQ - Immeubles et loyers'!I51)) -> 0 | J7: =12*(IF('2. Informations de base'!B3="Fonds Capital social d'investissement immobilier",'3. CSII - Immeubles et loyers'!H53,'3. FISQ - Immeubles et loyers'!I113)) -> 0 | K7: =H7+J7 -> 0 | Y7: ='3. CSII - Immeubles et loyers'!$F$18 -> [Adresse immeuble 1]
G8: ='3. CSII - Immeubles et loyers'!$F$19 -> [Adresse immeuble 2] | H8: =12*(IF('2. Informations de base'!B3="Fonds Capital social d'investissement immobilier",'3. CSII - Immeubles et loyers'!N52,'3. FISQ - Immeubles et loyers'!P51)) -> 0 | J8: =12*(IF('2. Informations de base'!B3="Fonds Capital social d'investissement immobilier",'3. CSII - Immeubles et loyers'!N53,'3. FISQ - Immeubles et loyers'!I135)) -> 0 | K8: 0 | Y8: ='3. CSII - Immeubles et loyers'!$F$19 -> [Adresse immeuble 2]
G9: ='3. CSII - Immeubles et loyers'!$F$20 -> [Adresse immeuble 3] | H9: =12*(IF('2. Informations de base'!B3="Fonds Capital social d'investissement immobilier",'3. CSII - Immeubles et loyers'!H64,'3. FISQ - Immeubles et loyers'!I63)) -> 0 | J9: =12*(IF('2. Informations de base'!B3="Fonds Capital social d'investissement immobilier",'3. CSII - Immeubles et loyers'!H65,'3. FISQ - Immeubles et loyers'!I155)) -> 0 | K9: 0 | Y9: ='3. CSII - Immeubles et loyers'!$F$20 -> [Adresse immeuble 3]
G10: ='3. CSII - Immeubles et loyers'!$F$21 -> [Adresse immeuble 4] | H10: =12*(IF('2. Informations de base'!B3="Fonds Capital social d'investissement immobilier",'3. CSII - Immeubles et loyers'!N64,'3. FISQ - Immeubles et loyers'!P63)) -> 0 | J10: =12*(IF('2. Informations de base'!B3="Fonds Capital social d'investissement immobilier",'3. CSII - Immeubles et loyers'!N65,'3. FISQ - Immeubles et loyers'!I175)) -> 0 | K10: 0 | Y10: ='3. CSII - Immeubles et loyers'!$F$21 -> [Adresse immeuble 4]
G11: ='3. CSII - Immeubles et loyers'!$F$22 -> [Adresse immeuble 5] | H11: =12*(IF('2. Informations de base'!B3="Fonds Capital social d'investissement immobilier",'3. CSII - Immeubles et loyers'!H74,'3. FISQ - Immeubles et loyers'!I73)) -> 0 | J11: =12*(IF('2. Informations de base'!B3="Fonds Capital social d'investissement immobilier",'3. CSII - Immeubles et loyers'!H75,'3. FISQ - Immeubles et loyers'!I195)) -> 0 | K11: 0 | Y11: ='3. CSII - Immeubles et loyers'!$F$22 -> [Adresse immeuble 5]
G12: ='3. CSII - Immeubles et loyers'!$F$23 -> [Adresse immeuble 6] | H12: =12*(IF('2. Informations de base'!B3="Fonds Capital social d'investissement immobilier",'3. CSII - Immeubles et loyers'!N74,'3. FISQ - Immeubles et loyers'!P73)) -> 0 | J12: =12*(IF('2. Informations de base'!B3="Fonds Capital social d'investissement immobilier",'3. CSII - Immeubles et loyers'!N75,'3. FISQ - Immeubles et loyers'!I215)) -> 0 | K12: 0 | Y12: ='3. CSII - Immeubles et loyers'!$F$23 -> [Adresse immeuble 6]
G13: ='3. CSII - Immeubles et loyers'!$F$24 -> [Adresse immeuble 7] | H13: =12*(IF('2. Informations de base'!B3="Fonds Capital social d'investissement immobilier",'3. CSII - Immeubles et loyers'!H84,'3. FISQ - Immeubles et loyers'!I83)) -> 0 | J13: =12*(IF('2. Informations de base'!B3="Fonds Capital social d'investissement immobilier",'3. CSII - Immeubles et loyers'!H85,'3. FISQ - Immeubles et loyers'!I235)) -> 0 | K13: 0 | Y13: ='3. CSII - Immeubles et loyers'!$F$24 -> [Adresse immeuble 7]
G14: ='3. CSII - Immeubles et loyers'!$F$25 -> [Adresse immeuble 8] | H14: =12*(IF('2. Informations de base'!B3="Fonds Capital social d'investissement immobilier",'3. CSII - Immeubles et loyers'!N84,'3. FISQ - Immeubles et loyers'!P83)) -> 0 | J14: =12*(IF('2. Informations de base'!B3="Fonds Capital social d'investissement immobilier",'3. CSII - Immeubles et loyers'!N85,'3. FISQ - Immeubles et loyers'!I255)) -> 0 | K14: 0 | Y14: ='3. CSII - Immeubles et loyers'!$F$25 -> [Adresse immeuble 8]
G15: ='3. CSII - Immeubles et loyers'!$F$26 -> [Adresse immeuble 9] | H15: =12*(IF('2. Informations de base'!B3="Fonds Capital social d'investissement immobilier",'3. CSII - Immeubles et loyers'!H94,'3. FISQ - Immeubles et loyers'!I93)) -> 0 | J15: =12*(IF('2. Informations de base'!B3="Fonds Capital social d'investissement immobilier",'3. CSII - Immeubles et loyers'!H95,'3. FISQ - Immeubles et loyers'!I275)) -> 0 | K15: 0 | Y15: ='3. CSII - Immeubles et loyers'!$F$26 -> [Adresse immeuble 9]
G16: ='3. CSII - Immeubles et loyers'!$F$27 -> [Adresse immeuble 10] | H16: =12*(IF('2. Informations de base'!B3="Fonds Capital social d'investissement immobilier",'3. CSII - Immeubles et loyers'!N94,'3. FISQ - Immeubles et loyers'!P93)) -> 0 | J16: =12*(IF('2. Informations de base'!B3="Fonds Capital social d'investissement immobilier",'3. CSII - Immeubles et loyers'!N95,'3. FISQ - Immeubles et loyers'!I295)) -> 0 | K16: 0 | Y16: ='3. CSII - Immeubles et loyers'!$F$27 -> [Adresse immeuble 10]
G17: TOTAL | H17: =SUM(H7:H16) -> 0 | J17: =SUM(J7:J16) -> 0 | K17: =H17+J17 -> 0 | Y17: Total
B19: INFORMATIONS
B20: Taxes de vente (TPS/TVQ) | C20: 0.14975
B21: Portion remboursable à l'organisme - exploitation | G21: =IF(C21="","SVP indiquer la portion de TPS/TVQ remboursable en %, Indiqué même si 0%","") -> SVP indiquer la portion de TPS/TVQ remboursable en %, Indiqué même si 0%
B23: Notes | E23: Revenus totaux (avex TPS/TVQ) | G23: REVENUS D'EXPLOITATION ANNUELS | H23: % | I23: TX ou NTX | J23: Total des immeubles Année 1 | K23: ='3. CSII - Immeubles et loyers'!F18 -> [Adresse immeuble 1] | L23: ='3. CSII - Immeubles et loyers'!F19 -> [Adresse immeuble 2] | M23: ='3. CSII - Immeubles et loyers'!F20 -> [Adresse immeuble 3] | N23: ='3. CSII - Immeubles et loyers'!F21 -> [Adresse immeuble 4] | O23: ='3. CSII - Immeubles et loyers'!F22 -> [Adresse immeuble 5] | P23: ='3. CSII - Immeubles et loyers'!F23 -> [Adresse immeuble 6] | Q23: ='3. CSII - Immeubles et loyers'!F24 -> [Adresse immeuble 7] | R23: ='3. CSII - Immeubles et loyers'!F25 -> [Adresse immeuble 8] | S23: ='3. CSII - Immeubles et loyers'!F26 -> [Adresse immeuble 9] | T23: ='3. CSII - Immeubles et loyers'!F27 -> [Adresse immeuble 10] | U23: $/logement | V23: AGRTQ ANNÉE 1 | Y23: =G23 -> REVENUS D'EXPLOITATION ANNUELS | Z23: TX ou NTX | AA23: Année 1 | AB23: Année 2 | AC23: Année 3 | AD23: Année 4 | AE23: Année 5 | AF23: Année 6 | AG23: Année 7 | AH23: Année 8 | AI23: Année 9 | AJ23: Année 10 | AK23: Année 11 | AL23: Année 12 | AM23: Année 13 | AN23: Année 14 | AO23: Année 15
E24: =IF($I24="TX",$J24*(1+($C$20*(1-$C$21))),0) -> 0 | F24: =IF($I24="NTX",$J24,0) -> 0 | G24: Loyers résidentiels prévus | H24: ='7. OPEX- projections 15 ans'!$F$45 -> 0.02 | I24: NTX | J24: =IF('ÉVOLUTION DES BAUX'!F280>1,'ÉVOLUTION DES BAUX'!F281,SUM(K24:T24)*(1+$H$24)) -> 0 | K24: ='6. OPEX'!$H$7 -> 0 | L24: ='6. OPEX'!H8 -> 0 | M24: ='6. OPEX'!H9 -> 0 | N24: ='6. OPEX'!H10 -> 0 | O24: ='6. OPEX'!H11 -> 0 | P24: ='6. OPEX'!H12 -> 0 | Q24: ='6. OPEX'!H13 -> 0 | R24: ='6. OPEX'!H14 -> 0 | S24: ='6. OPEX'!H15 -> 0 | T24: ='6. OPEX'!H16 -> 0 | U24: =IFERROR(J24/'2. Informations de base'!$C$14,0) -> 0 | V24: ='ÉVOLUTION DES BAUX'!F281 -> 0 | W24: =IFERROR(V24/('Détail des baux - réno'!#REF!),0) -> 0 | Y24: Loyers résidentiels prévus | Z24: =I24 -> NTX
E25: =IF($I25="TX",$J25*(1+($C$20*(1-$C$21))),0) -> 0 | F25: =IF($I25="NTX",$J25,0) -> 0 | G25: Vacances et mauvaises créances résidentielles | I25: NTX | J25: =SUM(K25:T25) -> 0 | K25: =(K24*$H$25)*-1 -> 0 | L25: 0 | M25: 0 | N25: 0 | O25: 0 | P25: 0 | Q25: 0 | R25: 0 | S25: 0 | T25: 0 | U25: =IFERROR(J25/'2. Informations de base'!$C$14,0) -> 0 | V25: =V24*H25 -> 0 | Y25: Vacances et mauvaises créances résidentielles | Z25: =I25 -> NTX
E26: 0 | F26: 0 | G26: Loyers commerciaux | H26: ='7. OPEX- projections 15 ans'!$F$45 -> 0.02 | I26: NTX | J26: =SUM(K26:T26) -> 0 | K26: ='6. OPEX'!$J$7 -> 0 | L26: ='6. OPEX'!$J$8 -> 0 | M26: ='6. OPEX'!$J$9 -> 0 | N26: ='6. OPEX'!$J$10 -> 0 | O26: ='6. OPEX'!$J$11 -> 0 | P26: ='6. OPEX'!$J$12 -> 0 | Q26: ='6. OPEX'!$J$13 -> 0 | R26: ='6. OPEX'!$J$14 -> 0 | S26: ='6. OPEX'!$J$15 -> 0 | T26: ='6. OPEX'!$J$16 -> 0 | U26: =IFERROR(J26/'2. Informations de base'!$C$14,0) -> 0 | V26: ='ÉVOLUTION DES BAUX'!F282 -> 0 | Y26: Loyers commerciaux | Z26: NTX
E27: 0 | F27: 0 | G27: Vacances et mauvaises créances commerciales | I27: NTX | J27: =SUM(K27:T27) -> 0 | K27: =(K26*$H$27)*-1 -> 0 | L27: 0 | M27: 0 | N27: 0 | O27: 0 | P27: 0 | Q27: 0 | R27: 0 | S27: 0 | T27: 0 | U27: =IFERROR(J27/'2. Informations de base'!$C$14,0) -> 0 | V27: =V26*H27 -> 0 | Y27: Vacances et mauvaises créances commerciales | Z27: NTX
E28: 0 | F28: 0 | G28: Autres revenus récurrents | I28: NTX | U28: =IFERROR(J28/'2. Informations de base'!$C$14,0) -> 0 | V28: =J28 -> 0 | W28: =IFERROR(V28/('Détail des baux - réno'!#REF!),0) -> 0 | Y28: Autres revenus récurrents | Z28: NTX
E29: 0 | F29: 0 | G29: Autre contributions récurrentes | I29: NTX | J29: =SUM('4. Sources de financement'!F50:F54) -> 0 | U29: =IFERROR(J29/'2. Informations de base'!$C$14,0) -> 0 | Y29: Autre contributions récurrentes | Z29: NTX
E30: TOTAL TX | F30: TOTAL NTX | G30: TOTAL REVENUS OPÉRATIONS | J30: =SUM(J24:J29) -> 0 | U30: =SUM(U24:U29) -> 0 | V30: =SUM(V24:V28) -> 0 | W30: =IFERROR(V30/('Détail des baux - réno'!#REF!),0) -> 0 | Y30: TOTAL REVENUS OPÉRATIONS | AA30: =SUM(AA24:AA29) -> 0 | AB30: 0 | AC30: 0 | AD30: 0 | AE30: 0 | AF30: 0 | AG30: 0 | AH30: 0 | AI30: 0 | AJ30: 0 | AK30: 0 | AL30: 0 | AM30: 0 | AN30: 0 | AO30: 0
E31: =SUM(E24:E29) -> 0 | F31: =SUM(F24:F29) -> 0 | G31: =G30&" AVEC TPS/TVQ" -> TOTAL REVENUS OPÉRATIONS AVEC TPS/TVQ | J31: =SUM(E31:F31) -> 0 | U31: =IFERROR(J31/'2. Informations de base'!$C$14,0) -> 0 | Y31: TOTAL REVENUS OPÉRATIONS AVEC TPS/TVQ | AA31: =SUM(AA30+((SUMIF($Z$24:$Z$29,"TX",AA24:AA29)*($C$20*(1-$C$21))))) -> 0 | AB31: =SUM(AB30+((SUMIF($Z$24:$Z$29,"TX",AB24:AB29)*D20))) -> 0 | AC31: 0 | AD31: 0 | AE31: 0 | AF31: 0 | AG31: 0 | AH31: 0 | AI31: 0 | AJ31: 0 | AK31: 0 | AL31: 0 | AM31: 0 | AN31: 0 | AO31: 0
B33: =$B$23 -> Notes | E33: Dépenses totales (avex TPS/TVQ) | G33: DÉPENSES D'EXPLOITATION ANNUELLES | H33: % | I33: TX ou NTX | J33: Total | K33: =K23 -> [Adresse immeuble 1] | L33: [Adresse immeuble 2] | M33: [Adresse immeuble 3] | N33: [Adresse immeuble 4] | O33: [Adresse immeuble 5] | P33: [Adresse immeuble 6] | Q33: [Adresse immeuble 7] | R33: [Adresse immeuble 8] | S33: [Adresse immeuble 9] | T33: [Adresse immeuble 10] | U33: $/logement | V33: Total | W33: ='Détail des baux - réno'!F14-'Détail des baux - réno'!F13 -> 0 | Y33: =G33 -> DÉPENSES D'EXPLOITATION ANNUELLES | AA33: =AA23 -> Année 1 | AB33: Année 2 | AC33: Année 3 | AD33: Année 4 | AE33: Année 5 | AF33: Année 6 | AG33: Année 7 | AH33: Année 8 | AI33: Année 9 | AJ33: Année 10 | AK33: Année 11 | AL33: Année 12 | AM33: Année 13 | AN33: Année 14 | AO33: Année 15
E34: =IF($I34="TX",$J34*(1+($C$20*(1-$C$21))),0) -> 0 | F34: =IF($I34="NTX",$J34,0) -> 0 | G34: Entretien et conciergerie | I34: TX | J34: =SUM(K34:T34) -> 0 | U34: =IFERROR(J34/'2. Informations de base'!$C$14,0) -> 0 | V34: =J34 -> 0 | W34: =IFERROR(V34/('Détail des baux - réno'!F14),0) -> 0 | Y34: Entretien et conciergerie | Z34: =I34 -> TX
E35: 0 | F35: =IF($I35="NTX",$J35,0) -> 0 | G35: Déneigement | I35: TX | J35: 0 | U35: =IFERROR(J35/'2. Informations de base'!$C$14,0) -> 0 | V35: =J35 -> 0 | W35: =IFERROR(V35/$W$33,0) -> 0 | Y35: Déneigement | Z35: TX
E36: 0 | F36: 0 | G36: Ascenseur | I36: TX | J36: 0 | U36: =IFERROR(J36/'2. Informations de base'!$C$14,0) -> 0 | V36: 0 | W36: =IFERROR(V36/$W$33,0) -> 0 | Y36: Ascenseur | Z36: TX
E37: 0 | F37: 0 | G37: Énergie | I37: TX | J37: 0 | U37: =IFERROR(J37/'2. Informations de base'!$C$14,0) -> 0 | V37: 0 | W37: 0 | Y37: Énergie | Z37: TX
E38: 0 | F38: 0 | G38: Frais administratifs | H38: 0 | I38: TX | J38: =H38*J30 -> 0 | U38: =IFERROR(J38/'2. Informations de base'!$C$14,0) -> 0 | V38: =J38 -> 0 | W38: 0 | Y38: Frais administratifs | Z38: TX
E39: 0 | F39: 0 | G39: Formation et cotisation | I39: TX | J39: 0 | U39: =IFERROR(J39/'2. Informations de base'!$C$14,0) -> 0 | V39: 0 | W39: 0 | Y39: Formation et cotisation | Z39: TX
E40: 0 | F40: 0 | G40: Frais de gestion immobilière | H40: 0 | I40: TX | J40: =J30*H40 -> 0 | U40: =IFERROR(J40/'2. Informations de base'!$C$14,0) -> 0 | V40: =J40 -> 0 | W40: 0 | Y40: Frais de gestion immobilière | Z40: TX
E41: 0 | F41: 0 | G41: Frais de vérification | I41: TX | J41: =SUM(K41:T41) -> 0 | U41: =IFERROR(J41/'2. Informations de base'!$C$14,0) -> 0 | V41: 0 | W41: 0 | Y41: Frais de vérification | Z41: TX
E42: 0 | F42: 0 | G42: Assurances (incluant taxes de vente 9 %) | I42: NTX | J42: =SUM(K42:T42) -> 0 | U42: =IFERROR(J42/'2. Informations de base'!$C$14,0) -> 0 | V42: 0 | W42: 0 | Y42: Assurances (incluant taxes de vente 9 %) | Z42: NTX
E43: 0 | F43: 0 | G43: Taxes foncières (mun. et scol.) | I43: NTX | J43: 0 | U43: =IFERROR(J43/'2. Informations de base'!$C$14,0) -> 0 | V43: 0 | W43: 0 | Y43: Taxes foncières (mun. et scol.) | Z43: NTX
E44: 0 | F44: 0 | G44: Autres dépenses réccurentes | I44: TX | J44: 0 | U44: =IFERROR(J44/'2. Informations de base'!$C$14,0) -> 0 | V44: 0 | W44: 0 | Y44: Autres dépenses réccurentes | Z44: TX
E45: 0 | F45: 0 | G45: Autres dépenses non récurrentes | H45: Saisie ici | I45: NTX | J45: ='7. OPEX- projections 15 ans'!F61 -> 0 | U45: =IFERROR(J45/'2. Informations de base'!$C$14,0) -> 0 | V45: 0 | W45: 0 | Y45: Autres dépenses non récurrentes | Z45: NTX
E46: 0 | F46: 0 | G46: Réserve de remplacement - % annuel | I46: NTX | J46: =H46*(J30) -> 0 | U46: =IFERROR(J46/'2. Informations de base'!$C$14,0) -> 0 | V46: 0 | W46: 0 | Y46: Réserve de remplacement - % annuel | Z46: NTX
E47: 0 | F47: =IF($I47="NTX",$J47,0) -> 0 | G47: ='7. OPEX- projections 15 ans'!C58 -> Frais de suivi annuels Immosocial | H47: =IF('2. Informations de base'!B3="Fonds Immosocial Québec",PARAMÈTRES!E64,(IF('2. Informations de base'!B3="Fonds Capital social d'investissement immobilier",PARAMÈTRES!E42,"À venir"))) -> 0.015 | I47: NTX | J47: ='7. OPEX- projections 15 ans'!F58 -> 0 | U47: =IFERROR(J47/'2. Informations de base'!$C$14,0) -> 0 | V47: =J47 -> 0 | W47: 0 | Y47: Frais de suivi annuels Immosocial | Z47: NTX
E48: 0 | F48: =IF($I48="NTX",$J48,0) -> 0 | G48: ='7. OPEX- projections 15 ans'!C59 -> Frais de suivi annuels - hypothèque de 1er rang | H48: ='4. Sources de financement'!O40 -> 0 | I48: NTX | J48: 0 | U48: =IFERROR(J48/'2. Informations de base'!$C$14,0) -> 0 | Y48: Frais de suivi annuels - hypothèque de 1er rang | Z48: NTX | AA48: ='7. OPEX- projections 15 ans'!F59 -> 0 | AB48: ='7. OPEX- projections 15 ans'!G59 -> 0 | AC48: ='7. OPEX- projections 15 ans'!H59 -> 0 | AD48: ='7. OPEX- projections 15 ans'!I59 -> 0 | AE48: ='7. OPEX- projections 15 ans'!J59 -> 0 | AF48: ='7. OPEX- projections 15 ans'!K59 -> 0 | AG48: ='7. OPEX- projections 15 ans'!L59 -> 0 | AH48: ='7. OPEX- projections 15 ans'!M59 -> 0 | AI48: ='7. OPEX- projections 15 ans'!N59 -> 0 | AJ48: ='7. OPEX- projections 15 ans'!O59 -> 0 | AK48: ='7. OPEX- projections 15 ans'!P59 -> 0 | AL48: ='7. OPEX- projections 15 ans'!Q59 -> 0 | AM48: ='7. OPEX- projections 15 ans'!R59 -> 0 | AN48: ='7. OPEX- projections 15 ans'!S59 -> 0 | AO48: ='7. OPEX- projections 15 ans'!T59 -> 0
E49: TOTAL TX | F49: TOTAL NTX | G49: TOTAL DÉPENSES OPÉRATIONS | J49: =SUM(J34:J48) -> 0 | U49: =SUM(U34:U47) -> 0 | V49: =SUM(V34:V46) -> 0 | W49: =IFERROR(V49/'Détail des baux - réno'!#REF!,0) -> 0 | Y49: TOTAL DÉPENSES OPÉRATIONS | AA49: =SUM(AA34:AA47) -> 0 | AB49: =SUM(AB34:AB47) -> 0 | AC49: 0 | AD49: 0 | AE49: 0 | AF49: 0 | AG49: 0 | AH49: 0 | AI49: 0 | AJ49: 0 | AK49: 0 | AL49: 0 | AM49: 0 | AN49: 0 | AO49: 0
E50: =SUM(E34:E48) -> 0 | F50: =SUM(F34:F48) -> 0 | G50: =G49&" AVEC TPS/TVQ" -> TOTAL DÉPENSES OPÉRATIONS AVEC TPS/TVQ | J50: =SUM(E50:F50) -> 0 | U50: =IFERROR(J50/'2. Informations de base'!$C$14,0) -> 0 | Y50: TOTAL DÉPENSES OPÉRATIONS AVEC TPS/TVQ | AA50: =SUM(AA49+((SUMIF($Z$34:$Z$47,"TX",AA34:AA47)*($C$20*(1-$C$21))))) -> 0 | AB50: =SUM(AB49+((SUMIF($Z$34:$Z$47,"TX",AB34:AB47)*($C$20*(1-$C$21))))) -> 0 | AC50: 0 | AD50: 0 | AE50: 0 | AF50: 0 | AG50: 0 | AH50: 0 | AI50: 0 | AJ50: 0 | AK50: 0 | AL50: 0 | AM50: 0 | AN50: 0 | AO50: 0
G52: REVENU NET D'EXPLOITATION | J52: =J31-J50 -> 0 | U52: =U31-U50 -> 0 | V52: =V30-V49 -> 0 | W52: =IFERROR(V52/'Détail des baux - réno'!#REF!,0) -> 0 | Y52: =G52 -> REVENU NET D'EXPLOITATION | AA52: =AA31-AA50 -> 0 | AB52: =AB31-AB50 -> 0 | AC52: 0 | AD52: 0 | AE52: 0 | AF52: 0 | AG52: 0 | AH52: 0 | AI52: 0 | AJ52: 0 | AK52: 0 | AL52: 0 | AM52: 0 | AN52: 0 | AO52: 0

Sheet 5. CAPEX
B2: =IF('2. Informations de base'!C7=0,"NOM DU PROJET",'2. Informations de base'!C7) -> NOM DU PROJET
B3: =IF('2. Informations de base'!$B$3="Sélectionner le nom du fonds","NOM DU FONDS",'2. Informations de base'!$B$3)&", Budget de réalisation (CAPEX)" -> Fonds Immosocial Québec, Budget de réalisation (CAPEX)
B5: INFORMATIONS
B6: Taxes de vente (TPS/TVQ) | C6: 0.14975 | G6: Nbre d'unités | H6: =IF('2. Informations de base'!B3="Fonds Capital social d'investissement immobilier",'3. CSII - Immeubles et loyers'!$G$42,'3. FISQ - Immeubles et loyers'!$H$41) -> 0
B7: Portion remboursable à l'organisme - réalisation | D7: =IF(C7="","SVP indiquer la portion de TPS/TVQ remboursable en %, Indiqué même si 0%","") -> SVP indiquer la portion de TPS/TVQ remboursable en %, Indiqué même si 0%
B9: REVENUS DE RÉALISATION | C9: % | D9: =$D$35 -> TX ou NTX | E9: =$E$35 -> Total | F9: =$F$35 -> Par unité | J9: =$J$17 -> Notes | L9: Analystes
B10: Contributions | D10: NTX | E10: =SUMIF('4. Sources de financement'!$D$7:$D$35,"Contribution",'4. Sources de financement'!$F$7:$F$35) -> 0 | F10: =IFERROR(E10/$H$6,0) -> 0 | G10: =IF($D10="TX",$E10*(1+($C$6*(1-$C$7))),0) -> 0 | H10: =IF($D10="NTX",$E10,0) -> 0
B11: Apport de l'organisme | D11: NTX | E11: =SUMIF('4. Sources de financement'!$D$7:$D$35,"Apport de l'organisme",'4. Sources de financement'!$F$7:$F$35) -> 0 | F11: =IFERROR(E11/$H$6,0) -> 0 | G11: =IF($D11="TX",$E11*(1+($C$6*(1-$C$7))),0) -> 0 | H11: =IF($D11="NTX",$E11,0) -> 0
B12: Dons et autres (préciser dans les notes) | D12: NTX | E12: =SUMIF('4. Sources de financement'!$D$7:$D$35,"*Autre*",'4. Sources de financement'!$F$7:$F$35) -> 0 | F12: 0 | G12: 0 | H12: 0
B13: Revenu net avant DAI | D13: NTX | F13: 0 | G13: 0 | H13: 0
B14: Autres revenus de réalisation (préciser dans les notes) | D14: NTX | F14: 0 | G14: 0 | H14: 0
B15: TOTAL REVENUS DE RÉALISATION | E15: =SUM(E10:E14) -> 0 | F15: =IFERROR(E15/'3. CSII - Immeubles et loyers'!#REF!,0) -> 0 | G15: TOTAL TX | H15: TOTAL NTX
G16: =SUM(G10:G14) -> 0 | H16: =SUM(H10:H14) -> 0
B17: DÉPENSES ACQUISITION | C17: % | D17: =$D$35 -> TX ou NTX | E17: Total | F17: Par unité | J17: Notes | L17: Analystes
B18: Acquisition actif immobilier | D18: TX | E18: =IF('2. Informations de base'!B3="Fonds Capital social d'investissement immobilier",'3. CSII - Immeubles et loyers'!N28,'3. FISQ - Immeubles et loyers'!O27) -> 0 | F18: =IFERROR(E18/$H$6,0) -> 0 | G18: =IF($D18="TX",$E18*(1+($C$6*(1-$C$7))),0) -> 0 | H18: =IF($D18="NTX",$E18,0) -> 0 | L18: Valider avec l'acte de vente
B19: Droit de mutation | D19: NTX | F19: =IFERROR(E19/$H$6,0) -> 0 | G19: 0 | H19: =IF($D19="NTX",$E19,0) -> 0 | L19: Outil AGRTQ | M19: Outil Web
B20: Frais notaire acquisition | D20: TX | F20: 0 | G20: 0 | H20: 0 | L20: Normalement min. 2 000$
B21: Autres frais d'acquisition | D21: TX | F21: 0 | G21: 0 | H21: 0 | L21: Capital du prêt d'aquisition | M21: ='4. Sources de financement'!O6 -> 0 | N21: Est-ce que cette somme = les dépenses d'acquisition?
B22: TOTAL ACQUISITION | E22: =SUM(E18:E21) -> 0 | F22: =SUM(F18:F21) -> 0 | G22: TOTAL TX | H22: TOTAL NTX
G23: =SUM(G18:G21) -> 0 | H23: =SUM(H18:H21) -> 0
B24: FRAIS INDIRECTS - CONSULTANTS | C24: % | D24: =$D$35 -> TX ou NTX | E24: =$E$35 -> Total | F24: =$F$35 -> Par unité | J24: =$J$17 -> Notes
B25: Certificat de localisation | D25: TX | F25: =IFERROR(E25/$H$6,0) -> 0 | G25: =IF($D25="TX",$E25*(1+($C$6*(1-$C$7))),0) -> 0 | H25: =IF($D25="NTX",$E25,0) -> 0
B26: Étude valeur marchande | D26: NTX | F26: =IFERROR(E26/$H$6,0) -> 0 | G26: 0 | H26: =IF($D26="NTX",$E26,0) -> 0
B27: Étude environnementale | D27: TX | F27: 0 | G27: 0 | H27: 0
B28: Étude géotechnique | D28: TX | F28: 0 | G28: 0 | H28: 0
B29: Bilan de santé de l'immeuble | D29: TX | F29: 0 | G29: 0 | H29: 0
B30: Consultant en coûts | D30: TX | F30: 0 | G30: 0 | H30: 0
B31: Autre (préciser dans les notes) | D31: TX | F31: 0 | G31: 0 | H31: 0
B32: Contingences | C32: 0.1 | D32: TX | E32: =C32*SUM(E25:E31) -> 0 | F32: =IFERROR(E32/$H$6,0) -> 0 | G32: 0 | H32: 0
B33: TOTAL FRAIS DÉVELOPPEMENT | E33: =SUM(E25:E32) -> 0 | F33: =SUM(F25:F32) -> 0 | G33: TOTAL TX | H33: TOTAL NTX
G34: =SUM(G25:G32) -> 0 | H34: =SUM(H25:H32) -> 0
B35: FRAIS INDIRECTS - PROFESSIONNELS | C35: % | D35: =$D$35 -> TX ou NTX | E35: =$E$35 -> Total | F35: =$F$35 -> Par unité | J35: =$J$17 -> Notes
B36: Architectes | D36: TX | F36: =IFERROR(E36/$H$6,0) -> 0 | G36: =IF($D36="TX",$E36*(1+($C$6*(1-$C$7))),0) -> 0 | H36: =IF($D36="NTX",$E36,0) -> 0
B37: Ingénieurs civils | D37: TX | F37: =IFERROR(E37/$H$6,0) -> 0 | G37: 0 | H37: =IF($D37="NTX",$E37,0) -> 0
B38: Ingénieurs structures | D38: TX | F38: 0 | G38: 0 | H38: 0
B39: Ingénieurs mécaniques | D39: TX | F39: 0 | G39: 0 | H39: 0
B40: Ingénieurs électriques | D40: TX | F40: 0 | G40: 0 | H40: 0
B41: Paysagiste | D41: TX | F41: 0 | G41: 0 | H41: 0
B42: Spécialiste en modélisation énergétique | D42: TX | F42: 0 | G42: 0 | H42: 0
B43: Consultants spécialisés (préciser dans les notes) | D43: TX | F43: 0 | G43: 0 | H43: 0
B44: Taxes vertes et spéciales | D44: NTX | F44: 0 | G44: 0 | H44: 0
B45: Autre (préciser dans les notes) | D45: TX | F45: 0 | G45: 0 | H45: 0
B46: Contingences | C46: 0.1 | D46: TX | E46: =SUM(E36:E45)*C46 -> 0 | F46: 0 | G46: 0 | H46: 0
B47: TOTAL FRAIS DÉVELOPPEMENT | E47: =SUM(E36:E46) -> 0 | F47: =SUM(F36:F46) -> 0 | G47: TOTAL TX | H47: TOTAL NTX
G48: =SUM(G36:G46) -> 0 | H48: =SUM(H36:H46) -> 0
B49: FRAIS INDIRECTS - DIVERS | C49: % | D49: =$D$35 -> TX ou NTX | E49: =$E$35 -> Total | F49: =$F$35 -> Par unité | J49: =$J$17 -> Notes
B50: Frais de l'organisme | D50: TX | F50: =IFERROR(E50/$H$6,0) -> 0 | G50: =IF($D50="TX",$E50*(1+($C$6*(1-$C$7))),0) -> 0 | H50: =IF($D50="NTX",$E50,0) -> 0
B51: Honoraires GRT | C51: =IFERROR(E51/(E117-E51),0) -> 0 | D51: TX | F51: =IFERROR(E51/$H$6,0) -> 0 | G51: 0 | H51: =IF($D51="NTX",$E51,0) -> 0 | L51: %
B52: Frais de formation | D52: TX | F52: 0 | G52: 0 | H52: 0
B53: Frais de relocalisation | D53: TX | F53: 0 | G53: 0 | H53: 0
B54: Demandes municipales (préciser dans les notes) | D54: TX | F54: 0 | G54: 0 | H54: 0
B55: Permis de construction | D55: NTX | F55: 0 | G55: 0 | H55: 0
B56: Frais juridiques | D56: TX | F56: 0 | G56: 0 | H56: 0
B57: Frais de vérification | D57: TX | F57: 0 | G57: 0 | H57: 0
B58: Énergie (avant DAI) | D58: NTX | F58: 0 | G58: 0 | H58: 0
B59: Assurances (avant DAI) | D59: TX | F59: 0 | G59: 0 | H59: 0 | L59: Assurances - $ annuel: | N59: Assurances - total avant travaux: | O59: =M59/12*M61 -> 
B60: Taxes municipales et scolaires (avant DAI) | D60: NTX | F60: 0 | G60: 0 | H60: 0 | L60: Taxes muni. et scol. - $ annuel: | N60: Taxes muni. et scol. - total avant travaux: | O60: =M60/12*M61 -> 
B61: Autre (préciser dans les notes) | D61: TX | F61: 0 | G61: 0 | H61: 0 | L61: # mois du prêt acquisition: | M61: ='4. Sources de financement'!#REF! -> 
B62: Contingences | C62: 0.1 | D62: TX | E62: =(SUM(E50:E61)-(E51))*C62 -> 0 | F62: 0 | G62: 0 | H62: 0 | L62: # mois des travaux | M62: ='2. Informations de base'!C37 -> 
B63: TOTAL FRAIS INDIRECTS | E63: =SUM(E50:E62) -> 0 | F63: =SUM(F50:F62) -> 0 | G63: TOTAL TX | H63: TOTAL NTX
G64: =SUM(G50:G62) -> 0 | H64: =SUM(H50:H62) -> 0
B65: TRAVAUX | C65: % | D65: =$D$35 -> TX ou NTX | E65: =$E$35 -> Total | F65: =$F$35 -> Par unité | J65: =$J$17 -> Notes
B66: Démolition | D66: TX | F66: =IFERROR(E66/$H$6,0) -> 0 | G66: =IF($D66="TX",$E66*(1+($C$6*(1-$C$7))),0) -> 0 | H66: =IF($D66="NTX",$E66,0) -> 0
B67: Décontamination | D67: TX | F67: =IFERROR(E67/$H$6,0) -> 0 | G67: 0 | H67: =IF($D67="NTX",$E67,0) -> 0
B68: Maître d'œuvre | D68: TX | F68: 0 | G68: 0 | H68: 0
B69: Coût des travaux (contrat à forfait) | D69: TX | F69: 0 | G69: 0 | H69: 0
B70: Structure | D70: TX | F70: 0 | G70: 0 | H70: 0
B71: Enveloppe | D71: TX | F71: 0 | G71: 0 | H71: 0
B72: Mécanique et électricité | D72: TX | F72: 0 | G72: 0 | H72: 0
B73: Espaces communs | D73: TX | F73: 0 | G73: 0 | H73: 0
B74: Logements | D74: TX | F74: 0 | G74: 0 | H74: 0
B75: Aménagements extérieurs | D75: TX | F75: 0 | G75: 0 | H75: 0
B76: Travaux / mise aux normes | D76: TX | F76: 0 | G76: 0 | H76: 0
B77: Raccordement aux services publics | D77: TX | F77: 0 | G77: 0 | H77: 0
B78: Gérance de construction | D78: TX | F78: 0 | G78: 0 | H78: 0
B79: Activités de sécurité | D79: TX | F79: 0 | G79: 0 | H79: 0
B80: Assurances chantier | D80: TX | F80: 0 | G80: 0 | H80: 0
B81: Assurance erreurs et omissions | D81: TX | F81: 0 | G81: 0 | H81: 0
B82: Autre (préciser dans les notes) | D82: TX | F82: 0 | G82: 0 | H82: 0
B83: Contingences | C83: 0.1 | D83: TX | E83: =SUM(E66:E82)*C83 -> 0 | F83: 0 | G83: 0 | H83: 0
B84: TOTAL CONSTRUCTION / RÉNOVATION | E84: =SUM(E66:E83) -> 0 | F84: =SUM(F66:F83) -> 0 | G84: TOTAL TX | H84: TOTAL NTX
G85: =SUM(G66:G83) -> 0 | H85: =SUM(H66:H83) -> 0
B86: FRAIS DE DÉMARRAGE | C86: % | D86: =$D$35 -> TX ou NTX | E86: =$E$35 -> Total | F86: =$F$35 -> Par unité | J86: =$J$17 -> Notes
B87: Réfrigérateurs / cuisinières | D87: TX | F87: =IFERROR(E87/$H$6,0) -> 0 | G87: =IF($D87="TX",$E87*(1+($C$6*(1-$C$7))),0) -> 0 | H87: =IF($D87="NTX",$E87,0) -> 0
B88: Laveuses / sécheuses | D88: TX | F88: =IFERROR(E88/$H$6,0) -> 0 | G88: 0 | H88: =IF($D88="NTX",$E88,0) -> 0
B89: Mobilier bureau | D89: TX | F89: 0 | G89: 0 | H89: 0
B90: Mobilier pour unités | D90: TX | F90: 0 | G90: 0 | H90: 0
B91: Équipement conciergerie | D91: TX | F91: 0 | G91: 0 | H91: 0
B92: Mise en service | D92: TX | F92: 0 | G92: 0 | H92: 0
B93: Marketing des unités | D93: TX | F93: 0 | G93: 0 | H93: 0
B94: Autre (préciser dans les notes) | D94: TX | F94: 0 | G94: 0 | H94: 0
B95: Contingences | D95: TX | E95: =SUM(E87:E94)*C95 -> 0 | F95: 0 | G95: 0 | H95: 0
B96: TOTAL ÉQUIPEMENTS ET IMMOBILISATIONS | E96: =SUM(E87:E95) -> 0 | F96: =SUM(F87:F95) -> 0 | G96: TOTAL TX | H96: TOTAL NTX
G97: =SUM(G87:G95) -> 0 | H97: =SUM(H87:H95) -> 0
B98: FRAIS FINANCIERS | C98: % | D98: =$D$35 -> TX ou NTX | E98: =$E$35 -> Total | F98: =$F$35 -> Par unité | J98: =$J$17 -> Notes
B99: Aide à l'exploitation capitalisée | D99: NTX | E99: =IFERROR(SUM('7. OPEX- projections 15 ans'!F100:U100),0) -> 0 | F99: =IFERROR(E99/$H$6,0) -> 0 | G99: =IF($D99="TX",$E99*(1+($C$6*(1-$C$7))),0) -> 0 | H99: =IF($D99="NTX",$E99,0) -> 0
B100: Cotisation additionnelle à la réserve de remplacement capitalisée | D100: NTX | F100: =IFERROR(E100/$H$6,0) -> 0 | G100: 0 | H100: =IF($D100="NTX",$E100,0) -> 0
B101: Prêt pont acquistion: frais et intérêts | D101: NTX | E101: =IFERROR('4. Sources de financement'!O13-'4. Sources de financement'!O6,0) -> 0 | F101: 0 | G101: 0 | H101: 0
B102: Prêt intérimaire construction: frais et intérêts | D102: NTX | E102: =IFERROR('4. Sources de financement'!O19+'4. Sources de financement'!O20,0) -> 0 | F102: 0 | G102: 0 | H102: 0 | J102: Inclure une contingence au besoin
B103: Assurance prêt hypothécaire | D103: NTX | F103: 0 | G103: 0 | H103: 0 | L103: Pour Immosocial, assurance SCHL possible, représente un % du prêt hypothécaire de 1er rang; 1,75 à 2,75% + frais de souscription (175$/logement)
B104: Frais initiaux (ponctuels) - capital patient | D104: NTX | E104: ='4. Sources de financement'!O29 -> 0 | F104: 0 | G104: 0 | H104: 0 | J104: Note: les intérêts et frais récurrents associés au prêt se trouvent dans les projections 15 ans
B105: Frais initiaux (ponctuels) - prêt hypothécaire de 1er rang | D105: NTX | E105: =IFERROR('4. Sources de financement'!O39,0) -> 0 | F105: 0 | G105: 0 | H105: 0
B106: Frais initiaux (ponctuels) - prêt autre | D106: NTX | E106: ='4. Sources de financement'!O49 -> 0 | F106: 0 | G106: 0 | H106: 0
B107: Autre (préciser dans les notes) | D107: NTX | F107: 0 | G107: 0 | H107: 0
B108: TOTAL FRAIS FINANCIERS | E108: =SUM(E99:E106) -> 0 | F108: =SUM(F99:F106) -> 0 | G108: TOTAL TX | H108: TOTAL NTX
G109: =SUM(G99:G107) -> 0 | H109: =SUM(H99:H107) -> 0
B110: FINANCEMENT | C110: % | D110: =$D$35 -> TX ou NTX | E110: =$E$35 -> Total | F110: =$F$35 -> Par unité | G110: Grand total TX | H110: Grand total NTX | J110: =$J$17 -> Notes
B111: =IF('2. Informations de base'!B3="Fonds Immosocial Québec","Prêt long terme Immosocial: capital",(IF('2. Informations de base'!B3="Fonds capital social d'investissement immobilier","Prêt capital patient CSII: capital","Prêt long terme du fonds: capital"))) -> Prêt long terme Immosocial: capital | D111: NTX | E111: =IFERROR(E125-E112-E113,0) -> 0 | F111: =IFERROR(E111/$H$6,0) -> 0 | G111: =G23+G34+G48+G64+G85+G97+G109 -> 0 | H111: =H23+H34+H48+H64+H85+H97+H109 -> 0
B112: =IF('2. Informations de base'!B3="Fonds Immosocial Québec","Prêt hypothécaire de 1er rang: capital",(IF('2. Informations de base'!B3="Fonds capital social d'investissement immobilier","Prêt hypothécaire CSII: capital","Prêt hypothécaire de 1er rang - capital"))) -> Prêt hypothécaire de 1er rang: capital | D112: NTX | E112: =IFERROR('4. Sources de financement'!O36,0) -> 0 | F112: 0
B113: =IF('4. Sources de financement'!N45="[Nom du prêteur]","Prêt long terme (autre): capital","Prêt long terme (autre) - "&'4. Sources de financement'!N45) -> Prêt long terme (autre): capital | D113: NTX | E113: ='4. Sources de financement'!O46 -> 0 | F113: =IFERROR(E113/$H$6,0) -> 0
B114: Prêt autre: frais initiaux (ponctuels) | D114: NTX | E114: ='4. Sources de financement'!O49 -> 0 | F114: =IFERROR(E114/$H$6,0) -> 0 | J114: =IF(ISBLANK('4. Sources de financement'!O46),"",'4. Sources de financement'!N45) -> 
B115: TOTAL FINANCEMENT | E115: =SUM(E111:E114) -> 0 | F115: =SUM(F111:F114) -> 0
D117: COÛT TOTAL DE RÉALISATION | E117: =IFERROR(SUM(E108,E96,E84,E63,E47,E33,E22),0) -> 0 | H117: Validation
D118: =D117&" AVEC TPS/TVQ" -> COÛT TOTAL DE RÉALISATION AVEC TPS/TVQ | E118: =SUM(G23:H23,G34:H34,G48:H48,G64:H64,G85:H85,G97:H97,G109:H109) -> 0 | H118: =G111+H111 -> 0 | L118: =IFERROR(SUMIF(B3:D115,"*TOTAL*",E3:E115),"à venir") -> 0
D119: PAR UNITÉ | E119: =IFERROR($E$118/IF('2. Informations de base'!B8="Fonds Capital social d'investissement immobilier",'3. CSII - Immeubles et loyers'!$G$42,'3. FISQ - Immeubles et loyers'!$H$41),0) -> 0
D120: PAR PIED CARRÉ | E120: =IFERROR(E118/IF('2. Informations de base'!B3="Fonds Capital social d'investissement immobilier",'3. CSII - Immeubles et loyers'!I28,'3. FISQ - Immeubles et loyers'!I27),0) -> 0
D122: REVENU TOTAL DE RÉALISATION | E122: =E15 -> 0
D123: =D122&" AVEC TPS/TVQ" -> REVENU TOTAL DE RÉALISATION AVEC TPS/TVQ | E123: =SUM(G16:H16) -> 0
B125: COÛT NET DE RÉALISATION | D125: 0 | E125: =E118-E123 -> 0
B126: PAR UNITÉ | D126: 0 | E126: =IFERROR(E125/IF('2. Informations de base'!B8="Fonds Capital social d'investissement immobilier",'3. CSII - Immeubles et loyers'!$G$42,'3. FISQ - Immeubles et loyers'!$H$41),0) -> 0

Sheet 7. OPEX- projections 15 ans
C2: =IF('2. Informations de base'!C7=0,"NOM DU PROJET",'2. Informations de base'!C7) -> NOM DU PROJET
C3: =IF('2. Informations de base'!$B$3="Sélectionner le nom du fonds","NOM DU FONDS",'2. Informations de base'!$B$3)&", Budget d'exploitation - Projections 15 ans" -> Fonds Immosocial Québec, Budget d'exploitation - Projections 15 ans | H3: ='ÉVOLUTION DES BAUX'!C13 -> Fin période OPEX sur durée du prêt | J3: 15 | K3: ='ÉVOLUTION DES BAUX'!D13 -> 
H4: ='ÉVOLUTION DES BAUX'!C14 -> Durée période OPEX | J4: 15 | K4: ='ÉVOLUTION DES BAUX'!D14 -> 
C5: INFORMATIONS GÉNÉRALES | H5: ="CAPITAL PATIENT"&" - "&'2. Informations de base'!B3 -> CAPITAL PATIENT - Fonds Immosocial Québec
C6: Taux de capitalisation utilisé | D6: =Taux_de_capitalisation_utilisé -> 0.055 | H6: Capital à financer | K6: ='5. CAPEX'!E112 -> 0
C7: Durée du prêt du fonds | D7: =PARAMÈTRES!$E$19 -> 15 | H7: Taux de rendement interne du projet | K7: =IFERROR(IRR(D97:T98),0) -> 0
C8: Nombre d'années d'amortissement de l'emprunt | D8: =IF('4. Sources de financement'!O46="",PARAMÈTRES!E21,'4. Sources de financement'!O48) -> 30 | H8: Taux de rendement interne ciblé | K8: =PARAMÈTRES!E55 -> 0.0525
C9: Augmentation (%) annuelle régulière des loyers du projet | D9: =PARAMÈTRES!E24 -> 0.02 | H9: Taux de rendement interne maximum | K9: =PARAMÈTRES!E56 -> 0.06455357143
C10: Augmentation (%) annuelle des loyers sur le marché | D10: =PARAMÈTRES!E25 -> 0.02 | H10: Taux des obligations 10 années, tranche 1 | K10: =PARAMÈTRES!E52 -> 0.0325
C11: Inflation annuelle (%) - dépenses d'exploitation et autres revenus | D11: =PARAMÈTRES!E26 -> 0.02 | H11: Taux des obligations 10 années, tranche 2 | K11: =PARAMÈTRES!E53 -> 0.0375
H12: Taux des obligations 10 années, tranche 3 | K12: =PARAMÈTRES!E54 -> 0.0425
C13: HYPOTHÈQUE | D13: Début du prêt | F13: Fin du prêt | H13: Intérêts annuels - % des revenus nets d'exploitation | K13: =PARAMÈTRES!E27 -> 0.75
C14: Juste valeur marchande estimée | D14: =F64/D6 -> 0 | F14: =IFERROR((_xlfn.XLOOKUP(K4,F24:U24,F32:U32)),0) -> 0
C15: Financement disponible | D15: =IFERROR(D14*D16,0) -> 0 | F15: =IFERROR(MIN(PV((1+$F$17/2)^(2/12)-1,D8*12,-$U$64/F18/12),$F$14*$F$16),0) -> 0 | H15: CAPITAL PATIENT - REMBOURSEMENT
C16: Ratio prêt valeur | D16: =PARAMÈTRES!E20 -> 0.6 | F16: =PARAMÈTRES!E31 -> 0.75 | H16: Taux de rendement interne final | K16: =K7 -> 0
C17: Taux d'intérêt | D17: ='4. Sources de financement'!O37 -> 0 | F17: =T86 -> 0.01 | H17: Montants versés durant la période | K17: =SUM(F97:T97) -> 0
C18: Coefficient de couverture de la dette minimal | D18: =PARAMÈTRES!E22 -> 1.2 | F18: =PARAMÈTRES!E33 -> 1.1 | H18: Solde en capital patient à rembourser | K18: =K6-K17 -> 0
C19: Coefficient de couverture de la dette du projet | D19: =F91 -> 0 | F19: =U91 -> 0
B21: PARTIE 1: RESPECT DES CRITÈRES DU FONDS
F22: 1 | G22: 2 | H22: 3 | I22: 4 | J22: 5 | K22: 6 | L22: 7 | M22: 8 | N22: 9 | O22: 10 | P22: 11 | Q22: 12 | R22: 13 | S22: 14 | T22: 15
C24: CRITÈRES ET REFINANCEMENT | D24: % | F24: 1 | G24: =IF(G22<=$K$4,F24+1,"") -> 2 | H24: =IF(H22<=$K$4,G24+1,"") -> 3 | I24: 4 | J24: 5 | K24: 6 | L24: 7 | M24: 8 | N24: 9 | O24: 10 | P24: 11 | Q24: 12 | R24: 13 | S24: 14 | T24: 15 | U24: =IF(U22<=$K$4,T24+1,T24) -> 16 | W24: =IFERROR("Dernière année: "&(_xlfn.XLOOKUP($J$3,$F$24:$U$24,F24:U24)),"Dernière année") -> Dernière année: 15
C25: =C97 -> Versement annuel en capital patient (intérêts) | D25: =-RÉSUMÉ!C90 -> 0 | F25: =F97 -> 0 | G25: =G97 -> 0 | H25: 0 | I25: 0 | J25: 0 | K25: 0 | L25: 0 | M25: 0 | N25: 0 | O25: 0 | P25: 0 | Q25: 0 | R25: 0 | S25: 0 | T25: 0 | U25: =U97 -> 0 | W25: =IFERROR(_xlfn.XLOOKUP($J$3,$F$24:$U$24,F25:U25),0) -> 0
C26: Remboursement additionnel de capital patient (optionnel) | F26: 0 | G26: 0 | H26: 0 | I26: 0 | J26: 0 | K26: 0 | L26: 0 | M26: 0 | N26: 0 | O26: 0 | P26: 0 | Q26: 0 | R26: 0 | S26: 0 | T26: 0 | U26: 0 | W26: =IFERROR(_xlfn.XLOOKUP($J$3,$F$24:$U$24,F26:U26),0) -> 0
C27: Rendement annuel | F27: =IFERROR(F25/RÉSUMÉ!$C$90,0) -> 0 | G27: =IFERROR(G25/RÉSUMÉ!$C$90,0) -> 0 | H27: =IFERROR(H25/RÉSUMÉ!$C$90,0) -> 0 | I27: =IFERROR(I25/RÉSUMÉ!$C$90,0) -> 0 | J27: =IFERROR(J25/RÉSUMÉ!$C$90,0) -> 0 | K27: =IFERROR(K25/RÉSUMÉ!$C$90,0) -> 0 | L27: =IFERROR(L25/RÉSUMÉ!$C$90,0) -> 0 | M27: =IFERROR(M25/RÉSUMÉ!$C$90,0) -> 0 | N27: =IFERROR(N25/RÉSUMÉ!$C$90,0) -> 0 | O27: =IFERROR(O25/RÉSUMÉ!$C$90,0) -> 0 | P27: =IFERROR(P25/RÉSUMÉ!$C$90,0) -> 0 | Q27: =IFERROR(Q25/RÉSUMÉ!$C$90,0) -> 0 | R27: =IFERROR(R25/RÉSUMÉ!$C$90,0) -> 0 | S27: =IFERROR(S25/RÉSUMÉ!$C$90,0) -> 0 | T27: =IFERROR(T25/RÉSUMÉ!$C$90,0) -> 0 | U27: =IFERROR(U25/RÉSUMÉ!$C$90,0) -> 0 | W27: 0
C28: Rendement comptable annuel | F28: =IFERROR(IF($K$7=0,0,F25/RÉSUMÉ!$C$90),0) -> 0 | G28: =IFERROR(IF($K$7=0,0,G25/RÉSUMÉ!$C$90),0) -> 0 | H28: =IFERROR(IF($K$7=0,0,H25/RÉSUMÉ!$C$90),0) -> 0 | I28: =IFERROR(IF($K$7=0,0,I25/RÉSUMÉ!$C$90),0) -> 0 | J28: =IFERROR(IF($K$7=0,0,J25/RÉSUMÉ!$C$90),0) -> 0 | K28: =IFERROR(IF($K$7=0,0,K25/RÉSUMÉ!$C$90),0) -> 0 | L28: =IFERROR(IF($K$7=0,0,L25/RÉSUMÉ!$C$90),0) -> 0 | M28: =IFERROR(IF($K$7=0,0,M25/RÉSUMÉ!$C$90),0) -> 0 | N28: =IFERROR(IF($K$7=0,0,N25/RÉSUMÉ!$C$90),0) -> 0 | O28: =IFERROR(IF($K$7=0,0,O25/RÉSUMÉ!$C$90),0) -> 0 | P28: =IFERROR(IF($K$7=0,0,P25/RÉSUMÉ!$C$90),0) -> 0 | Q28: =IFERROR(IF($K$7=0,0,Q25/RÉSUMÉ!$C$90),0) -> 0 | R28: =IFERROR(IF($K$7=0,0,R25/RÉSUMÉ!$C$90),0) -> 0 | S28: =IFERROR(IF($K$7=0,0,S25/RÉSUMÉ!$C$90),0) -> 0 | T28: =IFERROR(IF($K$7=0,0,T25/RÉSUMÉ!$C$90),0) -> 0 | U28: =IFERROR(IF($K$7=0,0,U25/RÉSUMÉ!$C$90),0) -> 0 | W28: 0
C29: Abordabilité: Ratio loyers du projet / loyers de référence | F29: =IFERROR(F30/#REF!,0) -> 0 | G29: =IFERROR(G30/#REF!,0) -> 0 | H29: =IFERROR(H30/#REF!,0) -> 0 | I29: =IFERROR(I30/#REF!,0) -> 0 | J29: =IFERROR(J30/#REF!,0) -> 0 | K29: =IFERROR(K30/#REF!,0) -> 0 | L29: =IFERROR(L30/#REF!,0) -> 0 | M29: =IFERROR(M30/#REF!,0) -> 0 | N29: =IFERROR(N30/#REF!,0) -> 0 | O29: =IFERROR(O30/#REF!,0) -> 0 | P29: =IFERROR(P30/#REF!,0) -> 0 | Q29: =IFERROR(Q30/#REF!,0) -> 0 | R29: =IFERROR(R30/#REF!,0) -> 0 | S29: =IFERROR(S30/#REF!,0) -> 0 | T29: =IFERROR(T30/#REF!,0) -> 0 | U29: =IFERROR(U30/#REF!,0) -> 0 | W29: 0
C30: Revenus des loyers du projet | D30: =$D$9 -> 0.02 | F30: =F46 -> 0 | G30: =G46 -> 0 | H30: 0 | I30: 0 | J30: 0 | K30: 0 | L30: 0 | M30: 0 | N30: 0 | O30: 0 | P30: 0 | Q30: 0 | R30: 0 | S30: 0 | T30: 0 | U30: =U46 -> 0 | W30: 0
C31: Revenus potentiels selon les loyers de référence (seuils d'abord.) | D31: =$D$11 -> 0.02 | F31: ='Détail des baux - réno'!K267*12*D31 -> 0 | G31: =F31*$D$31 -> 0 | H31: 0 | I31: 0 | J31: 0 | K31: 0 | L31: 0 | M31: 0 | N31: 0 | O31: 0 | P31: 0 | Q31: 0 | R31: 0 | S31: 0 | T31: 0 | U31: 0 | W31: 0
C32: Juste valeur marchande estimée | D32: =$D$6 -> 0.055 | F32: =F33/$D$32 -> 0 | G32: =G33/$D$32 -> 0 | H32: 0 | I32: 0 | J32: 0 | K32: 0 | L32: 0 | M32: 0 | N32: 0 | O32: 0 | P32: 0 | Q32: 0 | R32: 0 | S32: 0 | T32: =T33/$D$32 -> 0 | U32: =U33/$D$32 -> 0 | W32: 0
C33: Revenus nets d'exploitation futurs | F33: =G64 -> 0 | G33: =H64 -> 0 | H33: 0 | I33: 0 | J33: 0 | K33: 0 | L33: 0 | M33: 0 | N33: 0 | O33: 0 | P33: 0 | Q33: 0 | R33: 0 | S33: 0 | T33: =U64 -> 0 | U33: =V64 -> 0 | W33: 0
C34: Augmentation de la juste valeur marchande | F34: =IFERROR((D14-F32)/D14,0) -> 0 | G34: =IFERROR((G33-F33)/F33,0) -> 0 | H34: =IFERROR((H33-G33)/G33,0) -> 0 | I34: 0 | J34: 0 | K34: 0 | L34: 0 | M34: 0 | N34: 0 | O34: 0 | P34: 0 | Q34: 0 | R34: 0 | S34: 0 | T34: 0 | U34: 0 | W34: 0
B36: PARTIE 2: REVENUS D'EXPLOITATION NETS
F37: 1 | G37: 2 | H37: 3 | I37: 4 | J37: 5 | K37: 6 | L37: 7 | M37: 8 | N37: 9 | O37: 10 | P37: 11 | Q37: 12 | R37: 13 | S37: 14 | T37: 15 | U37: 16
C38: ="Contributions non récurrente - "&'4. Sources de financement'!C50 -> Contributions non récurrente - | D38: ='4. Sources de financement'!J50 -> 0 | F38: =(IF(OR(AND(F$37>='4. Sources de financement'!$H50,F$37<='4. Sources de financement'!$I50),F$37='4. Sources de financement'!$I50),'4. Sources de financement'!$F50,0))*(1+'4. Sources de financement'!$J50)^(E$37-'4. Sources de financement'!$H50+1) -> 0 | G38: =(IF(OR(AND(G$37>='4. Sources de financement'!$H50,G$37<='4. Sources de financement'!$I50),G$37='4. Sources de financement'!$I50),'4. Sources de financement'!$F50,0))*(1+'4. Sources de financement'!$J50)^(F$37-'4. Sources de financement'!$H50+1) -> 0 | H38: =(IF(OR(AND(H$37>='4. Sources de financement'!$H50,H$37<='4. Sources de financement'!$I50),H$37='4. Sources de financement'!$I50),'4. Sources de financement'!$F50,0))*(1+'4. Sources de financement'!$J50)^(G$37-'4. Sources de financement'!$H50+1) -> 0 | I38: =(IF(OR(AND(I$37>='4. Sources de financement'!$H50,I$37<='4. Sources de financement'!$I50),I$37='4. Sources de financement'!$I50),'4. Sources de financement'!$F50,0))*(1+'4. Sources de financement'!$J50)^(H$37-'4. Sources de financement'!$H50+1) -> 0 | J38: =(IF(OR(AND(J$37>='4. Sources de financement'!$H50,J$37<='4. Sources de financement'!$I50),J$37='4. Sources de financement'!$I50),'4. Sources de financement'!$F50,0))*(1+'4. Sources de financement'!$J50)^(I$37-'4. Sources de financement'!$H50+1) -> 0 | K38: =(IF(OR(AND(K$37>='4. Sources de financement'!$H50,K$37<='4. Sources de financement'!$I50),K$37='4. Sources de financement'!$I50),'4. Sources de financement'!$F50,0))*(1+'4. Sources de financement'!$J50)^(J$37-'4. Sources de financement'!$H50+1) -> 0 | L38: =(IF(OR(AND(L$37>='4. Sources de financement'!$H50,L$37<='4. Sources de financement'!$I50),L$37='4. Sources de financement'!$I50),'4. Sources de financement'!$F50,0))*(1+'4. Sources de financement'!$J50)^(K$37-'4. Sources de financement'!$H50+1) -> 0 | M38: =(IF(OR(AND(M$37>='4. Sources de financement'!$H50,M$37<='4. Sources de financement'!$I50),M$37='4. Sources de financement'!$I50),'4. Sources de financement'!$F50,0))*(1+'4. Sources de financement'!$J50)^(L$37-'4. Sources de financement'!$H50+1) -> 0 | N38: =(IF(OR(AND(N$37>='4. Sources de financement'!$H50,N$37<='4. Sources de financement'!$I50),N$37='4. Sources de financement'!$I50),'4. Sources de financement'!$F50,0))*(1+'4. Sources de financement'!$J50)^(M$37-'4. Sources de financement'!$H50+1) -> 0 | O38: =(IF(OR(AND(O$37>='4. Sources de financement'!$H50,O$37<='4. Sources de financement'!$I50),O$37='4. Sources de financement'!$I50),'4. Sources de financement'!$F50,0))*(1+'4. Sources de financement'!$J50)^(N$37-'4. Sources de financement'!$H50+1) -> 0 | P38: =(IF(OR(AND(P$37>='4. Sources de financement'!$H50,P$37<='4. Sources de financement'!$I50),P$37='4. Sources de financement'!$I50),'4. Sources de financement'!$F50,0))*(1+'4. Sources de financement'!$J50)^(O$37-'4. Sources de financement'!$H50+1) -> 0 | Q38: =(IF(OR(AND(Q$37>='4. Sources de financement'!$H50,Q$37<='4. Sources de financement'!$I50),Q$37='4. Sources de financement'!$I50),'4. Sources de financement'!$F50,0))*(1+'4. Sources de financement'!$J50)^(P$37-'4. Sources de financement'!$H50+1) -> 0 | R38: =(IF(OR(AND(R$37>='4. Sources de financement'!$H50,R$37<='4. Sources de financement'!$I50),R$37='4. Sources de financement'!$I50),'4. Sources de financement'!$F50,0))*(1+'4. Sources de financement'!$J50)^(Q$37-'4. Sources de financement'!$H50+1) -> 0 | S38: =(IF(OR(AND(S$37>='4. Sources de financement'!$H50,S$37<='4. Sources de financement'!$I50),S$37='4. Sources de financement'!$I50),'4. Sources de financement'!$F50,0))*(1+'4. Sources de financement'!$J50)^(R$37-'4. Sources de financement'!$H50+1) -> 0 | T38: =(IF(OR(AND(T$37>='4. Sources de financement'!$H50,T$37<='4. Sources de financement'!$I50),T$37='4. Sources de financement'!$I50),'4. Sources de financement'!$F50,0))*(1+'4. Sources de financement'!$J50)^(S$37-'4. Sources de financement'!$H50+1) -> 0
C39: ="Contributions non récurrente - "&'4. Sources de financement'!C51 -> Contributions non récurrente - | D39: ='4. Sources de financement'!J51 -> 0 | F39: =(IF(OR(AND(F$37>='4. Sources de financement'!$H51,F$37<='4. Sources de financement'!$I51),F$37='4. Sources de financement'!$I51),'4. Sources de financement'!$F51,0))*(1+'4. Sources de financement'!$J51)^(E$37-'4. Sources de financement'!$H51+1) -> 0 | G39: =(IF(OR(AND(G$37>='4. Sources de financement'!$H51,G$37<='4. Sources de financement'!$I51),G$37='4. Sources de financement'!$I51),'4. Sources de financement'!$F51,0))*(1+'4. Sources de financement'!$J51)^(F$37-'4. Sources de financement'!$H51+1) -> 0 | H39: =(IF(OR(AND(H$37>='4. Sources de financement'!$H51,H$37<='4. Sources de financement'!$I51),H$37='4. Sources de financement'!$I51),'4. Sources de financement'!$F51,0))*(1+'4. Sources de financement'!$J51)^(G$37-'4. Sources de financement'!$H51+1) -> 0 | I39: =(IF(OR(AND(I$37>='4. Sources de financement'!$H51,I$37<='4. Sources de financement'!$I51),I$37='4. Sources de financement'!$I51),'4. Sources de financement'!$F51,0))*(1+'4. Sources de financement'!$J51)^(H$37-'4. Sources de financement'!$H51+1) -> 0 | J39: =(IF(OR(AND(J$37>='4. Sources de financement'!$H51,J$37<='4. Sources de financement'!$I51),J$37='4. Sources de financement'!$I51),'4. Sources de financement'!$F51,0))*(1+'4. Sources de financement'!$J51)^(I$37-'4. Sources de financement'!$H51+1) -> 0 | K39: =(IF(OR(AND(K$37>='4. Sources de financement'!$H51,K$37<='4. Sources de financement'!$I51),K$37='4. Sources de financement'!$I51),'4. Sources de financement'!$F51,0))*(1+'4. Sources de financement'!$J51)^(J$37-'4. Sources de financement'!$H51+1) -> 0 | L39: =(IF(OR(AND(L$37>='4. Sources de financement'!$H51,L$37<='4. Sources de financement'!$I51),L$37='4. Sources de financement'!$I51),'4. Sources de financement'!$F51,0))*(1+'4. Sources de financement'!$J51)^(K$37-'4. Sources de financement'!$H51+1) -> 0 | M39: =(IF(OR(AND(M$37>='4. Sources de financement'!$H51,M$37<='4. Sources de financement'!$I51),M$37='4. Sources de financement'!$I51),'4. Sources de financement'!$F51,0))*(1+'4. Sources de financement'!$J51)^(L$37-'4. Sources de financement'!$H51+1) -> 0 | N39: =(IF(OR(AND(N$37>='4. Sources de financement'!$H51,N$37<='4. Sources de financement'!$I51),N$37='4. Sources de financement'!$I51),'4. Sources de financement'!$F51,0))*(1+'4. Sources de financement'!$J51)^(M$37-'4. Sources de financement'!$H51+1) -> 0 | O39: =(IF(OR(AND(O$37>='4. Sources de financement'!$H51,O$37<='4. Sources de financement'!$I51),O$37='4. Sources de financement'!$I51),'4. Sources de financement'!$F51,0))*(1+'4. Sources de financement'!$J51)^(N$37-'4. Sources de financement'!$H51+1) -> 0 | P39: =(IF(OR(AND(P$37>='4. Sources de financement'!$H51,P$37<='4. Sources de financement'!$I51),P$37='4. Sources de financement'!$I51),'4. Sources de financement'!$F51,0))*(1+'4. Sources de financement'!$J51)^(O$37-'4. Sources de financement'!$H51+1) -> 0 | Q39: =(IF(OR(AND(Q$37>='4. Sources de financement'!$H51,Q$37<='4. Sources de financement'!$I51),Q$37='4. Sources de financement'!$I51),'4. Sources de financement'!$F51,0))*(1+'4. Sources de financement'!$J51)^(P$37-'4. Sources de financement'!$H51+1) -> 0 | R39: =(IF(OR(AND(R$37>='4. Sources de financement'!$H51,R$37<='4. Sources de financement'!$I51),R$37='4. Sources de financement'!$I51),'4. Sources de financement'!$F51,0))*(1+'4. Sources de financement'!$J51)^(Q$37-'4. Sources de financement'!$H51+1) -> 0 | S39: =(IF(OR(AND(S$37>='4. Sources de financement'!$H51,S$37<='4. Sources de financement'!$I51),S$37='4. Sources de financement'!$I51),'4. Sources de financement'!$F51,0))*(1+'4. Sources de financement'!$J51)^(R$37-'4. Sources de financement'!$H51+1) -> 0 | T39: =(IF(OR(AND(T$37>='4. Sources de financement'!$H51,T$37<='4. Sources de financement'!$I51),T$37='4. Sources de financement'!$I51),'4. Sources de financement'!$F51,0))*(1+'4. Sources de financement'!$J51)^(S$37-'4. Sources de financement'!$H51+1) -> 0
C40: ="Contributions non récurrente - "&'4. Sources de financement'!C52 -> Contributions non récurrente - | D40: ='4. Sources de financement'!J52 -> 0 | F40: =(IF(OR(AND(F$37>='4. Sources de financement'!$H52,F$37<='4. Sources de financement'!$I52),F$37='4. Sources de financement'!$I52),'4. Sources de financement'!$F52,0))*(1+'4. Sources de financement'!$J52)^(E$37-'4. Sources de financement'!$H52+1) -> 0 | G40: =(IF(OR(AND(G$37>='4. Sources de financement'!$H52,G$37<='4. Sources de financement'!$I52),G$37='4. Sources de financement'!$I52),'4. Sources de financement'!$F52,0))*(1+'4. Sources de financement'!$J52)^(F$37-'4. Sources de financement'!$H52+1) -> 0 | H40: =(IF(OR(AND(H$37>='4. Sources de financement'!$H52,H$37<='4. Sources de financement'!$I52),H$37='4. Sources de financement'!$I52),'4. Sources de financement'!$F52,0))*(1+'4. Sources de financement'!$J52)^(G$37-'4. Sources de financement'!$H52+1) -> 0 | I40: =(IF(OR(AND(I$37>='4. Sources de financement'!$H52,I$37<='4. Sources de financement'!$I52),I$37='4. Sources de financement'!$I52),'4. Sources de financement'!$F52,0))*(1+'4. Sources de financement'!$J52)^(H$37-'4. Sources de financement'!$H52+1) -> 0 | J40: =(IF(OR(AND(J$37>='4. Sources de financement'!$H52,J$37<='4. Sources de financement'!$I52),J$37='4. Sources de financement'!$I52),'4. Sources de financement'!$F52,0))*(1+'4. Sources de financement'!$J52)^(I$37-'4. Sources de financement'!$H52+1) -> 0 | K40: =(IF(OR(AND(K$37>='4. Sources de financement'!$H52,K$37<='4. Sources de financement'!$I52),K$37='4. Sources de financement'!$I52),'4. Sources de financement'!$F52,0))*(1+'4. Sources de financement'!$J52)^(J$37-'4. Sources de financement'!$H52+1) -> 0 | L40: =(IF(OR(AND(L$37>='4. Sources de financement'!$H52,L$37<='4. Sources de financement'!$I52),L$37='4. Sources de financement'!$I52),'4. Sources de financement'!$F52,0))*(1+'4. Sources de financement'!$J52)^(K$37-'4. Sources de financement'!$H52+1) -> 0 | M40: =(IF(OR(AND(M$37>='4. Sources de financement'!$H52,M$37<='4. Sources de financement'!$I52),M$37='4. Sources de financement'!$I52),'4. Sources de financement'!$F52,0))*(1+'4. Sources de financement'!$J52)^(L$37-'4. Sources de financement'!$H52+1) -> 0 | N40: =(IF(OR(AND(N$37>='4. Sources de financement'!$H52,N$37<='4. Sources de financement'!$I52),N$37='4. Sources de financement'!$I52),'4. Sources de financement'!$F52,0))*(1+'4. Sources de financement'!$J52)^(M$37-'4. Sources de financement'!$H52+1) -> 0 | O40: =(IF(OR(AND(O$37>='4. Sources de financement'!$H52,O$37<='4. Sources de financement'!$I52),O$37='4. Sources de financement'!$I52),'4. Sources de financement'!$F52,0))*(1+'4. Sources de financement'!$J52)^(N$37-'4. Sources de financement'!$H52+1) -> 0 | P40: =(IF(OR(AND(P$37>='4. Sources de financement'!$H52,P$37<='4. Sources de financement'!$I52),P$37='4. Sources de financement'!$I52),'4. Sources de financement'!$F52,0))*(1+'4. Sources de financement'!$J52)^(O$37-'4. Sources de financement'!$H52+1) -> 0 | Q40: =(IF(OR(AND(Q$37>='4. Sources de financement'!$H52,Q$37<='4. Sources de financement'!$I52),Q$37='4. Sources de financement'!$I52),'4. Sources de financement'!$F52,0))*(1+'4. Sources de financement'!$J52)^(P$37-'4. Sources de financement'!$H52+1) -> 0 | R40: =(IF(OR(AND(R$37>='4. Sources de financement'!$H52,R$37<='4. Sources de financement'!$I52),R$37='4. Sources de financement'!$I52),'4. Sources de financement'!$F52,0))*(1+'4. Sources de financement'!$J52)^(Q$37-'4. Sources de financement'!$H52+1) -> 0 | S40: =(IF(OR(AND(S$37>='4. Sources de financement'!$H52,S$37<='4. Sources de financement'!$I52),S$37='4. Sources de financement'!$I52),'4. Sources de financement'!$F52,0))*(1+'4. Sources de financement'!$J52)^(R$37-'4. Sources de financement'!$H52+1) -> 0 | T40: =(IF(OR(AND(T$37>='4. Sources de financement'!$H52,T$37<='4. Sources de financement'!$I52),T$37='4. Sources de financement'!$I52),'4. Sources de financement'!$F52,0))*(1+'4. Sources de financement'!$J52)^(S$37-'4. Sources de financement'!$H52+1) -> 0
C41: ="Contributions non récurrente - "&'4. Sources de financement'!C53 -> Contributions non récurrente - | D41: ='4. Sources de financement'!J53 -> 0 | F41: =(IF(OR(AND(F$37>='4. Sources de financement'!$H53,F$37<='4. Sources de financement'!$I53),F$37='4. Sources de financement'!$I53),'4. Sources de financement'!$F53,0))*(1+'4. Sources de financement'!$J53)^(E$37-'4. Sources de financement'!$H53+1) -> 0 | G41: =(IF(OR(AND(G$37>='4. Sources de financement'!$H53,G$37<='4. Sources de financement'!$I53),G$37='4. Sources de financement'!$I53),'4. Sources de financement'!$F53,0))*(1+'4. Sources de financement'!$J53)^(F$37-'4. Sources de financement'!$H53+1) -> 0 | H41: =(IF(OR(AND(H$37>='4. Sources de financement'!$H53,H$37<='4. Sources de financement'!$I53),H$37='4. Sources de financement'!$I53),'4. Sources de financement'!$F53,0))*(1+'4. Sources de financement'!$J53)^(G$37-'4. Sources de financement'!$H53+1) -> 0 | I41: =(IF(OR(AND(I$37>='4. Sources de financement'!$H53,I$37<='4. Sources de financement'!$I53),I$37='4. Sources de financement'!$I53),'4. Sources de financement'!$F53,0))*(1+'4. Sources de financement'!$J53)^(H$37-'4. Sources de financement'!$H53+1) -> 0 | J41: =(IF(OR(AND(J$37>='4. Sources de financement'!$H53,J$37<='4. Sources de financement'!$I53),J$37='4. Sources de financement'!$I53),'4. Sources de financement'!$F53,0))*(1+'4. Sources de financement'!$J53)^(I$37-'4. Sources de financement'!$H53+1) -> 0 | K41: =(IF(OR(AND(K$37>='4. Sources de financement'!$H53,K$37<='4. Sources de financement'!$I53),K$37='4. Sources de financement'!$I53),'4. Sources de financement'!$F53,0))*(1+'4. Sources de financement'!$J53)^(J$37-'4. Sources de financement'!$H53+1) -> 0 | L41: =(IF(OR(AND(L$37>='4. Sources de financement'!$H53,L$37<='4. Sources de financement'!$I53),L$37='4. Sources de financement'!$I53),'4. Sources de financement'!$F53,0))*(1+'4. Sources de financement'!$J53)^(K$37-'4. Sources de financement'!$H53+1) -> 0 | M41: =(IF(OR(AND(M$37>='4. Sources de financement'!$H53,M$37<='4. Sources de financement'!$I53),M$37='4. Sources de financement'!$I53),'4. Sources de financement'!$F53,0))*(1+'4. Sources de financement'!$J53)^(L$37-'4. Sources de financement'!$H53+1) -> 0 | N41: =(IF(OR(AND(N$37>='4. Sources de financement'!$H53,N$37<='4. Sources de financement'!$I53),N$37='4. Sources de financement'!$I53),'4. Sources de financement'!$F53,0))*(1+'4. Sources de financement'!$J53)^(M$37-'4. Sources de financement'!$H53+1) -> 0 | O41: =(IF(OR(AND(O$37>='4. Sources de financement'!$H53,O$37<='4. Sources de financement'!$I53),O$37='4. Sources de financement'!$I53),'4. Sources de financement'!$F53,0))*(1+'4. Sources de financement'!$J53)^(N$37-'4. Sources de financement'!$H53+1) -> 0 | P41: =(IF(OR(AND(P$37>='4. Sources de financement'!$H53,P$37<='4. Sources de financement'!$I53),P$37='4. Sources de financement'!$I53),'4. Sources de financement'!$F53,0))*(1+'4. Sources de financement'!$J53)^(O$37-'4. Sources de financement'!$H53+1) -> 0 | Q41: =(IF(OR(AND(Q$37>='4. Sources de financement'!$H53,Q$37<='4. Sources de financement'!$I53),Q$37='4. Sources de financement'!$I53),'4. Sources de financement'!$F53,0))*(1+'4. Sources de financement'!$J53)^(P$37-'4. Sources de financement'!$H53+1) -> 0 | R41: =(IF(OR(AND(R$37>='4. Sources de financement'!$H53,R$37<='4. Sources de financement'!$I53),R$37='4. Sources de financement'!$I53),'4. Sources de financement'!$F53,0))*(1+'4. Sources de financement'!$J53)^(Q$37-'4. Sources de financement'!$H53+1) -> 0 | S41: =(IF(OR(AND(S$37>='4. Sources de financement'!$H53,S$37<='4. Sources de financement'!$I53),S$37='4. Sources de financement'!$I53),'4. Sources de financement'!$F53,0))*(1+'4. Sources de financement'!$J53)^(R$37-'4. Sources de financement'!$H53+1) -> 0 | T41: =(IF(OR(AND(T$37>='4. Sources de financement'!$H53,T$37<='4. Sources de financement'!$I53),T$37='4. Sources de financement'!$I53),'4. Sources de financement'!$F53,0))*(1+'4. Sources de financement'!$J53)^(S$37-'4. Sources de financement'!$H53+1) -> 0
C42: ="Contributions non récurrente - "&'4. Sources de financement'!C54 -> Contributions non récurrente - | D42: ='4. Sources de financement'!J54 -> 0 | F42: =(IF(OR(AND(F$37>='4. Sources de financement'!$H54,F$37<='4. Sources de financement'!$I54),F$37='4. Sources de financement'!$I54),'4. Sources de financement'!$F54,0))*(1+'4. Sources de financement'!$J54)^(E$37-'4. Sources de financement'!$H54+1) -> 0 | G42: =(IF(OR(AND(G$37>='4. Sources de financement'!$H54,G$37<='4. Sources de financement'!$I54),G$37='4. Sources de financement'!$I54),'4. Sources de financement'!$F54,0))*(1+'4. Sources de financement'!$J54)^(F$37-'4. Sources de financement'!$H54+1) -> 0 | H42: =(IF(OR(AND(H$37>='4. Sources de financement'!$H54,H$37<='4. Sources de financement'!$I54),H$37='4. Sources de financement'!$I54),'4. Sources de financement'!$F54,0))*(1+'4. Sources de financement'!$J54)^(G$37-'4. Sources de financement'!$H54+1) -> 0 | I42: =(IF(OR(AND(I$37>='4. Sources de financement'!$H54,I$37<='4. Sources de financement'!$I54),I$37='4. Sources de financement'!$I54),'4. Sources de financement'!$F54,0))*(1+'4. Sources de financement'!$J54)^(H$37-'4. Sources de financement'!$H54+1) -> 0 | J42: =(IF(OR(AND(J$37>='4. Sources de financement'!$H54,J$37<='4. Sources de financement'!$I54),J$37='4. Sources de financement'!$I54),'4. Sources de financement'!$F54,0))*(1+'4. Sources de financement'!$J54)^(I$37-'4. Sources de financement'!$H54+1) -> 0 | K42: =(IF(OR(AND(K$37>='4. Sources de financement'!$H54,K$37<='4. Sources de financement'!$I54),K$37='4. Sources de financement'!$I54),'4. Sources de financement'!$F54,0))*(1+'4. Sources de financement'!$J54)^(J$37-'4. Sources de financement'!$H54+1) -> 0 | L42: =(IF(OR(AND(L$37>='4. Sources de financement'!$H54,L$37<='4. Sources de financement'!$I54),L$37='4. Sources de financement'!$I54),'4. Sources de financement'!$F54,0))*(1+'4. Sources de financement'!$J54)^(K$37-'4. Sources de financement'!$H54+1) -> 0 | M42: =(IF(OR(AND(M$37>='4. Sources de financement'!$H54,M$37<='4. Sources de financement'!$I54),M$37='4. Sources de financement'!$I54),'4. Sources de financement'!$F54,0))*(1+'4. Sources de financement'!$J54)^(L$37-'4. Sources de financement'!$H54+1) -> 0 | N42: =(IF(OR(AND(N$37>='4. Sources de financement'!$H54,N$37<='4. Sources de financement'!$I54),N$37='4. Sources de financement'!$I54),'4. Sources de financement'!$F54,0))*(1+'4. Sources de financement'!$J54)^(M$37-'4. Sources de financement'!$H54+1) -> 0 | O42: =(IF(OR(AND(O$37>='4. Sources de financement'!$H54,O$37<='4. Sources de financement'!$I54),O$37='4. Sources de financement'!$I54),'4. Sources de financement'!$F54,0))*(1+'4. Sources de financement'!$J54)^(N$37-'4. Sources de financement'!$H54+1) -> 0 | P42: =(IF(OR(AND(P$37>='4. Sources de financement'!$H54,P$37<='4. Sources de financement'!$I54),P$37='4. Sources de financement'!$I54),'4. Sources de financement'!$F54,0))*(1+'4. Sources de financement'!$J54)^(O$37-'4. Sources de financement'!$H54+1) -> 0 | Q42: =(IF(OR(AND(Q$37>='4. Sources de financement'!$H54,Q$37<='4. Sources de financement'!$I54),Q$37='4. Sources de financement'!$I54),'4. Sources de financement'!$F54,0))*(1+'4. Sources de financement'!$J54)^(P$37-'4. Sources de financement'!$H54+1) -> 0 | R42: =(IF(OR(AND(R$37>='4. Sources de financement'!$H54,R$37<='4. Sources de financement'!$I54),R$37='4. Sources de financement'!$I54),'4. Sources de financement'!$F54,0))*(1+'4. Sources de financement'!$J54)^(Q$37-'4. Sources de financement'!$H54+1) -> 0 | S42: =(IF(OR(AND(S$37>='4. Sources de financement'!$H54,S$37<='4. Sources de financement'!$I54),S$37='4. Sources de financement'!$I54),'4. Sources de financement'!$F54,0))*(1+'4. Sources de financement'!$J54)^(R$37-'4. Sources de financement'!$H54+1) -> 0 | T42: =(IF(OR(AND(T$37>='4. Sources de financement'!$H54,T$37<='4. Sources de financement'!$I54),T$37='4. Sources de financement'!$I54),'4. Sources de financement'!$F54,0))*(1+'4. Sources de financement'!$J54)^(S$37-'4. Sources de financement'!$H54+1) -> 0
F43: Prévisionnels | G43: Prévisionnels | H43: Prévisionnels | I43: Prévisionnels | J43: Prévisionnels | K43: Prévisionnels | L43: Prévisionnels | M43: Prévisionnels | N43: Prévisionnels | O43: Prévisionnels | P43: Prévisionnels | Q43: Prévisionnels | R43: Prévisionnels | S43: Prévisionnels | T43: Prévisionnels | U43: Prévisionnels
C44: REVENUS | D44: % | F44: =F24 -> 1 | G44: =G24 -> 2 | H44: 3 | I44: 4 | J44: 5 | K44: 6 | L44: 7 | M44: 8 | N44: 9 | O44: 10 | P44: 11 | Q44: 12 | R44: 13 | S44: 14 | T44: 15 | U44: =U24 -> 16 | W44: =$W$24 -> Dernière année: 15
C45: ="Augmentation annuelle des loyers - série "&'ÉVOLUTION DES BAUX'!E23 -> Augmentation annuelle des loyers - série 1 | F45: 0.02 | G45: =IF('ÉVOLUTION DES BAUX'!G23="",0,'ÉVOLUTION DES BAUX'!G23) -> 0.02 | H45: =IF('ÉVOLUTION DES BAUX'!H23="",0,'ÉVOLUTION DES BAUX'!H23) -> 0.02 | I45: =IF('ÉVOLUTION DES BAUX'!I23="",0,'ÉVOLUTION DES BAUX'!I23) -> 0.02 | J45: =IF('ÉVOLUTION DES BAUX'!J23="",0,'ÉVOLUTION DES BAUX'!J23) -> 0.02 | K45: =IF('ÉVOLUTION DES BAUX'!K23="",0,'ÉVOLUTION DES BAUX'!K23) -> 0.02 | L45: =IF('ÉVOLUTION DES BAUX'!L23="",0,'ÉVOLUTION DES BAUX'!L23) -> 0.02 | M45: =IF('ÉVOLUTION DES BAUX'!M23="",0,'ÉVOLUTION DES BAUX'!M23) -> 0.02 | N45: =IF('ÉVOLUTION DES BAUX'!N23="",0,'ÉVOLUTION DES BAUX'!N23) -> 0.02 | O45: =IF('ÉVOLUTION DES BAUX'!O23="",0,'ÉVOLUTION DES BAUX'!O23) -> 0.02 | P45: =IF('ÉVOLUTION DES BAUX'!P23="",0,'ÉVOLUTION DES BAUX'!P23) -> 0.02 | Q45: =IF('ÉVOLUTION DES BAUX'!Q23="",0,'ÉVOLUTION DES BAUX'!Q23) -> 0.02 | R45: =IF('ÉVOLUTION DES BAUX'!R23="",0,'ÉVOLUTION DES BAUX'!R23) -> 0.02 | S45: =IF('ÉVOLUTION DES BAUX'!S23="",0,'ÉVOLUTION DES BAUX'!S23) -> 0.02 | T45: =IF('ÉVOLUTION DES BAUX'!T23="",0,'ÉVOLUTION DES BAUX'!T23) -> 0.02 | U45: =IF('ÉVOLUTION DES BAUX'!U23="",0,'ÉVOLUTION DES BAUX'!U23) -> 0.02 | W45: =IFERROR(_xlfn.XLOOKUP($J$3,$F$24:$U$24,F45:U45),0) -> 0.02
C46: Loyers résidentiels | D46: =IF('ÉVOLUTION DES BAUX'!D16="oui","Peut varier",$D$9) -> 0.02 | F46: =IF($F$43="Prévisionnels",'6. OPEX'!J24,'6. OPEX'!AA24) -> 0 | G46: =IF(G$43="Prévisionnels",F46*(1+G45),'6. OPEX'!AB24) -> 0 | H46: =IF(H$43="Prévisionnels",G46*(1+H45),'6. OPEX'!AC24) -> 0 | I46: =IF(I$43="Prévisionnels",H46*(1+I45),'6. OPEX'!AD24) -> 0 | J46: =IF(J$43="Prévisionnels",I46*(1+J45),'6. OPEX'!AE24) -> 0 | K46: =IF(K$43="Prévisionnels",J46*(1+K45),'6. OPEX'!AF24) -> 0 | L46: =IF(L$43="Prévisionnels",K46*(1+L45),'6. OPEX'!AG24) -> 0 | M46: =IF(M$43="Prévisionnels",L46*(1+M45),'6. OPEX'!AH24) -> 0 | N46: =IF(N$43="Prévisionnels",M46*(1+N45),'6. OPEX'!AI24) -> 0 | O46: =IF(O$43="Prévisionnels",N46*(1+O45),'6. OPEX'!AJ24) -> 0 | P46: =IF(P$43="Prévisionnels",O46*(1+P45),'6. OPEX'!AK24) -> 0 | Q46: =IF(Q$43="Prévisionnels",P46*(1+Q45),'6. OPEX'!AL24) -> 0 | R46: =IF(R$43="Prévisionnels",Q46*(1+R45),'6. OPEX'!AM24) -> 0 | S46: =IF(S$43="Prévisionnels",R46*(1+S45),'6. OPEX'!AN24) -> 0 | T46: =IF(T$43="Prévisionnels",S46*(1+T45),'6. OPEX'!AO24) -> 0 | U46: =IF(U$43="Prévisionnels",T46*(1+U45),'6. OPEX'!AP24) -> 0 | W46: =IFERROR(_xlfn.XLOOKUP($J$3,$F$24:$U$24,F46:U46),0) -> 0
C47: ='6. OPEX'!G25&" - "&'6. OPEX'!H25*100&",00 %" -> Vacances et mauvaises créances résidentielles - 0,00 % | D47: =$D$11 -> 0.02 | F47: =IF($F$43="Prévisionnels",'6. OPEX'!J25,'6. OPEX'!AA25) -> 0 | G47: =IF(G$43="Prévisionnels",F47+(F47*$D$47),'6. OPEX'!AB25) -> 0 | H47: =IF(H$43="Prévisionnels",G47+(G47*$D$47),'6. OPEX'!AC25) -> 0 | I47: =IF(I$43="Prévisionnels",H47+(H47*$D$47),'6. OPEX'!AD25) -> 0 | J47: =IF(J$43="Prévisionnels",I47+(I47*$D$47),'6. OPEX'!AE25) -> 0 | K47: =IF(K$43="Prévisionnels",J47+(J47*$D$47),'6. OPEX'!AF25) -> 0 | L47: =IF(L$43="Prévisionnels",K47+(K47*$D$47),'6. OPEX'!AG25) -> 0 | M47: =IF(M$43="Prévisionnels",L47+(L47*$D$47),'6. OPEX'!AH25) -> 0 | N47: =IF(N$43="Prévisionnels",M47+(M47*$D$47),'6. OPEX'!AI25) -> 0 | O47: =IF(O$43="Prévisionnels",N47+(N47*$D$47),'6. OPEX'!AJ25) -> 0 | P47: =IF(P$43="Prévisionnels",O47+(O47*$D$47),'6. OPEX'!AK25) -> 0 | Q47: =IF(Q$43="Prévisionnels",P47+(P47*$D$47),'6. OPEX'!AL25) -> 0 | R47: =IF(R$43="Prévisionnels",Q47+(Q47*$D$47),'6. OPEX'!AM25) -> 0 | S47: =IF(S$43="Prévisionnels",R47+(R47*$D$47),'6. OPEX'!AN25) -> 0 | T47: =IF(T$43="Prévisionnels",S47+(S47*$D$47),'6. OPEX'!AO25) -> 0 | U47: =IF(U$43="Prévisionnels",T47+(T47*$D$47),'6. OPEX'!AP25) -> 0 | W47: 0
C48: Loyers commerciaux | D48: =IF('ÉVOLUTION DES BAUX'!D16="oui","Peut varier",$D$9) -> 0.02 | F48: =IF($F$43="Prévisionnels",'6. OPEX'!J26*(1+F45),'6. OPEX'!AA26) -> 0 | G48: =IF(G$43="Prévisionnels",F48*(1+G45),'6. OPEX'!AB26) -> 0 | H48: =IF(H$43="Prévisionnels",G48*(1+H45),'6. OPEX'!AC26) -> 0 | I48: =IF(I$43="Prévisionnels",H48*(1+I45),'6. OPEX'!AD26) -> 0 | J48: =IF(J$43="Prévisionnels",I48*(1+J45),'6. OPEX'!AE26) -> 0 | K48: =IF(K$43="Prévisionnels",J48*(1+K45),'6. OPEX'!AF26) -> 0 | L48: =IF(L$43="Prévisionnels",K48*(1+L45),'6. OPEX'!AG26) -> 0 | M48: =IF(M$43="Prévisionnels",L48*(1+M45),'6. OPEX'!AH26) -> 0 | N48: =IF(N$43="Prévisionnels",M48*(1+N45),'6. OPEX'!AI26) -> 0 | O48: =IF(O$43="Prévisionnels",N48*(1+O45),'6. OPEX'!AJ26) -> 0 | P48: =IF(P$43="Prévisionnels",O48*(1+P45),'6. OPEX'!AK26) -> 0 | Q48: =IF(Q$43="Prévisionnels",P48*(1+Q45),'6. OPEX'!AL26) -> 0 | R48: =IF(R$43="Prévisionnels",Q48*(1+R45),'6. OPEX'!AM26) -> 0 | S48: =IF(S$43="Prévisionnels",R48*(1+S45),'6. OPEX'!AN26) -> 0 | T48: =IF(T$43="Prévisionnels",S48*(1+T45),'6. OPEX'!AO26) -> 0 | U48: =IF(U$43="Prévisionnels",T48*(1+U45),'6. OPEX'!AP26) -> 0 | W48: 0
C49: ='6. OPEX'!G27&" - "&'6. OPEX'!H27*100&",00 %" -> Vacances et mauvaises créances commerciales - 0,00 % | D49: =$D$11 -> 0.02 | F49: =IF($F$43="Prévisionnels",'6. OPEX'!J27,'6. OPEX'!AA27) -> 0 | G49: =IF(G$43="Prévisionnels",F49+(F49*G45),'6. OPEX'!AB27) -> 0 | H49: =IF(H$43="Prévisionnels",G49+(G49*H45),'6. OPEX'!AC27) -> 0 | I49: =IF(I$43="Prévisionnels",H49+(H49*I45),'6. OPEX'!AD27) -> 0 | J49: =IF(J$43="Prévisionnels",I49+(I49*J45),'6. OPEX'!AE27) -> 0 | K49: =IF(K$43="Prévisionnels",J49+(J49*K45),'6. OPEX'!AF27) -> 0 | L49: =IF(L$43="Prévisionnels",K49+(K49*L45),'6. OPEX'!AG27) -> 0 | M49: =IF(M$43="Prévisionnels",L49+(L49*M45),'6. OPEX'!AH27) -> 0 | N49: =IF(N$43="Prévisionnels",M49+(M49*N45),'6. OPEX'!AI27) -> 0 | O49: =IF(O$43="Prévisionnels",N49+(N49*O45),'6. OPEX'!AJ27) -> 0 | P49: =IF(P$43="Prévisionnels",O49+(O49*P45),'6. OPEX'!AK27) -> 0 | Q49: =IF(Q$43="Prévisionnels",P49+(P49*Q45),'6. OPEX'!AL27) -> 0 | R49: =IF(R$43="Prévisionnels",Q49+(Q49*R45),'6. OPEX'!AM27) -> 0 | S49: =IF(S$43="Prévisionnels",R49+(R49*S45),'6. OPEX'!AN27) -> 0 | T49: =IF(T$43="Prévisionnels",S49+(S49*T45),'6. OPEX'!AO27) -> 0 | U49: =IF(U$43="Prévisionnels",T49+(T49*U45),'6. OPEX'!AP27) -> 0 | W49: 0
C50: Autres revenus récurrents | D50: =$D$11 -> 0.02 | F50: =IF($F$43="Prévisionnels",'6. OPEX'!J28,'6. OPEX'!AA28) -> 0 | G50: =IF(G$43="Prévisionnels",F50+(F50*$D$50),'6. OPEX'!AB28) -> 0 | H50: =IF(H$43="Prévisionnels",G50+(G50*$D$50),'6. OPEX'!AC28) -> 0 | I50: =IF(I$43="Prévisionnels",H50+(H50*$D$50),'6. OPEX'!AD28) -> 0 | J50: =IF(J$43="Prévisionnels",I50+(I50*$D$50),'6. OPEX'!AE28) -> 0 | K50: =IF(K$43="Prévisionnels",J50+(J50*$D$50),'6. OPEX'!AF28) -> 0 | L50: =IF(L$43="Prévisionnels",K50+(K50*$D$50),'6. OPEX'!AG28) -> 0 | M50: =IF(M$43="Prévisionnels",L50+(L50*$D$50),'6. OPEX'!AH28) -> 0 | N50: =IF(N$43="Prévisionnels",M50+(M50*$D$50),'6. OPEX'!AI28) -> 0 | O50: =IF(O$43="Prévisionnels",N50+(N50*$D$50),'6. OPEX'!AJ28) -> 0 | P50: =IF(P$43="Prévisionnels",O50+(O50*$D$50),'6. OPEX'!AK28) -> 0 | Q50: =IF(Q$43="Prévisionnels",P50+(P50*$D$50),'6. OPEX'!AL28) -> 0 | R50: =IF(R$43="Prévisionnels",Q50+(Q50*$D$50),'6. OPEX'!AM28) -> 0 | S50: =IF(S$43="Prévisionnels",R50+(R50*$D$50),'6. OPEX'!AN28) -> 0 | T50: =IF(T$43="Prévisionnels",S50+(S50*$D$50),'6. OPEX'!AO28) -> 0 | U50: =IF(U$43="Prévisionnels",T50+(T50*$D$50),'6. OPEX'!AP28) -> 0 | W50: 0
C51: Autres contributions récurrentes | D51: =$D$11 -> 0.02 | F51: =IF($F$43="Prévisionnels",'6. OPEX'!J29,'6. OPEX'!AA29) -> 0 | G51: =IF(G43="Prévisionnels",F51*(1+$D$51),'6. OPEX'!AB29) -> 0 | H51: =IF(H43="Prévisionnels",G51*(1+$D$51),'6. OPEX'!AC29) -> 0 | I51: =IF(I43="Prévisionnels",H51*(1+$D$51),'6. OPEX'!AD29) -> 0 | J51: =IF(J43="Prévisionnels",I51*(1+$D$51),'6. OPEX'!AE29) -> 0 | K51: =IF(K43="Prévisionnels",J51*(1+$D$51),'6. OPEX'!AF29) -> 0 | L51: =IF(L43="Prévisionnels",K51*(1+$D$51),'6. OPEX'!AG29) -> 0 | M51: =IF(M43="Prévisionnels",L51*(1+$D$51),'6. OPEX'!AH29) -> 0 | N51: =IF(N43="Prévisionnels",M51*(1+$D$51),'6. OPEX'!AI29) -> 0 | O51: =IF(O43="Prévisionnels",N51*(1+$D$51),'6. OPEX'!AJ29) -> 0 | P51: =IF(P43="Prévisionnels",O51*(1+$D$51),'6. OPEX'!AK29) -> 0 | Q51: =IF(Q43="Prévisionnels",P51*(1+$D$51),'6. OPEX'!AL29) -> 0 | R51: =IF(R43="Prévisionnels",Q51*(1+$D$51),'6. OPEX'!AM29) -> 0 | S51: =IF(S43="Prévisionnels",R51*(1+$D$51),'6. OPEX'!AN29) -> 0 | T51: =IF(T43="Prévisionnels",S51*(1+$D$51),'6. OPEX'!AO29) -> 0 | U51: =IF(U43="Prévisionnels",T51*(1+$D$51),'6. OPEX'!AP29) -> 0 | W51: 0
C52: Autres contributions non récurrentes | F52: =SUM(F38:F42) -> 0 | G52: =SUM(G38:G42) -> 0 | H52: 0 | I52: 0 | J52: 0 | K52: 0 | L52: 0 | M52: 0 | N52: 0 | O52: 0 | P52: 0 | Q52: 0 | R52: 0 | S52: 0 | T52: 0 | U52: 0 | W52: 0
D53: TOTAL REVENUS BRUTS | F53: =SUM(F46:F52) -> 0 | G53: 0 | H53: 0 | I53: 0 | J53: 0 | K53: 0 | L53: 0 | M53: 0 | N53: 0 | O53: 0 | P53: 0 | Q53: 0 | R53: 0 | S53: 0 | T53: 0 | U53: =SUM(U46:U52) -> 0 | W53: 0
F55: 1 | G55: 2 | H55: 3 | I55: 4 | J55: 5 | K55: 6 | L55: 7 | M55: 8 | N55: 9 | O55: 10 | P55: 11 | Q55: 12 | R55: 13 | S55: 14 | T55: 15 | U55: 16
C56: DÉPENSES | D56: % | F56: =F44 -> 1 | G56: =G44 -> 2 | H56: 3 | I56: 4 | J56: 5 | K56: 6 | L56: 7 | M56: 8 | N56: 9 | O56: 10 | P56: 11 | Q56: 12 | R56: 13 | S56: 14 | T56: 15 | U56: =U44 -> 16 | W56: =$W$24 -> Dernière année: 15
C57: Dépenses d'exploitation | D57: =$D$11 -> 0.02 | F57: =IF($F$43="Prévisionnels",SUM('6. OPEX'!E50:F50),IF($F$43="Réels",SUM('6. OPEX'!AA50))) -> 0 | G57: =IF(G$43="Prévisionnels",F57*(1+$D$57),SUMIF('6. OPEX'!$I$34:$AO$46,"tx",'6. OPEX'!AB34:AB46)) -> 0 | H57: =IF(H$43="Prévisionnels",G57*(1+$D$57),SUMIF('6. OPEX'!$I$34:$AO$46,"tx",'6. OPEX'!AC34:AC46)) -> 0 | I57: =IF(I$43="Prévisionnels",H57*(1+$D$57),SUMIF('6. OPEX'!$I$34:$AO$46,"tx",'6. OPEX'!AD34:AD46)) -> 0 | J57: =IF(J$43="Prévisionnels",I57*(1+$D$57),SUMIF('6. OPEX'!$I$34:$AO$46,"tx",'6. OPEX'!AE34:AE46)) -> 0 | K57: =IF(K$43="Prévisionnels",J57*(1+$D$57),SUMIF('6. OPEX'!$I$34:$AO$46,"tx",'6. OPEX'!AF34:AF46)) -> 0 | L57: =IF(L$43="Prévisionnels",K57*(1+$D$57),SUMIF('6. OPEX'!$I$34:$AO$46,"tx",'6. OPEX'!AG34:AG46)) -> 0 | M57: =IF(M$43="Prévisionnels",L57*(1+$D$57),SUMIF('6. OPEX'!$I$34:$AO$46,"tx",'6. OPEX'!AH34:AH46)) -> 0 | N57: =IF(N$43="Prévisionnels",M57*(1+$D$57),SUMIF('6. OPEX'!$I$34:$AO$46,"tx",'6. OPEX'!AI34:AI46)) -> 0 | O57: =IF(O$43="Prévisionnels",N57*(1+$D$57),SUMIF('6. OPEX'!$I$34:$AO$46,"tx",'6. OPEX'!AJ34:AJ46)) -> 0 | P57: =IF(P$43="Prévisionnels",O57*(1+$D$57),SUMIF('6. OPEX'!$I$34:$AO$46,"tx",'6. OPEX'!AK34:AK46)) -> 0 | Q57: =IF(Q$43="Prévisionnels",P57*(1+$D$57),SUMIF('6. OPEX'!$I$34:$AO$46,"tx",'6. OPEX'!AL34:AL46)) -> 0 | R57: =IF(R$43="Prévisionnels",Q57*(1+$D$57),SUMIF('6. OPEX'!$I$34:$AO$46,"tx",'6. OPEX'!AM34:AM46)) -> 0 | S57: =IF(S$43="Prévisionnels",R57*(1+$D$57),SUMIF('6. OPEX'!$I$34:$AO$46,"tx",'6. OPEX'!AN34:AN46)) -> 0 | T57: =IF(T$43="Prévisionnels",S57*(1+$D$57),SUMIF('6. OPEX'!$I$34:$AO$46,"tx",'6. OPEX'!AO34:AO46)) -> 0 | U57: =IF(U$43="Prévisionnels",T57*(1+$D$57),SUMIF('6. OPEX'!$I$34:$AO$46,"tx",'6. OPEX'!AP34:AP46)) -> 0 | W57: =IFERROR(_xlfn.XLOOKUP($J$3,$F$24:$U$24,F57:U57),0) -> 0
C58: ="Frais de suivi annuels"&IF('2. Informations de base'!$B$3="Fonds Capital social d'investissement immobilier"," CSII",(IF('2. Informations de base'!$B$3="Fonds Immosocial Québec"," Immosocial",""))) -> Frais de suivi annuels Immosocial | D58: ='6. OPEX'!H47 -> 0.015 | F58: =IFERROR(IF(F$43="Prévisionnels",SUM(F46:F49)*$D$58,'6. OPEX'!AA47),0) -> 0 | G58: =IFERROR(IF(G$43="Prévisionnels",SUM(G46:G49)*$D$58,'6. OPEX'!AB47),0) -> 0 | H58: =IFERROR(IF(H$43="Prévisionnels",SUM(H46:H49)*$D$58,'6. OPEX'!AC47),0) -> 0 | I58: =IFERROR(IF(I$43="Prévisionnels",SUM(I46:I49)*$D$58,'6. OPEX'!AD47),0) -> 0 | J58: =IFERROR(IF(J$43="Prévisionnels",SUM(J46:J49)*$D$58,'6. OPEX'!AE47),0) -> 0 | K58: =IFERROR(IF(K$43="Prévisionnels",SUM(K46:K49)*$D$58,'6. OPEX'!AF47),0) -> 0 | L58: =IFERROR(IF(L$43="Prévisionnels",SUM(L46:L49)*$D$58,'6. OPEX'!AG47),0) -> 0 | M58: =IFERROR(IF(M$43="Prévisionnels",SUM(M46:M49)*$D$58,'6. OPEX'!AH47),0) -> 0 | N58: =IFERROR(IF(N$43="Prévisionnels",SUM(N46:N49)*$D$58,'6. OPEX'!AI47),0) -> 0 | O58: =IFERROR(IF(O$43="Prévisionnels",SUM(O46:O49)*$D$58,'6. OPEX'!AJ47),0) -> 0 | P58: =IFERROR(IF(P$43="Prévisionnels",SUM(P46:P49)*$D$58,'6. OPEX'!AK47),0) -> 0 | Q58: =IFERROR(IF(Q$43="Prévisionnels",SUM(Q46:Q49)*$D$58,'6. OPEX'!AL47),0) -> 0 | R58: =IFERROR(IF(R$43="Prévisionnels",SUM(R46:R49)*$D$58,'6. OPEX'!AM47),0) -> 0 | S58: =IFERROR(IF(S$43="Prévisionnels",SUM(S46:S49)*$D$58,'6. OPEX'!AN47),0) -> 0 | T58: =IFERROR(IF(T$43="Prévisionnels",SUM(T46:T49)*$D$58,'6. OPEX'!AO47),0) -> 0 | U58: =IFERROR(IF(U$43="Prévisionnels",SUM(U46:U49)*$D$58,'6. OPEX'!AP47),0) -> 0 | W58: =IFERROR(_xlfn.XLOOKUP($J$3,$F$24:$U$24,F58:U58),0) -> 0
C59: =IF('2. Informations de base'!$B$3="Fonds Capital social d'investissement immobilier","Frais de suivi annuels autre (au besoin)","Frais de suivi annuels - hypothèque de 1er rang") -> Frais de suivi annuels - hypothèque de 1er rang | D59: ='6. OPEX'!H48 -> 0 | F59: ='6. OPEX'!J48 -> 0 | G59: =$F$59 -> 0 | H59: =$F$59 -> 0 | I59: 0 | J59: 0 | K59: 0 | L59: 0 | M59: 0 | N59: 0 | O59: 0 | P59: 0 | Q59: 0 | R59: 0 | S59: 0 | T59: 0 | U59: 0 | W59: =IFERROR(_xlfn.XLOOKUP($J$3,$F$24:$U$24,F59:U59),0) -> 0
C60: Réserve de remplacement - cotisation totale (régulière et spéciale) | F60: =SUM(F71:F72) -> 0 | G60: =SUM(G71:G72) -> 0 | H60: 0 | I60: 0 | J60: 0 | K60: 0 | L60: 0 | M60: 0 | N60: 0 | O60: 0 | P60: 0 | Q60: 0 | R60: 0 | S60: 0 | T60: 0 | U60: =SUM(U71:U72) -> 0 | W60: 0
C61: Autres dépenses non récurrentes (non couvertes par la réserve) | W61: 0
D62: TOTAL DES DÉPENSES | F62: =SUM(F57,F61) -> 0 | G62: =SUM(G57,G61) -> 0 | H62: 0 | I62: 0 | J62: 0 | K62: 0 | L62: 0 | M62: 0 | N62: 0 | O62: 0 | P62: 0 | Q62: 0 | R62: 0 | S62: 0 | T62: 0 | U62: =SUM(U57,U61) -> 0 | W62: 0
C64: REVENUS NETS D'EXPLOITATION | F64: =F53-F62 -> 0 | G64: 0 | H64: 0 | I64: 0 | J64: 0 | K64: 0 | L64: 0 | M64: 0 | N64: 0 | O64: 0 | P64: 0 | Q64: 0 | R64: 0 | S64: 0 | T64: 0 | U64: =U53-U62 -> 0 | W64: =IFERROR(_xlfn.XLOOKUP($J$3,$F$24:$U$24,F59:U59),0) -> 0
B66: PARTIE 3: RÉSERVE DE REMPLACEMENT
C68: RÉSERVE DE REMPLACEMENT | D68: % | F68: =F56 -> 1 | G68: 2 | H68: 3 | I68: 4 | J68: 5 | K68: 6 | L68: 7 | M68: 8 | N68: 9 | O68: 10 | P68: 11 | Q68: 12 | R68: 13 | S68: 14 | T68: 15 | U68: 16 | W68: =$W$24 -> Dernière année: 15
C69: Solde cumulé (total versé dans la réserve moins l'utilisation) | F69: =SUM(F70:F72)-F73 -> 0 | G69: =F75+SUM(G70:G72)-G73 -> 0 | H69: =G75+SUM(H70:H72)-H73 -> 0 | I69: 0 | J69: 0 | K69: 0 | L69: 0 | M69: 0 | N69: 0 | O69: 0 | P69: 0 | Q69: 0 | R69: 0 | S69: 0 | T69: 0 | U69: 0 | W69: =IFERROR(_xlfn.XLOOKUP($J$3,$F$24:$U$24,F69:U69),0) -> 0
C70: Cotisation additionnelle capitalisée | F70: ='5. CAPEX'!E100 -> 0 | W70: =IFERROR(_xlfn.XLOOKUP($J$3,$F$24:$U$24,F70:U70),0) -> 0
C71: Cotisation régulière à la réserve de remplacement | D71: ='6. OPEX'!H46 -> 0 | F71: ='6. OPEX'!J46 -> 0 | G71: =F71*(1+$D$11) -> 0 | H71: =G71*(1+$D$11) -> 0 | I71: 0 | J71: 0 | K71: 0 | L71: 0 | M71: 0 | N71: 0 | O71: 0 | P71: 0 | Q71: 0 | R71: 0 | S71: 0 | T71: 0 | U71: 0 | W71: 0
C72: Cotisation spéciale à la réserve de remplacement | F72: ='Réserve de rempl. - réno'!C19 -> 0 | G72: ='Réserve de rempl. - réno'!D19 -> 0 | H72: ='Réserve de rempl. - réno'!E19 -> 0 | I72: ='Réserve de rempl. - réno'!F19 -> 0 | J72: ='Réserve de rempl. - réno'!G19 -> 0 | K72: ='Réserve de rempl. - réno'!H19 -> 0 | L72: ='Réserve de rempl. - réno'!I19 -> 0 | M72: ='Réserve de rempl. - réno'!J19 -> 0 | N72: ='Réserve de rempl. - réno'!K19 -> 0 | O72: ='Réserve de rempl. - réno'!L19 -> 0 | P72: ='Réserve de rempl. - réno'!M19 -> 0 | Q72: ='Réserve de rempl. - réno'!N19 -> 0 | R72: ='Réserve de rempl. - réno'!O19 -> 0 | S72: ='Réserve de rempl. - réno'!P19 -> 0 | T72: ='Réserve de rempl. - réno'!Q19 -> 0 | U72: ='Réserve de rempl. - réno'!R19 -> 0 | W72: 0
C73: Montant dépensé dans la réserve de remplacement | F73: ='Réserve de rempl. - réno'!C56 -> 0 | G73: ='Réserve de rempl. - réno'!D56 -> 0 | H73: ='Réserve de rempl. - réno'!E56 -> 0 | I73: ='Réserve de rempl. - réno'!F56 -> 0 | J73: ='Réserve de rempl. - réno'!G56 -> 0 | K73: ='Réserve de rempl. - réno'!H56 -> 0 | L73: ='Réserve de rempl. - réno'!I56 -> 0 | M73: ='Réserve de rempl. - réno'!J56 -> 0 | N73: ='Réserve de rempl. - réno'!K56 -> 0 | O73: ='Réserve de rempl. - réno'!L56 -> 0 | P73: ='Réserve de rempl. - réno'!M56 -> 0 | Q73: ='Réserve de rempl. - réno'!N56 -> 0 | R73: ='Réserve de rempl. - réno'!O56 -> 0 | S73: ='Réserve de rempl. - réno'!P56 -> 0 | T73: ='Réserve de rempl. - réno'!Q56 -> 0 | U73: ='Réserve de rempl. - réno'!R56 -> 0 | W73: 0
C74: Revenu d'intérêts sur solde de la réserve | D74: =PARAMÈTRES!E37 -> 0 | F74: 0 | G74: =F69*$D$74 -> 0 | H74: 0 | I74: 0 | J74: 0 | K74: 0 | L74: 0 | M74: 0 | N74: 0 | O74: 0 | P74: 0 | Q74: 0 | R74: 0 | S74: 0 | T74: 0 | U74: 0 | W74: 0
D75: TOTAL RÉSERVE DE REMPLACEMENT | F75: =F69+F74 -> 0 | G75: 0 | H75: 0 | I75: 0 | J75: 0 | K75: 0 | L75: 0 | M75: 0 | N75: 0 | O75: 0 | P75: 0 | Q75: 0 | R75: 0 | S75: 0 | T75: 0 | U75: =U69+U74 -> 0 | W75: 0
F76: =IF(F75<0,"Réserve insuffisante","") ->  | G76: =IF(AND(F69>=0,G69<0),"Réserve insuffisante","") ->  | H76: =IF(AND(G69>=0,H69<0),"Réserve insuffisante","") -> 
B77: PARTIE 4: REMBOURSEMENT DES PRÊTS
F79: 1 | G79: 2 | H79: 3 | I79: 4 | J79: 5 | K79: 6 | L79: 7 | M79: 8 | N79: 9 | O79: 10 | P79: 11 | Q79: 12 | R79: 13 | S79: 14 | T79: 15 | U79: 16
C80: SORTIES D'ARGENT - PRÊT HYPOTHÉCAIRE | F80: =F68 -> 1 | G80: =G68 -> 2 | H80: 3 | I80: 4 | J80: 5 | K80: 6 | L80: 7 | M80: 8 | N80: 9 | O80: 10 | P80: 11 | Q80: 12 | R80: 13 | S80: 14 | T80: 15 | U80: 16 | W80: =$W$24 -> Dernière année: 15
C81: ="Remboursement capital et intérêts"&" - "&'4. Sources de financement'!N35 -> Remboursement capital et intérêts - [Nom du prêteur] - hypothèque | D81: =D8 -> 30 | F81: =F83+F84 -> 0 | G81: 0 | H81: 0 | I81: 0 | J81: 0 | K81: 0 | L81: 0 | M81: 0 | N81: 0 | O81: 0 | P81: 0 | Q81: 0 | R81: 0 | S81: 0 | T81: 0 | U81: =U83+U84 -> 0 | W81: =IFERROR(_xlfn.XLOOKUP($J$3,$F$24:$U$24,F81:U81),0) -> 0
C82: % annuité / revenus | F82: =IFERROR(F81/F53,0) -> 0 | G82: 0 | H82: 0 | I82: 0 | J82: 0 | K82: 0 | L82: 0 | M82: 0 | N82: 0 | O82: 0 | P82: 0 | Q82: 0 | R82: 0 | S82: 0 | T82: 0 | U82: =IFERROR(U81/U53,0) -> 0 | W82: =IFERROR(_xlfn.XLOOKUP($J$3,$F$24:$U$24,F82:U82),0) -> 0
C83: Remboursement de capital | D83: =IF('4. Sources de financement'!O46="",'4. Sources de financement'!O36,'4. Sources de financement'!O46) -> 0 | F83: =IF($D$83=0,0,-PPMT(F86,F79,$D$81+1-F79,$D$83,0)) -> 0 | G83: =IF($D$83=0,0,-PPMT(G86,1,$D$81+1-G79,$D$83-F83+F85,0)) -> 0 | H83: =IF($D$83=0,0,-PPMT(H86,1,$D$81+1-H79,$D$83-SUM($F$83:G83)+SUM($F$85:G85),0)) -> 0 | I83: =IF($D$83=0,0,-PPMT(I86,1,$D$81+1-I79,$D$83-SUM($F$83:H83)+SUM($F$85:H85),0)) -> 0 | J83: =IF($D$83=0,0,-PPMT(J86,1,$D$81+1-J79,$D$83-SUM($F$83:I83)+SUM($F$85:I85),0)) -> 0 | K83: =IF($D$83=0,0,-PPMT(K86,1,$D$81+1-K79,$D$83-SUM($F$83:J83)+SUM($F$85:J85),0)) -> 0 | L83: =IF($D$83=0,0,-PPMT(L86,1,$D$81+1-L79,$D$83-SUM($F$83:K83)+SUM($F$85:K85),0)) -> 0 | M83: =IF($D$83=0,0,-PPMT(M86,1,$D$81+1-M79,$D$83-SUM($F$83:L83)+SUM($F$85:L85),0)) -> 0 | N83: =IF($D$83=0,0,-PPMT(N86,1,$D$81+1-N79,$D$83-SUM($F$83:M83)+SUM($F$85:M85),0)) -> 0 | O83: =IF($D$83=0,0,-PPMT(O86,1,$D$81+1-O79,$D$83-SUM($F$83:N83)+SUM($F$85:N85),0)) -> 0 | P83: =IF($D$83=0,0,-PPMT(P86,1,$D$81+1-P79,$D$83-SUM($F$83:O83)+SUM($F$85:O85),0)) -> 0 | Q83: =IF($D$83=0,0,-PPMT(Q86,1,$D$81+1-Q79,$D$83-SUM($F$83:P83)+SUM($F$85:P85),0)) -> 0 | R83: =IF($D$83=0,0,-PPMT(R86,1,$D$81+1-R79,$D$83-SUM($F$83:Q83)+SUM($F$85:Q85),0)) -> 0 | S83: =IF($D$83=0,0,-PPMT(S86,1,$D$81+1-S79,$D$83-SUM($F$83:R83)+SUM($F$85:R85),0)) -> 0 | T83: =IF($D$83=0,0,-PPMT(T86,1,$D$81+1-T79,$D$83-SUM($F$83:S83)+SUM($F$85:S85),0)) -> 0 | U83: =IF($D$83=0,0,-PPMT(U86,1,$D$81+1-U79,$D$83-SUM($F$83:T83)+SUM($F$85:T85),0)) -> 0 | W83: 0
C84: Remboursement intérêts | F84: =-IPMT(F86,1,$D$81+1-F79,$D$83,0) -> 0 | G84: =-IPMT(G86,1,$D$81+1-G79,$D$83-SUM($F$83:F83)+SUM($F$85:F85),0) -> 0 | H84: =-IPMT(H86,1,$D$81+1-H79,$D$83-SUM($F$83:G83)+SUM($F$85:G85),0) -> 0 | I84: =-IPMT(I86,1,$D$81+1-I79,$D$83-SUM($F$83:H83)+SUM($F$85:H85),0) -> 0 | J84: =-IPMT(J86,1,$D$81+1-J79,$D$83-SUM($F$83:I83)+SUM($F$85:I85),0) -> 0 | K84: =-IPMT(K86,1,$D$81+1-K79,$D$83-SUM($F$83:J83)+SUM($F$85:J85),0) -> 0 | L84: =-IPMT(L86,1,$D$81+1-L79,$D$83-SUM($F$83:K83)+SUM($F$85:K85),0) -> 0 | M84: =-IPMT(M86,1,$D$81+1-M79,$D$83-SUM($F$83:L83)+SUM($F$85:L85),0) -> 0 | N84: =-IPMT(N86,1,$D$81+1-N79,$D$83-SUM($F$83:M83)+SUM($F$85:M85),0) -> 0 | O84: =-IPMT(O86,1,$D$81+1-O79,$D$83-SUM($F$83:N83)+SUM($F$85:N85),0) -> 0 | P84: =-IPMT(P86,1,$D$81+1-P79,$D$83-SUM($F$83:O83)+SUM($F$85:O85),0) -> 0 | Q84: =-IPMT(Q86,1,$D$81+1-Q79,$D$83-SUM($F$83:P83)+SUM($F$85:P85),0) -> 0 | R84: =-IPMT(R86,1,$D$81+1-R79,$D$83-SUM($F$83:Q83)+SUM($F$85:Q85),0) -> 0 | S84: =-IPMT(S86,1,$D$81+1-S79,$D$83-SUM($F$83:R83)+SUM($F$85:R85),0) -> 0 | T84: =-IPMT(T86,1,$D$81+1-T79,$D$83-SUM($F$83:S83)+SUM($F$85:S85),0) -> 0 | U84: =-IPMT(U86,1,$D$81+1-U79,$D$83-SUM($F$83:T83)+SUM($F$85:T85),0) -> 0 | W84: 0
C85: Remboursement de financement additionnel (optionnel) | F85: =F26 -> 0 | G85: 0 | H85: 0 | I85: 0 | J85: 0 | K85: 0 | L85: 0 | M85: 0 | N85: 0 | O85: 0 | P85: 0 | Q85: 0 | R85: 0 | S85: 0 | T85: 0 | U85: =U26 -> 0 | W85: 0
C86: Taux d'intérêt annuel | D86: =IF('4. Sources de financement'!O46="",'4. Sources de financement'!$O$37,'4. Sources de financement'!O47) -> 0 | F86: =D86 -> 0 | G86: =F86 -> 0 | H86: =G86 -> 0 | I86: 0 | J86: 0 | K86: =J86+0.5% -> 0.005 | L86: =K86 -> 0.005 | M86: =L86 -> 0.005 | N86: 0.005 | O86: 0.005 | P86: =O86+0.5% -> 0.01 | Q86: 0.01 | R86: 0.01 | S86: 0.01 | T86: 0.01 | U86: =T86+0.25% -> 0.0125 | W86: 0.01
C87: Revenus nets d'exploitation | F87: =F64 -> 0 | G87: 0 | H87: 0 | I87: 0 | J87: 0 | K87: 0 | L87: 0 | M87: 0 | N87: 0 | O87: 0 | P87: 0 | Q87: 0 | R87: 0 | S87: 0 | T87: 0 | U87: 0 | W87: 0
D88: REVENUS NETS D'EXPLOITATION APRÈS PAIEMENT HYPOTHÉCAIRE | F88: =F87-F81 -> 0 | G88: =G87-G81 -> 0 | H88: 0 | I88: 0 | J88: 0 | K88: 0 | L88: 0 | M88: 0 | N88: 0 | O88: 0 | P88: 0 | Q88: 0 | R88: 0 | S88: 0 | T88: 0 | U88: 0 | W88: 0
C90: COEFFICIENT DE COUVERTURE DE LA DETTE (CCD) - PRÊT HYPOTHÉCAIRE | F90: =F80 -> 1 | G90: =G80 -> 2 | H90: 3 | I90: 4 | J90: 5 | K90: 6 | L90: 7 | M90: 8 | N90: 9 | O90: 10 | P90: 11 | Q90: 12 | R90: 13 | S90: 14 | T90: 15 | U90: 16 | W90: =$W$24 -> Dernière année: 15
C91: Coefficient de couverture de la dette (CCD) | D91: =D18 -> 1.2 | F91: =IF(F81=0,0,F64/F81) -> 0 | G91: 0 | H91: 0 | I91: 0 | J91: 0 | K91: 0 | L91: 0 | M91: 0 | N91: 0 | O91: 0 | P91: 0 | Q91: 0 | R91: 0 | S91: 0 | T91: 0 | U91: 0 | W91: =IFERROR(_xlfn.XLOOKUP($J$3,$F$24:$U$24,F91:U91),0) -> 0
C92: Excédent ou déficit monétaire annuel atteindre CCD | F92: =F94-F93 -> 0 | G92: =G64-(G81*$D$91) -> 0 | H92: =H64-(H81*$D$91) -> 0 | I92: 0 | J92: 0 | K92: 0 | L92: 0 | M92: 0 | N92: 0 | O92: 0 | P92: 0 | Q92: 0 | R92: 0 | S92: 0 | T92: 0 | U92: 0 | V92: 0 | W92: =IFERROR(_xlfn.XLOOKUP($J$3,$F$24:$U$24,F92:U92),0) -> 0
C93: Flux monétaires minimal pour atteindre CCD | F93: =F81*$D$91 -> 0 | G93: =G81*$D$91 -> 0 | H93: 0 | I93: 0 | J93: 0 | K93: 0 | L93: 0 | M93: 0 | N93: 0 | O93: 0 | P93: 0 | Q93: 0 | R93: 0 | S93: 0 | T93: 0 | U93: =U81*$D$91 -> 0 | W93: 0
C94: Flux monétaires prévus (revenus nets) | F94: =F64 -> 0 | G94: 0 | H94: 0 | I94: 0 | J94: 0 | K94: 0 | L94: 0 | M94: 0 | N94: 0 | O94: 0 | P94: 0 | Q94: 0 | R94: 0 | S94: 0 | T94: 0 | U94: =U64 -> 0 | W94: 0
C96: SORTIES D'ARGENT - PRÊT CAPITAL PATIENT | F96: =F90 -> 1 | G96: =G90 -> 2 | H96: 3 | I96: 4 | J96: 5 | K96: 6 | L96: 7 | M96: 8 | N96: 9 | O96: 10 | P96: 11 | Q96: 12 | R96: 13 | S96: 14 | T96: 15 | U96: 16 | W96: =$W$24 -> Dernière année: 15
C97: Versement annuel en capital patient (intérêts) | D97: =-RÉSUMÉ!C90 -> 0 | F97: =IFERROR(IF(F$88<0,0,F$88*PARAMÈTRES!$E$27),0) -> 0 | G97: =IFERROR(IF(G$88<0,0,G$88*PARAMÈTRES!$E$27),0) -> 0 | H97: =IFERROR(IF(H$88<0,0,H$88*PARAMÈTRES!$E$27),0) -> 0 | I97: =IFERROR(IF(I$88<0,0,I$88*PARAMÈTRES!$E$27),0) -> 0 | J97: =IFERROR(IF(J$88<0,0,J$88*PARAMÈTRES!$E$27),0) -> 0 | K97: =IFERROR(IF(K$88<0,0,K$88*PARAMÈTRES!$E$27),0) -> 0 | L97: =IFERROR(IF(L$88<0,0,L$88*PARAMÈTRES!$E$27),0) -> 0 | M97: =IFERROR(IF(M$88<0,0,M$88*PARAMÈTRES!$E$27),0) -> 0 | N97: =IFERROR(IF(N$88<0,0,N$88*PARAMÈTRES!$E$27),0) -> 0 | O97: =IFERROR(IF(O$88<0,0,O$88*PARAMÈTRES!$E$27),0) -> 0 | P97: =IFERROR(IF(P$88<0,0,P$88*PARAMÈTRES!$E$27),0) -> 0 | Q97: =IFERROR(IF(Q$88<0,0,Q$88*PARAMÈTRES!$E$27),0) -> 0 | R97: =IFERROR(IF(R$88<0,0,R$88*PARAMÈTRES!$E$27),0) -> 0 | S97: =IFERROR(IF(S$88<0,0,S$88*PARAMÈTRES!$E$27),0) -> 0 | T97: =IFERROR(IF(T$88<0,0,T$88*PARAMÈTRES!$E$27),0) -> 0 | U97: =IFERROR(IF(U$88<0,0,U$88*PARAMÈTRES!$E$27),0) -> 0 | W97: =IFERROR(_xlfn.XLOOKUP($J$3,$F$24:$U$24,F97:U97),0) -> 0
T98: =F15-(D83-(SUM(F83:T83))) -> 0
C99: % des revenus nets après paiement hypothécaire | F99: =IFERROR(F97/F88,0) -> 0 | G99: 0 | H99: 0 | I99: 0 | J99: 0 | K99: 0 | L99: 0 | M99: 0 | N99: 0 | O99: 0 | P99: 0 | Q99: 0 | R99: 0 | S99: 0 | T99: 0 | U99: =IFERROR(U97/U88,0) -> 0 | W99: =IFERROR(_xlfn.XLOOKUP($J$3,$F$24:$U$24,F99:U99),0) -> 0
C100: Aide à l'exploitation capitalisée | F100: =IF(F92<0,0-F92,0) -> 0 | G100: =IF(G92<0,0-G92,0) -> 0 | H100: 0 | I100: 0 | J100: 0 | K100: 0 | L100: 0 | M100: 0 | N100: 0 | O100: 0 | P100: 0 | Q100: 0 | R100: 0 | S100: 0 | T100: 0 | U100: 0
B102: PARTIE 5: SOLDE FINAL
C104: SOLDE FINAL | F104: =F90 -> 1 | G104: =G90 -> 2 | H104: 3 | I104: 4 | J104: 5 | K104: 6 | L104: 7 | M104: 8 | N104: 9 | O104: 10 | P104: 11 | Q104: 12 | R104: 13 | S104: 14 | T104: 15 | U104: 16 | W104: =$W$24 -> Dernière année: 15
C105: Solde de l'exercice | F105: =F$88-F$97+F$100 -> 0 | G105: =G$88-G$97+G$100 -> 0 | H105: 0 | I105: 0 | J105: 0 | K105: 0 | L105: 0 | M105: 0 | N105: 0 | O105: 0 | P105: 0 | Q105: 0 | R105: 0 | S105: 0 | T105: 0 | U105: =U$88-U$97+U$100 -> 0 | W105: =IFERROR(_xlfn.XLOOKUP($J$3,$F$24:$U$24,F105:U105),0) -> 0
C106: Solde cumulé de la réserve de remplacement | F106: =F75 -> 0 | G106: 0 | H106: 0 | I106: 0 | J106: 0 | K106: 0 | L106: 0 | M106: 0 | N106: 0 | O106: 0 | P106: 0 | Q106: 0 | R106: 0 | S106: 0 | T106: 0 | U106: =U75 -> 0 | W106: =IFERROR(_xlfn.XLOOKUP($J$3,$F$24:$U$24,F106:U106),0) -> 0
D107: FLUX MONÉTAIRES DISPONIBLES CUMULÉS | F107: =SUM(F$105:F$106) -> 0 | G107: 0 | H107: 0 | I107: 0 | J107: 0 | K107: 0 | L107: 0 | M107: 0 | N107: 0 | O107: 0 | P107: 0 | Q107: 0 | R107: 0 | S107: 0 | T107: 0 | U107: 0 | W107: 0

Sheet 8. Objectifs sociaux
B2: =IF('2. Informations de base'!C7=0,"NOM DU PROJET",'2. Informations de base'!C7) -> NOM DU PROJET
B3: =IF('2. Informations de base'!$B$3="Sélectionner le nom du fonds","NOM DU FONDS",'2. Informations de base'!$B$3)&", Objectifs sociaux" -> Fonds Immosocial Québec, Objectifs sociaux
A5: 1 - | B5: Expliquer en quelques lignes de quelle manière le projet revitalisera le milieux dans lequel il est développé:
A8: 2 - | B8: Expliquer en quelques lignes de quelle manière le projet s'intègre aux mobilisations citoyennes et communautaires de son mileu:
A11: 3 - | B11: L'organimse emprunteur prévoit-il intégrer une politique de sélection des locataires qui priorisera les familles:
A13: 4 - | B13: Le projet intègre-t-il le programme de supplément au loyer - marché privé (SL1)?
A15: 5 a) - | B15: Est-ce que certains locataires pourront bénéficier de soutien communautaire?
A17: 5 b) - | B17: Si vous avez répondu «OUI» à la question précédente, veuillez décrire brièvement qui offrira le service de soutien communautaire, son financement, la clientèle qui en bénéficiera ainsi que la proportion de cette clientèle dans l'ensemble du projet:

Sheet Détail des baux - réno
B2: =IF('2. Informations de base'!C7=0,"NOM DU PROJET",'2. Informations de base'!C7) -> NOM DU PROJET
B3: =IF('2. Informations de base'!$B$3="Sélectionner le nom du fonds","NOM DU FONDS",'2. Informations de base'!$B$3)&", Détail des baux" -> Fonds Immosocial Québec, Détail des baux
R4: INFORMATIONS - DIVERS
A5: RechercheV | C5: LOGEMENTS ET ESPACES COMMERCIAUX | G5: BAUX MENSUELS | R5: Début du prêt | S5: =IF(ISBLANK('2. Informations de base'!$C$34),"",'2. Informations de base'!$C$34) -> 
C6: Typologie | D6: Unitées loués | E6: Unités vacantes | F6: Total | G6: Loyer prévu avec services | H6: Loyer de référence | R6: Fin des travaux (moyenne) | S6: =IFERROR(AVERAGE(M17:M266),"") -> 
B7: =IF(F7=0,"",IF(SUM($B$7:B7)=0,1,SUM($F6:F$6)+1)) ->  | C7: Chambre | D7: =COUNTIFS($F$17:$F$266,"Loué",$E$17:$E$266,#REF!) -> 0 | E7: =COUNTIFS(F17:F266,"Vacant",E17:E266,#REF!) -> 0 | F7: =RÉSUMÉ!C40 -> 0 | G7: =RÉSUMÉ!D40 -> 0 | H7: =RÉSUMÉ!F40 -> 0 | R7: Début OPEX | S7: =IF(ISBLANK('2. Informations de base'!$C$38),"",'2. Informations de base'!$C$38) -> 
B8: =IF(F8=0,"",IF(SUM($B$7:B8)=0,1,SUM($F$6:F7)+1)) ->  | C8: Studio | D8: =COUNTIFS($F$17:$F$266,"Loué",$E$17:$E$266,#REF!) -> 0 | E8: =COUNTIFS(F18:F267,"Vacant",E18:E267,#REF!) -> 0 | F8: =RÉSUMÉ!C41 -> 0 | G8: =RÉSUMÉ!D41 -> 0 | H8: =RÉSUMÉ!F41 -> 0 | R8: Emménagement (moyenne) | S8: =IFERROR(AVERAGE(N17:N266),"") -> 
B9: =IF(F9=0,"",IF(SUM($B$7:B9)=0,1,SUM($F$6:F8)+1)) ->  | C9: 3.5 | D9: =COUNTIFS($F$17:$F$266,"Loué",$E$17:$E$266,#REF!) -> 0 | E9: =COUNTIFS(F19:F268,"Vacant",E19:E268,#REF!) -> 0 | F9: =RÉSUMÉ!C42 -> 0 | G9: =RÉSUMÉ!D42 -> 0 | H9: =RÉSUMÉ!F42 -> 0 | R9: Augmentation (moyenne) | S9: =IFERROR(AVERAGE(O17:O266),"") -> 
B10: =IF(F10=0,"",IF(SUM($B$7:B10)=0,1,SUM($F$6:F9)+1)) ->  | C10: 4.5 | D10: =COUNTIFS($F$17:$F$266,"Loué",$E$17:$E$266,#REF!) -> 0 | E10: =COUNTIFS(F20:F269,"Vacant",E20:E269,#REF!) -> 0 | F10: =RÉSUMÉ!C43 -> 0 | G10: =RÉSUMÉ!D43 -> 0 | H10: =RÉSUMÉ!F43 -> 0 | R10: Mois entre OPEX et aug. | S10: =IFERROR(AVERAGE(P17:P266),"") -> 
B11: =IF(F11=0,"",IF(SUM($B$7:B11)=0,1,SUM($F$6:F10)+1)) ->  | C11: 5.5 | D11: =COUNTIFS($F$17:$F$266,"Loué",$E$17:$E$266,#REF!) -> 0 | E11: =COUNTIFS(F21:F270,"Vacant",E21:E270,#REF!) -> 0 | F11: =RÉSUMÉ!C44 -> 0 | G11: =RÉSUMÉ!D44 -> 0 | H11: =RÉSUMÉ!F44 -> 0 | R11: Aug. peu après OPEX? | S11: =IF(S10="","",(IF(S10<12,"oui","non"))) -> 
B12: =IF(F12=0,"",IF(SUM($B$7:B12)=0,1,SUM($F$6:F11)+1)) ->  | C12: 6.5 | D12: =COUNTIFS($F$17:$F$266,"Loué",$E$17:$E$266,#REF!) -> 0 | E12: =COUNTIFS(F22:F271,"Vacant",E22:E271,#REF!) -> 0 | F12: =RÉSUMÉ!C45 -> 0 | G12: =RÉSUMÉ!D45 -> 0 | H12: =RÉSUMÉ!F45 -> 0 | R12: Locataires existants? | S12: Oui
B13: =IF(F13=0,"",IF(SUM($B$7:B13)=0,1,SUM($F$6:F12)+1)) ->  | C13: Espace commercial | D13: =COUNTIFS($F$17:$F$266,"Loué",$E$17:$E$266,#REF!) -> 0 | E13: =COUNTIFS(F23:F272,"Vacant",E23:E272,#REF!) -> 0 | F13: =RÉSUMÉ!C46 -> 0 | G13: =RÉSUMÉ!D46 -> 0 | H13: =IF(RÉSUMÉ!F46="",0,RÉSUMÉ!F46) -> 0
C14: TOTAL | D14: =SUM(D7:D13) -> 0 | E14: =SUM(E7:E13) -> 0 | F14: =SUM(F7:F13) -> 0 | G14: =RÉSUMÉ!D47 -> 0
B16: # | C16: Adresse | D16: # unité | E16: Typologie | F16: Loué/vacant | G16: Logement avec PSL (actuel ou à venir) | H16: Loyer mensuel avec inclusions (actuel ou à venir) | I16: Valeur des inclusions | J16: Loyer mensuel sans inclusions | K16: Loyer mensuel pour référence d'abordabilité | L16: Commentaires et/ou précisions | M16: Date de fins de travaux prévus | N16: Date d'emménagement / prochain renouvellement | O16: Date pour augmentation pour rénovation | P16: Nbre mois entre date d'emménagement et d'augmentation pour rénovation | Q16: Nbre mois entre début du prêt et d'emménagement
B17: =IF('2. Informations de base'!$C$14>0,1,"") ->  | E17: =IFERROR(IF(B17="","",VLOOKUP($B17,$B$7:$C$13,2)),"") ->  | F17: =IF(B17="","",(IF($S$12="Oui","Loué","Vacant"))) ->  | J17: =IF(ISBLANK($H17),"",$H17-$I17) ->  | K17: =IFERROR((J17/VLOOKUP($E$17,C7:$H$13,5))*VLOOKUP(E17,$C$7:$H$13,6),"") ->  | M17: =IF(ISBLANK('2. Informations de base'!$C$36),"",'2. Informations de base'!$C$36) ->  | N17: =IF(ISBLANK('2. Informations de base'!$C$38),"",'2. Informations de base'!$C$38) ->  | O17: =IFERROR(IF(N17>=EDATE(M17,3),N17,EDATE(N17,12)),"") ->  | P17: =IFERROR(DATEDIF(N17,O17,"m"),"") ->  | Q17: =DATEDIF('2. Informations de base'!$C$33,'2. Informations de base'!$C$38,"m") -> 0
B18: =IF(AND('2. Informations de base'!$C$14>0,B17<'2. Informations de base'!$C$14),(B17+1),"") ->  | K18: =IFERROR((J18/VLOOKUP($E$17,C8:$H$13,5))*VLOOKUP(E18,$C$7:$H$13,6),"") ->  | M18: =IF(ISBLANK('2. Informations de base'!$C$36),"",'2. Informations de base'!$C$36) ->  | N18: =IF(ISBLANK('2. Informations de base'!$C$38),"",'2. Informations de base'!$C$38) ->  | O18: =IFERROR(IF(N18>=EDATE(M18,3),N18,EDATE(N18,12)),"") ->  | Q18: =DATEDIF('2. Informations de base'!$C$33,'2. Informations de base'!$C$38,"m") -> 0
B19: =IF(AND('2. Informations de base'!$C$14>0,B18<'2. Informations de base'!$C$14),(B18+1),"") ->  | K19: =IFERROR((J19/VLOOKUP($E$17,C9:$H$13,5))*VLOOKUP(E19,$C$7:$H$13,6),"") ->  | M19: =IF(ISBLANK('2. Informations de base'!$C$36),"",'2. Informations de base'!$C$36) ->  | N19: =IF(ISBLANK('2. Informations de base'!$C$38),"",'2. Informations de base'!$C$38) ->  | Q19: =DATEDIF('2. Informations de base'!$C$33,'2. Informations de base'!$C$38,"m") -> 0
B20: =IF(AND('2. Informations de base'!$C$14>0,B19<'2. Informations de base'!$C$14),(B19+1),"") ->  | K20: =IFERROR((J20/VLOOKUP($E$17,C10:$H$13,5))*VLOOKUP(E20,$C$7:$H$13,6),"") ->  | M20: =IF(ISBLANK('2. Informations de base'!$C$36),"",'2. Informations de base'!$C$36) ->  | N20: =IF(ISBLANK('2. Informations de base'!$C$38),"",'2. Informations de base'!$C$38) ->  | Q20: =DATEDIF('2. Informations de base'!$C$33,'2. Informations de base'!$C$38,"m") -> 0
B21: =IF(AND('2. Informations de base'!$C$14>0,B20<'2. Informations de base'!$C$14),(B20+1),"") ->  | K21: =IFERROR((J21/VLOOKUP($E$17,C11:$H$13,5))*VLOOKUP(E21,$C$7:$H$13,6),"") ->  | M21: =IF(ISBLANK('2. Informations de base'!$C$36),"",'2. Informations de base'!$C$36) ->  | N21: =IF(ISBLANK('2. Informations de base'!$C$38),"",'2. Informations de base'!$C$38) ->  | Q21: =DATEDIF('2. Informations de base'!$C$33,'2. Informations de base'!$C$38,"m") -> 0
B22: =IF(AND('2. Informations de base'!$C$14>0,B21<'2. Informations de base'!$C$14),(B21+1),"") ->  | K22: =IFERROR((J22/VLOOKUP($E$17,C12:$H$13,5))*VLOOKUP(E22,$C$7:$H$13,6),"") ->  | M22: =IF(ISBLANK('2. Informations de base'!$C$36),"",'2. Informations de base'!$C$36) ->  | N22: =IF(ISBLANK('2. Informations de base'!$C$38),"",'2. Informations de base'!$C$38) ->  | Q22: =DATEDIF('2. Informations de base'!$C$33,'2. Informations de base'!$C$38,"m") -> 0
B23: =IF(AND('2. Informations de base'!$C$14>0,B22<'2. Informations de base'!$C$14),(B22+1),"") ->  | K23: =IFERROR((J23/VLOOKUP($E$17,C13:$H$13,5))*VLOOKUP(E23,$C$7:$H$13,6),"") ->  | M23: =IF(ISBLANK('2. Informations de base'!$C$36),"",'2. Informations de base'!$C$36) ->  | N23: =IF(ISBLANK('2. Informations de base'!$C$38),"",'2. Informations de base'!$C$38) ->  | Q23: =DATEDIF('2. Informations de base'!$C$33,'2. Informations de base'!$C$38,"m") -> 0
B24: =IF(AND('2. Informations de base'!$C$14>0,B23<'2. Informations de base'!$C$14),(B23+1),"") ->  | K24: =IFERROR((J24/VLOOKUP($E$17,C$13:$H14,5))*VLOOKUP(E24,$C$7:$H$13,6),"") ->  | M24: =IF(ISBLANK('2. Informations de base'!$C$36),"",'2. Informations de base'!$C$36) ->  | N24: =IF(ISBLANK('2. Informations de base'!$C$38),"",'2. Informations de base'!$C$38) ->  | Q24: =DATEDIF('2. Informations de base'!$C$33,'2. Informations de base'!$C$38,"m") -> 0
B25: =IF(AND('2. Informations de base'!$C$14>0,B24<'2. Informations de base'!$C$14),(B24+1),"") ->  | K25: =IFERROR((J25/VLOOKUP($E$17,C$13:$H15,5))*VLOOKUP(E25,$C$7:$H$13,6),"") ->  | M25: =IF(ISBLANK('2. Informations de base'!$C$36),"",'2. Informations de base'!$C$36) ->  | N25: =IF(ISBLANK('2. Informations de base'!$C$38),"",'2. Informations de base'!$C$38) ->  | Q25: =DATEDIF('2. Informations de base'!$C$33,'2. Informations de base'!$C$38,"m") -> 0
B26: =IF(AND('2. Informations de base'!$C$14>0,B25<'2. Informations de base'!$C$14),(B25+1),"") ->  | K26: =IFERROR((J26/VLOOKUP($E$17,C$13:$H16,5))*VLOOKUP(E26,$C$7:$H$13,6),"") ->  | M26: =IF(ISBLANK('2. Informations de base'!$C$36),"",'2. Informations de base'!$C$36) ->  | N26: =IF(ISBLANK('2. Informations de base'!$C$38),"",'2. Informations de base'!$C$38) ->  | Q26: =DATEDIF('2. Informations de base'!$C$33,'2. Informations de base'!$C$38,"m") -> 0
B27: =IF(AND('2. Informations de base'!$C$14>0,B26<'2. Informations de base'!$C$14),(B26+1),"") ->  | K27: =IFERROR((J27/VLOOKUP($E$17,C$13:$H17,5))*VLOOKUP(E27,$C$7:$H$13,6),"") ->  | M27: =IF(ISBLANK('2. Informations de base'!$C$36),"",'2. Informations de base'!$C$36) ->  | N27: =IF(ISBLANK('2. Informations de base'!$C$38),"",'2. Informations de base'!$C$38) ->  | Q27: =DATEDIF('2. Informations de base'!$C$33,'2. Informations de base'!$C$38,"m") -> 0
B28: =IF(AND('2. Informations de base'!$C$14>0,B27<'2. Informations de base'!$C$14),(B27+1),"") ->  | K28: =IFERROR((J28/VLOOKUP($E$17,C$13:$H18,5))*VLOOKUP(E28,$C$7:$H$13,6),"") ->  | M28: =IF(ISBLANK('2. Informations de base'!$C$36),"",'2. Informations de base'!$C$36) ->  | N28: =IF(ISBLANK('2. Informations de base'!$C$38),"",'2. Informations de base'!$C$38) ->  | Q28: =DATEDIF('2. Informations de base'!$C$33,'2. Informations de base'!$C$38,"m") -> 0
B29: =IF(AND('2. Informations de base'!$C$14>0,B28<'2. Informations de base'!$C$14),(B28+1),"") ->  | K29: =IFERROR((J29/VLOOKUP($E$17,C$13:$H19,5))*VLOOKUP(E29,$C$7:$H$13,6),"") ->  | M29: =IF(ISBLANK('2. Informations de base'!$C$36),"",'2. Informations de base'!$C$36) ->  | N29: =IF(ISBLANK('2. Informations de base'!$C$38),"",'2. Informations de base'!$C$38) ->  | Q29: =DATEDIF('2. Informations de base'!$C$33,'2. Informations de base'!$C$38,"m") -> 0
B30: =IF(AND('2. Informations de base'!$C$14>0,B29<'2. Informations de base'!$C$14),(B29+1),"") ->  | K30: =IFERROR((J30/VLOOKUP($E$17,C$13:$H20,5))*VLOOKUP(E30,$C$7:$H$13,6),"") ->  | M30: =IF(ISBLANK('2. Informations de base'!$C$36),"",'2. Informations de base'!$C$36) ->  | N30: =IF(ISBLANK('2. Informations de base'!$C$38),"",'2. Informations de base'!$C$38) ->  | Q30: =DATEDIF('2. Informations de base'!$C$33,'2. Informations de base'!$C$38,"m") -> 0
B31: =IF(AND('2. Informations de base'!$C$14>0,B30<'2. Informations de base'!$C$14),(B30+1),"") ->  | K31: =IFERROR((J31/VLOOKUP($E$17,C$13:$H21,5))*VLOOKUP(E31,$C$7:$H$13,6),"") ->  | M31: =IF(ISBLANK('2. Informations de base'!$C$36),"",'2. Informations de base'!$C$36) ->  | N31: =IF(ISBLANK('2. Informations de base'!$C$38),"",'2. Informations de base'!$C$38) ->  | Q31: =DATEDIF('2. Informations de base'!$C$33,'2. Informations de base'!$C$38,"m") -> 0
B32: =IF(AND('2. Informations de base'!$C$14>0,B31<'2. Informations de base'!$C$14),(B31+1),"") ->  | K32: =IFERROR((J32/VLOOKUP($E$17,C$13:$H22,5))*VLOOKUP(E32,$C$7:$H$13,6),"") ->  | M32: =IF(ISBLANK('2. Informations de base'!$C$36),"",'2. Informations de base'!$C$36) ->  | N32: =IF(ISBLANK('2. Informations de base'!$C$38),"",'2. Informations de base'!$C$38) ->  | Q32: =DATEDIF('2. Informations de base'!$C$33,'2. Informations de base'!$C$38,"m") -> 0
B33: =IF(AND('2. Informations de base'!$C$14>0,B32<'2. Informations de base'!$C$14),(B32+1),"") ->  | K33: =IFERROR((J33/VLOOKUP($E$17,C$13:$H23,5))*VLOOKUP(E33,$C$7:$H$13,6),"") ->  | M33: =IF(ISBLANK('2. Informations de base'!$C$36),"",'2. Informations de base'!$C$36) ->  | N33: =IF(ISBLANK('2. Informations de base'!$C$38),"",'2. Informations de base'!$C$38) ->  | Q33: =DATEDIF('2. Informations de base'!$C$33,'2. Informations de base'!$C$38,"m") -> 0
B34: =IF(AND('2. Informations de base'!$C$14>0,B33<'2. Informations de base'!$C$14),(B33+1),"") ->  | K34: =IFERROR((J34/VLOOKUP($E$17,C$13:$H24,5))*VLOOKUP(E34,$C$7:$H$13,6),"") ->  | M34: =IF(ISBLANK('2. Informations de base'!$C$36),"",'2. Informations de base'!$C$36) ->  | N34: =IF(ISBLANK('2. Informations de base'!$C$38),"",'2. Informations de base'!$C$38) ->  | Q34: =DATEDIF('2. Informations de base'!$C$33,'2. Informations de base'!$C$38,"m") -> 0
B35: =IF(AND('2. Informations de base'!$C$14>0,B34<'2. Informations de base'!$C$14),(B34+1),"") ->  | K35: =IFERROR((J35/VLOOKUP($E$17,C$13:$H25,5))*VLOOKUP(E35,$C$7:$H$13,6),"") ->  | M35: =IF(ISBLANK('2. Informations de base'!$C$36),"",'2. Informations de base'!$C$36) ->  | N35: =IF(ISBLANK('2. Informations de base'!$C$38),"",'2. Informations de base'!$C$38) ->  | Q35: =DATEDIF('2. Informations de base'!$C$33,'2. Informations de base'!$C$38,"m") -> 0
B36: =IF(AND('2. Informations de base'!$C$14>0,B35<'2. Informations de base'!$C$14),(B35+1),"") ->  | K36: =IFERROR((J36/VLOOKUP($E$17,C$13:$H26,5))*VLOOKUP(E36,$C$7:$H$13,6),"") ->  | M36: =IF(ISBLANK('2. Informations de base'!$C$36),"",'2. Informations de base'!$C$36) ->  | N36: =IF(ISBLANK('2. Informations de base'!$C$38),"",'2. Informations de base'!$C$38) ->  | Q36: =DATEDIF('2. Informations de base'!$C$33,'2. Informations de base'!$C$38,"m") -> 0
B37: =IF(AND('2. Informations de base'!$C$14>0,B36<'2. Informations de base'!$C$14),(B36+1),"") ->  | K37: =IFERROR((J37/VLOOKUP($E$17,C$13:$H27,5))*VLOOKUP(E37,$C$7:$H$13,6),"") ->  | M37: =IF(ISBLANK('2. Informations de base'!$C$36),"",'2. Informations de base'!$C$36) ->  | N37: =IF(ISBLANK('2. Informations de base'!$C$38),"",'2. Informations de base'!$C$38) ->  | Q37: =DATEDIF('2. Informations de base'!$C$33,'2. Informations de base'!$C$38,"m") -> 0
B38: =IF(AND('2. Informations de base'!$C$14>0,B37<'2. Informations de base'!$C$14),(B37+1),"") ->  | K38: =IFERROR((J38/VLOOKUP($E$17,C$13:$H28,5))*VLOOKUP(E38,$C$7:$H$13,6),"") ->  | M38: =IF(ISBLANK('2. Informations de base'!$C$36),"",'2. Informations de base'!$C$36) ->  | N38: =IF(ISBLANK('2. Informations de base'!$C$38),"",'2. Informations de base'!$C$38) ->  | Q38: =DATEDIF('2. Informations de base'!$C$33,'2. Informations de base'!$C$38,"m") -> 0
B39: =IF(AND('2. Informations de base'!$C$14>0,B38<'2. Informations de base'!$C$14),(B38+1),"") ->  | K39: =IFERROR((J39/VLOOKUP($E$17,C$13:$H29,5))*VLOOKUP(E39,$C$7:$H$13,6),"") ->  | M39: =IF(ISBLANK('2. Informations de base'!$C$36),"",'2. Informations de base'!$C$36) ->  | N39: =IF(ISBLANK('2. Informations de base'!$C$38),"",'2. Informations de base'!$C$38) ->  | Q39: =DATEDIF('2. Informations de base'!$C$33,'2. Informations de base'!$C$38,"m") -> 0
B40: =IF(AND('2. Informations de base'!$C$14>0,B39<'2. Informations de base'!$C$14),(B39+1),"") ->  | K40: =IFERROR((J40/VLOOKUP($E$17,C$13:$H30,5))*VLOOKUP(E40,$C$7:$H$13,6),"") ->  | M40: =IF(ISBLANK('2. Informations de base'!$C$36),"",'2. Informations de base'!$C$36) ->  | N40: =IF(ISBLANK('2. Informations de base'!$C$38),"",'2. Informations de base'!$C$38) ->  | Q40: =DATEDIF('2. Informations de base'!$C$33,'2. Informations de base'!$C$38,"m") -> 0
B41: =IF(AND('2. Informations de base'!$C$14>0,B40<'2. Informations de base'!$C$14),(B40+1),"") ->  | K41: =IFERROR((J41/VLOOKUP($E$17,C$13:$H31,5))*VLOOKUP(E41,$C$7:$H$13,6),"") ->  | M41: =IF(ISBLANK('2. Informations de base'!$C$36),"",'2. Informations de base'!$C$36) ->  | N41: =IF(ISBLANK('2. Informations de base'!$C$38),"",'2. Informations de base'!$C$38) ->  | Q41: =DATEDIF('2. Informations de base'!$C$33,'2. Informations de base'!$C$38,"m") -> 0
B42: =IF(AND('2. Informations de base'!$C$14>0,B41<'2. Informations de base'!$C$14),(B41+1),"") ->  | K42: =IFERROR((J42/VLOOKUP($E$17,C$13:$H32,5))*VLOOKUP(E42,$C$7:$H$13,6),"") ->  | M42: =IF(ISBLANK('2. Informations de base'!$C$36),"",'2. Informations de base'!$C$36) ->  | N42: =IF(ISBLANK('2. Informations de base'!$C$38),"",'2. Informations de base'!$C$38) ->  | Q42: =DATEDIF('2. Informations de base'!$C$33,'2. Informations de base'!$C$38,"m") -> 0
B43: =IF(AND('2. Informations de base'!$C$14>0,B42<'2. Informations de base'!$C$14),(B42+1),"") ->  | K43: =IFERROR((J43/VLOOKUP($E$17,C$13:$H33,5))*VLOOKUP(E43,$C$7:$H$13,6),"") ->  | M43: =IF(ISBLANK('2. Informations de base'!$C$36),"",'2. Informations de base'!$C$36) ->  | N43: =IF(ISBLANK('2. Informations de base'!$C$38),"",'2. Informations de base'!$C$38) ->  | Q43: =DATEDIF('2. Informations de base'!$C$33,'2. Informations de base'!$C$38,"m") -> 0
B44: =IF(AND('2. Informations de base'!$C$14>0,B43<'2. Informations de base'!$C$14),(B43+1),"") ->  | K44: =IFERROR((J44/VLOOKUP($E$17,C$13:$H34,5))*VLOOKUP(E44,$C$7:$H$13,6),"") ->  | M44: =IF(ISBLANK('2. Informations de base'!$C$36),"",'2. Informations de base'!$C$36) ->  | N44: =IF(ISBLANK('2. Informations de base'!$C$38),"",'2. Informations de base'!$C$38) ->  | Q44: =DATEDIF('2. Informations de base'!$C$33,'2. Informations de base'!$C$38,"m") -> 0
B45: =IF(AND('2. Informations de base'!$C$14>0,B44<'2. Informations de base'!$C$14),(B44+1),"") ->  | K45: =IFERROR((J45/VLOOKUP($E$17,C$13:$H35,5))*VLOOKUP(E45,$C$7:$H$13,6),"") ->  | M45: =IF(ISBLANK('2. Informations de base'!$C$36),"",'2. Informations de base'!$C$36) ->  | N45: =IF(ISBLANK('2. Informations de base'!$C$38),"",'2. Informations de base'!$C$38) ->  | Q45: =DATEDIF('2. Informations de base'!$C$33,'2. Informations de base'!$C$38,"m") -> 0
B46: =IF(AND('2. Informations de base'!$C$14>0,B45<'2. Informations de base'!$C$14),(B45+1),"") ->  | K46: =IFERROR((J46/VLOOKUP($E$17,C$13:$H36,5))*VLOOKUP(E46,$C$7:$H$13,6),"") ->  | M46: =IF(ISBLANK('2. Informations de base'!$C$36),"",'2. Informations de base'!$C$36) ->  | N46: =IF(ISBLANK('2. Informations de base'!$C$38),"",'2. Informations de base'!$C$38) ->  | Q46: =DATEDIF('2. Informations de base'!$C$33,'2. Informations de base'!$C$38,"m") -> 0
B47: =IF(AND('2. Informations de base'!$C$14>0,B46<'2. Informations de base'!$C$14),(B46+1),"") ->  | K47: =IFERROR((J47/VLOOKUP($E$17,C$13:$H37,5))*VLOOKUP(E47,$C$7:$H$13,6),"") ->  | M47: =IF(ISBLANK('2. Informations de base'!$C$36),"",'2. Informations de base'!$C$36) ->  | N47: =IF(ISBLANK('2. Informations de base'!$C$38),"",'2. Informations de base'!$C$38) ->  | Q47: =DATEDIF('2. Informations de base'!$C$33,'2. Informations de base'!$C$38,"m") -> 0
B48: =IF(AND('2. Informations de base'!$C$14>0,B47<'2. Informations de base'!$C$14),(B47+1),"") ->  | K48: =IFERROR((J48/VLOOKUP($E$17,C$13:$H38,5))*VLOOKUP(E48,$C$7:$H$13,6),"") ->  | M48: =IF(ISBLANK('2. Informations de base'!$C$36),"",'2. Informations de base'!$C$36) ->  | N48: =IF(ISBLANK('2. Informations de base'!$C$38),"",'2. Informations de base'!$C$38) ->  | Q48: =DATEDIF('2. Informations de base'!$C$33,'2. Informations de base'!$C$38,"m") -> 0
B49: =IF(AND('2. Informations de base'!$C$14>0,B48<'2. Informations de base'!$C$14),(B48+1),"") ->  | K49: =IFERROR((J49/VLOOKUP($E$17,C$13:$H39,5))*VLOOKUP(E49,$C$7:$H$13,6),"") ->  | M49: =IF(ISBLANK('2. Informations de base'!$C$36),"",'2. Informations de base'!$C$36) ->  | N49: =IF(ISBLANK('2. Informations de base'!$C$38),"",'2. Informations de base'!$C$38) ->  | Q49: =DATEDIF('2. Informations de base'!$C$33,'2. Informations de base'!$C$38,"m") -> 0
B50: =IF(AND('2. Informations de base'!$C$14>0,B49<'2. Informations de base'!$C$14),(B49+1),"") ->  | K50: =IFERROR((J50/VLOOKUP($E$17,C$13:$H40,5))*VLOOKUP(E50,$C$7:$H$13,6),"") ->  | M50: =IF(ISBLANK('2. Informations de base'!$C$36),"",'2. Informations de base'!$C$36) ->  | N50: =IF(ISBLANK('2. Informations de base'!$C$38),"",'2. Informations de base'!$C$38) ->  | Q50: =DATEDIF('2. Informations de base'!$C$33,'2. Informations de base'!$C$38,"m") -> 0
B51: =IF(AND('2. Informations de base'!$C$14>0,B50<'2. Informations de base'!$C$14),(B50+1),"") ->  | K51: =IFERROR((J51/VLOOKUP($E$17,C$13:$H41,5))*VLOOKUP(E51,$C$7:$H$13,6),"") ->  | M51: =IF(ISBLANK('2. Informations de base'!$C$36),"",'2. Informations de base'!$C$36) ->  | N51: =IF(ISBLANK('2. Informations de base'!$C$38),"",'2. Informations de base'!$C$38) ->  | Q51: =DATEDIF('2. Informations de base'!$C$33,'2. Informations de base'!$C$38,"m") -> 0
B52: =IF(AND('2. Informations de base'!$C$14>0,B51<'2. Informations de base'!$C$14),(B51+1),"") ->  | K52: =IFERROR((J52/VLOOKUP($E$17,C$13:$H42,5))*VLOOKUP(E52,$C$7:$H$13,6),"") ->  | M52: =IF(ISBLANK('2. Informations de base'!$C$36),"",'2. Informations de base'!$C$36) ->  | N52: =IF(ISBLANK('2. Informations de base'!$C$38),"",'2. Informations de base'!$C$38) ->  | Q52: =DATEDIF('2. Informations de base'!$C$33,'2. Informations de base'!$C$38,"m") -> 0
B53: =IF(AND('2. Informations de base'!$C$14>0,B52<'2. Informations de base'!$C$14),(B52+1),"") ->  | K53: =IFERROR((J53/VLOOKUP($E$17,C$13:$H43,5))*VLOOKUP(E53,$C$7:$H$13,6),"") ->  | M53: =IF(ISBLANK('2. Informations de base'!$C$36),"",'2. Informations de base'!$C$36) ->  | N53: =IF(ISBLANK('2. Informations de base'!$C$38),"",'2. Informations de base'!$C$38) ->  | Q53: =DATEDIF('2. Informations de base'!$C$33,'2. Informations de base'!$C$38,"m") -> 0
B54: =IF(AND('2. Informations de base'!$C$14>0,B53<'2. Informations de base'!$C$14),(B53+1),"") ->  | K54: =IFERROR((J54/VLOOKUP($E$17,C$13:$H44,5))*VLOOKUP(E54,$C$7:$H$13,6),"") ->  | M54: =IF(ISBLANK('2. Informations de base'!$C$36),"",'2. Informations de base'!$C$36) ->  | N54: =IF(ISBLANK('2. Informations de base'!$C$38),"",'2. Informations de base'!$C$38) ->  | Q54: =DATEDIF('2. Informations de base'!$C$33,'2. Informations de base'!$C$38,"m") -> 0
B55: =IF(AND('2. Informations de base'!$C$14>0,B54<'2. Informations de base'!$C$14),(B54+1),"") ->  | K55: =IFERROR((J55/VLOOKUP($E$17,C$13:$H45,5))*VLOOKUP(E55,$C$7:$H$13,6),"") ->  | M55: =IF(ISBLANK('2. Informations de base'!$C$36),"",'2. Informations de base'!$C$36) ->  | N55: =IF(ISBLANK('2. Informations de base'!$C$38),"",'2. Informations de base'!$C$38) ->  | Q55: =DATEDIF('2. Informations de base'!$C$33,'2. Informations de base'!$C$38,"m") -> 0
B56: =IF(AND('2. Informations de base'!$C$14>0,B55<'2. Informations de base'!$C$14),(B55+1),"") ->  | K56: =IFERROR((J56/VLOOKUP($E$17,C$13:$H46,5))*VLOOKUP(E56,$C$7:$H$13,6),"") ->  | M56: =IF(ISBLANK('2. Informations de base'!$C$36),"",'2. Informations de base'!$C$36) ->  | N56: =IF(ISBLANK('2. Informations de base'!$C$38),"",'2. Informations de base'!$C$38) ->  | Q56: =DATEDIF('2. Informations de base'!$C$33,'2. Informations de base'!$C$38,"m") -> 0
B57: =IF(AND('2. Informations de base'!$C$14>0,B56<'2. Informations de base'!$C$14),(B56+1),"") ->  | K57: =IFERROR((J57/VLOOKUP($E$17,C$13:$H47,5))*VLOOKUP(E57,$C$7:$H$13,6),"") ->  | M57: =IF(ISBLANK('2. Informations de base'!$C$36),"",'2. Informations de base'!$C$36) ->  | N57: =IF(ISBLANK('2. Informations de base'!$C$38),"",'2. Informations de base'!$C$38) ->  | Q57: =DATEDIF('2. Informations de base'!$C$33,'2. Informations de base'!$C$38,"m") -> 0
B58: =IF(AND('2. Informations de base'!$C$14>0,B57<'2. Informations de base'!$C$14),(B57+1),"") ->  | K58: =IFERROR((J58/VLOOKUP($E$17,C$13:$H48,5))*VLOOKUP(E58,$C$7:$H$13,6),"") ->  | M58: =IF(ISBLANK('2. Informations de base'!$C$36),"",'2. Informations de base'!$C$36) ->  | N58: =IF(ISBLANK('2. Informations de base'!$C$38),"",'2. Informations de base'!$C$38) ->  | Q58: =DATEDIF('2. Informations de base'!$C$33,'2. Informations de base'!$C$38,"m") -> 0
B59: =IF(AND('2. Informations de base'!$C$14>0,B58<'2. Informations de base'!$C$14),(B58+1),"") ->  | K59: =IFERROR((J59/VLOOKUP($E$17,C$13:$H49,5))*VLOOKUP(E59,$C$7:$H$13,6),"") ->  | M59: =IF(ISBLANK('2. Informations de base'!$C$36),"",'2. Informations de base'!$C$36) ->  | N59: =IF(ISBLANK('2. Informations de base'!$C$38),"",'2. Informations de base'!$C$38) ->  | Q59: =DATEDIF('2. Informations de base'!$C$33,'2. Informations de base'!$C$38,"m") -> 0
B60: =IF(AND('2. Informations de base'!$C$14>0,B59<'2. Informations de base'!$C$14),(B59+1),"") ->  | K60: =IFERROR((J60/VLOOKUP($E$17,C$13:$H50,5))*VLOOKUP(E60,$C$7:$H$13,6),"") ->  | M60: =IF(ISBLANK('2. Informations de base'!$C$36),"",'2. Informations de base'!$C$36) ->  | N60: =IF(ISBLANK('2. Informations de base'!$C$38),"",'2. Informations de base'!$C$38) ->  | Q60: =DATEDIF('2. Informations de base'!$C$33,'2. Informations de base'!$C$38,"m") -> 0
B61: =IF(AND('2. Informations de base'!$C$14>0,B60<'2. Informations de base'!$C$14),(B60+1),"") ->  | K61: =IFERROR((J61/VLOOKUP($E$17,C$13:$H51,5))*VLOOKUP(E61,$C$7:$H$13,6),"") ->  | M61: =IF(ISBLANK('2. Informations de base'!$C$36),"",'2. Informations de base'!$C$36) ->  | N61: =IF(ISBLANK('2. Informations de base'!$C$38),"",'2. Informations de base'!$C$38) ->  | Q61: =DATEDIF('2. Informations de base'!$C$33,'2. Informations de base'!$C$38,"m") -> 0
B62: =IF(AND('2. Informations de base'!$C$14>0,B61<'2. Informations de base'!$C$14),(B61+1),"") ->  | K62: =IFERROR((J62/VLOOKUP($E$17,C$13:$H52,5))*VLOOKUP(E62,$C$7:$H$13,6),"") ->  | M62: =IF(ISBLANK('2. Informations de base'!$C$36),"",'2. Informations de base'!$C$36) ->  | N62: =IF(ISBLANK('2. Informations de base'!$C$38),"",'2. Informations de base'!$C$38) ->  | Q62: =DATEDIF('2. Informations de base'!$C$33,'2. Informations de base'!$C$38,"m") -> 0
B63: =IF(AND('2. Informations de base'!$C$14>0,B62<'2. Informations de base'!$C$14),(B62+1),"") ->  | K63: =IFERROR((J63/VLOOKUP($E$17,C$13:$H53,5))*VLOOKUP(E63,$C$7:$H$13,6),"") ->  | M63: =IF(ISBLANK('2. Informations de base'!$C$36),"",'2. Informations de base'!$C$36) ->  | N63: =IF(ISBLANK('2. Informations de base'!$C$38),"",'2. Informations de base'!$C$38) ->  | Q63: =DATEDIF('2. Informations de base'!$C$33,'2. Informations de base'!$C$38,"m") -> 0
B64: =IF(AND('2. Informations de base'!$C$14>0,B63<'2. Informations de base'!$C$14),(B63+1),"") ->  | K64: =IFERROR((J64/VLOOKUP($E$17,C$13:$H54,5))*VLOOKUP(E64,$C$7:$H$13,6),"") ->  | M64: =IF(ISBLANK('2. Informations de base'!$C$36),"",'2. Informations de base'!$C$36) ->  | N64: =IF(ISBLANK('2. Informations de base'!$C$38),"",'2. Informations de base'!$C$38) ->  | Q64: =DATEDIF('2. Informations de base'!$C$33,'2. Informations de base'!$C$38,"m") -> 0
B65: =IF(AND('2. Informations de base'!$C$14>0,B64<'2. Informations de base'!$C$14),(B64+1),"") ->  | K65: =IFERROR((J65/VLOOKUP($E$17,C$13:$H55,5))*VLOOKUP(E65,$C$7:$H$13,6),"") ->  | M65: =IF(ISBLANK('2. Informations de base'!$C$36),"",'2. Informations de base'!$C$36) ->  | N65: =IF(ISBLANK('2. Informations de base'!$C$38),"",'2. Informations de base'!$C$38) ->  | Q65: =DATEDIF('2. Informations de base'!$C$33,'2. Informations de base'!$C$38,"m") -> 0
B66: =IF(AND('2. Informations de base'!$C$14>0,B65<'2. Informations de base'!$C$14),(B65+1),"") ->  | K66: =IFERROR((J66/VLOOKUP($E$17,C$13:$H56,5))*VLOOKUP(E66,$C$7:$H$13,6),"") ->  | M66: =IF(ISBLANK('2. Informations de base'!$C$36),"",'2. Informations de base'!$C$36) ->  | N66: =IF(ISBLANK('2. Informations de base'!$C$38),"",'2. Informations de base'!$C$38) ->  | Q66: =DATEDIF('2. Informations de base'!$C$33,'2. Informations de base'!$C$38,"m") -> 0
B67: =IF(AND('2. Informations de base'!$C$14>0,B66<'2. Informations de base'!$C$14),(B66+1),"") ->  | K67: =IFERROR((J67/VLOOKUP($E$17,C$13:$H57,5))*VLOOKUP(E67,$C$7:$H$13,6),"") ->  | M67: =IF(ISBLANK('2. Informations de base'!$C$36),"",'2. Informations de base'!$C$36) ->  | N67: =IF(ISBLANK('2. Informations de base'!$C$38),"",'2. Informations de base'!$C$38) ->  | Q67: =DATEDIF('2. Informations de base'!$C$33,'2. Informations de base'!$C$38,"m") -> 0
B68: =IF(AND('2. Informations de base'!$C$14>0,B67<'2. Informations de base'!$C$14),(B67+1),"") ->  | K68: =IFERROR((J68/VLOOKUP($E$17,C$13:$H58,5))*VLOOKUP(E68,$C$7:$H$13,6),"") ->  | M68: =IF(ISBLANK('2. Informations de base'!$C$36),"",'2. Informations de base'!$C$36) ->  | N68: =IF(ISBLANK('2. Informations de base'!$C$38),"",'2. Informations de base'!$C$38) ->  | Q68: =DATEDIF('2. Informations de base'!$C$33,'2. Informations de base'!$C$38,"m") -> 0
B69: =IF(AND('2. Informations de base'!$C$14>0,B68<'2. Informations de base'!$C$14),(B68+1),"") ->  | K69: =IFERROR((J69/VLOOKUP($E$17,C$13:$H59,5))*VLOOKUP(E69,$C$7:$H$13,6),"") ->  | M69: =IF(ISBLANK('2. Informations de base'!$C$36),"",'2. Informations de base'!$C$36) ->  | N69: =IF(ISBLANK('2. Informations de base'!$C$38),"",'2. Informations de base'!$C$38) ->  | Q69: =DATEDIF('2. Informations de base'!$C$33,'2. Informations de base'!$C$38,"m") -> 0
B70: =IF(AND('2. Informations de base'!$C$14>0,B69<'2. Informations de base'!$C$14),(B69+1),"") ->  | K70: =IFERROR((J70/VLOOKUP($E$17,C$13:$H60,5))*VLOOKUP(E70,$C$7:$H$13,6),"") ->  | M70: =IF(ISBLANK('2. Informations de base'!$C$36),"",'2. Informations de base'!$C$36) ->  | N70: =IF(ISBLANK('2. Informations de base'!$C$38),"",'2. Informations de base'!$C$38) ->  | Q70: =DATEDIF('2. Informations de base'!$C$33,'2. Informations de base'!$C$38,"m") -> 0
B71: =IF(AND('2. Informations de base'!$C$14>0,B70<'2. Informations de base'!$C$14),(B70+1),"") ->  | K71: =IFERROR((J71/VLOOKUP($E$17,C$13:$H61,5))*VLOOKUP(E71,$C$7:$H$13,6),"") ->  | M71: =IF(ISBLANK('2. Informations de base'!$C$36),"",'2. Informations de base'!$C$36) ->  | N71: =IF(ISBLANK('2. Informations de base'!$C$38),"",'2. Informations de base'!$C$38) ->  | Q71: =DATEDIF('2. Informations de base'!$C$33,'2. Informations de base'!$C$38,"m") -> 0
B72: =IF(AND('2. Informations de base'!$C$14>0,B71<'2. Informations de base'!$C$14),(B71+1),"") ->  | K72: =IFERROR((J72/VLOOKUP($E$17,C$13:$H62,5))*VLOOKUP(E72,$C$7:$H$13,6),"") ->  | M72: =IF(ISBLANK('2. Informations de base'!$C$36),"",'2. Informations de base'!$C$36) ->  | N72: =IF(ISBLANK('2. Informations de base'!$C$38),"",'2. Informations de base'!$C$38) ->  | Q72: =DATEDIF('2. Informations de base'!$C$33,'2. Informations de base'!$C$38,"m") -> 0
B73: =IF(AND('2. Informations de base'!$C$14>0,B72<'2. Informations de base'!$C$14),(B72+1),"") ->  | K73: =IFERROR((J73/VLOOKUP($E$17,C$13:$H63,5))*VLOOKUP(E73,$C$7:$H$13,6),"") ->  | M73: =IF(ISBLANK('2. Informations de base'!$C$36),"",'2. Informations de base'!$C$36) ->  | N73: =IF(ISBLANK('2. Informations de base'!$C$38),"",'2. Informations de base'!$C$38) ->  | Q73: =DATEDIF('2. Informations de base'!$C$33,'2. Informations de base'!$C$38,"m") -> 0
B74: =IF(AND('2. Informations de base'!$C$14>0,B73<'2. Informations de base'!$C$14),(B73+1),"") ->  | K74: =IFERROR((J74/VLOOKUP($E$17,C$13:$H64,5))*VLOOKUP(E74,$C$7:$H$13,6),"") ->  | M74: =IF(ISBLANK('2. Informations de base'!$C$36),"",'2. Informations de base'!$C$36) ->  | N74: =IF(ISBLANK('2. Informations de base'!$C$38),"",'2. Informations de base'!$C$38) ->  | Q74: =DATEDIF('2. Informations de base'!$C$33,'2. Informations de base'!$C$38,"m") -> 0
B75: =IF(AND('2. Informations de base'!$C$14>0,B74<'2. Informations de base'!$C$14),(B74+1),"") ->  | K75: =IFERROR((J75/VLOOKUP($E$17,C$13:$H65,5))*VLOOKUP(E75,$C$7:$H$13,6),"") ->  | M75: =IF(ISBLANK('2. Informations de base'!$C$36),"",'2. Informations de base'!$C$36) ->  | N75: =IF(ISBLANK('2. Informations de base'!$C$38),"",'2. Informations de base'!$C$38) ->  | Q75: =DATEDIF('2. Informations de base'!$C$33,'2. Informations de base'!$C$38,"m") -> 0
B76: =IF(AND('2. Informations de base'!$C$14>0,B75<'2. Informations de base'!$C$14),(B75+1),"") ->  | K76: =IFERROR((J76/VLOOKUP($E$17,C$13:$H66,5))*VLOOKUP(E76,$C$7:$H$13,6),"") ->  | M76: =IF(ISBLANK('2. Informations de base'!$C$36),"",'2. Informations de base'!$C$36) ->  | N76: =IF(ISBLANK('2. Informations de base'!$C$38),"",'2. Informations de base'!$C$38) ->  | Q76: =DATEDIF('2. Informations de base'!$C$33,'2. Informations de base'!$C$38,"m") -> 0
B77: =IF(AND('2. Informations de base'!$C$14>0,B76<'2. Informations de base'!$C$14),(B76+1),"") ->  | K77: =IFERROR((J77/VLOOKUP($E$17,C$13:$H67,5))*VLOOKUP(E77,$C$7:$H$13,6),"") ->  | M77: =IF(ISBLANK('2. Informations de base'!$C$36),"",'2. Informations de base'!$C$36) ->  | N77: =IF(ISBLANK('2. Informations de base'!$C$38),"",'2. Informations de base'!$C$38) ->  | Q77: =DATEDIF('2. Informations de base'!$C$33,'2. Informations de base'!$C$38,"m") -> 0
B78: =IF(AND('2. Informations de base'!$C$14>0,B77<'2. Informations de base'!$C$14),(B77+1),"") ->  | K78: =IFERROR((J78/VLOOKUP($E$17,C$13:$H68,5))*VLOOKUP(E78,$C$7:$H$13,6),"") ->  | M78: =IF(ISBLANK('2. Informations de base'!$C$36),"",'2. Informations de base'!$C$36) ->  | N78: =IF(ISBLANK('2. Informations de base'!$C$38),"",'2. Informations de base'!$C$38) ->  | Q78: =DATEDIF('2. Informations de base'!$C$33,'2. Informations de base'!$C$38,"m") -> 0
B79: =IF(AND('2. Informations de base'!$C$14>0,B78<'2. Informations de base'!$C$14),(B78+1),"") ->  | K79: =IFERROR((J79/VLOOKUP($E$17,C$13:$H69,5))*VLOOKUP(E79,$C$7:$H$13,6),"") ->  | M79: =IF(ISBLANK('2. Informations de base'!$C$36),"",'2. Informations de base'!$C$36) ->  | N79: =IF(ISBLANK('2. Informations de base'!$C$38),"",'2. Informations de base'!$C$38) ->  | Q79: =DATEDIF('2. Informations de base'!$C$33,'2. Informations de base'!$C$38,"m") -> 0
B80: =IF(AND('2. Informations de base'!$C$14>0,B79<'2. Informations de base'!$C$14),(B79+1),"") ->  | K80: =IFERROR((J80/VLOOKUP($E$17,C$13:$H70,5))*VLOOKUP(E80,$C$7:$H$13,6),"") ->  | M80: =IF(ISBLANK('2. Informations de base'!$C$36),"",'2. Informations de base'!$C$36) ->  | N80: =IF(ISBLANK('2. Informations de base'!$C$38),"",'2. Informations de base'!$C$38) ->  | Q80: =DATEDIF('2. Informations de base'!$C$33,'2. Informations de base'!$C$38,"m") -> 0
B81: =IF(AND('2. Informations de base'!$C$14>0,B80<'2. Informations de base'!$C$14),(B80+1),"") ->  | E81: =IFERROR(IF(B81="","",VLOOKUP($B81,$B$7:$C$13,2)),"") ->  | F81: =IF(B81="","",(IF($S$12="Oui","Loué","Vacant"))) ->  | J81: =IF(ISBLANK($H81),"",$H81-$I81) ->  | K81: =IFERROR((J81/VLOOKUP($E$17,C$13:$H71,5))*VLOOKUP(E81,$C$7:$H$13,6),"") ->  | M81: =IF(ISBLANK('2. Informations de base'!$C$36),"",'2. Informations de base'!$C$36) ->  | N81: =IF(ISBLANK('2. Informations de base'!$C$38),"",'2. Informations de base'!$C$38) ->  | P81: =IFERROR(DATEDIF(N81,O81,"m"),"") ->  | Q81: =DATEDIF('2. Informations de base'!$C$33,'2. Informations de base'!$C$38,"m") -> 0
B82: =IF(AND('2. Informations de base'!$C$14>0,B81<'2. Informations de base'!$C$14),(B81+1),"") ->  | K82: =IFERROR((J82/VLOOKUP($E$17,C$13:$H72,5))*VLOOKUP(E82,$C$7:$H$13,6),"") ->  | M82: =IF(ISBLANK('2. Informations de base'!$C$36),"",'2. Informations de base'!$C$36) ->  | N82: =IF(ISBLANK('2. Informations de base'!$C$38),"",'2. Informations de base'!$C$38) ->  | O82: =IFERROR(IF(N82>=EDATE(M82,3),N82,EDATE(N82,12)),"") ->  | Q82: =DATEDIF('2. Informations de base'!$C$33,'2. Informations de base'!$C$38,"m") -> 0
B83: =IF(AND('2. Informations de base'!$C$14>0,B82<'2. Informations de base'!$C$14),(B82+1),"") ->  | K83: =IFERROR((J83/VLOOKUP($E$17,C$13:$H73,5))*VLOOKUP(E83,$C$7:$H$13,6),"") ->  | M83: =IF(ISBLANK('2. Informations de base'!$C$36),"",'2. Informations de base'!$C$36) ->  | N83: =IF(ISBLANK('2. Informations de base'!$C$38),"",'2. Informations de base'!$C$38) ->  | Q83: =DATEDIF('2. Informations de base'!$C$33,'2. Informations de base'!$C$38,"m") -> 0
B84: =IF(AND('2. Informations de base'!$C$14>0,B83<'2. Informations de base'!$C$14),(B83+1),"") ->  | K84: =IFERROR((J84/VLOOKUP($E$17,C$13:$H74,5))*VLOOKUP(E84,$C$7:$H$13,6),"") ->  | M84: =IF(ISBLANK('2. Informations de base'!$C$36),"",'2. Informations de base'!$C$36) ->  | N84: =IF(ISBLANK('2. Informations de base'!$C$38),"",'2. Informations de base'!$C$38) ->  | Q84: =DATEDIF('2. Informations de base'!$C$33,'2. Informations de base'!$C$38,"m") -> 0
B85: =IF(AND('2. Informations de base'!$C$14>0,B84<'2. Informations de base'!$C$14),(B84+1),"") ->  | K85: =IFERROR((J85/VLOOKUP($E$17,C$13:$H75,5))*VLOOKUP(E85,$C$7:$H$13,6),"") ->  | M85: =IF(ISBLANK('2. Informations de base'!$C$36),"",'2. Informations de base'!$C$36) ->  | N85: =IF(ISBLANK('2. Informations de base'!$C$38),"",'2. Informations de base'!$C$38) ->  | Q85: =DATEDIF('2. Informations de base'!$C$33,'2. Informations de base'!$C$38,"m") -> 0
B86: =IF(AND('2. Informations de base'!$C$14>0,B85<'2. Informations de base'!$C$14),(B85+1),"") ->  | K86: =IFERROR((J86/VLOOKUP($E$17,C$13:$H76,5))*VLOOKUP(E86,$C$7:$H$13,6),"") ->  | M86: =IF(ISBLANK('2. Informations de base'!$C$36),"",'2. Informations de base'!$C$36) ->  | N86: =IF(ISBLANK('2. Informations de base'!$C$38),"",'2. Informations de base'!$C$38) ->  | Q86: =DATEDIF('2. Informations de base'!$C$33,'2. Informations de base'!$C$38,"m") -> 0
B87: =IF(AND('2. Informations de base'!$C$14>0,B86<'2. Informations de base'!$C$14),(B86+1),"") ->  | K87: =IFERROR((J87/VLOOKUP($E$17,C$13:$H77,5))*VLOOKUP(E87,$C$7:$H$13,6),"") ->  | M87: =IF(ISBLANK('2. Informations de base'!$C$36),"",'2. Informations de base'!$C$36) ->  | N87: =IF(ISBLANK('2. Informations de base'!$C$38),"",'2. Informations de base'!$C$38) ->  | Q87: =DATEDIF('2. Informations de base'!$C$33,'2. Informations de base'!$C$38,"m") -> 0
B88: =IF(AND('2. Informations de base'!$C$14>0,B87<'2. Informations de base'!$C$14),(B87+1),"") ->  | K88: =IFERROR((J88/VLOOKUP($E$17,C$13:$H78,5))*VLOOKUP(E88,$C$7:$H$13,6),"") ->  | M88: =IF(ISBLANK('2. Informations de base'!$C$36),"",'2. Informations de base'!$C$36) ->  | N88: =IF(ISBLANK('2. Informations de base'!$C$38),"",'2. Informations de base'!$C$38) ->  | Q88: =DATEDIF('2. Informations de base'!$C$33,'2. Informations de base'!$C$38,"m") -> 0
B89: =IF(AND('2. Informations de base'!$C$14>0,B88<'2. Informations de base'!$C$14),(B88+1),"") ->  | K89: =IFERROR((J89/VLOOKUP($E$17,C$13:$H79,5))*VLOOKUP(E89,$C$7:$H$13,6),"") ->  | M89: =IF(ISBLANK('2. Informations de base'!$C$36),"",'2. Informations de base'!$C$36) ->  | N89: =IF(ISBLANK('2. Informations de base'!$C$38),"",'2. Informations de base'!$C$38) ->  | Q89: =DATEDIF('2. Informations de base'!$C$33,'2. Informations de base'!$C$38,"m") -> 0
B90: =IF(AND('2. Informations de base'!$C$14>0,B89<'2. Informations de base'!$C$14),(B89+1),"") ->  | K90: =IFERROR((J90/VLOOKUP($E$17,C$13:$H80,5))*VLOOKUP(E90,$C$7:$H$13,6),"") ->  | M90: =IF(ISBLANK('2. Informations de base'!$C$36),"",'2. Informations de base'!$C$36) ->  | N90: =IF(ISBLANK('2. Informations de base'!$C$38),"",'2. Informations de base'!$C$38) ->  | Q90: =DATEDIF('2. Informations de base'!$C$33,'2. Informations de base'!$C$38,"m") -> 0
B91: =IF(AND('2. Informations de base'!$C$14>0,B90<'2. Informations de base'!$C$14),(B90+1),"") ->  | K91: =IFERROR((J91/VLOOKUP($E$17,C$13:$H81,5))*VLOOKUP(E91,$C$7:$H$13,6),"") ->  | M91: =IF(ISBLANK('2. Informations de base'!$C$36),"",'2. Informations de base'!$C$36) ->  | N91: =IF(ISBLANK('2. Informations de base'!$C$38),"",'2. Informations de base'!$C$38) ->  | Q91: =DATEDIF('2. Informations de base'!$C$33,'2. Informations de base'!$C$38,"m") -> 0
B92: =IF(AND('2. Informations de base'!$C$14>0,B91<'2. Informations de base'!$C$14),(B91+1),"") ->  | K92: =IFERROR((J92/VLOOKUP($E$17,C$13:$H82,5))*VLOOKUP(E92,$C$7:$H$13,6),"") ->  | M92: =IF(ISBLANK('2. Informations de base'!$C$36),"",'2. Informations de base'!$C$36) ->  | N92: =IF(ISBLANK('2. Informations de base'!$C$38),"",'2. Informations de base'!$C$38) ->  | Q92: =DATEDIF('2. Informations de base'!$C$33,'2. Informations de base'!$C$38,"m") -> 0
B93: =IF(AND('2. Informations de base'!$C$14>0,B92<'2. Informations de base'!$C$14),(B92+1),"") ->  | K93: =IFERROR((J93/VLOOKUP($E$17,C$13:$H83,5))*VLOOKUP(E93,$C$7:$H$13,6),"") ->  | M93: =IF(ISBLANK('2. Informations de base'!$C$36),"",'2. Informations de base'!$C$36) ->  | N93: =IF(ISBLANK('2. Informations de base'!$C$38),"",'2. Informations de base'!$C$38) ->  | Q93: =DATEDIF('2. Informations de base'!$C$33,'2. Informations de base'!$C$38,"m") -> 0
B94: =IF(AND('2. Informations de base'!$C$14>0,B93<'2. Informations de base'!$C$14),(B93+1),"") ->  | K94: =IFERROR((J94/VLOOKUP($E$17,C$13:$H84,5))*VLOOKUP(E94,$C$7:$H$13,6),"") ->  | M94: =IF(ISBLANK('2. Informations de base'!$C$36),"",'2. Informations de base'!$C$36) ->  | N94: =IF(ISBLANK('2. Informations de base'!$C$38),"",'2. Informations de base'!$C$38) ->  | Q94: =DATEDIF('2. Informations de base'!$C$33,'2. Informations de base'!$C$38,"m") -> 0
B95: =IF(AND('2. Informations de base'!$C$14>0,B94<'2. Informations de base'!$C$14),(B94+1),"") ->  | K95: =IFERROR((J95/VLOOKUP($E$17,C$13:$H85,5))*VLOOKUP(E95,$C$7:$H$13,6),"") ->  | M95: =IF(ISBLANK('2. Informations de base'!$C$36),"",'2. Informations de base'!$C$36) ->  | N95: =IF(ISBLANK('2. Informations de base'!$C$38),"",'2. Informations de base'!$C$38) ->  | Q95: =DATEDIF('2. Informations de base'!$C$33,'2. Informations de base'!$C$38,"m") -> 0
B96: =IF(AND('2. Informations de base'!$C$14>0,B95<'2. Informations de base'!$C$14),(B95+1),"") ->  | K96: =IFERROR((J96/VLOOKUP($E$17,C$13:$H86,5))*VLOOKUP(E96,$C$7:$H$13,6),"") ->  | M96: =IF(ISBLANK('2. Informations de base'!$C$36),"",'2. Informations de base'!$C$36) ->  | N96: =IF(ISBLANK('2. Informations de base'!$C$38),"",'2. Informations de base'!$C$38) ->  | Q96: =DATEDIF('2. Informations de base'!$C$33,'2. Informations de base'!$C$38,"m") -> 0
B97: =IF(AND('2. Informations de base'!$C$14>0,B96<'2. Informations de base'!$C$14),(B96+1),"") ->  | K97: =IFERROR((J97/VLOOKUP($E$17,C$13:$H87,5))*VLOOKUP(E97,$C$7:$H$13,6),"") ->  | M97: =IF(ISBLANK('2. Informations de base'!$C$36),"",'2. Informations de base'!$C$36) ->  | N97: =IF(ISBLANK('2. Informations de base'!$C$38),"",'2. Informations de base'!$C$38) ->  | Q97: =DATEDIF('2. Informations de base'!$C$33,'2. Informations de base'!$C$38,"m") -> 0
B98: =IF(AND('2. Informations de base'!$C$14>0,B97<'2. Informations de base'!$C$14),(B97+1),"") ->  | K98: =IFERROR((J98/VLOOKUP($E$17,C$13:$H88,5))*VLOOKUP(E98,$C$7:$H$13,6),"") ->  | M98: =IF(ISBLANK('2. Informations de base'!$C$36),"",'2. Informations de base'!$C$36) ->  | N98: =IF(ISBLANK('2. Informations de base'!$C$38),"",'2. Informations de base'!$C$38) ->  | Q98: =DATEDIF('2. Informations de base'!$C$33,'2. Informations de base'!$C$38,"m") -> 0
B99: =IF(AND('2. Informations de base'!$C$14>0,B98<'2. Informations de base'!$C$14),(B98+1),"") ->  | K99: =IFERROR((J99/VLOOKUP($E$17,C$13:$H89,5))*VLOOKUP(E99,$C$7:$H$13,6),"") ->  | M99: =IF(ISBLANK('2. Informations de base'!$C$36),"",'2. Informations de base'!$C$36) ->  | N99: =IF(ISBLANK('2. Informations de base'!$C$38),"",'2. Informations de base'!$C$38) ->  | Q99: =DATEDIF('2. Informations de base'!$C$33,'2. Informations de base'!$C$38,"m") -> 0
B100: =IF(AND('2. Informations de base'!$C$14>0,B99<'2. Informations de base'!$C$14),(B99+1),"") ->  | K100: =IFERROR((J100/VLOOKUP($E$17,C$13:$H90,5))*VLOOKUP(E100,$C$7:$H$13,6),"") ->  | M100: =IF(ISBLANK('2. Informations de base'!$C$36),"",'2. Informations de base'!$C$36) ->  | N100: =IF(ISBLANK('2. Informations de base'!$C$38),"",'2. Informations de base'!$C$38) ->  | Q100: =DATEDIF('2. Informations de base'!$C$33,'2. Informations de base'!$C$38,"m") -> 0
B101: =IF(AND('2. Informations de base'!$C$14>0,B100<'2. Informations de base'!$C$14),(B100+1),"") ->  | K101: =IFERROR((J101/VLOOKUP($E$17,C$13:$H91,5))*VLOOKUP(E101,$C$7:$H$13,6),"") ->  | M101: =IF(ISBLANK('2. Informations de base'!$C$36),"",'2. Informations de base'!$C$36) ->  | N101: =IF(ISBLANK('2. Informations de base'!$C$38),"",'2. Informations de base'!$C$38) ->  | Q101: =DATEDIF('2. Informations de base'!$C$33,'2. Informations de base'!$C$38,"m") -> 0
B102: =IF(AND('2. Informations de base'!$C$14>0,B101<'2. Informations de base'!$C$14),(B101+1),"") ->  | K102: =IFERROR((J102/VLOOKUP($E$17,C$13:$H92,5))*VLOOKUP(E102,$C$7:$H$13,6),"") ->  | M102: =IF(ISBLANK('2. Informations de base'!$C$36),"",'2. Informations de base'!$C$36) ->  | N102: =IF(ISBLANK('2. Informations de base'!$C$38),"",'2. Informations de base'!$C$38) ->  | Q102: =DATEDIF('2. Informations de base'!$C$33,'2. Informations de base'!$C$38,"m") -> 0
B103: =IF(AND('2. Informations de base'!$C$14>0,B102<'2. Informations de base'!$C$14),(B102+1),"") ->  | K103: =IFERROR((J103/VLOOKUP($E$17,C$13:$H93,5))*VLOOKUP(E103,$C$7:$H$13,6),"") ->  | M103: =IF(ISBLANK('2. Informations de base'!$C$36),"",'2. Informations de base'!$C$36) ->  | N103: =IF(ISBLANK('2. Informations de base'!$C$38),"",'2. Informations de base'!$C$38) ->  | Q103: =DATEDIF('2. Informations de base'!$C$33,'2. Informations de base'!$C$38,"m") -> 0
B104: =IF(AND('2. Informations de base'!$C$14>0,B103<'2. Informations de base'!$C$14),(B103+1),"") ->  | K104: =IFERROR((J104/VLOOKUP($E$17,C$13:$H94,5))*VLOOKUP(E104,$C$7:$H$13,6),"") ->  | M104: =IF(ISBLANK('2. Informations de base'!$C$36),"",'2. Informations de base'!$C$36) ->  | N104: =IF(ISBLANK('2. Informations de base'!$C$38),"",'2. Informations de base'!$C$38) ->  | Q104: =DATEDIF('2. Informations de base'!$C$33,'2. Informations de base'!$C$38,"m") -> 0
B105: =IF(AND('2. Informations de base'!$C$14>0,B104<'2. Informations de base'!$C$14),(B104+1),"") ->  | K105: =IFERROR((J105/VLOOKUP($E$17,C$13:$H95,5))*VLOOKUP(E105,$C$7:$H$13,6),"") ->  | M105: =IF(ISBLANK('2. Informations de base'!$C$36),"",'2. Informations de base'!$C$36) ->  | N105: =IF(ISBLANK('2. Informations de base'!$C$38),"",'2. Informations de base'!$C$38) ->  | Q105: =DATEDIF('2. Informations de base'!$C$33,'2. Informations de base'!$C$38,"m") -> 0
B106: =IF(AND('2. Informations de base'!$C$14>0,B105<'2. Informations de base'!$C$14),(B105+1),"") ->  | K106: =IFERROR((J106/VLOOKUP($E$17,C$13:$H96,5))*VLOOKUP(E106,$C$7:$H$13,6),"") ->  | M106: =IF(ISBLANK('2. Informations de base'!$C$36),"",'2. Informations de base'!$C$36) ->  | N106: =IF(ISBLANK('2. Informations de base'!$C$38),"",'2. Informations de base'!$C$38) ->  | Q106: =DATEDIF('2. Informations de base'!$C$33,'2. Informations de base'!$C$38,"m") -> 0
B107: =IF(AND('2. Informations de base'!$C$14>0,B106<'2. Informations de base'!$C$14),(B106+1),"") ->  | K107: =IFERROR((J107/VLOOKUP($E$17,C$13:$H97,5))*VLOOKUP(E107,$C$7:$H$13,6),"") ->  | M107: =IF(ISBLANK('2. Informations de base'!$C$36),"",'2. Informations de base'!$C$36) ->  | N107: =IF(ISBLANK('2. Informations de base'!$C$38),"",'2. Informations de base'!$C$38) ->  | Q107: =DATEDIF('2. Informations de base'!$C$33,'2. Informations de base'!$C$38,"m") -> 0
B108: =IF(AND('2. Informations de base'!$C$14>0,B107<'2. Informations de base'!$C$14),(B107+1),"") ->  | K108: =IFERROR((J108/VLOOKUP($E$17,C$13:$H98,5))*VLOOKUP(E108,$C$7:$H$13,6),"") ->  | M108: =IF(ISBLANK('2. Informations de base'!$C$36),"",'2. Informations de base'!$C$36) ->  | N108: =IF(ISBLANK('2. Informations de base'!$C$38),"",'2. Informations de base'!$C$38) ->  | Q108: =DATEDIF('2. Informations de base'!$C$33,'2. Informations de base'!$C$38,"m") -> 0
B109: =IF(AND('2. Informations de base'!$C$14>0,B108<'2. Informations de base'!$C$14),(B108+1),"") ->  | K109: =IFERROR((J109/VLOOKUP($E$17,C$13:$H99,5))*VLOOKUP(E109,$C$7:$H$13,6),"") ->  | M109: =IF(ISBLANK('2. Informations de base'!$C$36),"",'2. Informations de base'!$C$36) ->  | N109: =IF(ISBLANK('2. Informations de base'!$C$38),"",'2. Informations de base'!$C$38) ->  | Q109: =DATEDIF('2. Informations de base'!$C$33,'2. Informations de base'!$C$38,"m") -> 0
B110: =IF(AND('2. Informations de base'!$C$14>0,B109<'2. Informations de base'!$C$14),(B109+1),"") ->  | K110: =IFERROR((J110/VLOOKUP($E$17,C$13:$H100,5))*VLOOKUP(E110,$C$7:$H$13,6),"") ->  | M110: =IF(ISBLANK('2. Informations de base'!$C$36),"",'2. Informations de base'!$C$36) ->  | N110: =IF(ISBLANK('2. Informations de base'!$C$38),"",'2. Informations de base'!$C$38) ->  | Q110: =DATEDIF('2. Informations de base'!$C$33,'2. Informations de base'!$C$38,"m") -> 0
B111: =IF(AND('2. Informations de base'!$C$14>0,B110<'2. Informations de base'!$C$14),(B110+1),"") ->  | K111: =IFERROR((J111/VLOOKUP($E$17,C$13:$H101,5))*VLOOKUP(E111,$C$7:$H$13,6),"") ->  | M111: =IF(ISBLANK('2. Informations de base'!$C$36),"",'2. Informations de base'!$C$36) ->  | N111: =IF(ISBLANK('2. Informations de base'!$C$38),"",'2. Informations de base'!$C$38) ->  | Q111: =DATEDIF('2. Informations de base'!$C$33,'2. Informations de base'!$C$38,"m") -> 0
B112: =IF(AND('2. Informations de base'!$C$14>0,B111<'2. Informations de base'!$C$14),(B111+1),"") ->  | K112: =IFERROR((J112/VLOOKUP($E$17,C$13:$H102,5))*VLOOKUP(E112,$C$7:$H$13,6),"") ->  | M112: =IF(ISBLANK('2. Informations de base'!$C$36),"",'2. Informations de base'!$C$36) ->  | N112: =IF(ISBLANK('2. Informations de base'!$C$38),"",'2. Informations de base'!$C$38) ->  | Q112: =DATEDIF('2. Informations de base'!$C$33,'2. Informations de base'!$C$38,"m") -> 0
B113: =IF(AND('2. Informations de base'!$C$14>0,B112<'2. Informations de base'!$C$14),(B112+1),"") ->  | K113: =IFERROR((J113/VLOOKUP($E$17,C$13:$H103,5))*VLOOKUP(E113,$C$7:$H$13,6),"") ->  | M113: =IF(ISBLANK('2. Informations de base'!$C$36),"",'2. Informations de base'!$C$36) ->  | N113: =IF(ISBLANK('2. Informations de base'!$C$38),"",'2. Informations de base'!$C$38) ->  | Q113: =DATEDIF('2. Informations de base'!$C$33,'2. Informations de base'!$C$38,"m") -> 0
B114: =IF(AND('2. Informations de base'!$C$14>0,B113<'2. Informations de base'!$C$14),(B113+1),"") ->  | K114: =IFERROR((J114/VLOOKUP($E$17,C$13:$H104,5))*VLOOKUP(E114,$C$7:$H$13,6),"") ->  | M114: =IF(ISBLANK('2. Informations de base'!$C$36),"",'2. Informations de base'!$C$36) ->  | N114: =IF(ISBLANK('2. Informations de base'!$C$38),"",'2. Informations de base'!$C$38) ->  | Q114: =DATEDIF('2. Informations de base'!$C$33,'2. Informations de base'!$C$38,"m") -> 0
B115: =IF(AND('2. Informations de base'!$C$14>0,B114<'2. Informations de base'!$C$14),(B114+1),"") ->  | K115: =IFERROR((J115/VLOOKUP($E$17,C$13:$H105,5))*VLOOKUP(E115,$C$7:$H$13,6),"") ->  | M115: =IF(ISBLANK('2. Informations de base'!$C$36),"",'2. Informations de base'!$C$36) ->  | N115: =IF(ISBLANK('2. Informations de base'!$C$38),"",'2. Informations de base'!$C$38) ->  | Q115: =DATEDIF('2. Informations de base'!$C$33,'2. Informations de base'!$C$38,"m") -> 0
B116: =IF(AND('2. Informations de base'!$C$14>0,B115<'2. Informations de base'!$C$14),(B115+1),"") ->  | K116: =IFERROR((J116/VLOOKUP($E$17,C$13:$H106,5))*VLOOKUP(E116,$C$7:$H$13,6),"") ->  | M116: =IF(ISBLANK('2. Informations de base'!$C$36),"",'2. Informations de base'!$C$36) ->  | N116: =IF(ISBLANK('2. Informations de base'!$C$38),"",'2. Informations de base'!$C$38) ->  | Q116: =DATEDIF('2. Informations de base'!$C$33,'2. Informations de base'!$C$38,"m") -> 0
B117: =IF(AND('2. Informations de base'!$C$14>0,B116<'2. Informations de base'!$C$14),(B116+1),"") ->  | K117: =IFERROR((J117/VLOOKUP($E$17,C$13:$H107,5))*VLOOKUP(E117,$C$7:$H$13,6),"") ->  | M117: =IF(ISBLANK('2. Informations de base'!$C$36),"",'2. Informations de base'!$C$36) ->  | N117: =IF(ISBLANK('2. Informations de base'!$C$38),"",'2. Informations de base'!$C$38) ->  | Q117: =DATEDIF('2. Informations de base'!$C$33,'2. Informations de base'!$C$38,"m") -> 0
B118: =IF(AND('2. Informations de base'!$C$14>0,B117<'2. Informations de base'!$C$14),(B117+1),"") ->  | K118: =IFERROR((J118/VLOOKUP($E$17,C$13:$H108,5))*VLOOKUP(E118,$C$7:$H$13,6),"") ->  | M118: =IF(ISBLANK('2. Informations de base'!$C$36),"",'2. Informations de base'!$C$36) ->  | N118: =IF(ISBLANK('2. Informations de base'!$C$38),"",'2. Informations de base'!$C$38) ->  | Q118: =DATEDIF('2. Informations de base'!$C$33,'2. Informations de base'!$C$38,"m") -> 0
B119: =IF(AND('2. Informations de base'!$C$14>0,B118<'2. Informations de base'!$C$14),(B118+1),"") ->  | K119: =IFERROR((J119/VLOOKUP($E$17,C$13:$H109,5))*VLOOKUP(E119,$C$7:$H$13,6),"") ->  | M119: =IF(ISBLANK('2. Informations de base'!$C$36),"",'2. Informations de base'!$C$36) ->  | N119: =IF(ISBLANK('2. Informations de base'!$C$38),"",'2. Informations de base'!$C$38) ->  | Q119: =DATEDIF('2. Informations de base'!$C$33,'2. Informations de base'!$C$38,"m") -> 0
B120: =IF(AND('2. Informations de base'!$C$14>0,B119<'2. Informations de base'!$C$14),(B119+1),"") ->  | K120: =IFERROR((J120/VLOOKUP($E$17,C$13:$H110,5))*VLOOKUP(E120,$C$7:$H$13,6),"") ->  | M120: =IF(ISBLANK('2. Informations de base'!$C$36),"",'2. Informations de base'!$C$36) ->  | N120: =IF(ISBLANK('2. Informations de base'!$C$38),"",'2. Informations de base'!$C$38) ->  | Q120: =DATEDIF('2. Informations de base'!$C$33,'2. Informations de base'!$C$38,"m") -> 0
B121: =IF(AND('2. Informations de base'!$C$14>0,B120<'2. Informations de base'!$C$14),(B120+1),"") ->  | K121: =IFERROR((J121/VLOOKUP($E$17,C$13:$H111,5))*VLOOKUP(E121,$C$7:$H$13,6),"") ->  | M121: =IF(ISBLANK('2. Informations de base'!$C$36),"",'2. Informations de base'!$C$36) ->  | N121: =IF(ISBLANK('2. Informations de base'!$C$38),"",'2. Informations de base'!$C$38) ->  | Q121: =DATEDIF('2. Informations de base'!$C$33,'2. Informations de base'!$C$38,"m") -> 0
B122: =IF(AND('2. Informations de base'!$C$14>0,B121<'2. Informations de base'!$C$14),(B121+1),"") ->  | K122: =IFERROR((J122/VLOOKUP($E$17,C$13:$H112,5))*VLOOKUP(E122,$C$7:$H$13,6),"") ->  | M122: =IF(ISBLANK('2. Informations de base'!$C$36),"",'2. Informations de base'!$C$36) ->  | N122: =IF(ISBLANK('2. Informations de base'!$C$38),"",'2. Informations de base'!$C$38) ->  | Q122: =DATEDIF('2. Informations de base'!$C$33,'2. Informations de base'!$C$38,"m") -> 0
B123: =IF(AND('2. Informations de base'!$C$14>0,B122<'2. Informations de base'!$C$14),(B122+1),"") ->  | K123: =IFERROR((J123/VLOOKUP($E$17,C$13:$H113,5))*VLOOKUP(E123,$C$7:$H$13,6),"") ->  | M123: =IF(ISBLANK('2. Informations de base'!$C$36),"",'2. Informations de base'!$C$36) ->  | N123: =IF(ISBLANK('2. Informations de base'!$C$38),"",'2. Informations de base'!$C$38) ->  | Q123: =DATEDIF('2. Informations de base'!$C$33,'2. Informations de base'!$C$38,"m") -> 0
B124: =IF(AND('2. Informations de base'!$C$14>0,B123<'2. Informations de base'!$C$14),(B123+1),"") ->  | K124: =IFERROR((J124/VLOOKUP($E$17,C$13:$H114,5))*VLOOKUP(E124,$C$7:$H$13,6),"") ->  | M124: =IF(ISBLANK('2. Informations de base'!$C$36),"",'2. Informations de base'!$C$36) ->  | N124: =IF(ISBLANK('2. Informations de base'!$C$38),"",'2. Informations de base'!$C$38) ->  | Q124: =DATEDIF('2. Informations de base'!$C$33,'2. Informations de base'!$C$38,"m") -> 0
B125: =IF(AND('2. Informations de base'!$C$14>0,B124<'2. Informations de base'!$C$14),(B124+1),"") ->  | K125: =IFERROR((J125/VLOOKUP($E$17,C$13:$H115,5))*VLOOKUP(E125,$C$7:$H$13,6),"") ->  | M125: =IF(ISBLANK('2. Informations de base'!$C$36),"",'2. Informations de base'!$C$36) ->  | N125: =IF(ISBLANK('2. Informations de base'!$C$38),"",'2. Informations de base'!$C$38) ->  | Q125: =DATEDIF('2. Informations de base'!$C$33,'2. Informations de base'!$C$38,"m") -> 0
B126: =IF(AND('2. Informations de base'!$C$14>0,B125<'2. Informations de base'!$C$14),(B125+1),"") ->  | K126: =IFERROR((J126/VLOOKUP($E$17,C$13:$H116,5))*VLOOKUP(E126,$C$7:$H$13,6),"") ->  | M126: =IF(ISBLANK('2. Informations de base'!$C$36),"",'2. Informations de base'!$C$36) ->  | N126: =IF(ISBLANK('2. Informations de base'!$C$38),"",'2. Informations de base'!$C$38) ->  | Q126: =DATEDIF('2. Informations de base'!$C$33,'2. Informations de base'!$C$38,"m") -> 0
B127: =IF(AND('2. Informations de base'!$C$14>0,B126<'2. Informations de base'!$C$14),(B126+1),"") ->  | K127: =IFERROR((J127/VLOOKUP($E$17,C$13:$H117,5))*VLOOKUP(E127,$C$7:$H$13,6),"") ->  | M127: =IF(ISBLANK('2. Informations de base'!$C$36),"",'2. Informations de base'!$C$36) ->  | N127: =IF(ISBLANK('2. Informations de base'!$C$38),"",'2. Informations de base'!$C$38) ->  | Q127: =DATEDIF('2. Informations de base'!$C$33,'2. Informations de base'!$C$38,"m") -> 0
B128: =IF(AND('2. Informations de base'!$C$14>0,B127<'2. Informations de base'!$C$14),(B127+1),"") ->  | K128: =IFERROR((J128/VLOOKUP($E$17,C$13:$H118,5))*VLOOKUP(E128,$C$7:$H$13,6),"") ->  | M128: =IF(ISBLANK('2. Informations de base'!$C$36),"",'2. Informations de base'!$C$36) ->  | N128: =IF(ISBLANK('2. Informations de base'!$C$38),"",'2. Informations de base'!$C$38) ->  | Q128: =DATEDIF('2. Informations de base'!$C$33,'2. Informations de base'!$C$38,"m") -> 0
B129: =IF(AND('2. Informations de base'!$C$14>0,B128<'2. Informations de base'!$C$14),(B128+1),"") ->  | K129: =IFERROR((J129/VLOOKUP($E$17,C$13:$H119,5))*VLOOKUP(E129,$C$7:$H$13,6),"") ->  | M129: =IF(ISBLANK('2. Informations de base'!$C$36),"",'2. Informations de base'!$C$36) ->  | N129: =IF(ISBLANK('2. Informations de base'!$C$38),"",'2. Informations de base'!$C$38) ->  | Q129: =DATEDIF('2. Informations de base'!$C$33,'2. Informations de base'!$C$38,"m") -> 0
B130: =IF(AND('2. Informations de base'!$C$14>0,B129<'2. Informations de base'!$C$14),(B129+1),"") ->  | K130: =IFERROR((J130/VLOOKUP($E$17,C$13:$H120,5))*VLOOKUP(E130,$C$7:$H$13,6),"") ->  | M130: =IF(ISBLANK('2. Informations de base'!$C$36),"",'2. Informations de base'!$C$36) ->  | N130: =IF(ISBLANK('2. Informations de base'!$C$38),"",'2. Informations de base'!$C$38) ->  | Q130: =DATEDIF('2. Informations de base'!$C$33,'2. Informations de base'!$C$38,"m") -> 0
B131: =IF(AND('2. Informations de base'!$C$14>0,B130<'2. Informations de base'!$C$14),(B130+1),"") ->  | K131: =IFERROR((J131/VLOOKUP($E$17,C$13:$H121,5))*VLOOKUP(E131,$C$7:$H$13,6),"") ->  | M131: =IF(ISBLANK('2. Informations de base'!$C$36),"",'2. Informations de base'!$C$36) ->  | N131: =IF(ISBLANK('2. Informations de base'!$C$38),"",'2. Informations de base'!$C$38) ->  | Q131: =DATEDIF('2. Informations de base'!$C$33,'2. Informations de base'!$C$38,"m") -> 0
B132: =IF(AND('2. Informations de base'!$C$14>0,B131<'2. Informations de base'!$C$14),(B131+1),"") ->  | K132: =IFERROR((J132/VLOOKUP($E$17,C$13:$H122,5))*VLOOKUP(E132,$C$7:$H$13,6),"") ->  | M132: =IF(ISBLANK('2. Informations de base'!$C$36),"",'2. Informations de base'!$C$36) ->  | N132: =IF(ISBLANK('2. Informations de base'!$C$38),"",'2. Informations de base'!$C$38) ->  | Q132: =DATEDIF('2. Informations de base'!$C$33,'2. Informations de base'!$C$38,"m") -> 0
B133: =IF(AND('2. Informations de base'!$C$14>0,B132<'2. Informations de base'!$C$14),(B132+1),"") ->  | K133: =IFERROR((J133/VLOOKUP($E$17,C$13:$H123,5))*VLOOKUP(E133,$C$7:$H$13,6),"") ->  | M133: =IF(ISBLANK('2. Informations de base'!$C$36),"",'2. Informations de base'!$C$36) ->  | N133: =IF(ISBLANK('2. Informations de base'!$C$38),"",'2. Informations de base'!$C$38) ->  | Q133: =DATEDIF('2. Informations de base'!$C$33,'2. Informations de base'!$C$38,"m") -> 0
B134: =IF(AND('2. Informations de base'!$C$14>0,B133<'2. Informations de base'!$C$14),(B133+1),"") ->  | K134: =IFERROR((J134/VLOOKUP($E$17,C$13:$H124,5))*VLOOKUP(E134,$C$7:$H$13,6),"") ->  | M134: =IF(ISBLANK('2. Informations de base'!$C$36),"",'2. Informations de base'!$C$36) ->  | N134: =IF(ISBLANK('2. Informations de base'!$C$38),"",'2. Informations de base'!$C$38) ->  | Q134: =DATEDIF('2. Informations de base'!$C$33,'2. Informations de base'!$C$38,"m") -> 0
B135: =IF(AND('2. Informations de base'!$C$14>0,B134<'2. Informations de base'!$C$14),(B134+1),"") ->  | K135: =IFERROR((J135/VLOOKUP($E$17,C$13:$H125,5))*VLOOKUP(E135,$C$7:$H$13,6),"") ->  | M135: =IF(ISBLANK('2. Informations de base'!$C$36),"",'2. Informations de base'!$C$36) ->  | N135: =IF(ISBLANK('2. Informations de base'!$C$38),"",'2. Informations de base'!$C$38) ->  | Q135: =DATEDIF('2. Informations de base'!$C$33,'2. Informations de base'!$C$38,"m") -> 0
B136: =IF(AND('2. Informations de base'!$C$14>0,B135<'2. Informations de base'!$C$14),(B135+1),"") ->  | K136: =IFERROR((J136/VLOOKUP($E$17,C$13:$H126,5))*VLOOKUP(E136,$C$7:$H$13,6),"") ->  | M136: =IF(ISBLANK('2. Informations de base'!$C$36),"",'2. Informations de base'!$C$36) ->  | N136: =IF(ISBLANK('2. Informations de base'!$C$38),"",'2. Informations de base'!$C$38) ->  | Q136: =DATEDIF('2. Informations de base'!$C$33,'2. Informations de base'!$C$38,"m") -> 0
B137: =IF(AND('2. Informations de base'!$C$14>0,B136<'2. Informations de base'!$C$14),(B136+1),"") ->  | K137: =IFERROR((J137/VLOOKUP($E$17,C$13:$H127,5))*VLOOKUP(E137,$C$7:$H$13,6),"") ->  | M137: =IF(ISBLANK('2. Informations de base'!$C$36),"",'2. Informations de base'!$C$36) ->  | N137: =IF(ISBLANK('2. Informations de base'!$C$38),"",'2. Informations de base'!$C$38) ->  | Q137: =DATEDIF('2. Informations de base'!$C$33,'2. Informations de base'!$C$38,"m") -> 0
B138: =IF(AND('2. Informations de base'!$C$14>0,B137<'2. Informations de base'!$C$14),(B137+1),"") ->  | K138: =IFERROR((J138/VLOOKUP($E$17,C$13:$H128,5))*VLOOKUP(E138,$C$7:$H$13,6),"") ->  | M138: =IF(ISBLANK('2. Informations de base'!$C$36),"",'2. Informations de base'!$C$36) ->  | N138: =IF(ISBLANK('2. Informations de base'!$C$38),"",'2. Informations de base'!$C$38) ->  | Q138: =DATEDIF('2. Informations de base'!$C$33,'2. Informations de base'!$C$38,"m") -> 0
B139: =IF(AND('2. Informations de base'!$C$14>0,B138<'2. Informations de base'!$C$14),(B138+1),"") ->  | K139: =IFERROR((J139/VLOOKUP($E$17,C$13:$H129,5))*VLOOKUP(E139,$C$7:$H$13,6),"") ->  | M139: =IF(ISBLANK('2. Informations de base'!$C$36),"",'2. Informations de base'!$C$36) ->  | N139: =IF(ISBLANK('2. Informations de base'!$C$38),"",'2. Informations de base'!$C$38) ->  | Q139: =DATEDIF('2. Informations de base'!$C$33,'2. Informations de base'!$C$38,"m") -> 0
B140: =IF(AND('2. Informations de base'!$C$14>0,B139<'2. Informations de base'!$C$14),(B139+1),"") ->  | K140: =IFERROR((J140/VLOOKUP($E$17,C$13:$H130,5))*VLOOKUP(E140,$C$7:$H$13,6),"") ->  | M140: =IF(ISBLANK('2. Informations de base'!$C$36),"",'2. Informations de base'!$C$36) ->  | N140: =IF(ISBLANK('2. Informations de base'!$C$38),"",'2. Informations de base'!$C$38) ->  | Q140: =DATEDIF('2. Informations de base'!$C$33,'2. Informations de base'!$C$38,"m") -> 0
B141: =IF(AND('2. Informations de base'!$C$14>0,B140<'2. Informations de base'!$C$14),(B140+1),"") ->  | K141: =IFERROR((J141/VLOOKUP($E$17,C$13:$H131,5))*VLOOKUP(E141,$C$7:$H$13,6),"") ->  | M141: =IF(ISBLANK('2. Informations de base'!$C$36),"",'2. Informations de base'!$C$36) ->  | N141: =IF(ISBLANK('2. Informations de base'!$C$38),"",'2. Informations de base'!$C$38) ->  | Q141: =DATEDIF('2. Informations de base'!$C$33,'2. Informations de base'!$C$38,"m") -> 0
B142: =IF(AND('2. Informations de base'!$C$14>0,B141<'2. Informations de base'!$C$14),(B141+1),"") ->  | K142: =IFERROR((J142/VLOOKUP($E$17,C$13:$H132,5))*VLOOKUP(E142,$C$7:$H$13,6),"") ->  | M142: =IF(ISBLANK('2. Informations de base'!$C$36),"",'2. Informations de base'!$C$36) ->  | N142: =IF(ISBLANK('2. Informations de base'!$C$38),"",'2. Informations de base'!$C$38) ->  | Q142: =DATEDIF('2. Informations de base'!$C$33,'2. Informations de base'!$C$38,"m") -> 0
B143: =IF(AND('2. Informations de base'!$C$14>0,B142<'2. Informations de base'!$C$14),(B142+1),"") ->  | K143: =IFERROR((J143/VLOOKUP($E$17,C$13:$H133,5))*VLOOKUP(E143,$C$7:$H$13,6),"") ->  | M143: =IF(ISBLANK('2. Informations de base'!$C$36),"",'2. Informations de base'!$C$36) ->  | N143: =IF(ISBLANK('2. Informations de base'!$C$38),"",'2. Informations de base'!$C$38) ->  | Q143: =DATEDIF('2. Informations de base'!$C$33,'2. Informations de base'!$C$38,"m") -> 0
B144: =IF(AND('2. Informations de base'!$C$14>0,B143<'2. Informations de base'!$C$14),(B143+1),"") ->  | K144: =IFERROR((J144/VLOOKUP($E$17,C$13:$H134,5))*VLOOKUP(E144,$C$7:$H$13,6),"") ->  | M144: =IF(ISBLANK('2. Informations de base'!$C$36),"",'2. Informations de base'!$C$36) ->  | N144: =IF(ISBLANK('2. Informations de base'!$C$38),"",'2. Informations de base'!$C$38) ->  | Q144: =DATEDIF('2. Informations de base'!$C$33,'2. Informations de base'!$C$38,"m") -> 0
B145: =IF(AND('2. Informations de base'!$C$14>0,B144<'2. Informations de base'!$C$14),(B144+1),"") ->  | E145: =IFERROR(IF(B145="","",VLOOKUP($B145,$B$7:$C$13,2)),"") ->  | F145: =IF(B145="","",(IF($S$12="Oui","Loué","Vacant"))) ->  | J145: =IF(ISBLANK($H145),"",$H145-$I145) ->  | K145: =IFERROR((J145/VLOOKUP($E$17,C$13:$H135,5))*VLOOKUP(E145,$C$7:$H$13,6),"") ->  | M145: =IF(ISBLANK('2. Informations de base'!$C$36),"",'2. Informations de base'!$C$36) ->  | N145: =IF(ISBLANK('2. Informations de base'!$C$38),"",'2. Informations de base'!$C$38) ->  | P145: =IFERROR(DATEDIF(N145,O145,"m"),"") ->  | Q145: =DATEDIF('2. Informations de base'!$C$33,'2. Informations de base'!$C$38,"m") -> 0
B146: =IF(AND('2. Informations de base'!$C$14>0,B145<'2. Informations de base'!$C$14),(B145+1),"") ->  | K146: =IFERROR((J146/VLOOKUP($E$17,C$13:$H136,5))*VLOOKUP(E146,$C$7:$H$13,6),"") ->  | M146: =IF(ISBLANK('2. Informations de base'!$C$36),"",'2. Informations de base'!$C$36) ->  | N146: =IF(ISBLANK('2. Informations de base'!$C$38),"",'2. Informations de base'!$C$38) ->  | O146: =IFERROR(IF(N146>=EDATE(M146,3),N146,EDATE(N146,12)),"") ->  | Q146: =DATEDIF('2. Informations de base'!$C$33,'2. Informations de base'!$C$38,"m") -> 0
B147: =IF(AND('2. Informations de base'!$C$14>0,B146<'2. Informations de base'!$C$14),(B146+1),"") ->  | K147: =IFERROR((J147/VLOOKUP($E$17,C$13:$H137,5))*VLOOKUP(E147,$C$7:$H$13,6),"") ->  | M147: =IF(ISBLANK('2. Informations de base'!$C$36),"",'2. Informations de base'!$C$36) ->  | N147: =IF(ISBLANK('2. Informations de base'!$C$38),"",'2. Informations de base'!$C$38) ->  | Q147: =DATEDIF('2. Informations de base'!$C$33,'2. Informations de base'!$C$38,"m") -> 0
B148: =IF(AND('2. Informations de base'!$C$14>0,B147<'2. Informations de base'!$C$14),(B147+1),"") ->  | K148: =IFERROR((J148/VLOOKUP($E$17,C$13:$H138,5))*VLOOKUP(E148,$C$7:$H$13,6),"") ->  | M148: =IF(ISBLANK('2. Informations de base'!$C$36),"",'2. Informations de base'!$C$36) ->  | N148: =IF(ISBLANK('2. Informations de base'!$C$38),"",'2. Informations de base'!$C$38) ->  | Q148: =DATEDIF('2. Informations de base'!$C$33,'2. Informations de base'!$C$38,"m") -> 0
B149: =IF(AND('2. Informations de base'!$C$14>0,B148<'2. Informations de base'!$C$14),(B148+1),"") ->  | K149: =IFERROR((J149/VLOOKUP($E$17,C$13:$H139,5))*VLOOKUP(E149,$C$7:$H$13,6),"") ->  | M149: =IF(ISBLANK('2. Informations de base'!$C$36),"",'2. Informations de base'!$C$36) ->  | N149: =IF(ISBLANK('2. Informations de base'!$C$38),"",'2. Informations de base'!$C$38) ->  | Q149: =DATEDIF('2. Informations de base'!$C$33,'2. Informations de base'!$C$38,"m") -> 0
B150: =IF(AND('2. Informations de base'!$C$14>0,B149<'2. Informations de base'!$C$14),(B149+1),"") ->  | K150: =IFERROR((J150/VLOOKUP($E$17,C$13:$H140,5))*VLOOKUP(E150,$C$7:$H$13,6),"") ->  | M150: =IF(ISBLANK('2. Informations de base'!$C$36),"",'2. Informations de base'!$C$36) ->  | N150: =IF(ISBLANK('2. Informations de base'!$C$38),"",'2. Informations de base'!$C$38) ->  | Q150: =DATEDIF('2. Informations de base'!$C$33,'2. Informations de base'!$C$38,"m") -> 0
B151: =IF(AND('2. Informations de base'!$C$14>0,B150<'2. Informations de base'!$C$14),(B150+1),"") ->  | K151: =IFERROR((J151/VLOOKUP($E$17,C$13:$H141,5))*VLOOKUP(E151,$C$7:$H$13,6),"") ->  | M151: =IF(ISBLANK('2. Informations de base'!$C$36),"",'2. Informations de base'!$C$36) ->  | N151: =IF(ISBLANK('2. Informations de base'!$C$38),"",'2. Informations de base'!$C$38) ->  | Q151: =DATEDIF('2. Informations de base'!$C$33,'2. Informations de base'!$C$38,"m") -> 0
B152: =IF(AND('2. Informations de base'!$C$14>0,B151<'2. Informations de base'!$C$14),(B151+1),"") ->  | K152: =IFERROR((J152/VLOOKUP($E$17,C$13:$H142,5))*VLOOKUP(E152,$C$7:$H$13,6),"") ->  | M152: =IF(ISBLANK('2. Informations de base'!$C$36),"",'2. Informations de base'!$C$36) ->  | N152: =IF(ISBLANK('2. Informations de base'!$C$38),"",'2. Informations de base'!$C$38) ->  | Q152: =DATEDIF('2. Informations de base'!$C$33,'2. Informations de base'!$C$38,"m") -> 0
B153: =IF(AND('2. Informations de base'!$C$14>0,B152<'2. Informations de base'!$C$14),(B152+1),"") ->  | K153: =IFERROR((J153/VLOOKUP($E$17,C$13:$H143,5))*VLOOKUP(E153,$C$7:$H$13,6),"") ->  | M153: =IF(ISBLANK('2. Informations de base'!$C$36),"",'2. Informations de base'!$C$36) ->  | N153: =IF(ISBLANK('2. Informations de base'!$C$38),"",'2. Informations de base'!$C$38) ->  | Q153: =DATEDIF('2. Informations de base'!$C$33,'2. Informations de base'!$C$38,"m") -> 0
B154: =IF(AND('2. Informations de base'!$C$14>0,B153<'2. Informations de base'!$C$14),(B153+1),"") ->  | K154: =IFERROR((J154/VLOOKUP($E$17,C$13:$H144,5))*VLOOKUP(E154,$C$7:$H$13,6),"") ->  | M154: =IF(ISBLANK('2. Informations de base'!$C$36),"",'2. Informations de base'!$C$36) ->  | N154: =IF(ISBLANK('2. Informations de base'!$C$38),"",'2. Informations de base'!$C$38) ->  | Q154: =DATEDIF('2. Informations de base'!$C$33,'2. Informations de base'!$C$38,"m") -> 0
B155: =IF(AND('2. Informations de base'!$C$14>0,B154<'2. Informations de base'!$C$14),(B154+1),"") ->  | K155: =IFERROR((J155/VLOOKUP($E$17,C$13:$H145,5))*VLOOKUP(E155,$C$7:$H$13,6),"") ->  | M155: =IF(ISBLANK('2. Informations de base'!$C$36),"",'2. Informations de base'!$C$36) ->  | N155: =IF(ISBLANK('2. Informations de base'!$C$38),"",'2. Informations de base'!$C$38) ->  | Q155: =DATEDIF('2. Informations de base'!$C$33,'2. Informations de base'!$C$38,"m") -> 0
B156: =IF(AND('2. Informations de base'!$C$14>0,B155<'2. Informations de base'!$C$14),(B155+1),"") ->  | K156: =IFERROR((J156/VLOOKUP($E$17,C$13:$H146,5))*VLOOKUP(E156,$C$7:$H$13,6),"") ->  | M156: =IF(ISBLANK('2. Informations de base'!$C$36),"",'2. Informations de base'!$C$36) ->  | N156: =IF(ISBLANK('2. Informations de base'!$C$38),"",'2. Informations de base'!$C$38) ->  | Q156: =DATEDIF('2. Informations de base'!$C$33,'2. Informations de base'!$C$38,"m") -> 0
B157: =IF(AND('2. Informations de base'!$C$14>0,B156<'2. Informations de base'!$C$14),(B156+1),"") ->  | K157: =IFERROR((J157/VLOOKUP($E$17,C$13:$H147,5))*VLOOKUP(E157,$C$7:$H$13,6),"") ->  | M157: =IF(ISBLANK('2. Informations de base'!$C$36),"",'2. Informations de base'!$C$36) ->  | N157: =IF(ISBLANK('2. Informations de base'!$C$38),"",'2. Informations de base'!$C$38) ->  | Q157: =DATEDIF('2. Informations de base'!$C$33,'2. Informations de base'!$C$38,"m") -> 0
B158: =IF(AND('2. Informations de base'!$C$14>0,B157<'2. Informations de base'!$C$14),(B157+1),"") ->  | K158: =IFERROR((J158/VLOOKUP($E$17,C$13:$H148,5))*VLOOKUP(E158,$C$7:$H$13,6),"") ->  | M158: =IF(ISBLANK('2. Informations de base'!$C$36),"",'2. Informations de base'!$C$36) ->  | N158: =IF(ISBLANK('2. Informations de base'!$C$38),"",'2. Informations de base'!$C$38) ->  | Q158: =DATEDIF('2. Informations de base'!$C$33,'2. Informations de base'!$C$38,"m") -> 0
B159: =IF(AND('2. Informations de base'!$C$14>0,B158<'2. Informations de base'!$C$14),(B158+1),"") ->  | K159: =IFERROR((J159/VLOOKUP($E$17,C$13:$H149,5))*VLOOKUP(E159,$C$7:$H$13,6),"") ->  | M159: =IF(ISBLANK('2. Informations de base'!$C$36),"",'2. Informations de base'!$C$36) ->  | N159: =IF(ISBLANK('2. Informations de base'!$C$38),"",'2. Informations de base'!$C$38) ->  | Q159: =DATEDIF('2. Informations de base'!$C$33,'2. Informations de base'!$C$38,"m") -> 0
B160: =IF(AND('2. Informations de base'!$C$14>0,B159<'2. Informations de base'!$C$14),(B159+1),"") ->  | K160: =IFERROR((J160/VLOOKUP($E$17,C$13:$H150,5))*VLOOKUP(E160,$C$7:$H$13,6),"") ->  | M160: =IF(ISBLANK('2. Informations de base'!$C$36),"",'2. Informations de base'!$C$36) ->  | N160: =IF(ISBLANK('2. Informations de base'!$C$38),"",'2. Informations de base'!$C$38) ->  | Q160: =DATEDIF('2. Informations de base'!$C$33,'2. Informations de base'!$C$38,"m") -> 0
B161: =IF(AND('2. Informations de base'!$C$14>0,B160<'2. Informations de base'!$C$14),(B160+1),"") ->  | K161: =IFERROR((J161/VLOOKUP($E$17,C$13:$H151,5))*VLOOKUP(E161,$C$7:$H$13,6),"") ->  | M161: =IF(ISBLANK('2. Informations de base'!$C$36),"",'2. Informations de base'!$C$36) ->  | N161: =IF(ISBLANK('2. Informations de base'!$C$38),"",'2. Informations de base'!$C$38) ->  | Q161: =DATEDIF('2. Informations de base'!$C$33,'2. Informations de base'!$C$38,"m") -> 0
B162: =IF(AND('2. Informations de base'!$C$14>0,B161<'2. Informations de base'!$C$14),(B161+1),"") ->  | K162: =IFERROR((J162/VLOOKUP($E$17,C$13:$H152,5))*VLOOKUP(E162,$C$7:$H$13,6),"") ->  | M162: =IF(ISBLANK('2. Informations de base'!$C$36),"",'2. Informations de base'!$C$36) ->  | N162: =IF(ISBLANK('2. Informations de base'!$C$38),"",'2. Informations de base'!$C$38) ->  | Q162: =DATEDIF('2. Informations de base'!$C$33,'2. Informations de base'!$C$38,"m") -> 0
B163: =IF(AND('2. Informations de base'!$C$14>0,B162<'2. Informations de base'!$C$14),(B162+1),"") ->  | K163: =IFERROR((J163/VLOOKUP($E$17,C$13:$H153,5))*VLOOKUP(E163,$C$7:$H$13,6),"") ->  | M163: =IF(ISBLANK('2. Informations de base'!$C$36),"",'2. Informations de base'!$C$36) ->  | N163: =IF(ISBLANK('2. Informations de base'!$C$38),"",'2. Informations de base'!$C$38) ->  | Q163: =DATEDIF('2. Informations de base'!$C$33,'2. Informations de base'!$C$38,"m") -> 0
B164: =IF(AND('2. Informations de base'!$C$14>0,B163<'2. Informations de base'!$C$14),(B163+1),"") ->  | K164: =IFERROR((J164/VLOOKUP($E$17,C$13:$H154,5))*VLOOKUP(E164,$C$7:$H$13,6),"") ->  | M164: =IF(ISBLANK('2. Informations de base'!$C$36),"",'2. Informations de base'!$C$36) ->  | N164: =IF(ISBLANK('2. Informations de base'!$C$38),"",'2. Informations de base'!$C$38) ->  | Q164: =DATEDIF('2. Informations de base'!$C$33,'2. Informations de base'!$C$38,"m") -> 0
B165: =IF(AND('2. Informations de base'!$C$14>0,B164<'2. Informations de base'!$C$14),(B164+1),"") ->  | K165: =IFERROR((J165/VLOOKUP($E$17,C$13:$H155,5))*VLOOKUP(E165,$C$7:$H$13,6),"") ->  | M165: =IF(ISBLANK('2. Informations de base'!$C$36),"",'2. Informations de base'!$C$36) ->  | N165: =IF(ISBLANK('2. Informations de base'!$C$38),"",'2. Informations de base'!$C$38) ->  | Q165: =DATEDIF('2. Informations de base'!$C$33,'2. Informations de base'!$C$38,"m") -> 0
B166: =IF(AND('2. Informations de base'!$C$14>0,B165<'2. Informations de base'!$C$14),(B165+1),"") ->  | K166: =IFERROR((J166/VLOOKUP($E$17,C$13:$H156,5))*VLOOKUP(E166,$C$7:$H$13,6),"") ->  | M166: =IF(ISBLANK('2. Informations de base'!$C$36),"",'2. Informations de base'!$C$36) ->  | N166: =IF(ISBLANK('2. Informations de base'!$C$38),"",'2. Informations de base'!$C$38) ->  | Q166: =DATEDIF('2. Informations de base'!$C$33,'2. Informations de base'!$C$38,"m") -> 0
B167: =IF(AND('2. Informations de base'!$C$14>0,B166<'2. Informations de base'!$C$14),(B166+1),"") ->  | K167: =IFERROR((J167/VLOOKUP($E$17,C$13:$H157,5))*VLOOKUP(E167,$C$7:$H$13,6),"") ->  | M167: =IF(ISBLANK('2. Informations de base'!$C$36),"",'2. Informations de base'!$C$36) ->  | N167: =IF(ISBLANK('2. Informations de base'!$C$38),"",'2. Informations de base'!$C$38) ->  | Q167: =DATEDIF('2. Informations de base'!$C$33,'2. Informations de base'!$C$38,"m") -> 0
B168: =IF(AND('2. Informations de base'!$C$14>0,B167<'2. Informations de base'!$C$14),(B167+1),"") ->  | K168: =IFERROR((J168/VLOOKUP($E$17,C$13:$H158,5))*VLOOKUP(E168,$C$7:$H$13,6),"") ->  | M168: =IF(ISBLANK('2. Informations de base'!$C$36),"",'2. Informations de base'!$C$36) ->  | N168: =IF(ISBLANK('2. Informations de base'!$C$38),"",'2. Informations de base'!$C$38) ->  | Q168: =DATEDIF('2. Informations de base'!$C$33,'2. Informations de base'!$C$38,"m") -> 0
B169: =IF(AND('2. Informations de base'!$C$14>0,B168<'2. Informations de base'!$C$14),(B168+1),"") ->  | K169: =IFERROR((J169/VLOOKUP($E$17,C$13:$H159,5))*VLOOKUP(E169,$C$7:$H$13,6),"") ->  | M169: =IF(ISBLANK('2. Informations de base'!$C$36),"",'2. Informations de base'!$C$36) ->  | N169: =IF(ISBLANK('2. Informations de base'!$C$38),"",'2. Informations de base'!$C$38) ->  | Q169: =DATEDIF('2. Informations de base'!$C$33,'2. Informations de base'!$C$38,"m") -> 0
B170: =IF(AND('2. Informations de base'!$C$14>0,B169<'2. Informations de base'!$C$14),(B169+1),"") ->  | K170: =IFERROR((J170/VLOOKUP($E$17,C$13:$H160,5))*VLOOKUP(E170,$C$7:$H$13,6),"") ->  | M170: =IF(ISBLANK('2. Informations de base'!$C$36),"",'2. Informations de base'!$C$36) ->  | N170: =IF(ISBLANK('2. Informations de base'!$C$38),"",'2. Informations de base'!$C$38) ->  | Q170: =DATEDIF('2. Informations de base'!$C$33,'2. Informations de base'!$C$38,"m") -> 0
B171: =IF(AND('2. Informations de base'!$C$14>0,B170<'2. Informations de base'!$C$14),(B170+1),"") ->  | K171: =IFERROR((J171/VLOOKUP($E$17,C$13:$H161,5))*VLOOKUP(E171,$C$7:$H$13,6),"") ->  | M171: =IF(ISBLANK('2. Informations de base'!$C$36),"",'2. Informations de base'!$C$36) ->  | N171: =IF(ISBLANK('2. Informations de base'!$C$38),"",'2. Informations de base'!$C$38) ->  | Q171: =DATEDIF('2. Informations de base'!$C$33,'2. Informations de base'!$C$38,"m") -> 0
B172: =IF(AND('2. Informations de base'!$C$14>0,B171<'2. Informations de base'!$C$14),(B171+1),"") ->  | K172: =IFERROR((J172/VLOOKUP($E$17,C$13:$H162,5))*VLOOKUP(E172,$C$7:$H$13,6),"") ->  | M172: =IF(ISBLANK('2. Informations de base'!$C$36),"",'2. Informations de base'!$C$36) ->  | N172: =IF(ISBLANK('2. Informations de base'!$C$38),"",'2. Informations de base'!$C$38) ->  | Q172: =DATEDIF('2. Informations de base'!$C$33,'2. Informations de base'!$C$38,"m") -> 0
B173: =IF(AND('2. Informations de base'!$C$14>0,B172<'2. Informations de base'!$C$14),(B172+1),"") ->  | K173: =IFERROR((J173/VLOOKUP($E$17,C$13:$H163,5))*VLOOKUP(E173,$C$7:$H$13,6),"") ->  | M173: =IF(ISBLANK('2. Informations de base'!$C$36),"",'2. Informations de base'!$C$36) ->  | N173: =IF(ISBLANK('2. Informations de base'!$C$38),"",'2. Informations de base'!$C$38) ->  | Q173: =DATEDIF('2. Informations de base'!$C$33,'2. Informations de base'!$C$38,"m") -> 0
B174: =IF(AND('2. Informations de base'!$C$14>0,B173<'2. Informations de base'!$C$14),(B173+1),"") ->  | K174: =IFERROR((J174/VLOOKUP($E$17,C$13:$H164,5))*VLOOKUP(E174,$C$7:$H$13,6),"") ->  | M174: =IF(ISBLANK('2. Informations de base'!$C$36),"",'2. Informations de base'!$C$36) ->  | N174: =IF(ISBLANK('2. Informations de base'!$C$38),"",'2. Informations de base'!$C$38) ->  | Q174: =DATEDIF('2. Informations de base'!$C$33,'2. Informations de base'!$C$38,"m") -> 0
B175: =IF(AND('2. Informations de base'!$C$14>0,B174<'2. Informations de base'!$C$14),(B174+1),"") ->  | K175: =IFERROR((J175/VLOOKUP($E$17,C$13:$H165,5))*VLOOKUP(E175,$C$7:$H$13,6),"") ->  | M175: =IF(ISBLANK('2. Informations de base'!$C$36),"",'2. Informations de base'!$C$36) ->  | N175: =IF(ISBLANK('2. Informations de base'!$C$38),"",'2. Informations de base'!$C$38) ->  | Q175: =DATEDIF('2. Informations de base'!$C$33,'2. Informations de base'!$C$38,"m") -> 0
B176: =IF(AND('2. Informations de base'!$C$14>0,B175<'2. Informations de base'!$C$14),(B175+1),"") ->  | K176: =IFERROR((J176/VLOOKUP($E$17,C$13:$H166,5))*VLOOKUP(E176,$C$7:$H$13,6),"") ->  | M176: =IF(ISBLANK('2. Informations de base'!$C$36),"",'2. Informations de base'!$C$36) ->  | N176: =IF(ISBLANK('2. Informations de base'!$C$38),"",'2. Informations de base'!$C$38) ->  | Q176: =DATEDIF('2. Informations de base'!$C$33,'2. Informations de base'!$C$38,"m") -> 0
B177: =IF(AND('2. Informations de base'!$C$14>0,B176<'2. Informations de base'!$C$14),(B176+1),"") ->  | K177: =IFERROR((J177/VLOOKUP($E$17,C$13:$H167,5))*VLOOKUP(E177,$C$7:$H$13,6),"") ->  | M177: =IF(ISBLANK('2. Informations de base'!$C$36),"",'2. Informations de base'!$C$36) ->  | N177: =IF(ISBLANK('2. Informations de base'!$C$38),"",'2. Informations de base'!$C$38) ->  | Q177: =DATEDIF('2. Informations de base'!$C$33,'2. Informations de base'!$C$38,"m") -> 0
B178: =IF(AND('2. Informations de base'!$C$14>0,B177<'2. Informations de base'!$C$14),(B177+1),"") ->  | K178: =IFERROR((J178/VLOOKUP($E$17,C$13:$H168,5))*VLOOKUP(E178,$C$7:$H$13,6),"") ->  | M178: =IF(ISBLANK('2. Informations de base'!$C$36),"",'2. Informations de base'!$C$36) ->  | N178: =IF(ISBLANK('2. Informations de base'!$C$38),"",'2. Informations de base'!$C$38) ->  | Q178: =DATEDIF('2. Informations de base'!$C$33,'2. Informations de base'!$C$38,"m") -> 0
B179: =IF(AND('2. Informations de base'!$C$14>0,B178<'2. Informations de base'!$C$14),(B178+1),"") ->  | K179: =IFERROR((J179/VLOOKUP($E$17,C$13:$H169,5))*VLOOKUP(E179,$C$7:$H$13,6),"") ->  | M179: =IF(ISBLANK('2. Informations de base'!$C$36),"",'2. Informations de base'!$C$36) ->  | N179: =IF(ISBLANK('2. Informations de base'!$C$38),"",'2. Informations de base'!$C$38) ->  | Q179: =DATEDIF('2. Informations de base'!$C$33,'2. Informations de base'!$C$38,"m") -> 0
B180: =IF(AND('2. Informations de base'!$C$14>0,B179<'2. Informations de base'!$C$14),(B179+1),"") ->  | K180: =IFERROR((J180/VLOOKUP($E$17,C$13:$H170,5))*VLOOKUP(E180,$C$7:$H$13,6),"") ->  | M180: =IF(ISBLANK('2. Informations de base'!$C$36),"",'2. Informations de base'!$C$36) ->  | N180: =IF(ISBLANK('2. Informations de base'!$C$38),"",'2. Informations de base'!$C$38) ->  | Q180: =DATEDIF('2. Informations de base'!$C$33,'2. Informations de base'!$C$38,"m") -> 0
B181: =IF(AND('2. Informations de base'!$C$14>0,B180<'2. Informations de base'!$C$14),(B180+1),"") ->  | K181: =IFERROR((J181/VLOOKUP($E$17,C$13:$H171,5))*VLOOKUP(E181,$C$7:$H$13,6),"") ->  | M181: =IF(ISBLANK('2. Informations de base'!$C$36),"",'2. Informations de base'!$C$36) ->  | N181: =IF(ISBLANK('2. Informations de base'!$C$38),"",'2. Informations de base'!$C$38) ->  | Q181: =DATEDIF('2. Informations de base'!$C$33,'2. Informations de base'!$C$38,"m") -> 0
B182: =IF(AND('2. Informations de base'!$C$14>0,B181<'2. Informations de base'!$C$14),(B181+1),"") ->  | K182: =IFERROR((J182/VLOOKUP($E$17,C$13:$H172,5))*VLOOKUP(E182,$C$7:$H$13,6),"") ->  | M182: =IF(ISBLANK('2. Informations de base'!$C$36),"",'2. Informations de base'!$C$36) ->  | N182: =IF(ISBLANK('2. Informations de base'!$C$38),"",'2. Informations de base'!$C$38) ->  | Q182: =DATEDIF('2. Informations de base'!$C$33,'2. Informations de base'!$C$38,"m") -> 0
B183: =IF(AND('2. Informations de base'!$C$14>0,B182<'2. Informations de base'!$C$14),(B182+1),"") ->  | K183: =IFERROR((J183/VLOOKUP($E$17,C$13:$H173,5))*VLOOKUP(E183,$C$7:$H$13,6),"") ->  | M183: =IF(ISBLANK('2. Informations de base'!$C$36),"",'2. Informations de base'!$C$36) ->  | N183: =IF(ISBLANK('2. Informations de base'!$C$38),"",'2. Informations de base'!$C$38) ->  | Q183: =DATEDIF('2. Informations de base'!$C$33,'2. Informations de base'!$C$38,"m") -> 0
B184: =IF(AND('2. Informations de base'!$C$14>0,B183<'2. Informations de base'!$C$14),(B183+1),"") ->  | K184: =IFERROR((J184/VLOOKUP($E$17,C$13:$H174,5))*VLOOKUP(E184,$C$7:$H$13,6),"") ->  | M184: =IF(ISBLANK('2. Informations de base'!$C$36),"",'2. Informations de base'!$C$36) ->  | N184: =IF(ISBLANK('2. Informations de base'!$C$38),"",'2. Informations de base'!$C$38) ->  | Q184: =DATEDIF('2. Informations de base'!$C$33,'2. Informations de base'!$C$38,"m") -> 0
B185: =IF(AND('2. Informations de base'!$C$14>0,B184<'2. Informations de base'!$C$14),(B184+1),"") ->  | K185: =IFERROR((J185/VLOOKUP($E$17,C$13:$H175,5))*VLOOKUP(E185,$C$7:$H$13,6),"") ->  | M185: =IF(ISBLANK('2. Informations de base'!$C$36),"",'2. Informations de base'!$C$36) ->  | N185: =IF(ISBLANK('2. Informations de base'!$C$38),"",'2. Informations de base'!$C$38) ->  | Q185: =DATEDIF('2. Informations de base'!$C$33,'2. Informations de base'!$C$38,"m") -> 0
B186: =IF(AND('2. Informations de base'!$C$14>0,B185<'2. Informations de base'!$C$14),(B185+1),"") ->  | K186: =IFERROR((J186/VLOOKUP($E$17,C$13:$H176,5))*VLOOKUP(E186,$C$7:$H$13,6),"") ->  | M186: =IF(ISBLANK('2. Informations de base'!$C$36),"",'2. Informations de base'!$C$36) ->  | N186: =IF(ISBLANK('2. Informations de base'!$C$38),"",'2. Informations de base'!$C$38) ->  | Q186: =DATEDIF('2. Informations de base'!$C$33,'2. Informations de base'!$C$38,"m") -> 0
B187: =IF(AND('2. Informations de base'!$C$14>0,B186<'2. Informations de base'!$C$14),(B186+1),"") ->  | K187: =IFERROR((J187/VLOOKUP($E$17,C$13:$H177,5))*VLOOKUP(E187,$C$7:$H$13,6),"") ->  | M187: =IF(ISBLANK('2. Informations de base'!$C$36),"",'2. Informations de base'!$C$36) ->  | N187: =IF(ISBLANK('2. Informations de base'!$C$38),"",'2. Informations de base'!$C$38) ->  | Q187: =DATEDIF('2. Informations de base'!$C$33,'2. Informations de base'!$C$38,"m") -> 0
B188: =IF(AND('2. Informations de base'!$C$14>0,B187<'2. Informations de base'!$C$14),(B187+1),"") ->  | K188: =IFERROR((J188/VLOOKUP($E$17,C$13:$H178,5))*VLOOKUP(E188,$C$7:$H$13,6),"") ->  | M188: =IF(ISBLANK('2. Informations de base'!$C$36),"",'2. Informations de base'!$C$36) ->  | N188: =IF(ISBLANK('2. Informations de base'!$C$38),"",'2. Informations de base'!$C$38) ->  | Q188: =DATEDIF('2. Informations de base'!$C$33,'2. Informations de base'!$C$38,"m") -> 0
B189: =IF(AND('2. Informations de base'!$C$14>0,B188<'2. Informations de base'!$C$14),(B188+1),"") ->  | K189: =IFERROR((J189/VLOOKUP($E$17,C$13:$H179,5))*VLOOKUP(E189,$C$7:$H$13,6),"") ->  | M189: =IF(ISBLANK('2. Informations de base'!$C$36),"",'2. Informations de base'!$C$36) ->  | N189: =IF(ISBLANK('2. Informations de base'!$C$38),"",'2. Informations de base'!$C$38) ->  | Q189: =DATEDIF('2. Informations de base'!$C$33,'2. Informations de base'!$C$38,"m") -> 0
B190: =IF(AND('2. Informations de base'!$C$14>0,B189<'2. Informations de base'!$C$14),(B189+1),"") ->  | K190: =IFERROR((J190/VLOOKUP($E$17,C$13:$H180,5))*VLOOKUP(E190,$C$7:$H$13,6),"") ->  | M190: =IF(ISBLANK('2. Informations de base'!$C$36),"",'2. Informations de base'!$C$36) ->  | N190: =IF(ISBLANK('2. Informations de base'!$C$38),"",'2. Informations de base'!$C$38) ->  | Q190: =DATEDIF('2. Informations de base'!$C$33,'2. Informations de base'!$C$38,"m") -> 0
B191: =IF(AND('2. Informations de base'!$C$14>0,B190<'2. Informations de base'!$C$14),(B190+1),"") ->  | K191: =IFERROR((J191/VLOOKUP($E$17,C$13:$H181,5))*VLOOKUP(E191,$C$7:$H$13,6),"") ->  | M191: =IF(ISBLANK('2. Informations de base'!$C$36),"",'2. Informations de base'!$C$36) ->  | N191: =IF(ISBLANK('2. Informations de base'!$C$38),"",'2. Informations de base'!$C$38) ->  | Q191: =DATEDIF('2. Informations de base'!$C$33,'2. Informations de base'!$C$38,"m") -> 0
B192: =IF(AND('2. Informations de base'!$C$14>0,B191<'2. Informations de base'!$C$14),(B191+1),"") ->  | K192: =IFERROR((J192/VLOOKUP($E$17,C$13:$H182,5))*VLOOKUP(E192,$C$7:$H$13,6),"") ->  | M192: =IF(ISBLANK('2. Informations de base'!$C$36),"",'2. Informations de base'!$C$36) ->  | N192: =IF(ISBLANK('2. Informations de base'!$C$38),"",'2. Informations de base'!$C$38) ->  | Q192: =DATEDIF('2. Informations de base'!$C$33,'2. Informations de base'!$C$38,"m") -> 0
B193: =IF(AND('2. Informations de base'!$C$14>0,B192<'2. Informations de base'!$C$14),(B192+1),"") ->  | K193: =IFERROR((J193/VLOOKUP($E$17,C$13:$H183,5))*VLOOKUP(E193,$C$7:$H$13,6),"") ->  | M193: =IF(ISBLANK('2. Informations de base'!$C$36),"",'2. Informations de base'!$C$36) ->  | N193: =IF(ISBLANK('2. Informations de base'!$C$38),"",'2. Informations de base'!$C$38) ->  | Q193: =DATEDIF('2. Informations de base'!$C$33,'2. Informations de base'!$C$38,"m") -> 0
B194: =IF(AND('2. Informations de base'!$C$14>0,B193<'2. Informations de base'!$C$14),(B193+1),"") ->  | K194: =IFERROR((J194/VLOOKUP($E$17,C$13:$H184,5))*VLOOKUP(E194,$C$7:$H$13,6),"") ->  | M194: =IF(ISBLANK('2. Informations de base'!$C$36),"",'2. Informations de base'!$C$36) ->  | N194: =IF(ISBLANK('2. Informations de base'!$C$38),"",'2. Informations de base'!$C$38) ->  | Q194: =DATEDIF('2. Informations de base'!$C$33,'2. Informations de base'!$C$38,"m") -> 0
B195: =IF(AND('2. Informations de base'!$C$14>0,B194<'2. Informations de base'!$C$14),(B194+1),"") ->  | K195: =IFERROR((J195/VLOOKUP($E$17,C$13:$H185,5))*VLOOKUP(E195,$C$7:$H$13,6),"") ->  | M195: =IF(ISBLANK('2. Informations de base'!$C$36),"",'2. Informations de base'!$C$36) ->  | N195: =IF(ISBLANK('2. Informations de base'!$C$38),"",'2. Informations de base'!$C$38) ->  | Q195: =DATEDIF('2. Informations de base'!$C$33,'2. Informations de base'!$C$38,"m") -> 0
B196: =IF(AND('2. Informations de base'!$C$14>0,B195<'2. Informations de base'!$C$14),(B195+1),"") ->  | K196: =IFERROR((J196/VLOOKUP($E$17,C$13:$H186,5))*VLOOKUP(E196,$C$7:$H$13,6),"") ->  | M196: =IF(ISBLANK('2. Informations de base'!$C$36),"",'2. Informations de base'!$C$36) ->  | N196: =IF(ISBLANK('2. Informations de base'!$C$38),"",'2. Informations de base'!$C$38) ->  | Q196: =DATEDIF('2. Informations de base'!$C$33,'2. Informations de base'!$C$38,"m") -> 0
B197: =IF(AND('2. Informations de base'!$C$14>0,B196<'2. Informations de base'!$C$14),(B196+1),"") ->  | K197: =IFERROR((J197/VLOOKUP($E$17,C$13:$H187,5))*VLOOKUP(E197,$C$7:$H$13,6),"") ->  | M197: =IF(ISBLANK('2. Informations de base'!$C$36),"",'2. Informations de base'!$C$36) ->  | N197: =IF(ISBLANK('2. Informations de base'!$C$38),"",'2. Informations de base'!$C$38) ->  | Q197: =DATEDIF('2. Informations de base'!$C$33,'2. Informations de base'!$C$38,"m") -> 0
B198: =IF(AND('2. Informations de base'!$C$14>0,B197<'2. Informations de base'!$C$14),(B197+1),"") ->  | K198: =IFERROR((J198/VLOOKUP($E$17,C$13:$H188,5))*VLOOKUP(E198,$C$7:$H$13,6),"") ->  | M198: =IF(ISBLANK('2. Informations de base'!$C$36),"",'2. Informations de base'!$C$36) ->  | N198: =IF(ISBLANK('2. Informations de base'!$C$38),"",'2. Informations de base'!$C$38) ->  | Q198: =DATEDIF('2. Informations de base'!$C$33,'2. Informations de base'!$C$38,"m") -> 0
B199: =IF(AND('2. Informations de base'!$C$14>0,B198<'2. Informations de base'!$C$14),(B198+1),"") ->  | K199: =IFERROR((J199/VLOOKUP($E$17,C$13:$H189,5))*VLOOKUP(E199,$C$7:$H$13,6),"") ->  | M199: =IF(ISBLANK('2. Informations de base'!$C$36),"",'2. Informations de base'!$C$36) ->  | N199: =IF(ISBLANK('2. Informations de base'!$C$38),"",'2. Informations de base'!$C$38) ->  | Q199: =DATEDIF('2. Informations de base'!$C$33,'2. Informations de base'!$C$38,"m") -> 0
B200: =IF(AND('2. Informations de base'!$C$14>0,B199<'2. Informations de base'!$C$14),(B199+1),"") ->  | K200: =IFERROR((J200/VLOOKUP($E$17,C$13:$H190,5))*VLOOKUP(E200,$C$7:$H$13,6),"") ->  | M200: =IF(ISBLANK('2. Informations de base'!$C$36),"",'2. Informations de base'!$C$36) ->  | N200: =IF(ISBLANK('2. Informations de base'!$C$38),"",'2. Informations de base'!$C$38) ->  | Q200: =DATEDIF('2. Informations de base'!$C$33,'2. Informations de base'!$C$38,"m") -> 0
B201: =IF(AND('2. Informations de base'!$C$14>0,B200<'2. Informations de base'!$C$14),(B200+1),"") ->  | K201: =IFERROR((J201/VLOOKUP($E$17,C$13:$H191,5))*VLOOKUP(E201,$C$7:$H$13,6),"") ->  | M201: =IF(ISBLANK('2. Informations de base'!$C$36),"",'2. Informations de base'!$C$36) ->  | N201: =IF(ISBLANK('2. Informations de base'!$C$38),"",'2. Informations de base'!$C$38) ->  | Q201: =DATEDIF('2. Informations de base'!$C$33,'2. Informations de base'!$C$38,"m") -> 0
B202: =IF(AND('2. Informations de base'!$C$14>0,B201<'2. Informations de base'!$C$14),(B201+1),"") ->  | K202: =IFERROR((J202/VLOOKUP($E$17,C$13:$H192,5))*VLOOKUP(E202,$C$7:$H$13,6),"") ->  | M202: =IF(ISBLANK('2. Informations de base'!$C$36),"",'2. Informations de base'!$C$36) ->  | N202: =IF(ISBLANK('2. Informations de base'!$C$38),"",'2. Informations de base'!$C$38) ->  | Q202: =DATEDIF('2. Informations de base'!$C$33,'2. Informations de base'!$C$38,"m") -> 0
... 66 more rows

Sheet Amélioration énergétique (hidden)
B4: ='3. CSII - Immeubles et loyers'!F18 -> [Adresse immeuble 1] | J4: ='3. CSII - Immeubles et loyers'!F23 -> [Adresse immeuble 6] | AI4: Isolation entretoit | AJ4: Isolation mur extérieur | AK4: Isolation fondation | AL4: Portes et fenêtres
B5: Année de construction | C5: 1930 | D5: Facteur isolant code bâtiment | E5: Travaux prévus | F5: Facteur isolant code bâtiment | G5: Gain énergétique cible | H5: Gains potentiels totaux | J5: Année de construction | K5: 1930 | L5: Facteur isolant code bâtiment | M5: Travaux prévus | N5: Facteur isolant code bâtiment | O5: Gain énergétique cible | P5: Gains potentiels totaux | S5: 1910 | T5: 1920 | U5: 1930 | V5: 1940 | W5: 1950 | X5: 1960 | Y5: 1970 | Z5: 1980 | AA5: 1990 | AB5: 2000 | AC5: 2010 | AD5: 2020 | AE5: 2030 | AH5: R2 | AI5: 0.8 | AL5: 1
B6: Année de modification | J6: Année de modification | R6: Isolation entretoit | S6: R10 | T6: R10 | U6: R10 | V6: R10 | W6: R10 | X6: R10 | Y6: R20 | Z6: R20 | AA6: R20 | AB6: R30 | AC6: R30 | AD6: R40 | AE6: R40 | AH6: R3 | AI6: 0.8 | AL6: 1
B7: Isolation entretoit | C7: 1985 | D7: =INDEX($S$6:$AE$9,MATCH($B7,$R$6:$R$9,0),MATCH(C7,$S$5:$AE$5,1)) -> R20 | E7: Oui | F7: R30 | G7: =IFERROR(INDEX($AI$5:$AL$12,MATCH(F7,$AH$5:$AH$13,1),MATCH(B7,$AI$4:$AL$4,0)),"inconnu")-INDEX($AI$5:$AL$13,MATCH(D7,$AH$5:$AH$13,0),MATCH(B7,$AI$4:$AL$4,0)) -> 0.02 | H7: =G7+G8+G9+G10+F12+F13+F14+G16+G17 -> 0.07 | J7: Isolation entretoit | K7: 1985 | L7: =INDEX($S$6:$AE$9,MATCH($J7,$R$6:$R$9,0),MATCH(K7,$S$5:$AE$5,1)) -> R20 | M7: Oui | N7: R20 | O7: =IFERROR(INDEX($AI$5:$AL$12,MATCH(N7,$AH$5:$AH$13,1),MATCH(J7,$AI$4:$AL$4,0)),"inconnu")-INDEX($AI$5:$AL$13,MATCH(L7,$AH$5:$AH$13,0),MATCH(J7,$AI$4:$AL$4,0)) -> 0 | P7: =O7+O8+O9+O10+N12+N13+N14+O16+O17 -> 0.11 | R7: Isolation mur extérieur | S7: R10 | T7: R10 | U7: R10 | V7: R10 | W7: R10 | X7: R10 | Y7: R12 | Z7: R12 | AA7: R12 | AB7: R20 | AC7: R20 | AD7: R20 | AE7: R20 | AH7: R5 | AI7: 0.8 | AK7: 1 | AL7: 1.02
B8: Isolation mur extérieur | C8: 1990 | D8: =INDEX($S$6:$AE$9,MATCH($B8,$R$6:$R$9,0),MATCH(C8,$S$5:$AE$5,1)) -> R12 | F8: R12 | G8: =IFERROR(INDEX($AI$5:$AL$12,MATCH($F8,$AH$5:$AH$13,1),MATCH($B8,$AI$4:$AL$4,0)),"inconnu")-INDEX($AI$5:$AL$13,MATCH($D8,$AH$5:$AH$13,0),MATCH($B8,$AI$4:$AL$4,0)) -> 0 | J8: Isolation mur extérieur | K8: 1990 | L8: =INDEX($S$6:$AE$9,MATCH($J8,$R$6:$R$9,0),MATCH(K8,$S$5:$AE$5,1)) -> R12 | N8: R12 | O8: =IFERROR(INDEX($AI$5:$AL$12,MATCH($N8,$AH$5:$AH$13,1),MATCH($J8,$AI$4:$AL$4,0)),"inconnu")-INDEX($AI$5:$AL$13,MATCH($L8,$AH$5:$AH$13,0),MATCH($J8,$AI$4:$AL$4,0)) -> 0 | R8: Isolation fondation | S8: R5 | T8: R5 | U8: R5 | V8: R5 | W8: R5 | X8: R5 | Y8: R10 | Z8: R10 | AA8: R10 | AB8: R10 | AC8: R10 | AD8: R20 | AE8: R20 | AH8: R10 | AI8: 1 | AJ8: 1 | AK8: 1.02 | AL8: 1.02
B9: Isolation fondation | C9: 1990 | D9: =INDEX($S$6:$AE$9,MATCH($B9,$R$6:$R$9,0),MATCH(C9,$S$5:$AE$5,1)) -> R10 | F9: R12 | G9: =IFERROR(INDEX($AI$5:$AL$12,MATCH($F9,$AH$5:$AH$13,1),MATCH($B9,$AI$4:$AL$4,0)),"inconnu")-INDEX($AI$5:$AL$13,MATCH($D9,$AH$5:$AH$13,0),MATCH($B9,$AI$4:$AL$4,0)) -> 0.03 | J9: Isolation fondation | K9: 1990 | L9: =INDEX($S$6:$AE$9,MATCH($J9,$R$6:$R$9,0),MATCH(K9,$S$5:$AE$5,1)) -> R10 | N9: R12 | O9: =IFERROR(INDEX($AI$5:$AL$12,MATCH($N9,$AH$5:$AH$13,1),MATCH($J9,$AI$4:$AL$4,0)),"inconnu")-INDEX($AI$5:$AL$13,MATCH($L9,$AH$5:$AH$13,0),MATCH($J9,$AI$4:$AL$4,0)) -> 0.03 | R9: Portes et fenêtres | S9: R2 | T9: R2 | U9: R2 | V9: R2 | W9: R2 | X9: R2 | Y9: R5 | Z9: R5 | AA9: R5 | AB9: R5 | AC9: R5 | AD9: R5 | AE9: R5 | AH9: R12 | AI9: 1.02 | AJ9: 1.05 | AK9: 1.05 | AL9: 1.02
B10: Portes et fenêtres | C10: 1930 | D10: =INDEX($S$6:$AE$9,MATCH($B10,$R$6:$R$9,0),MATCH(C10,$S$5:$AE$5,1)) -> R2 | F10: R5 | G10: =IFERROR(INDEX($AI$5:$AL$12,MATCH($F10,$AH$5:$AH$13,1),MATCH($B10,$AI$4:$AL$4,0)),"inconnu")-INDEX($AI$5:$AL$13,MATCH($D10,$AH$5:$AH$13,0),MATCH($B10,$AI$4:$AL$4,0)) -> 0.02 | J10: Portes et fenêtres | K10: 1930 | L10: =INDEX($S$6:$AE$9,MATCH($J10,$R$6:$R$9,0),MATCH(K10,$S$5:$AE$5,1)) -> R2 | N10: R5 | O10: =IFERROR(INDEX($AI$5:$AL$12,MATCH($N10,$AH$5:$AH$13,1),MATCH($J10,$AI$4:$AL$4,0)),"inconnu")-INDEX($AI$5:$AL$13,MATCH($L10,$AH$5:$AH$13,0),MATCH($J10,$AI$4:$AL$4,0)) -> 0.02 | AH10: R20 | AI10: 1.05 | AJ10: 1.06 | AK10: 1.07 | AL10: 1.02
B11: Autres gains énergétiques potentiels | D11: Travaux prévus | F11: Gain énergétique cible | J11: Autres gains énergétiques potentiels | L11: Travaux prévus | N11: Gain énergétique cible | AH11: R30 | AI11: 1.07 | AJ11: 1.07 | AK11: 1.1 | AL11: 1.02
B12: Réduction des infiltrations d'air | D12: Oui | J12: Réduction des infiltrations d'air | L12: Oui | N12: 0.03 | R12: Électricité | S12: GES | T12: 0.000567 | U12: tCO2eq/GL | AH12: R40 | AI12: 1.1 | AJ12: 1.1 | AK12: 1.1 | AL12: 1.02
B13: Installation de thermostats électroniques | D13: Oui | J13: Installation de thermostates électronique | L13: Oui | R13: Gaz naturel | S13: DES | T13: 0.49863 | U13: tCO2eq/GL | AH13: R50 | AI13: 1.1 | AJ13: 1.1 | AK13: 1.1 | AL13: 1.02
B14: Installation de produits homologués Watersense® | D14: Oui | J14: Installation de produits homologués Watersense® | L14: Oui
B15: Type de système de chauffage | D15: Taux efficacité | E15: Modification | F15: Taux efficacité | G15: Gain énergétique | J15: Type de système de chauffage | L15: Taux efficacité | M15: Modification | N15: Taux efficacité | O15: Gain énergétique | R15: Transition énergétique Québec
B16: Central électrique-mazout | C16: 1930 | E16: Oui | J16: Central électrique-mazout | K16: 1930 | M16: Oui | O16: 0.03
B17: Utiliser la liste déroulante | C17: 2005 | E17: Oui | J17: Utiliser la liste déroulante | K17: 2005 | M17: Oui | S17: 64 % de l'énergie est relié au chauffage | W17: Résultats de recherche | Ressources naturelles Canada (nrcan.gc.ca)
B19: ='3. CSII - Immeubles et loyers'!F19 -> [Adresse immeuble 2] | J19: ='3. CSII - Immeubles et loyers'!F24 -> [Adresse immeuble 7]
B20: Année de construction | C20: 1930 | D20: Facteur isolant code bâtiment | E20: Travaux prévus | F20: Facteur isolant code bâtiment | G20: Gain énergétique cible | H20: Gains potentiels totaux | J20: Année de construction | K20: 1930 | L20: Facteur isolant code bâtiment | M20: Travaux prévus | N20: Facteur isolant code bâtiment | O20: Gain énergétique cible | P20: Gains potentiels totaux
B21: Année de modification | J21: Année de modification
B22: Isolation entretoit | C22: 1985 | D22: =INDEX($S$6:$AE$9,MATCH($B22,$R$6:$R$9,0),MATCH(C22,$S$5:$AE$5,1)) -> R20 | E22: Oui | F22: R20 | G22: =IFERROR(INDEX($AI$5:$AL$12,MATCH(F22,$AH$5:$AH$13,1),MATCH(B22,$AI$4:$AL$4,0)),"inconnu")-INDEX($AI$5:$AL$13,MATCH(D22,$AH$5:$AH$13,0),MATCH(B22,$AI$4:$AL$4,0)) -> 0 | H22: =G22+G23+G24+G25+F27+F28+F29+G31+G32 -> 0.08 | J22: Isolation entretoit | K22: 1985 | L22: =INDEX($S$6:$AE$9,MATCH($J22,$R$6:$R$9,0),MATCH(K22,$S$5:$AE$5,1)) -> R20 | M22: Oui | N22: R20 | O22: =IFERROR(INDEX($AI$5:$AL$12,MATCH(N22,$AH$5:$AH$13,1),MATCH(J22,$AI$4:$AL$4,0)),"inconnu")-INDEX($AI$5:$AL$13,MATCH(L22,$AH$5:$AH$13,0),MATCH(J22,$AI$4:$AL$4,0)) -> 0 | P22: =O22+O23+O24+O25+N27+N28+N29+O31+O32 -> 0.09
B23: Isolation mur extérieur | C23: 1990 | D23: =INDEX($S$6:$AE$9,MATCH($B23,$R$6:$R$9,0),MATCH(C23,$S$5:$AE$5,1)) -> R12 | F23: R12 | G23: =IFERROR(INDEX($AI$5:$AL$12,MATCH($F23,$AH$5:$AH$13,1),MATCH($B23,$AI$4:$AL$4,0)),"inconnu")-INDEX($AI$5:$AL$13,MATCH($D23,$AH$5:$AH$13,0),MATCH($B23,$AI$4:$AL$4,0)) -> 0 | J23: Isolation mur extérieur | K23: 1990 | L23: =INDEX($S$6:$AE$9,MATCH($J23,$R$6:$R$9,0),MATCH(K23,$S$5:$AE$5,1)) -> R12 | N23: R12 | O23: =IFERROR(INDEX($AI$5:$AL$12,MATCH($N23,$AH$5:$AH$13,1),MATCH($J23,$AI$4:$AL$4,0)),"inconnu")-INDEX($AI$5:$AL$13,MATCH($L23,$AH$5:$AH$13,0),MATCH($J23,$AI$4:$AL$4,0)) -> 0
B24: Isolation fondation | C24: 1990 | D24: =INDEX($S$6:$AE$9,MATCH($B24,$R$6:$R$9,0),MATCH(C24,$S$5:$AE$5,1)) -> R10 | F24: R12 | G24: =IFERROR(INDEX($AI$5:$AL$12,MATCH($F24,$AH$5:$AH$13,1),MATCH($B24,$AI$4:$AL$4,0)),"inconnu")-INDEX($AI$5:$AL$13,MATCH($D24,$AH$5:$AH$13,0),MATCH($B24,$AI$4:$AL$4,0)) -> 0.03 | J24: Isolation fondation | K24: 1990 | L24: =INDEX($S$6:$AE$9,MATCH($J24,$R$6:$R$9,0),MATCH(K24,$S$5:$AE$5,1)) -> R10 | N24: R12 | O24: =IFERROR(INDEX($AI$5:$AL$12,MATCH($N24,$AH$5:$AH$13,1),MATCH($J24,$AI$4:$AL$4,0)),"inconnu")-INDEX($AI$5:$AL$13,MATCH($L24,$AH$5:$AH$13,0),MATCH($J24,$AI$4:$AL$4,0)) -> 0.03
B25: Portes et fenêtres | C25: 1930 | D25: =INDEX($S$6:$AE$9,MATCH($B25,$R$6:$R$9,0),MATCH(C25,$S$5:$AE$5,1)) -> R2 | F25: R5 | G25: =IFERROR(INDEX($AI$5:$AL$12,MATCH($F25,$AH$5:$AH$13,1),MATCH($B25,$AI$4:$AL$4,0)),"inconnu")-INDEX($AI$5:$AL$13,MATCH($D25,$AH$5:$AH$13,0),MATCH($B25,$AI$4:$AL$4,0)) -> 0.02 | J25: Portes et fenêtres | K25: 1930 | L25: =INDEX($S$6:$AE$9,MATCH($J25,$R$6:$R$9,0),MATCH(K25,$S$5:$AE$5,1)) -> R2 | N25: R5 | O25: =IFERROR(INDEX($AI$5:$AL$12,MATCH($N25,$AH$5:$AH$13,1),MATCH($J25,$AI$4:$AL$4,0)),"inconnu")-INDEX($AI$5:$AL$13,MATCH($L25,$AH$5:$AH$13,0),MATCH($J25,$AI$4:$AL$4,0)) -> 0.02
B26: Autres gains énergétiques potentiels | D26: Travaux prévus | F26: Gain énergétique cible | J26: Autres gains énergétiques potentiels | L26: Travaux prévus | N26: Gain énergétique cible
B27: Réduction des infiltrations d'air | D27: Oui | F27: 0 | J27: Réduction des infiltrations d'air | L27: Oui | N27: 0.01
B28: Installation de thermostates électronique | D28: Oui | J28: Installation de thermostates électronique | L28: Oui
B29: Installation de produits homologués Watersense® | D29: Oui | J29: Installation de produits homologués Watersense® | L29: Oui
B30: Type de système de chauffage | D30: Taux efficacité | E30: Modification | F30: Taux efficacité | G30: Gain énergétique | J30: Type de système de chauffage | L30: Taux efficacité | M30: Modification | N30: Taux efficacité | O30: Gain énergétique
B31: Central électrique-mazout | C31: 1930 | E31: Oui | G31: 0.03 | J31: Central électrique-mazout | K31: 1930 | M31: Oui | O31: 0.03
B32: Utiliser la liste déroulante | C32: 2005 | E32: Oui | J32: Utiliser la liste déroulante | K32: 2005 | M32: Oui
B34: ='3. CSII - Immeubles et loyers'!F20 -> [Adresse immeuble 3] | J34: ='3. CSII - Immeubles et loyers'!F25 -> [Adresse immeuble 8]
B35: Année de construction | C35: 1930 | D35: Facteur isolant code bâtiment | E35: Travaux prévus | F35: Facteur isolant code bâtiment | G35: Gain énergétique cible | H35: Gains potentiels totaux | J35: Année de construction | K35: 1930 | L35: Facteur isolant code bâtiment | M35: Travaux prévus | N35: Facteur isolant code bâtiment | O35: Gain énergétique cible | P35: Gains potentiels totaux
B36: Année de modification | J36: Année de modification
B37: Isolation entretoit | C37: 1985 | D37: =INDEX($S$6:$AE$9,MATCH($B37,$R$6:$R$9,0),MATCH(C37,$S$5:$AE$5,1)) -> R20 | E37: Oui | F37: R20 | G37: =IFERROR(INDEX($AI$5:$AL$12,MATCH(F37,$AH$5:$AH$13,1),MATCH(B37,$AI$4:$AL$4,0)),"inconnu")-INDEX($AI$5:$AL$13,MATCH(D37,$AH$5:$AH$13,0),MATCH(B37,$AI$4:$AL$4,0)) -> 0 | H37: =G37+G38+G39+G40+F42+F43+F44+G46+G47 -> 0.09 | J37: Isolation entretoit | K37: 1985 | L37: =INDEX($S$6:$AE$9,MATCH($J37,$R$6:$R$9,0),MATCH(K37,$S$5:$AE$5,1)) -> R20 | M37: Oui | N37: R20 | O37: =IFERROR(INDEX($AI$5:$AL$12,MATCH(N37,$AH$5:$AH$13,1),MATCH(J37,$AI$4:$AL$4,0)),"inconnu")-INDEX($AI$5:$AL$13,MATCH(L37,$AH$5:$AH$13,0),MATCH(J37,$AI$4:$AL$4,0)) -> 0 | P37: =O37+O38+O39+O40+N42+N43+N44+O46+O47 -> 0.08
B38: Isolation mur extérieur | C38: 1990 | D38: =INDEX($S$6:$AE$9,MATCH($B38,$R$6:$R$9,0),MATCH(C38,$S$5:$AE$5,1)) -> R12 | F38: R12 | G38: =IFERROR(INDEX($AI$5:$AL$12,MATCH($F38,$AH$5:$AH$13,1),MATCH($B38,$AI$4:$AL$4,0)),"inconnu")-INDEX($AI$5:$AL$13,MATCH($D38,$AH$5:$AH$13,0),MATCH($B38,$AI$4:$AL$4,0)) -> 0 | J38: Isolation mur extérieur | K38: 1990 | L38: =INDEX($S$6:$AE$9,MATCH($J38,$R$6:$R$9,0),MATCH(K38,$S$5:$AE$5,1)) -> R12 | N38: R12 | O38: =IFERROR(INDEX($AI$5:$AL$12,MATCH($N38,$AH$5:$AH$13,1),MATCH($J38,$AI$4:$AL$4,0)),"inconnu")-INDEX($AI$5:$AL$13,MATCH($L38,$AH$5:$AH$13,0),MATCH($J38,$AI$4:$AL$4,0)) -> 0
B39: Isolation fondation | C39: 1990 | D39: =INDEX($S$6:$AE$9,MATCH($B39,$R$6:$R$9,0),MATCH(C39,$S$5:$AE$5,1)) -> R10 | F39: R12 | G39: =IFERROR(INDEX($AI$5:$AL$12,MATCH($F39,$AH$5:$AH$13,1),MATCH($B39,$AI$4:$AL$4,0)),"inconnu")-INDEX($AI$5:$AL$13,MATCH($D39,$AH$5:$AH$13,0),MATCH($B39,$AI$4:$AL$4,0)) -> 0.03 | J39: Isolation fondation | K39: 1990 | L39: =INDEX($S$6:$AE$9,MATCH($J39,$R$6:$R$9,0),MATCH(K39,$S$5:$AE$5,1)) -> R10 | N39: R12 | O39: =IFERROR(INDEX($AI$5:$AL$12,MATCH($N39,$AH$5:$AH$13,1),MATCH($J39,$AI$4:$AL$4,0)),"inconnu")-INDEX($AI$5:$AL$13,MATCH($L39,$AH$5:$AH$13,0),MATCH($J39,$AI$4:$AL$4,0)) -> 0.03
B40: Portes et fenêtres | C40: 1930 | D40: =INDEX($S$6:$AE$9,MATCH($B40,$R$6:$R$9,0),MATCH(C40,$S$5:$AE$5,1)) -> R2 | F40: R5 | G40: =IFERROR(INDEX($AI$5:$AL$12,MATCH($F40,$AH$5:$AH$13,1),MATCH($B40,$AI$4:$AL$4,0)),"inconnu")-INDEX($AI$5:$AL$13,MATCH($D40,$AH$5:$AH$13,0),MATCH($B40,$AI$4:$AL$4,0)) -> 0.02 | J40: Portes et fenêtres | K40: 1930 | L40: =INDEX($S$6:$AE$9,MATCH($J40,$R$6:$R$9,0),MATCH(K40,$S$5:$AE$5,1)) -> R2 | N40: R5 | O40: =IFERROR(INDEX($AI$5:$AL$12,MATCH($N40,$AH$5:$AH$13,1),MATCH($J40,$AI$4:$AL$4,0)),"inconnu")-INDEX($AI$5:$AL$13,MATCH($L40,$AH$5:$AH$13,0),MATCH($J40,$AI$4:$AL$4,0)) -> 0.02
B41: Autres gains énergétiques potentiels | D41: Travaux prévus | F41: Gain énergétique cible | J41: Autres gains énergétiques potentiels | L41: Travaux prévus | N41: Gain énergétique cible
B42: Réduction des infiltrations d'air | D42: Oui | F42: 0.01 | J42: Réduction des infiltrations d'air | L42: Oui | N42: 0
B43: Installation de thermostates électronique | D43: Oui | J43: Installation de thermostates électronique | L43: Oui
B44: Installation de produits homologués Watersense® | D44: Oui | J44: Installation de produits homologués Watersense® | L44: Oui
B45: Type de système de chauffage | D45: Taux efficacité | E45: Modification | F45: Taux efficacité | G45: Gain énergétique | J45: Type de système de chauffage | L45: Taux efficacité | M45: Modification | N45: Taux efficacité | O45: Gain énergétique
B46: Central électrique-mazout | C46: 1930 | E46: Oui | G46: 0.03 | J46: Central électrique-mazout | K46: 1930 | M46: Oui | O46: 0.03
B47: Utiliser la liste déroulante | C47: 2005 | E47: Oui | J47: Utiliser la liste déroulante | K47: 2005 | M47: Oui
B49: ='3. CSII - Immeubles et loyers'!F21 -> [Adresse immeuble 4] | J49: ='3. CSII - Immeubles et loyers'!F26 -> [Adresse immeuble 9]
B50: Année de construction | C50: 1930 | D50: Facteur isolant code bâtiment | E50: Travaux prévus | F50: Facteur isolant code bâtiment | G50: Gain énergétique cible | H50: Gains potentiels totaux | J50: Année de construction | K50: 1930 | L50: Facteur isolant code bâtiment | M50: Travaux prévus | N50: Facteur isolant code bâtiment | O50: Gain énergétique cible | P50: Gains potentiels totaux
B51: Année de modification | J51: Année de modification
B52: Isolation entretoit | C52: 1985 | D52: =INDEX($S$6:$AE$9,MATCH($B52,$R$6:$R$9,0),MATCH(C52,$S$5:$AE$5,1)) -> R20 | E52: Oui | F52: R20 | G52: =IFERROR(INDEX($AI$5:$AL$12,MATCH(F52,$AH$5:$AH$13,1),MATCH(B52,$AI$4:$AL$4,0)),"inconnu")-INDEX($AI$5:$AL$13,MATCH(D52,$AH$5:$AH$13,0),MATCH(B52,$AI$4:$AL$4,0)) -> 0 | H52: =G52+G53+G54+G55+F57+F58+F59+G61+G62 -> 0.09 | J52: Isolation entretoit | K52: 1985 | L52: =INDEX($S$6:$AE$9,MATCH($J52,$R$6:$R$9,0),MATCH(K52,$S$5:$AE$5,1)) -> R20 | M52: Oui | N52: R20 | O52: =IFERROR(INDEX($AI$5:$AL$12,MATCH(N52,$AH$5:$AH$13,1),MATCH(J52,$AI$4:$AL$4,0)),"inconnu")-INDEX($AI$5:$AL$13,MATCH(L52,$AH$5:$AH$13,0),MATCH(J52,$AI$4:$AL$4,0)) -> 0 | P52: =O52+O53+O54+O55+N57+N58+N59+O61+O62 -> 0.09
B53: Isolation mur extérieur | C53: 1990 | D53: =INDEX($S$6:$AE$9,MATCH($B53,$R$6:$R$9,0),MATCH(C53,$S$5:$AE$5,1)) -> R12 | F53: R12 | G53: =IFERROR(INDEX($AI$5:$AL$12,MATCH($F53,$AH$5:$AH$13,1),MATCH($B53,$AI$4:$AL$4,0)),"inconnu")-INDEX($AI$5:$AL$13,MATCH($D53,$AH$5:$AH$13,0),MATCH($B53,$AI$4:$AL$4,0)) -> 0 | J53: Isolation mur extérieur | K53: 1990 | L53: =INDEX($S$6:$AE$9,MATCH($J53,$R$6:$R$9,0),MATCH(K53,$S$5:$AE$5,1)) -> R12 | N53: R12 | O53: =IFERROR(INDEX($AI$5:$AL$12,MATCH($N53,$AH$5:$AH$13,1),MATCH($J53,$AI$4:$AL$4,0)),"inconnu")-INDEX($AI$5:$AL$13,MATCH($L53,$AH$5:$AH$13,0),MATCH($J53,$AI$4:$AL$4,0)) -> 0
B54: Isolation fondation | C54: 1990 | D54: =INDEX($S$6:$AE$9,MATCH($B54,$R$6:$R$9,0),MATCH(C54,$S$5:$AE$5,1)) -> R10 | F54: R12 | G54: =IFERROR(INDEX($AI$5:$AL$12,MATCH($F54,$AH$5:$AH$13,1),MATCH($B54,$AI$4:$AL$4,0)),"inconnu")-INDEX($AI$5:$AL$13,MATCH($D54,$AH$5:$AH$13,0),MATCH($B54,$AI$4:$AL$4,0)) -> 0.03 | J54: Isolation fondation | K54: 1990 | L54: =INDEX($S$6:$AE$9,MATCH($J54,$R$6:$R$9,0),MATCH(K54,$S$5:$AE$5,1)) -> R10 | N54: R12 | O54: =IFERROR(INDEX($AI$5:$AL$12,MATCH($N54,$AH$5:$AH$13,1),MATCH($J54,$AI$4:$AL$4,0)),"inconnu")-INDEX($AI$5:$AL$13,MATCH($L54,$AH$5:$AH$13,0),MATCH($J54,$AI$4:$AL$4,0)) -> 0.03
B55: Portes et fenêtres | C55: 1930 | D55: =INDEX($S$6:$AE$9,MATCH($B55,$R$6:$R$9,0),MATCH(C55,$S$5:$AE$5,1)) -> R2 | F55: R5 | G55: =IFERROR(INDEX($AI$5:$AL$12,MATCH($F55,$AH$5:$AH$13,1),MATCH($B55,$AI$4:$AL$4,0)),"inconnu")-INDEX($AI$5:$AL$13,MATCH($D55,$AH$5:$AH$13,0),MATCH($B55,$AI$4:$AL$4,0)) -> 0.02 | J55: Portes et fenêtres | K55: 1930 | L55: =INDEX($S$6:$AE$9,MATCH($J55,$R$6:$R$9,0),MATCH(K55,$S$5:$AE$5,1)) -> R2 | N55: R5 | O55: =IFERROR(INDEX($AI$5:$AL$12,MATCH($N55,$AH$5:$AH$13,1),MATCH($J55,$AI$4:$AL$4,0)),"inconnu")-INDEX($AI$5:$AL$13,MATCH($L55,$AH$5:$AH$13,0),MATCH($J55,$AI$4:$AL$4,0)) -> 0.02
B56: Autres gains énergétiques potentiels | D56: Travaux prévus | F56: Gain énergétique cible | J56: Autres gains énergétiques potentiels | L56: Travaux prévus | N56: Gain énergétique cible
B57: Réduction des infiltrations d'air | D57: Oui | F57: 0.01 | J57: Réduction des infiltrations d'air | L57: Oui | N57: 0.01
B58: Installation de thermostates électronique | D58: Oui | J58: Installation de thermostates électronique | L58: Oui
B59: Installation de produits homologués Watersense® | D59: Oui | J59: Installation de produits homologués Watersense® | L59: Oui
B60: Type de système de chauffage | D60: Taux efficacité | E60: Modification | F60: Taux efficacité | G60: Gain énergétique | J60: Type de système de chauffage | L60: Taux efficacité | M60: Modification | N60: Taux efficacité | O60: Gain énergétique
B61: Central électrique-mazout | C61: 1930 | E61: Oui | G61: 0.03 | J61: Central électrique-mazout | K61: 1930 | M61: Oui | O61: 0.03
B62: Utiliser la liste déroulante | C62: 2005 | E62: Oui | J62: Utiliser la liste déroulante | K62: 2005 | M62: Oui
B64: ='3. CSII - Immeubles et loyers'!F22 -> [Adresse immeuble 5] | J64: ='3. CSII - Immeubles et loyers'!F27 -> [Adresse immeuble 10]
B65: Année de construction | C65: 1930 | D65: Facteur isolant code bâtiment | E65: Travaux prévus | F65: Facteur isolant code bâtiment | G65: Gain énergétique cible | H65: Gains potentiels totaux | J65: Année de construction | K65: 1930 | L65: Facteur isolant code bâtiment | M65: Travaux prévus | N65: Facteur isolant code bâtiment | O65: Gain énergétique cible | P65: Gains potentiels totaux
B66: Année de modification | J66: Année de modification
B67: Isolation entretoit | C67: 1985 | D67: =INDEX($S$6:$AE$9,MATCH($B67,$R$6:$R$9,0),MATCH(C67,$S$5:$AE$5,1)) -> R20 | E67: Oui | F67: R20 | G67: =IFERROR(INDEX($AI$5:$AL$12,MATCH(F67,$AH$5:$AH$13,1),MATCH(B67,$AI$4:$AL$4,0)),"inconnu")-INDEX($AI$5:$AL$13,MATCH(D67,$AH$5:$AH$13,0),MATCH(B67,$AI$4:$AL$4,0)) -> 0 | H67: =G67+G68+G69+G70+F72+F73+F74+G76+G77 -> 0.09 | J67: Isolation entretoit | K67: 1985 | L67: =INDEX($S$6:$AE$9,MATCH($J67,$R$6:$R$9,0),MATCH(K67,$S$5:$AE$5,1)) -> R20 | M67: Oui | N67: R20 | O67: =IFERROR(INDEX($AI$5:$AL$12,MATCH(N67,$AH$5:$AH$13,1),MATCH(J67,$AI$4:$AL$4,0)),"inconnu")-INDEX($AI$5:$AL$13,MATCH(L67,$AH$5:$AH$13,0),MATCH(J67,$AI$4:$AL$4,0)) -> 0 | P67: =O67+O68+O69+O70+N72+N73+N74+O76+O77 -> 0.09
B68: Isolation mur extérieur | C68: 1990 | D68: =INDEX($S$6:$AE$9,MATCH($B68,$R$6:$R$9,0),MATCH(C68,$S$5:$AE$5,1)) -> R12 | F68: R12 | G68: =IFERROR(INDEX($AI$5:$AL$12,MATCH($F68,$AH$5:$AH$13,1),MATCH($B68,$AI$4:$AL$4,0)),"inconnu")-INDEX($AI$5:$AL$13,MATCH($D68,$AH$5:$AH$13,0),MATCH($B68,$AI$4:$AL$4,0)) -> 0 | J68: Isolation mur extérieur | K68: 1990 | L68: =INDEX($S$6:$AE$9,MATCH($J68,$R$6:$R$9,0),MATCH(K68,$S$5:$AE$5,1)) -> R12 | N68: R12 | O68: =IFERROR(INDEX($AI$5:$AL$12,MATCH($N68,$AH$5:$AH$13,1),MATCH($J68,$AI$4:$AL$4,0)),"inconnu")-INDEX($AI$5:$AL$13,MATCH($L68,$AH$5:$AH$13,0),MATCH($J68,$AI$4:$AL$4,0)) -> 0
B69: Isolation fondation | C69: 1990 | D69: =INDEX($S$6:$AE$9,MATCH($B69,$R$6:$R$9,0),MATCH(C69,$S$5:$AE$5,1)) -> R10 | F69: R12 | G69: =IFERROR(INDEX($AI$5:$AL$12,MATCH($F69,$AH$5:$AH$13,1),MATCH($B69,$AI$4:$AL$4,0)),"inconnu")-INDEX($AI$5:$AL$13,MATCH($D69,$AH$5:$AH$13,0),MATCH($B69,$AI$4:$AL$4,0)) -> 0.03 | J69: Isolation fondation | K69: 1990 | L69: =INDEX($S$6:$AE$9,MATCH($J69,$R$6:$R$9,0),MATCH(K69,$S$5:$AE$5,1)) -> R10 | N69: R12 | O69: =IFERROR(INDEX($AI$5:$AL$12,MATCH($N69,$AH$5:$AH$13,1),MATCH($J69,$AI$4:$AL$4,0)),"inconnu")-INDEX($AI$5:$AL$13,MATCH($L69,$AH$5:$AH$13,0),MATCH($J69,$AI$4:$AL$4,0)) -> 0.03
B70: Portes et fenêtres | C70: 1930 | D70: =INDEX($S$6:$AE$9,MATCH($B70,$R$6:$R$9,0),MATCH(C70,$S$5:$AE$5,1)) -> R2 | F70: R5 | G70: =IFERROR(INDEX($AI$5:$AL$12,MATCH($F70,$AH$5:$AH$13,1),MATCH($B70,$AI$4:$AL$4,0)),"inconnu")-INDEX($AI$5:$AL$13,MATCH($D70,$AH$5:$AH$13,0),MATCH($B70,$AI$4:$AL$4,0)) -> 0.02 | J70: Portes et fenêtres | K70: 1930 | L70: =INDEX($S$6:$AE$9,MATCH($J70,$R$6:$R$9,0),MATCH(K70,$S$5:$AE$5,1)) -> R2 | N70: R5 | O70: =IFERROR(INDEX($AI$5:$AL$12,MATCH($N70,$AH$5:$AH$13,1),MATCH($J70,$AI$4:$AL$4,0)),"inconnu")-INDEX($AI$5:$AL$13,MATCH($L70,$AH$5:$AH$13,0),MATCH($J70,$AI$4:$AL$4,0)) -> 0.02
B71: Autres gains énergétiques potentiels | D71: Travaux prévus | F71: Gain énergétique cible | J71: Autres gains énergétiques potentiels | L71: Travaux prévus | N71: Gain énergétique cible
B72: Réduction des infiltrations d'air | D72: Oui | F72: 0.01 | J72: Réduction des infiltrations d'air | L72: Oui | N72: 0.01
B73: Installation de thermostates électronique | D73: Oui | J73: Installation de thermostates électronique | L73: Oui
B74: Installation de produits homologués Watersense® | D74: Oui | J74: Installation de produits homologués Watersense® | L74: Oui
B75: Type de système de chauffage | D75: Taux efficacité | E75: Modification | F75: Taux efficacité | G75: Gain énergétique | J75: Type de système de chauffage | L75: Taux efficacité | M75: Modification | N75: Taux efficacité | O75: Gain énergétique
B76: Central électrique-mazout | C76: 1930 | E76: Oui | G76: 0.03 | J76: Central électrique-mazout | K76: 1930 | M76: Oui | O76: 0.03
B77: Utiliser la liste déroulante | C77: 2005 | E77: Oui | J77: Utiliser la liste déroulante | K77: 2005 | M77: Oui

Sheet Calculateur Chauffez vert (hidden)
A1: APPLICABLE SEULEMENT POUR LES PROJETS DE RÉNOVATIONS
D2: Calculateur d'économies de conversion du système de chauffage
A5: Sélectionnez le combustible actuel de votre système de chauffage. | F5: Mazout
A8: Coût unitaire du combustible | F8: 1
A11: Rendement de votre système* | F11: 0.8
A14: Quantité de combustible en litres pour une année | F14: 2000
A17: Coût d'énergie annuel actuel | F17: =F8*F14 -> 2000
A20: Quantité de kWh équivalent | F20: =IF(F5="Mazout",F14*10.7778,F14*7.0917)*F11 -> 17244.48
A23: Coût unitaire de l'électricité par kWh | F23: 0.09
A26: Coût d'énergie annuel après la conversion au chauffage électrique | F26: =F20*F23 -> 1552.0032
A29: Économie annuelle après le changement de source d'énergie | F29: =F17-F26 -> 447.9968
B32: Estimation du coût des travaux | F32: 4000
A35: Système rentabilisé après | F35: =F32/F29 -> 8.928635205 | G35: ans
N40: 1er avril 2020

Sheet Augmentation série 2 - réno (hidden)
B2: =IF('2. Informations de base'!G8=0,"NOM DU PROJET",'2. Informations de base'!G8) -> NOM DU PROJET
B3: =IF('2. Informations de base'!$B$3="Sélectionner le nom du fonds","NOM DU FONDS",'2. Informations de base'!$B$3)&", Augmentation des loyers, Série 2" -> Fonds Immosocial Québec, Augmentation des loyers, Série 2
B5: INFORMATIONS - TPS/TVQ REMBOURSABLE | F5: INFORMATIONS: % recommandation TAL / % du marché local
B6: ='6. OPEX'!B20 -> Taxes de vente (TPS/TVQ) | D6: ='6. OPEX'!$C$20 -> 0.14975
B7: ='6. OPEX'!B21 -> Portion remboursable à l'organisme - exploitation | D7: ='6. OPEX'!$C$21 -> 0 | F7: Taxes municipales | H7: 0.0375
B8: INFORMATIONS - DIVERS | F8: Assurances | H8: 0.0325
B9: Inflation | D9: =PARAMÈTRES!$E$26 -> 0.02 | F9: Énergie | H9: 0.009
B10: % du total des travaux dans augmentation de loyers | D10: 0.027 | F10: Entretien | H10: 0.016
B11: Travaux CAPEX | D11: ='5. CAPEX'!E84*(1+($D$6*(1-$D$7))) -> 0 | F11: Frais de gestion immobilière | H11: 0.027
B12: Période pour augmentation pour travaux | D12: =IF('Détail des baux - réno'!S11="oui",1,(IF('Détail des baux - réno'!S11="non",2,"À venir"))) -> À venir | F12: Revenus nets | H12: 0.014
B14: DÉPENSES PRÉVUES (EXPLOITATION) | C14: TX/NTX | D14: % | E14: =IF('7. OPEX- projections 15 ans'!F24="","",'7. OPEX- projections 15 ans'!F24) -> 1 | F14: =IF('7. OPEX- projections 15 ans'!G24="","",'7. OPEX- projections 15 ans'!G24) -> 2 | G14: =IF('7. OPEX- projections 15 ans'!H24="","",'7. OPEX- projections 15 ans'!H24) -> 3 | H14: =IF('7. OPEX- projections 15 ans'!I24="","",'7. OPEX- projections 15 ans'!I24) -> 4 | I14: =IF('7. OPEX- projections 15 ans'!J24="","",'7. OPEX- projections 15 ans'!J24) -> 5 | J14: =IF('7. OPEX- projections 15 ans'!K24="","",'7. OPEX- projections 15 ans'!K24) -> 6 | K14: =IF('7. OPEX- projections 15 ans'!L24="","",'7. OPEX- projections 15 ans'!L24) -> 7 | L14: =IF('7. OPEX- projections 15 ans'!M24="","",'7. OPEX- projections 15 ans'!M24) -> 8 | M14: =IF('7. OPEX- projections 15 ans'!N24="","",'7. OPEX- projections 15 ans'!N24) -> 9 | N14: =IF('7. OPEX- projections 15 ans'!O24="","",'7. OPEX- projections 15 ans'!O24) -> 10 | O14: =IF('7. OPEX- projections 15 ans'!P24="","",'7. OPEX- projections 15 ans'!P24) -> 11 | P14: =IF('7. OPEX- projections 15 ans'!Q24="","",'7. OPEX- projections 15 ans'!Q24) -> 12 | Q14: =IF('7. OPEX- projections 15 ans'!R24="","",'7. OPEX- projections 15 ans'!R24) -> 13 | R14: =IF('7. OPEX- projections 15 ans'!S24="","",'7. OPEX- projections 15 ans'!S24) -> 14 | S14: =IF('7. OPEX- projections 15 ans'!T24="","",'7. OPEX- projections 15 ans'!T24) -> 15 | T14: =IF('7. OPEX- projections 15 ans'!U24="","",'7. OPEX- projections 15 ans'!U24) -> 16
B15: Taxes foncières | C15: ='6. OPEX'!I43 -> NTX | D15: =$D$9 -> 0.02 | E15: ='6. OPEX'!J43 -> 0 | F15: =E15*$D$15 -> 0 | G15: =F15*$D$15 -> 0 | H15: 0 | I15: 0 | J15: 0 | K15: 0 | L15: 0 | M15: 0 | N15: 0 | O15: 0 | P15: 0 | Q15: 0 | R15: 0 | S15: 0 | T15: =S15*$D$15 -> 0
B16: Assurances | C16: ='6. OPEX'!I42 -> NTX | D16: =$D$9 -> 0.02 | E16: ='6. OPEX'!J42 -> 0 | F16: =E16*$D$15 -> 0 | G16: 0 | H16: 0 | I16: 0 | J16: 0 | K16: 0 | L16: 0 | M16: 0 | N16: 0 | O16: 0 | P16: 0 | Q16: 0 | R16: 0 | S16: 0 | T16: =S16*$D$15 -> 0
B17: Énergie | C17: ='6. OPEX'!I37 -> TX | D17: =$D$9 -> 0.02 | E17: ='6. OPEX'!J43 -> 0 | F17: =E17*$D$15 -> 0 | G17: 0 | H17: 0 | I17: 0 | J17: 0 | K17: 0 | L17: 0 | M17: 0 | N17: 0 | O17: 0 | P17: 0 | Q17: 0 | R17: 0 | S17: 0 | T17: =S17*$D$15 -> 0
B18: Entretien et conciergerie | C18: ='6. OPEX'!I34 -> TX | D18: =$D$9 -> 0.02 | E18: ='6. OPEX'!J44 -> 0 | F18: =E18*$D$15 -> 0 | G18: 0 | H18: 0 | I18: 0 | J18: 0 | K18: 0 | L18: 0 | M18: 0 | N18: 0 | O18: 0 | P18: 0 | Q18: 0 | R18: 0 | S18: 0 | T18: =S18*$D$15 -> 0
B19: Frais de gestion immobilière | C19: ='6. OPEX'!I40 -> TX | D19: =$D$9 -> 0.02 | E19: ='6. OPEX'!J45 -> 0 | F19: =E19*$D$15 -> 0 | G19: 0 | H19: 0 | I19: 0 | J19: 0 | K19: 0 | L19: 0 | M19: 0 | N19: 0 | O19: 0 | P19: 0 | Q19: 0 | R19: 0 | S19: 0 | T19: =S19*$D$15 -> 0
D20: TOTAL | E20: =SUM(E15:E19) -> 0 | F20: =SUM(F15:F19) -> 0 | G20: 0 | H20: 0 | I20: 0 | J20: 0 | K20: 0 | L20: 0 | M20: 0 | N20: 0 | O20: 0 | P20: 0 | Q20: 0 | R20: 0 | S20: 0 | T20: 0
D21: TOTAL AVEC TPS/TVQ | E21: =(SUMIF($C$15:$C$19,"tx",E15:E19))*(1+($D$6*(1-$D$7))) -> 0 | F21: 0 | G21: 0 | H21: 0 | I21: 0 | J21: 0 | K21: 0 | L21: 0 | M21: 0 | N21: 0 | O21: 0 | P21: 0 | Q21: 0 | R21: 0 | S21: 0 | T21: 0
B23: AUGMENTATION DES LOYERS % (EXPLOITATION) | D23: Données | E23: =E14 -> 1 | F23: =F14 -> 2 | G23: 3 | H23: 4 | I23: 5 | J23: 6 | K23: 7 | L23: 8 | M23: 9 | N23: 10 | O23: 11 | P23: 12 | Q23: 13 | R23: 14 | S23: 15 | T23: 16
B24: Augmentation inflation | D24: =$D$9 -> 0.02 | E24: =IF(E23="","",(IF($D$12<=E23,$D$9,0))) -> 0 | F24: =IF(F23="","",(IF($D$12<=F23,$D$9,0))) -> 0 | G24: 0 | H24: 0 | I24: 0 | J24: 0 | K24: 0 | L24: 0 | M24: 0 | N24: 0 | O24: 0 | P24: 0 | Q24: 0 | R24: 0 | S24: 0 | T24: 0
B25: Augmentation supp. pour travaux | D25: =IFERROR((D10*D11)/D31,0) -> 0 | E25: =IF(E23="","",(IF($D$12=E23,$D$25,0))) -> 0 | F25: 0 | G25: 0 | H25: 0 | I25: 0 | J25: 0 | K25: 0 | L25: 0 | M25: 0 | N25: 0 | O25: 0 | P25: 0 | Q25: 0 | R25: 0 | S25: 0 | T25: =IF(T23="","",(IF($D$12=T23,$D$25,0))) -> 0
C26: TOTAL | D26: =SUM(D24:D25) -> 0.02 | E26: =IF(E23=$D$12,SUM(E24:E25),PARAMÈTRES!$E$24) -> 0.02 | F26: =IF(F23=$D$12,SUM(F24:F25),PARAMÈTRES!$E$24) -> 0.02 | G26: =IF(G23=$D$12,SUM(G24:G25),PARAMÈTRES!$E$24) -> 0.02 | H26: =IF(H23=$D$12,SUM(H24:H25),PARAMÈTRES!$E$24) -> 0.02 | I26: =IF(I23=$D$12,SUM(I24:I25),PARAMÈTRES!$E$24) -> 0.02 | J26: =IF(J23=$D$12,SUM(J24:J25),PARAMÈTRES!$E$24) -> 0.02 | K26: =IF(K23=$D$12,SUM(K24:K25),PARAMÈTRES!$E$24) -> 0.02 | L26: =IF(L23=$D$12,SUM(L24:L25),PARAMÈTRES!$E$24) -> 0.02 | M26: =IF(M23=$D$12,SUM(M24:M25),PARAMÈTRES!$E$24) -> 0.02 | N26: =IF(N23=$D$12,SUM(N24:N25),PARAMÈTRES!$E$24) -> 0.02 | O26: =IF(O23=$D$12,SUM(O24:O25),PARAMÈTRES!$E$24) -> 0.02 | P26: =IF(P23=$D$12,SUM(P24:P25),PARAMÈTRES!$E$24) -> 0.02 | Q26: =IF(Q23=$D$12,SUM(Q24:Q25),PARAMÈTRES!$E$24) -> 0.02 | R26: =IF(R23=$D$12,SUM(R24:R25),PARAMÈTRES!$E$24) -> 0.02 | S26: =IF(S23=$D$12,SUM(S24:S25),PARAMÈTRES!$E$24) -> 0.02 | T26: =IF(T23=$D$12,SUM(T24:T25),PARAMÈTRES!$E$24) -> 0.02
B28: AUGMENTATION DES LOYERS $ (EXPLOITATION) | D28: Données | E28: =E14 -> 1 | F28: =F14 -> 2 | G28: 3 | H28: 4 | I28: 5 | J28: 6 | K28: 7 | L28: 8 | M28: 9 | N28: 10 | O28: 11 | P28: 12 | Q28: 13 | R28: 14 | S28: 15 | T28: 16
B29: Loyers résidentiels | D29: ='6. OPEX'!J24 -> 0 | E29: =IFERROR(IF(E23="","",$D$29*$E$26),0) -> 0 | F29: =IFERROR(IF(E23="","",E29*F26),0) -> 0 | G29: =IFERROR(IF(F23="","",F29*G26),0) -> 0 | H29: 0 | I29: 0 | J29: 0 | K29: 0 | L29: 0 | M29: 0 | N29: 0 | O29: 0 | P29: 0 | Q29: 0 | R29: 0 | S29: 0 | T29: 0
B30: Loyers commerciaux | D30: ='6. OPEX'!J26 -> 0 | E30: =IFERROR(IF(E23="","",$D$30*$E$26),0) -> 0 | F30: =IFERROR(IF(E23="","",E30*F26),0) -> 0 | G30: =IFERROR(IF(F23="","",F30*G26),0) -> 0 | H30: 0 | I30: 0 | J30: 0 | K30: 0 | L30: 0 | M30: 0 | N30: 0 | O30: 0 | P30: 0 | Q30: 0 | R30: 0 | S30: 0 | T30: 0
C31: TOTAL LOYERS | D31: =SUM(D29:D30) -> 0 | E31: =IF(E28="","",SUM(E29:E30)) -> 0 | F31: =IF(E28="","",SUM(F29:F30)) -> 0 | G31: =IF(F28="","",SUM(G29:G30)) -> 0 | H31: 0 | I31: 0 | J31: 0 | K31: 0 | L31: 0 | M31: 0 | N31: 0 | O31: 0 | P31: 0 | Q31: 0 | R31: 0 | S31: 0 | T31: 0
C32: Contrôle | D32: ='6. OPEX'!K17 -> 0

Sheet Réserve de rempl. - réno
B2: =IF('2. Informations de base'!G8=0,"NOM DU PROJET",'2. Informations de base'!G8) -> NOM DU PROJET
B3: =IF('2. Informations de base'!$B$3="Sélectionner le nom du fonds","NOM DU FONDS",'2. Informations de base'!$B$3)&", Réserve de remplacement" -> Fonds Immosocial Québec, Réserve de remplacement
B5: INFORMATIONS | E5: INFORMATIONS - TPS/TVQ REMBOURSABLE
B6: Début du prêt | C6: =IF(ISBLANK('ÉVOLUTION DES BAUX'!D6),"",'ÉVOLUTION DES BAUX'!D6) ->  | E6: ='6. OPEX'!B20 -> Taxes de vente (TPS/TVQ) | H6: ='6. OPEX'!$C$20 -> 0.14975
B7: Durée du prêt du fonds | C7: =IF(ISBLANK('ÉVOLUTION DES BAUX'!D7),"",'ÉVOLUTION DES BAUX'!D7) -> 15 | E7: ='6. OPEX'!B21 -> Portion remboursable à l'organisme - exploitation
B8: Fin du prêt | C8: =IF(ISBLANK('ÉVOLUTION DES BAUX'!D8),"",'ÉVOLUTION DES BAUX'!D8) -> 
B9: Nmbre de mois entre début prêt et OPEX | C9: =IF(ISBLANK('ÉVOLUTION DES BAUX'!D12),"",'ÉVOLUTION DES BAUX'!D12) -> 
B10: Date début OPEX | C10: =IF(ISBLANK('ÉVOLUTION DES BAUX'!D10),"",'ÉVOLUTION DES BAUX'!D10) -> 
B11: Début période OPEX sur durée du prêt | C11: =IF(ISBLANK('ÉVOLUTION DES BAUX'!D11),"",'ÉVOLUTION DES BAUX'!D11) -> 
B12: Durée période OPEX | C12: =IF(ISBLANK('ÉVOLUTION DES BAUX'!D14),"",'ÉVOLUTION DES BAUX'!D14) -> 
B13: Fin période OPEX sur durée du prêt | C13: =IF(ISBLANK('ÉVOLUTION DES BAUX'!D9),"",'ÉVOLUTION DES BAUX'!D9) -> 
B14: Locataires existants? | C14: =RÉSUMÉ!C16 -> Non
B16: COTISATIONS | C16: ='7. OPEX- projections 15 ans'!F24 -> 1 | D16: ='7. OPEX- projections 15 ans'!G24 -> 2 | E16: ='7. OPEX- projections 15 ans'!H24 -> 3 | F16: ='7. OPEX- projections 15 ans'!I24 -> 4 | G16: ='7. OPEX- projections 15 ans'!J24 -> 5 | H16: ='7. OPEX- projections 15 ans'!K24 -> 6 | I16: ='7. OPEX- projections 15 ans'!L24 -> 7 | J16: ='7. OPEX- projections 15 ans'!M24 -> 8 | K16: ='7. OPEX- projections 15 ans'!N24 -> 9 | L16: ='7. OPEX- projections 15 ans'!O24 -> 10 | M16: ='7. OPEX- projections 15 ans'!P24 -> 11 | N16: ='7. OPEX- projections 15 ans'!Q24 -> 12 | O16: ='7. OPEX- projections 15 ans'!R24 -> 13 | P16: ='7. OPEX- projections 15 ans'!S24 -> 14 | Q16: ='7. OPEX- projections 15 ans'!T24 -> 15 | R16: ='7. OPEX- projections 15 ans'!U24 -> 16
B17: Cotisation additionnelle capitalisée (CAPEX) | C17: ='5. CAPEX'!E100 -> 0
B18: Cotisation régulière (OPEX) | C18: =IFERROR('7. OPEX- projections 15 ans'!F71,"") -> 0 | D18: =IFERROR('7. OPEX- projections 15 ans'!G71,"") -> 0 | E18: =IFERROR('7. OPEX- projections 15 ans'!H71,"") -> 0 | F18: =IFERROR('7. OPEX- projections 15 ans'!I71,"") -> 0 | G18: =IFERROR('7. OPEX- projections 15 ans'!J71,"") -> 0 | H18: =IFERROR('7. OPEX- projections 15 ans'!K71,"") -> 0 | I18: =IFERROR('7. OPEX- projections 15 ans'!L71,"") -> 0 | J18: =IFERROR('7. OPEX- projections 15 ans'!M71,"") -> 0 | K18: =IFERROR('7. OPEX- projections 15 ans'!N71,"") -> 0 | L18: =IFERROR('7. OPEX- projections 15 ans'!O71,"") -> 0 | M18: =IFERROR('7. OPEX- projections 15 ans'!P71,"") -> 0 | N18: =IFERROR('7. OPEX- projections 15 ans'!Q71,"") -> 0 | O18: =IFERROR('7. OPEX- projections 15 ans'!R71,"") -> 0 | P18: =IFERROR('7. OPEX- projections 15 ans'!S71,"") -> 0 | Q18: =IFERROR('7. OPEX- projections 15 ans'!T71,"") -> 0 | R18: =IFERROR('7. OPEX- projections 15 ans'!#REF!,"") -> 
B19: Cotisation spéciale
B20: TOTAL DES COTISATIONS | C20: =SUM(C17:C19) -> 0 | D20: =SUM(D17:D19) -> 0 | E20: 0 | F20: 0 | G20: 0 | H20: 0 | I20: 0 | J20: 0 | K20: 0 | L20: 0 | M20: =SUM(M17:M19) -> 0 | N20: 0 | O20: 0 | P20: 0 | Q20: 0 | R20: 0
